{"text_format":"1","workbook":"xlsx","n_sheets":1,"sheets":["template"],"not_rendered":{"charts":0,"images":0,"macros":1,"external_links":0,"defined_names":4,"comments":1,"pivot_tables":0},"unopened":[],"bounds":{"document_bytes":16777216,"sheet_cells":100000,"rows_first":2000,"rows_last":500,"rows_between":2000,"halvings":0,"cell_chars":16384,"cell_head_chars":4096},"cells_cut":0,"cells_raw":0,"read":"whole","date_system":"1900"}

{"sheet":"template","index":0,"n_rows":72642,"n_cols":539,"rows_kept":139,"cut":true,"hidden":false,"merged":[],"bounds":{"rows_first":62,"rows_last":15,"rows_between":62,"halvings":5}}
["pri. language","value","caption","type","parent","row","data col","number of shapes within group","start rows","numbers of rows in each shape","sec. language",12,null,14,null,16,null,18,null,20,null,22,null,24,null,26,null,28,null,30,null,32,null,34,null,36,null,38,null,40,null,42,null,44,null,46,null,48,null,50,null,52,null,54,null,56,null,58,null,60,null,62,null,64,null,66,null,68,null,70,null,72,null,74,null,76,null,78,null,80,null,82,null,84,null,86,null,88,null,90,null,92,null,94,null,96,null,98,null,100,null,102,null,104,null,106,null,108,null,110,null,112,null,114,null,116,null,118,null,120,null,122,null,124,null,126,null,128,null,130,null,132,null,134,null,136,null,138,null,140,null,142,null,144,null,146,null,148,null,150,null,152,null,154,null,156,null,158,null,160,null,162,null,164,null,166,null,168,null,170,null,172,null,174,null,176,null,178,null,180,null,182,null,184,null,186,null,188,null,190,null,192,null,194,null,196,null,198,null,200,null,202,null,204,null,206,null,208,null,210,null,212,null,214,null,216,null,218,null,220,null,222,null,224,null,226,null,228,null,230,null,232,null,234,null,236,null,238,null,240,null,242,null,244,null,246,null,248,null,250,null,252,null,254,null,256,null,258,null,260,null,262,null,264,null,266,null,268,null,270,null,272,null,274,null,276,null,278,null,280,null,282,null,284,null,286,null,288,null,290,null,292,null,294,null,296,null,298,null,300,null,302,null,304,null,306,null,308,null,310,null,312,null,314,null,316,null,318,null,320,null,322,null,324,null,326,null,328,null,330,null,332,null,334,null,336,null,338,null,340,null,342,null,344,null,346,null,348,null,350,null,352,null,354,null,356,null,358,null,360,null,362,null,364,null,366,null,368,null,370,null,372,null,374,null,376,null,378,null,380,null,382,null,384,null,386,null,388,null,390,null,392,null,394,null,396,null,398,null,400,null,402,null,404,null,406,null,408,null,410,null,412,null,414,null,416,null,418,null,420,null,422,null,424,null,426,null,428,null,430,null,432,null,434,null,436,null,438,null,440,null,442,null,444,null,446,null,448,null,450,null,452,null,454,null,456,null,458,null,460,null,462,null,464,null,466,null,468,null,470,null,472,null,474,null,476,null,478,null,480,null,482,null,484,null,486,null,488,null,490,null,492,null,494,null,496,null,498,null,500,null,502,null,504,null,506,null,508,null,510,null,512,null,514,null,516,null,518,null,520,null,522,null,524,null,526,null,528,null,530,null,532,null,534,null,536,null,538]
["Aruba",{"$f":"COUNTA(C:C)","v":265},{"$f":"IF($B$3=1,A2,K2)","v":"Aruba"},"Kraj/terytorium","Ameryka Północna",2,12,1,2,8,"Aruba",1102,711,2513,453,1919,1004,1172,655,2000,411,2011,238,1819,412,2341,595,1115,1386,2258,431,120,982,178,1666,3038,961,2502,1333,1184,666,3391,1385,1954,348,2253,439,2106,860,1850,323,1835,718,1798,687,2721,620,2031,399,2308,575,1072,625,1971,385,1002,679,1174,658,2084,276,924,664,1154,514,1149,952,1317,1115,1208,705,2953,788,2705,554,2055,1015,2028,727,1146,403,1888,359,1129,1395,2914,679,1770,786,710,734,1948,709,2141,486,1932,896,1978,801,223,1056,1020,810,2240,961,1555,689,931,782,3346,1047,1018,631,1114,716,988,644,2128,485,2140,487,1946,327,1869,301,2234,722,1188,685,1915,287,1087,661,1888,468,1001,867,2142,570,2202,678,2141,486,1623,559,2035,259,2183,690,2026,238,3548,1054,1205,1361,1897,411,1733,221,3350,828,1892,845,1739,338,2207,402,1778,343,1800,726,1748,476,1669,711,1655,701,1643,726,1858,852,2043,489,1186,717,1365,238,910,659,3251,701,1218,768,2943,615,2539,1368,926,704,1971,409,1065,656,2012,352,3018,943,1756,296,2741,765,2771,959,2526,910,1704,321,2353,578,2231,464,1599,203,2160,504,1928,482,1039,657,1781,344,2193,514,3217,595,2436,381,2572,481,2309,388,2214,858,2554,408,2840,732,3798,952,1176,666,3070,501,2011,405,2286,543,2821,613,2166,491,1705,753,1995,534,1193,697,1898,366,2620,762,2092,1126,2012,284,1862,335,2055,257,2938,615,1172,657,1748,478,1876,400,2078,352,2300,1008,2533,844,655,654,3489,791,2026,414,1754,587,1948,478,2783,739,1993,402,2802,320,3254,696,2132,1097,1638,641,1180,670,2379,1038,2149,958,2916,813,1934,1007,3477,1063,1944,611,3482,1127,1877,792,965,718,103,1027,1839,323,1912,246,2620,533,3471,842,3494,1362,2361,662,2477,596,984,764,501,1088,1040,980,2946,740,3001,789,3120,807,3335,951,1992,294,1123,656,3055,460,1642,537,1220,1039,2145,525,359,1113,2314,591,2069,354,3127,408,2107,848,1714,560,2221,669,2980,685,2175,629,2142,739,1653,671,1016,678,2842,823,1530,1432,1703,1241,3490,960,1676,761,925,705,1926,398,2291,724,2310,717,1240,369,1999,375,1868,836,1260,783,1999,343,1965,370,1959,276,2121,1097,1172,657,2267,935,2224,464,1085,624,2042,642,1807,728,2795,771,2508,438,2333,449,3046,931,40,1060,1193,729,1911,498,2062,438,3601,931,3018,617,2200,918,2143,798,2100,381,202,841,1233,1138,246,636,1050,638,2520,438,1927,418,1188,711,1188,751,1156,654,1155,659,2869,749,3500,1040,21,980,2130,490,86,976,2335,716,2181,1306,2113,923,2102,994,1264,780,1192,689,1189,678,2357,1046,2255,965,1120,717,1172,662,1170,661,178,1666]
["Afganistan",1,{"$f":"IF($B$3=1,A3,K3)","v":"Afganistan"},"Kraj/terytorium","Azja",{"$f":"F2+1","v":3},{"$f":"G2+2","v":14},1,2,355,"Afghanistan",1103,712,2514,453,1919,1004,1171,655,1999,411,2012,237,1817,412,2342,595,1116,1386,2257,431,96,980,179,1666,null,null,2502,1332,1185,666,3390,1385,1954,347,2253,440,2107,861,1852,323,1837,718,1799,686,2722,620,2033,399,2309,575,1071,626,1972,385,null,null,1174,658,2085,276,924,664,1155,513,1150,952,1316,1115,1208,706,2954,788,2708,554,2054,1016,2029,727,1146,402,1889,359,1130,1395,2920,676,1769,786,null,null,1948,710,2141,486,1930,896,1980,801,223,1056,1021,810,2239,961,1554,689,931,782,null,null,1019,631,1114,716,989,644,2143,483,2141,486,1948,327,1869,301,2234,723,1188,683,1915,288,1115,655,1888,469,999,867,2142,562,2203,678,2140,486,1623,560,2035,259,2185,690,2026,238,3615,1044,1204,1361,1897,410,1735,221,3349,827,1892,845,1739,338,2211,402,1778,343,1802,726,1748,476,1669,711,1655,700,1642,726,1858,851,2043,489,1184,717,1365,238,910,678,3251,701,1217,768,2943,615,2540,1368,926,704,1971,410,1065,656,2015,352,3036,943,1755,296,2741,769,2770,959,2526,911,1704,321,2348,578,2232,464,1599,203,2160,506,1928,482,1040,657,1782,345,2194,513,3342,594,2433,381,2573,481,2309,388,2213,858,2555,408,2840,732,3798,952,1176,665,3070,502,2010,405,2285,543,2822,613,2166,492,1705,753,1996,534,1193,700,1897,366,2620,761,2093,1126,2011,284,1863,335,2058,257,2938,616,1171,656,1749,478,1876,400,2080,352,2300,1007,2534,843,654,654,3489,791,2026,415,1755,587,1948,479,2783,739,1994,402,2808,320,3253,696,2132,1098,1638,640,1180,670,2379,1038,2149,957,2915,813,1937,1007,3477,1063,1945,610,3482,1128,1877,792,965,718,104,1027,1840,323,1913,246,2622,533,3472,842,3495,1362,2362,662,2477,597,984,764,554,1084,1038,976,2946,739,3001,789,3113,807,3336,951,1996,293,1147,656,3055,460,1643,536,1220,1039,2144,524,359,1113,2311,591,2070,354,3127,409,2107,849,1715,560,2222,670,null,null,2175,629,2141,740,1653,670,null,null,2842,824,1529,1432,1702,1241,3472,954,1677,761,924,705,1926,397,2291,743,2311,718,1240,369,2000,376,1868,837,1260,784,2000,343,1966,370,1959,276,2123,1097,1171,657,2267,935,2225,464,1090,624,2042,680,1808,727,2794,772,2509,438,2333,448,3045,931,53,1051,1192,729,1912,498,2063,439,3594,922,3017,617,2199,918,2144,798,2100,381,37,835,1234,1138,249,636,1050,638,2519,438,null,null,1188,711,1189,751,1156,654,1155,659,2869,750,3500,1039,20,980,2132,490,86,977,2332,715,2180,1307,2116,923,2103,993,1265,780,1193,689,1189,677,2359,1046,2255,965,1119,717,null,null,1169,661,179,1666]
["Angola",null,"Angola","Kraj/terytorium","Afryka",{"$f":"F3+1","v":4},{"$f":"G3+2","v":16},3,"2;4;268","2;264;35","Angola",1103,713,2514,454,1942,896,1171,654,1999,412,2012,238,1817,413,2341,596,1116,1386,2257,430,95,980,179,1667,null,null,2502,1332,1185,667,3390,1384,1956,347,2254,440,2107,861,1852,322,1837,719,1800,686,2722,622,2033,398,2308,576,1071,627,1972,385,null,null,null,null,2085,276,921,662,1155,514,1150,955,1316,1114,1206,706,2954,789,2708,555,2055,1017,2030,728,1146,402,1889,360,1130,1396,2920,676,1769,785,null,null,1950,710,2129,485,1930,896,1980,802,205,1049,1021,812,2239,960,1554,688,963,750,null,null,1019,632,1114,716,989,643,2143,484,2142,486,1948,328,1873,300,2231,727,1187,682,1916,288,1116,655,1886,469,999,865,2142,562,2203,680,2140,487,1622,560,2042,256,2185,692,2041,237,3615,1044,1204,1360,1896,410,1735,222,3350,827,1896,829,1738,337,2212,403,1777,342,1802,729,null,null,1670,710,1656,700,1642,725,1859,851,2072,483,1184,716,1365,238,914,678,3251,702,1218,767,2944,614,2539,1369,926,704,1970,410,1065,651,2015,351,3036,944,1755,295,2740,769,2770,959,2526,911,1699,318,2347,574,2232,463,1625,200,2161,506,1931,478,1040,658,1780,345,2195,514,3040,593,2432,380,2573,482,2308,388,2212,859,2557,409,2835,731,3757,893,1177,665,3071,502,2011,406,2285,542,2822,612,2167,492,1707,753,1997,533,1192,700,1897,364,2619,760,2093,1127,2012,283,1863,337,2058,258,2937,616,1172,656,1748,479,null,null,2080,353,2301,1007,2535,843,654,653,3483,781,2027,415,1755,588,1946,479,2785,736,1994,403,2813,321,3253,695,2131,1097,1638,640,1180,670,2380,1039,2150,957,2915,809,1937,1008,3477,1064,1947,610,3481,1128,1877,793,972,715,104,1028,1840,324,1913,247,2622,534,3471,843,3495,1363,2362,661,2476,597,992,761,519,1081,1037,976,2942,737,2997,790,3113,806,3337,952,1997,293,1147,655,3055,460,1643,536,1220,1040,2145,523,325,1076,2310,589,2070,355,3126,409,2108,850,1715,577,2222,670,null,null,2175,629,2141,742,1655,671,null,null,2838,824,1530,1431,1702,1240,3471,953,1677,763,924,705,1927,397,2290,744,2315,718,1239,367,2001,375,1867,837,1259,784,2000,345,1966,371,1973,264,2123,1099,1171,656,2277,934,2225,465,1091,622,2040,680,1811,727,2794,771,2509,439,2332,448,3045,931,53,1051,1192,736,1912,499,2062,439,3586,917,3017,616,2199,917,2144,799,2100,380,36,829,1234,1139,250,637,1051,637,2519,437,null,null,1189,710,1189,752,1157,652,1156,659,2868,750,3499,1039,20,979,2132,491,87,976,2333,715,2178,1307,2117,924,2104,993,1266,781,1193,691,1190,677,2359,1048,2253,964,1119,715,null,null,1170,660,183,1667]
["Anguilla",null,"Anguilla","Kraj/terytorium","Ameryka Północna",5,18,2,"2;7","5;1","Anguilla",1103,713,2516,454,1968,896,1172,654,2002,412,2011,238,1816,413,2341,595,1115,1386,2258,430,95,981,184,1667,null,null,2502,1333,1183,667,3391,1384,1957,348,2254,441,2107,863,1853,322,1838,719,1802,687,2721,622,2037,398,2308,578,1069,627,1976,385,null,null,null,null,2088,276,924,662,1155,514,1151,955,1316,1114,1205,705,2955,791,2707,555,2055,1018,2031,728,1146,403,1895,360,1128,1396,2918,672,1770,785,null,null,1950,711,2136,485,1932,896,1981,802,205,1050,1020,812,2238,960,1555,688,950,736,null,null,1018,632,1112,716,991,643,2141,484,2143,487,1949,329,1884,300,2230,727,1187,681,1918,289,1116,656,1887,470,1000,865,2149,558,2204,680,2141,487,1622,560,2041,256,2186,692,2031,237,3620,1035,1205,1360,1896,411,1734,221,3351,799,1920,814,1739,337,2214,403,1777,343,1801,729,null,null,1670,711,1657,701,1643,725,1858,852,2072,483,1185,715,1364,239,914,679,3250,702,1219,767,2945,614,2536,1369,925,704,1970,409,1065,651,2016,351,3034,944,1756,294,2740,768,2859,942,2526,910,1699,318,2347,574,2233,463,1625,200,2161,508,1922,469,1035,658,1780,344,2195,515,3041,593,2431,380,2580,482,2308,387,2212,858,2559,409,2835,730,3571,884,1177,666,3071,504,2013,406,2286,542,2823,613,2167,493,1707,756,1998,533,1191,699,1898,365,2620,760,2094,1128,2013,282,1864,337,2062,258,2937,615,1172,657,1749,479,null,null,2081,353,2301,1006,2537,840,655,653,3493,780,2027,416,1756,588,1946,478,2785,737,1996,403,2813,322,3255,695,2131,1097,1638,641,null,null,2380,1040,2150,958,2916,809,1938,1009,3476,1064,1948,609,3481,1127,1876,793,971,716,102,1028,1841,323,1912,247,2623,534,3471,842,3492,1363,2363,661,2476,596,991,762,518,1080,1037,975,2946,735,2997,788,3114,806,3339,952,1998,292,1149,655,3054,459,1637,512,1221,1040,2146,523,307,1071,2311,589,2072,355,3126,408,2108,851,1682,577,2222,669,null,null,2117,616,2143,742,1655,671,null,null,2839,823,1531,1431,1703,1240,3472,953,1676,763,908,692,1927,398,2290,745,2315,720,1239,367,2002,375,1867,833,1259,785,2003,345,1967,371,1973,264,2122,1100,1172,657,2267,931,2226,465,1091,623,2039,679,1811,729,2795,771,2507,439,2332,446,3043,931,52,1051,1183,736,1912,499,2062,436,3586,917,3018,616,2200,917,2145,799,2101,380,181,778,1236,1139,251,638,1051,638,2520,437,null,null,1189,710,1187,752,1157,653,1156,660,2868,749,3500,1038,21,979,2131,491,87,977,2333,716,2178,1306,2118,924,2104,993,1268,781,1194,691,1190,678,2361,1048,2254,964,1118,715,null,null,1170,661,184,1667]
["Albania",null,"Albania","Kraj/terytorium","Europa",6,20,1,2,90,"Albania",1103,712,2516,455,1968,898,1172,655,2002,411,2011,237,1816,412,2340,595,1159,1384,2258,431,94,981,184,1668,null,null,2489,1330,1183,666,3391,1382,1961,348,2255,441,2106,863,1853,324,1838,720,1804,688,2721,620,2038,399,2307,578,1069,627,1976,385,null,null,null,null,2089,277,924,663,1155,513,1151,955,1317,1113,1205,704,2955,793,2707,556,2056,1018,2032,730,1204,398,1898,362,1128,1395,2919,671,1770,786,null,null,1951,712,2137,486,2057,783,1981,801,204,1050,1020,810,2238,959,1555,689,950,736,null,null,1018,631,1112,715,991,644,2141,485,2140,487,1950,329,1878,299,2229,726,1189,681,1918,288,1115,656,1886,470,1000,864,2149,558,2204,681,2141,488,1620,560,2042,255,2186,693,2031,237,3618,1029,1205,1361,1897,411,1734,222,3350,799,1928,814,1789,329,2214,404,1775,343,1801,731,null,null,1671,711,1657,702,1643,726,1902,815,2041,482,1186,715,1364,239,916,679,3250,704,1218,768,2945,615,2536,1367,925,703,1978,409,1074,650,2017,352,3034,945,1757,293,2739,768,2859,942,2527,911,1704,306,2343,572,2235,464,1618,177,2160,508,1923,469,1035,658,1781,344,2194,516,3041,594,2431,379,2576,484,2309,388,2213,858,2559,408,2834,730,3594,882,1176,666,3068,504,2013,407,2286,543,2823,614,2168,494,1708,756,2000,532,1191,698,1898,365,2620,762,2095,1128,2013,283,1864,338,2062,259,2938,615,null,null,1749,481,null,null,2081,354,2302,1005,2537,840,655,654,3493,780,2029,416,1757,589,1945,478,2784,737,1996,404,2819,322,3254,696,2132,1097,1637,640,null,null,2379,1041,2148,958,2916,813,1939,1009,3476,1062,1950,608,3482,1127,1875,792,971,715,103,1027,1844,323,1912,246,2623,535,null,null,3492,1362,2363,662,2477,596,991,762,519,1080,1038,975,2956,735,2997,788,3114,807,3339,953,1999,293,1149,654,3052,459,1637,512,1221,1041,2146,522,452,1068,2311,588,2072,356,3127,408,2109,851,1682,603,2223,669,null,null,2116,617,2143,752,1657,671,null,null,2840,823,1530,1432,1703,1241,3472,954,1676,762,908,693,1926,398,2289,746,2314,721,1239,368,2002,376,1869,833,1258,785,2003,344,1967,372,1972,264,2123,1101,null,null,2266,931,2226,467,1090,622,2038,679,1810,730,2799,772,2507,438,2333,446,3042,930,52,1050,1183,736,1912,500,2059,436,3589,912,3018,617,2200,918,2145,800,2103,379,178,773,1236,1140,251,640,1051,638,2520,438,null,null,1190,708,1187,751,1155,653,1153,660,2869,749,3501,1039,21,980,2131,490,87,977,2332,716,2179,1305,2118,925,2105,993,1269,782,1194,693,1192,674,2361,1049,2254,967,1118,714,null,null,null,null,183,1668]
["Wyspy Alandzkie",null,"Wyspy Alandzkie","Kraj/terytorium","Europa",7,22,16,"2;3;7;8;13;17;19;24;28;31;32;39;41;43;47;72","1;4;1;5;4;2;5;4;3;1;7;2;2;4;25;1","Aland",1101,712,2515,456,1969,898,1168,651,2003,411,2007,237,1816,412,2340,596,1160,1384,2252,424,94,980,182,1668,null,null,2490,1330,1183,666,3392,1382,1961,349,2255,442,2106,864,1857,324,1837,721,1804,693,2693,620,2039,398,2307,575,1068,627,1977,385,null,null,null,null,2090,278,923,663,null,null,1152,955,1317,1113,1206,704,2956,793,2710,556,2056,1020,2033,731,1201,398,1899,362,1129,1395,2929,670,1740,730,null,null,1951,716,2137,486,2058,783,1982,802,204,1049,1024,811,2239,959,1557,689,950,726,null,null,1018,631,1111,715,988,644,2142,486,2140,486,1950,328,1877,299,2227,726,1189,685,1919,288,1114,655,1886,471,1003,864,2147,557,2205,680,2140,487,1620,559,2042,256,2188,693,2027,236,3618,1029,1204,1358,1897,412,1734,222,3339,784,1930,815,1791,330,2217,404,1775,342,1803,731,null,null,1671,712,1661,702,1642,725,1915,815,2043,482,1186,717,1363,239,916,679,3249,704,1206,755,2944,615,2538,1367,926,703,1978,410,1073,650,2018,352,3033,945,1758,293,2739,765,2859,942,2527,910,1704,306,2341,572,2237,464,1642,172,2160,510,1922,470,1034,658,null,null,2193,516,3040,594,2430,378,2573,486,2303,388,2213,858,2570,408,2834,729,3603,882,1175,664,3068,505,2014,407,2284,537,2824,614,2168,496,1708,757,2001,530,1192,697,1898,366,2601,746,2095,1129,2012,284,1865,338,2063,260,null,null,null,null,1750,481,null,null,2083,354,2302,1006,2533,835,928,653,3498,779,2029,417,1758,590,1945,477,2784,738,1997,404,2819,323,3259,688,2157,1055,1639,638,null,null,2379,1042,2148,957,2844,810,1940,1010,3477,1062,1952,607,null,null,1875,792,972,715,null,null,1844,324,1858,246,2624,535,null,null,3493,1362,2389,635,2550,467,990,762,519,1081,1038,976,2947,733,2997,790,3124,784,3336,953,2027,293,1149,654,3051,452,1631,509,1222,1041,2147,521,452,1068,2310,588,2073,356,3121,406,2109,852,1681,603,2223,670,null,null,2171,617,2142,752,1658,670,null,null,2840,822,1528,1432,1679,1209,3471,953,1673,762,911,693,null,null,2288,747,2314,722,1240,368,2003,375,1870,834,1258,786,2005,344,1966,372,1973,265,2123,1105,null,null,2265,932,2225,467,1087,622,2037,680,1810,734,2798,771,2508,438,2333,449,3044,930,53,1050,1184,736,1911,500,2059,435,3574,909,3017,611,2201,915,2147,800,2101,380,178,773,1237,1141,252,639,1051,637,2514,437,null,null,1190,707,1192,751,1156,652,1153,659,2864,741,3500,1040,40,971,2130,490,88,978,2332,715,2180,1305,2119,926,2105,994,1270,782,1193,693,1192,674,2360,1049,2253,967,1119,714,null,null,null,null,169,1668]
["Andora",null,"Andora","Kraj/terytorium","Europa",8,24,1,2,12,"Andorra",1101,711,2515,458,1969,902,null,null,2003,412,2008,236,1816,411,2339,596,1160,1384,2252,425,107,980,178,1669,null,null,2490,1331,1183,665,3392,1383,1962,349,2258,442,2107,864,1857,325,1837,723,1806,694,2693,618,2039,399,2308,575,1068,628,1977,386,null,null,null,null,2090,277,923,662,null,null,1152,957,1317,1111,1207,705,2956,794,2711,557,2057,1020,2035,733,1201,398,1899,363,1131,1396,2925,669,1740,730,null,null,1953,716,2138,486,2058,784,1982,801,205,1049,1023,811,2239,960,1557,687,951,727,null,null,1016,630,1111,714,988,644,2140,486,2141,486,1952,328,1877,299,2226,727,1188,685,1920,289,1115,655,1884,471,1003,865,2148,557,2206,680,2139,487,1622,559,2028,251,2189,692,2027,237,3600,1029,1204,1359,1898,413,1734,223,3431,784,1930,814,1790,330,2218,405,1777,342,1803,732,null,null,1674,712,1661,701,1642,726,1915,827,2043,481,1188,712,1363,238,917,679,3249,704,1207,755,2944,614,2538,1368,945,677,1980,410,1072,649,2018,353,3032,946,1758,294,2741,765,2859,942,2526,909,1704,306,2341,571,2237,464,1642,172,2158,510,1922,469,1035,657,null,null,2192,517,3040,593,2430,376,2571,483,2303,389,2214,858,2570,407,2835,729,3603,881,1176,664,3064,505,2014,408,2285,539,2824,615,2166,496,1707,757,2002,529,1192,696,null,null,2601,747,2096,1129,2051,273,1865,339,2064,260,null,null,null,null,1750,482,null,null,2083,355,2301,1007,2534,835,929,652,3498,778,2031,417,1759,590,1947,477,2783,738,1997,405,2823,323,3258,688,2156,1055,1638,640,null,null,2375,1042,2148,957,2843,810,1941,1010,3477,1063,1952,610,null,null,1875,793,975,693,null,null,1843,324,1857,245,2623,536,null,null,3493,1362,2388,635,2551,467,990,761,495,1076,1030,958,2947,733,3000,788,3144,768,3336,952,2029,294,1132,652,3050,452,1635,509,1222,1044,2147,522,288,1062,2310,582,2073,357,3121,407,2110,852,1678,604,2224,670,null,null,2171,621,2142,753,1659,671,null,null,2841,823,1528,1431,1679,1208,3471,954,1672,761,911,694,null,null,2288,748,2313,722,1239,369,2003,376,1870,835,1257,787,2005,343,1966,372,1972,265,2122,1105,null,null,2264,932,2224,468,1087,622,2033,680,1811,734,2798,770,2508,427,2337,441,3044,929,53,1051,1185,735,1911,500,2062,435,3565,900,3017,611,2201,916,2146,801,2100,381,107,670,1238,1141,252,641,null,null,2514,438,null,null,1190,707,1192,752,1157,652,1155,659,2865,741,3497,1034,40,969,null,null,86,978,2324,715,2181,1306,2121,926,2106,994,1269,781,1193,692,1192,674,2360,1051,2253,964,1119,715,null,null,null,null,169,1667]
["Zjednoczone Emiraty Arabskie",null,"Zjednoczone Emiraty Arabskie","Kraj/terytorium","Azja",9,26,11,"2;14;16;18;23;25;30;35;36;37;152","12;2;2;5;2;5;5;1;1;115;6","United Arab Emirates",1102,711,2516,458,1970,902,null,null,2004,412,2008,237,1817,411,2339,595,1161,1384,2254,425,107,979,174,1668,null,null,2489,1331,1184,665,3391,1383,1963,350,2258,441,2107,865,1860,325,1839,726,1806,695,2693,618,2049,399,null,null,1067,628,1978,386,null,null,null,null,2096,277,924,662,null,null,1154,957,1318,1111,1208,705,2954,794,2713,557,2057,1021,2037,735,1203,398,1898,363,1130,1396,2925,668,1740,731,null,null,1953,718,2138,487,2059,784,1983,801,229,1039,1023,811,2240,960,1558,687,953,728,null,null,1014,630,1110,714,1002,640,2140,487,2129,485,1952,327,1881,299,2222,727,null,null,1921,289,1092,638,1884,472,1002,865,2148,558,2206,681,2139,486,1623,558,2033,251,2191,692,2026,237,3600,1029,1205,1359,1897,413,1735,222,3432,783,1931,814,1790,331,2227,405,1777,343,1804,733,null,null,1674,713,1663,701,1641,725,1902,827,2044,481,1187,712,1362,238,917,678,3248,704,1208,756,2942,614,2539,1368,945,678,1976,409,1070,649,2019,353,3030,946,1758,294,2738,764,null,null,2527,909,1705,305,2342,571,2238,464,1643,173,2158,513,1922,469,1033,657,null,null,2191,517,3032,592,2431,376,2570,480,2304,388,2156,787,2573,407,2835,730,3604,881,1176,665,3064,503,2016,408,2286,539,2825,615,2166,497,1707,758,2003,528,1193,696,null,null,2600,747,2096,1132,2052,274,1867,339,2065,261,null,null,null,null,1751,483,null,null,2084,354,2300,1008,2532,834,929,652,3499,778,2031,419,1759,591,1947,478,2783,737,1999,405,2824,324,3258,686,2156,1054,1638,641,null,null,2375,1041,2148,958,2843,809,1941,1011,3470,1061,1953,611,null,null,1874,793,975,693,null,null,1842,325,1861,245,2624,536,null,null,3494,1362,2388,633,2551,467,985,761,495,1076,1030,958,2960,730,3000,788,3144,768,3335,952,2030,293,1141,652,3050,451,1635,510,1223,1044,2146,523,288,1062,2310,582,2074,357,3120,407,2110,857,1676,604,2224,671,null,null,2172,622,2139,753,1659,672,null,null,2842,823,1529,1431,1680,1208,3470,954,1676,761,912,694,null,null,2287,749,2313,725,1238,369,2004,376,1869,835,1257,790,2009,343,1965,371,1972,266,2122,1107,null,null,2264,931,2222,470,1077,621,2032,681,1812,735,2799,770,2509,428,2337,441,3047,929,49,1048,1186,735,1909,500,2078,432,3576,898,3002,603,2199,916,2146,805,2128,376,107,669,1238,1142,253,641,null,null,2512,438,null,null,1190,706,1191,751,1155,653,1155,654,2865,742,3496,1034,41,969,null,null,86,978,2237,710,2182,1303,2121,928,2106,997,1270,782,1191,692,1186,674,2357,1051,2253,964,1120,715,null,null,null,null,166,1667]
["Argentyna",null,"Argentyna","Kraj/terytorium","Ameryka Południowa",10,28,8,"2;6;25;86;93;98;104;108","4;19;61;7;5;6;4;979","Argentina",null,null,2517,457,1969,903,null,null,2004,414,2007,237,1817,410,2340,595,1161,1385,2254,426,108,979,169,1668,null,null,2488,1330,1184,660,3391,1385,1964,349,2260,441,2106,865,1860,326,1839,727,1805,696,2693,620,2049,400,null,null,1066,627,1978,385,null,null,null,null,2096,279,924,662,null,null,1154,958,1318,1113,null,null,2954,793,2714,556,2058,1022,2038,738,1204,397,1898,364,1130,1395,2909,635,1739,732,null,null,1953,718,2137,487,2060,785,1983,802,228,1039,1024,811,2241,961,1558,686,953,727,null,null,1014,630,1110,713,1004,640,2139,486,2129,486,1955,327,1917,297,2222,728,null,null,1921,290,1094,638,1886,472,1002,866,2147,558,2202,681,2140,487,1623,559,2033,252,2192,691,2026,236,3616,1028,1205,1360,1898,414,1735,223,3432,784,1931,814,1789,331,2228,406,1780,340,1805,733,null,null,1678,713,1663,702,1641,725,1902,828,2044,482,1187,712,1362,239,916,678,3248,703,1207,755,2942,615,null,null,950,678,1976,409,1070,648,2019,354,3030,945,1758,295,2738,763,null,null,2527,911,1705,304,2342,572,2238,465,1645,173,2156,513,1925,458,1033,659,null,null,2188,518,3032,593,2431,375,2570,481,2304,389,2156,788,2574,408,2832,723,3604,882,1175,665,3065,503,2016,410,2286,540,2826,616,2165,497,1708,758,2004,526,1193,697,null,null,2600,746,2095,1132,2052,275,1867,340,2067,261,null,null,null,null,1752,483,null,null,2084,355,2285,970,2532,834,928,653,3499,778,2032,419,1760,591,1948,478,2784,737,1999,406,2823,325,3259,686,2157,1053,1637,641,null,null,2376,1041,2132,931,2844,809,1987,1011,3470,1061,1953,615,null,null,1874,792,968,687,null,null,1840,325,1861,244,2625,537,null,null,3463,1346,2390,633,2554,467,985,763,null,null,994,902,2961,729,3000,786,3144,767,3335,951,2032,293,1141,652,3051,451,1634,510,1223,1047,2146,524,440,1057,2310,581,2074,359,3120,407,2111,857,1675,605,2223,671,null,null,2173,624,2138,752,1661,672,null,null,null,null,1529,1432,1679,1209,3470,953,1690,738,912,695,null,null,2287,750,2314,725,1238,368,2004,376,1869,836,1258,790,2010,344,1965,372,1971,266,2121,1108,null,null,2267,931,2220,471,1077,620,2031,681,1813,735,2799,772,2508,428,2388,409,3046,930,50,1048,1186,735,1909,499,2078,432,3576,898,3002,602,2199,917,2147,805,2131,376,1052,653,1239,1142,253,642,null,null,2513,437,null,null,1189,705,1191,752,1154,653,1154,654,2864,742,3496,1033,41,970,null,null,85,978,2237,711,2181,1304,2126,928,2111,997,1272,782,1191,691,1186,677,2357,1050,null,null,1120,717,null,null,null,null,166,1666]
["Armenia",null,"Armenia","Kraj/terytorium","Azja",11,30,4,"2;7;84;85","5;77;1;1","Armenia",null,null,2517,458,1970,903,null,null,2007,414,2007,236,1818,411,2340,594,1162,1384,2254,426,108,980,169,1667,null,null,2489,1330,1185,660,3276,1271,1965,350,2260,444,2106,866,1860,326,1840,728,1806,696,2720,620,2050,400,null,null,1066,628,1979,385,null,null,null,null,2096,279,922,661,null,null,1155,958,1317,1113,null,null,2953,793,2715,556,2059,1023,2039,740,1204,397,1897,364,1131,1395,2909,636,1740,732,null,null,1953,724,2137,486,2060,785,1984,802,228,1038,1023,810,2240,961,1559,687,954,727,null,null,1047,629,1111,713,1004,639,2139,487,2133,486,1955,329,1917,297,2221,728,null,null,1917,290,1094,639,1886,473,1001,866,2147,557,2201,680,2140,486,1648,556,2035,252,2192,690,2017,236,3616,1029,1204,1360,1898,416,1734,222,3432,784,1932,814,1787,330,2229,405,null,null,1805,734,null,null,1678,714,1664,702,1641,726,1901,828,2045,482,1188,712,1361,239,916,678,3249,703,1206,754,2941,615,null,null,951,677,1970,407,1069,648,2020,354,3031,945,1757,295,2739,763,null,null,2516,904,1706,304,2343,572,2241,465,1645,174,2156,512,1925,458,1032,659,null,null,2186,518,3031,593,2432,374,2572,481,2303,389,2158,788,2588,408,2833,724,3766,878,1175,664,3065,502,2020,410,2285,540,2827,617,2165,498,1708,762,2004,525,null,null,null,null,2601,746,2095,1133,2057,275,1866,340,2067,262,null,null,null,null,1753,484,null,null,2085,355,2286,970,2537,833,929,650,3498,779,2032,421,1761,592,1945,477,2784,736,2002,406,2824,325,3259,688,2157,1055,1637,640,null,null,2376,1039,2133,932,2844,810,1987,1012,3515,1061,1954,616,null,null,1875,792,970,687,null,null,1840,324,1863,244,2627,537,null,null,3463,1346,2390,631,2555,468,986,763,null,null,993,902,2961,729,3004,784,3145,766,3334,951,2032,294,1142,652,3051,452,1633,511,1224,1047,2145,524,413,1056,2311,580,2075,359,3121,407,2111,859,1674,605,2223,670,null,null,2174,625,2136,752,1661,673,null,null,null,null,1536,1428,1745,996,3471,953,1691,739,913,695,null,null,2286,751,2314,726,1239,368,2005,376,1868,836,1258,791,2012,344,1964,372,1971,268,2121,1109,null,null,2267,931,2217,472,1078,620,2031,683,1814,736,2797,764,2508,427,2390,411,3046,931,50,1049,1187,735,1910,499,2078,430,3563,894,3003,602,2198,917,2147,806,2131,377,3469,644,1239,1143,254,642,null,null,2512,437,null,null,1189,704,1189,752,1154,652,1154,653,2865,741,3495,1033,41,970,null,null,85,978,2236,711,2181,1303,2127,929,2112,998,1272,783,1191,691,1185,677,2355,1050,null,null,null,null,null,null,null,null,165,1666]
["Samoa Amerykańskie",null,"Samoa Amerykańskie","Kraj/terytorium","Oceania",12,32,5,"2;3;8;12;14","1;5;4;2;1","American Samoa",null,null,2518,458,1970,905,null,null,2007,415,2008,236,1819,411,2341,594,1164,1384,2254,427,106,979,166,1667,null,null,2498,1329,1185,661,3275,1271,1966,350,2262,444,2108,866,1860,327,1839,729,1806,697,2720,618,2052,399,null,null,1065,628,1979,386,null,null,null,null,2096,280,922,661,null,null,1155,959,1317,1115,null,null,2953,792,2715,557,2060,1023,2039,741,1204,398,1897,366,1131,1396,2910,636,1740,735,null,null,1952,724,2136,486,2063,785,1984,801,229,1038,1024,810,2247,958,1559,689,955,726,null,null,1047,629,1111,714,1005,639,2138,487,2134,485,1959,329,1917,296,2221,727,null,null,1917,291,1098,639,1885,475,1001,867,2132,526,2201,680,2141,486,1648,559,2035,252,2193,691,2017,235,3616,1029,1204,1359,1897,416,1733,222,3374,779,1932,815,1788,330,2231,405,null,null,1806,734,null,null,1680,713,1664,703,1640,727,1901,827,2045,483,null,null,1361,238,917,678,3249,702,1205,754,2941,614,null,null,952,677,1974,407,1069,647,2020,353,3031,944,1757,296,2739,764,null,null,2515,901,1705,305,2361,571,2241,464,1645,174,2153,512,1925,458,1032,658,null,null,2184,519,3031,592,2433,374,null,null,2303,388,2157,789,2588,409,2832,724,3766,877,1174,664,3068,502,2020,411,2285,541,2827,618,2166,498,1707,763,2003,525,null,null,null,null,2599,742,2094,1134,2058,276,1866,342,2068,262,null,null,null,null,1754,484,null,null,2085,356,2285,971,2532,833,929,650,3522,776,2032,421,1762,592,1944,477,2784,736,2003,407,2823,326,3260,685,2201,1001,1638,640,null,null,2377,1039,2136,932,2815,807,1988,1012,3515,1061,1954,622,null,null,1860,699,970,688,null,null,1837,324,1863,245,2627,538,null,null,3464,1342,2391,631,2556,468,986,764,null,null,993,901,2945,727,3005,784,3145,767,3334,950,2034,294,1142,652,3048,443,1632,510,1224,1047,2145,525,396,1054,2311,581,2075,360,3120,406,2110,859,1673,606,2221,670,null,null,2175,626,2136,753,1662,673,null,null,null,null,1535,1428,1745,997,3403,952,1692,739,913,696,null,null,2285,752,2313,726,1239,367,2005,377,1876,821,1257,792,2012,343,1965,373,1970,269,2122,1110,null,null,2266,930,2216,472,1077,621,2032,683,1815,737,2797,765,2507,427,2391,411,3073,921,51,1049,1187,730,1909,498,2079,430,3563,894,3003,602,2198,916,2148,806,2132,376,3469,644,1240,1143,253,643,null,null,2512,435,null,null,1190,704,1189,751,1155,652,1153,653,2864,741,3495,1032,40,971,null,null,84,978,2236,710,2182,1303,2127,930,2112,997,1273,783,1191,690,1184,676,2355,1048,null,null,null,null,null,null,null,null,164,1665]
["Antarktyda",null,"Antarktyda","Kraj/terytorium","Antarktyda",13,34,179,"2;18;33;46;60;70;72;76;144;174;200;209;222;228;244;253;294;339;358;466;474;480;484;492;496;500;530;534;539;544;553;565;574;580;585;590;603;613;619;626;630;634;648;654;672;688;693;698;709;722;752;777;779;792;838;842;855;867;878;904;908;910;933;937;940;949;956;961;965;973;982;991;1087;1091;1098;1117;1121;1146;1155;1165;1175;1180;1188;1198;1209;1214;1223;1228;1232;1237;1253;1266;1270;1275;1280;1298;1312;1326;1345;1558;1563;1567;1571;1572;1577;1585;1594;1599;1604;1608;1618;1624;1626;1630;1634;1641;1650;1655;1661;1667;1708;1715;1720;1725;1730;1737;1740;1745;1753;1762;1764;1765;1768;1773;1778;1794;1795;1804;1817;1824;1829;1830;1837;1841;1846;1852;1856;1857;1869;1906;1911;1916;1936;1941;1984;1988;1993;2002;2006;2007;2009;2015;2022;6263;6265;6281;6290;6299;6307;6313;6333;6343;6348;6356;6379;6388;6398;6403;6406","16;15;13;14;10;2;4;68;30;26;9;13;6;16;9;41;45;19;108;8;6;4;8;4;4;30;4;5;5;9;12;9;6;5;5;13;10;6;7;4;4;14;6;18;16;5;5;11;13;30;25;2;13;46;4;13;12;11;26;4;2;23;4;3;9;7;5;4;8;9;9;96;4;7;19;4;25;9;10;10;5;8;10;11;5;9;5;4;5;16;13;4;5;5;18;14;14;19;213;5;4;4;1;5;8;9;5;5;4;10;6;2;4;4;7;9;5;6;6;41;7;5;5;5;7;3;5;8;9;2;1;3;5;5;16;1;9;13;7;5;1;7;4;5;6;4;1;12;37;5;5;20;5;43;4;5;9;4;1;2;6;7;4241;2;16;9;9;8;6;20;10;5;8;23;9;10;5;3;18","Antarctica",null,null,2518,459,1971,905,null,null,2008,416,2006,237,1819,412,2341,595,1164,1385,2257,427,106,979,166,1666,null,null,2498,1329,1183,661,3275,1272,1966,349,2262,446,2108,867,1860,327,1840,729,1807,697,2721,618,2053,400,null,null,1065,626,1982,386,null,null,null,null,2098,280,921,660,null,null,1157,959,1316,1101,null,null,2952,791,2718,557,2060,1025,2038,741,1139,394,1899,366,1126,1395,2910,637,1742,735,null,null,1952,727,2136,485,2063,784,1987,801,229,1039,1024,811,2247,960,1565,684,956,727,null,null,1012,629,1112,714,1005,640,2138,486,2135,486,1959,330,1942,296,2220,727,null,null,1916,290,1098,640,1885,478,1004,863,2136,525,2201,679,2139,487,1647,559,2035,252,2194,691,2019,235,3616,1028,1204,1359,1896,417,1733,221,3295,770,1933,814,1789,329,2231,406,null,null,1806,738,null,null,1687,713,1663,704,1640,726,1900,827,2053,483,null,null,1362,238,919,679,3250,702,1204,753,2942,614,null,null,953,678,1974,408,1070,647,2025,353,3033,944,1756,296,2738,764,null,null,2516,899,1702,297,2361,571,2244,464,1645,175,2152,513,1923,457,1030,658,null,null,2182,519,3045,592,2434,373,null,null,2302,388,2158,790,2594,409,2832,722,3767,877,1173,663,3069,501,2019,411,2284,541,2828,618,2166,499,1710,763,2003,524,null,null,null,null,2599,742,2093,1134,2060,276,1862,342,2068,261,null,null,null,null,1754,485,null,null,2086,356,2284,971,2531,832,887,649,3519,776,2031,422,1763,593,1944,476,2784,736,2004,407,2824,326,3259,685,2200,1001,1638,638,null,null,2377,1037,2136,933,2814,807,1988,1013,3482,1051,1955,622,null,null,1863,700,969,688,null,null,1837,325,1862,245,2628,539,null,null,3464,1343,2391,631,2556,470,985,764,null,null,994,901,2945,727,3004,785,3144,767,3335,951,2035,295,1143,652,3048,443,1630,510,1223,1047,2155,512,396,1054,2312,581,2076,361,3121,406,2111,860,1672,607,2220,669,null,null,2175,627,2135,752,1662,675,null,null,null,null,1535,1427,1744,997,3404,953,1692,741,914,696,null,null,2284,753,2313,730,1238,367,2006,377,1876,821,1258,793,2014,343,1963,373,1969,270,2116,1110,null,null,2266,931,2215,473,1087,620,2032,685,1816,738,2796,765,2509,429,2392,412,3074,921,51,1050,1186,730,1911,498,2079,431,null,null,3002,602,2199,916,2148,808,2132,377,29,555,1240,1144,252,644,null,null,2513,436,null,null,1190,703,1190,751,1155,653,1153,654,2863,740,3494,1032,null,null,null,null,84,977,2339,710,2099,1058,2130,930,2115,997,1274,784,1190,690,1184,673,2354,1048,null,null,null,null,null,null,null,null,169,1665]
["Wyspy Ashmore i Cartiera",null,"Wyspy Ashmore i Cartiera","Kraj/terytorium","Oceania",14,36,1,2,1,"Ashmore and Cartier Islands",null,null,2517,459,1971,907,null,null,2008,418,2006,236,null,null,2344,594,1157,1385,2257,428,91,948,164,1666,null,null,2495,1326,1183,660,3274,1272,1969,349,2263,447,2110,867,1859,328,1840,733,1807,699,2721,619,2060,400,null,null,1066,626,1982,386,null,null,null,null,2099,279,921,660,null,null,1157,961,1315,1101,null,null,2952,789,2718,558,2061,1026,2038,743,1139,393,1901,367,1127,1395,2911,637,1742,734,null,null,1953,728,2135,486,2064,785,1988,802,221,1037,1023,810,2246,960,1565,685,959,727,null,null,1012,628,1112,715,1003,640,2137,486,2136,485,1962,330,1944,297,2220,719,null,null,1913,290,1100,640,1884,479,1003,864,2137,526,2202,679,2139,487,1646,560,2035,253,2194,693,2018,236,3613,1027,1204,1358,1896,421,1732,221,3382,770,1935,814,1793,329,2232,406,null,null,1805,738,null,null,1688,714,1661,704,1640,726,1900,826,2053,484,null,null,1362,237,919,680,3250,701,1206,753,2942,613,null,null,955,678,1968,408,1071,648,2025,354,3034,943,null,null,2736,757,null,null,2516,899,1703,297,2339,570,2244,465,1649,175,2152,519,1923,457,1030,659,null,null,2182,520,3045,593,2438,373,null,null,2302,386,2158,791,2594,411,2833,722,3766,878,1175,663,3070,501,2019,412,2283,540,2828,620,2165,499,1710,764,2002,523,null,null,null,null,2601,740,2093,1136,2060,277,1862,342,2074,261,null,null,null,null,1761,485,null,null,2086,356,2284,970,2537,832,886,650,3518,767,2032,422,1764,594,1945,476,2781,732,2005,408,2824,329,3259,686,2200,1000,1639,638,null,null,2379,1037,2140,933,2814,806,1989,1014,3482,1052,1955,624,null,null,1863,701,969,688,null,null,1836,325,1855,244,2629,539,null,null,3465,1342,2392,632,2557,470,984,763,null,null,994,902,2952,726,3004,785,3146,764,3344,950,2037,295,1143,653,3049,442,1630,509,1223,1048,2156,512,447,1052,2312,581,2076,362,3264,401,2110,860,1671,608,2220,668,null,null,2174,627,2134,752,1663,675,null,null,null,null,1537,1427,1744,996,3406,953,1693,741,915,697,null,null,2284,754,2314,731,1238,366,2007,378,1876,821,1258,795,2015,342,1963,374,1969,271,2115,1109,null,null,2265,930,2215,474,1086,620,2031,686,1816,741,2796,764,2509,429,2394,412,3074,921,50,1050,1186,730,1913,490,2077,431,null,null,3002,603,2199,915,2149,808,2132,377,28,555,1241,1144,249,644,null,null,2514,436,null,null,1191,703,1190,752,1157,652,1152,654,2863,739,3494,1030,null,null,null,null,82,977,2340,711,2100,1058,2130,931,2115,998,1275,785,1190,688,1185,673,2354,1047,null,null,null,null,null,null,null,null,173,1666]
["Francuskie Terytoria Południowe i Antarktyczne",null,"Francuskie Terytoria Południowe i Antarktyczne","Kraj/terytorium","Ocean",15,38,18,"2;6;12;14;22;26;29;129;134;135;142;146;148;153;159;160;162;163","4;6;2;8;4;3;100;5;1;7;4;2;5;6;1;2;1;1","French Southern and Antarctic Lands",null,null,2517,465,1972,907,null,null,2007,418,2007,236,null,null,2344,594,1157,1386,2258,428,null,null,164,1665,null,null,2496,1326,1184,660,3274,1272,1969,350,2263,448,2110,870,1858,328,1838,733,1808,699,2720,620,2060,399,null,null,1066,625,1984,386,null,null,null,null,2101,279,922,656,null,null,1158,961,1315,1100,null,null,2953,789,2718,558,2062,1027,2039,743,1140,393,1901,368,1127,1396,2912,638,1743,734,null,null,1953,730,2134,485,2066,785,1988,806,225,1035,1020,808,2246,959,1566,685,959,728,null,null,1012,628,1114,715,null,null,2137,486,2136,486,1962,331,1944,298,2221,719,null,null,1913,289,1100,641,1885,479,1003,862,2137,525,2202,678,null,null,1646,559,2034,253,2195,692,2021,235,3612,1027,1218,1357,1895,421,1733,220,3384,767,1935,817,1755,325,2232,407,null,null,1805,740,null,null,1687,714,1660,705,1640,725,1898,826,2054,484,null,null,1363,237,919,680,3251,701,1206,754,2943,614,null,null,955,679,1969,407,1073,648,2026,355,3034,942,null,null,2737,758,null,null,2520,891,1703,298,2339,570,2244,465,1649,174,2154,519,1958,454,1031,659,null,null,2179,520,3044,593,2439,374,null,null,2303,386,2159,791,2596,411,2832,723,3605,868,1175,664,3075,496,2018,412,2283,538,2830,620,2165,498,1711,764,2002,520,null,null,null,null,2602,741,2093,1136,2062,277,1860,342,2075,262,null,null,null,null,1762,484,null,null,2087,356,2285,970,2536,831,886,650,3518,767,2032,423,1765,594,1945,477,2781,732,2006,408,2825,329,3259,686,2201,1000,1637,631,null,null,2379,1038,2140,934,2815,806,1990,1014,3483,1052,1956,624,null,null,1864,701,968,688,null,null,1836,323,1855,245,2630,540,null,null,3465,1343,2391,632,2557,469,983,762,null,null,1052,839,null,null,3002,785,3146,764,3345,950,2037,299,1146,653,3049,442,1630,509,1224,1048,2156,513,438,1052,2311,581,2078,362,3264,402,2110,861,1670,609,2221,669,null,null,2174,626,2134,756,1663,676,null,null,null,null,1537,1428,1745,996,3406,954,1693,742,917,697,null,null,2283,755,2313,731,1239,366,2008,378,1876,820,1259,795,2015,343,1960,374,1968,271,2113,1109,null,null,2265,930,2214,476,1086,619,2030,686,1815,741,2797,764,2510,430,2394,413,3075,921,50,1049,1187,729,1913,491,2077,430,null,null,2998,601,2200,915,2149,809,2128,376,null,null,1241,1145,248,645,null,null,2514,437,null,null,1191,705,1191,752,1158,652,1152,653,2864,740,3496,1030,null,null,null,null,82,976,2341,711,2100,1059,2131,931,2116,998,1277,786,1191,688,1185,674,2355,1047,null,null,null,null,null,null,null,null,178,1666]
["Antigua i Barbuda",null,"Antigua i Barbuda","Kraj/terytorium","Ameryka Północna",16,40,2,"2;10","8;8","Antigua and Barbuda",null,null,2516,465,1972,908,null,null,2007,419,2007,237,null,null,2344,594,1155,1386,2258,429,null,null,169,1666,null,null,2496,1327,1184,660,3273,1272,1971,350,2260,448,2108,870,1858,329,1838,735,1808,700,2708,618,2061,399,null,null,1069,625,1984,385,null,null,null,null,2102,278,923,656,null,null,1158,962,1316,1100,null,null,2953,788,2718,562,2062,1028,2038,744,1140,394,1905,368,1123,1396,2912,641,1743,733,null,null,1954,731,2133,486,2066,786,1987,806,225,1035,1020,808,2246,959,1567,686,960,728,null,null,1012,629,1114,716,null,null,2136,485,2137,486,1963,330,1942,298,2222,718,null,null,1913,289,1101,641,1885,484,1004,862,2133,525,2203,677,null,null,1644,559,2034,252,2197,692,2020,235,3612,1026,1218,1357,1895,422,1733,221,3385,767,1934,817,1811,323,2233,407,null,null,1805,740,null,null,1687,716,1658,705,1643,725,1898,826,2054,484,null,null,1364,238,918,681,3251,701,1207,755,2944,611,null,null,956,679,1976,407,1073,649,2028,355,3036,942,null,null,2735,758,null,null,2524,890,1701,298,2336,569,2244,467,1652,174,2154,520,1958,455,1031,660,null,null,2177,521,3044,594,2440,374,null,null,2303,387,2159,790,2596,412,2877,691,3605,868,null,null,3075,496,2018,413,2283,538,2830,620,2164,498,1711,765,2001,520,null,null,null,null,2601,741,2092,1137,2062,278,1860,341,2077,262,null,null,null,null,1763,484,null,null,2087,355,2285,970,2537,818,885,650,3518,767,2031,423,1766,595,null,null,2784,732,2006,409,2825,331,3259,685,2201,1001,1740,625,null,null,2436,1035,2142,934,2815,807,1990,1015,3483,1053,1956,625,null,null,1864,700,968,690,null,null,1839,323,1854,246,2632,540,null,null,3464,1343,2390,633,2559,469,984,761,null,null,1054,839,null,null,3002,786,3146,764,3345,951,2038,300,1146,655,3048,441,1630,508,1224,1049,2158,513,437,1051,2311,579,2078,364,3263,402,2107,861,1670,610,2222,668,null,null,2174,626,2133,756,1664,676,null,null,null,null,1536,1428,1658,916,3407,954,1694,743,917,698,null,null,2282,756,2313,732,1239,367,2008,379,1876,820,1259,796,2021,343,1960,375,1968,274,2113,1108,null,null,2266,930,2214,477,1087,619,2029,687,1815,742,2793,762,2509,430,2395,413,3074,922,49,1049,1191,729,1912,491,2078,430,null,null,2998,601,2200,914,2150,809,2124,375,null,null,1242,1145,247,646,null,null,2422,402,null,null,1190,705,1191,751,1158,652,1153,653,2864,741,3496,1031,null,null,null,null,82,976,2341,711,2102,1059,2131,932,2116,999,1277,787,1191,689,1190,674,2355,1046,null,null,null,null,null,null,null,null,114,1669]
["Australia",null,"Australia","Kraj/terytorium","Oceania",17,42,91,"2;11;22;27;34;38;203;207;212;218;223;236;257;267;269;274;280;313;316;322;324;328;334;335;337;340;344;350;356;369;370;371;376;397;401;411;415;419;421;425;427;435;437;441;448;451;456;461;470;475;479;497;502;508;514;518;521;522;528;533;535;537;542;543;547;553;555;556;562;581;588;589;591;595;599;601;603;606;609;616;620;629;642;675;687;692;2427;2433;2438;2442;2444","9;11;5;7;4;165;4;5;6;5;13;21;10;2;5;6;33;3;6;2;4;6;1;2;3;4;6;6;13;1;1;5;21;4;10;4;4;2;4;2;8;2;4;7;3;5;5;9;5;4;18;5;6;6;4;3;1;6;5;2;2;5;1;4;6;2;1;6;19;7;1;2;4;4;2;2;3;3;7;4;9;13;33;12;5;1735;6;5;4;2;4","Australia",null,null,2516,467,1971,908,null,null,2007,419,2007,237,null,null,2344,594,1154,1385,2257,429,null,null,178,1666,null,null,2495,1327,1184,660,3273,1271,1971,351,2259,447,2108,872,1862,329,1839,735,1810,700,2707,618,2061,398,null,null,1069,626,1985,385,null,null,null,null,2103,279,923,658,null,null,1166,962,1316,1099,null,null,2952,789,2719,562,2062,1028,2038,745,1139,394,1905,367,1123,1395,2911,641,1745,733,null,null,1953,731,2129,486,2070,786,1987,808,213,1030,986,797,2246,958,1567,687,960,729,null,null,1010,627,null,null,null,null,2132,485,2137,487,1963,331,1941,299,2223,717,null,null,1912,288,1101,640,1886,484,1004,863,2055,522,2202,677,null,null,1644,557,2033,252,2197,691,2020,236,3613,1026,1218,1358,1894,422,1734,218,3385,769,1934,820,1810,323,2234,408,null,null,1805,741,null,null,1688,716,1658,704,1643,724,1896,826,2057,484,null,null,1365,238,917,682,null,null,1208,755,2944,611,null,null,956,678,1977,408,1074,649,2028,356,3036,943,null,null,2735,757,null,null,2519,890,1701,297,2334,569,2245,467,1652,173,2153,520,1957,456,1030,660,null,null,2174,521,3043,594,2440,375,null,null,2302,387,2160,790,2599,412,2877,693,3599,865,null,null,3053,496,2017,413,2283,537,2832,620,2164,499,1712,765,2001,518,null,null,null,null,2601,740,2091,1138,2064,278,1861,341,2077,263,null,null,null,null,1763,485,null,null,2088,355,2296,958,2537,818,885,649,3520,767,2031,424,1767,595,null,null,2788,729,2004,409,2826,332,3260,684,2207,942,1741,626,null,null,2435,1034,2142,932,2981,795,1995,1015,3482,1054,1957,625,null,null,1865,700,969,690,null,null,1842,320,1854,243,2632,541,null,null,3464,1344,2390,634,2559,470,985,761,null,null,1054,840,null,null,3000,786,3147,763,3342,951,2038,301,1144,655,3048,441,1631,509,1223,1049,2158,516,437,1050,2312,579,2080,364,3264,401,2106,860,1671,611,2221,668,null,null,2174,625,2132,757,1664,675,null,null,null,null,1539,1422,1659,916,3408,955,1695,743,920,698,null,null,2282,757,2312,732,null,null,2009,379,1877,821,1258,796,2021,344,1958,375,1967,274,2112,1107,null,null,2365,909,2215,477,1087,620,2029,690,1816,742,2792,761,2508,431,2395,414,3073,923,48,1048,1192,728,1912,490,2075,416,null,null,2998,602,2201,914,2150,811,2119,375,null,null,1242,1148,246,646,null,null,2427,402,null,null,null,null,1192,751,1159,652,null,null,2867,739,3495,1031,null,null,null,null,82,975,2342,710,2102,1060,2132,932,2119,999,1278,787,1192,689,1190,674,2357,1046,null,null,null,null,null,null,null,null,104,1669]
["Austria",null,"Austria","Kraj/terytorium","Europa",18,44,1,2,171,"Austria",null,null,2517,467,1972,909,null,null,2007,421,2007,237,null,null,2328,594,1157,1385,2256,430,null,null,114,1669,null,null,2495,1328,null,null,3274,1272,1972,351,2256,447,2107,872,1862,330,1839,736,1810,701,2708,617,2063,398,null,null,1070,625,1985,386,null,null,null,null,2104,278,922,658,null,null,1167,963,1317,1099,null,null,2950,789,2719,563,2062,1029,2037,745,1134,389,1906,367,1130,1395,2911,642,1746,732,null,null,1953,732,2129,486,2070,786,1986,809,212,1030,1028,794,2247,958,1567,687,962,729,null,null,1011,627,null,null,null,null,2132,486,2139,487,1964,331,1940,298,2223,716,null,null,1913,287,1103,640,1886,485,905,850,2057,522,2202,676,null,null,1645,556,2033,253,2198,691,2019,236,3613,1027,1217,1358,1894,423,1735,218,3384,769,1933,820,1810,322,2237,408,null,null,1804,741,null,null,1688,717,1656,704,1644,724,1896,824,2058,483,null,null,1357,237,916,683,null,null,1210,756,2945,611,null,null,957,679,1979,408,1074,638,2031,356,3021,941,null,null,2738,757,null,null,2520,889,1702,297,2334,568,2246,466,1656,173,2152,521,1956,457,1029,659,null,null,2172,522,3043,592,2441,375,null,null,2302,388,2160,791,2601,413,2876,693,3600,865,null,null,3068,495,2017,414,2282,537,2832,621,2163,498,1712,764,2002,518,null,null,null,null,2601,740,2087,1138,2064,279,1861,340,2079,263,null,null,null,null,1764,485,null,null,2089,356,2296,959,2538,817,887,649,3520,767,2029,424,1767,596,null,null,2787,729,2004,409,2827,332,3260,685,2207,943,1741,633,null,null,2436,1034,2143,932,2979,795,1996,1016,3482,1053,1957,626,null,null,1866,701,969,689,null,null,1843,320,1855,243,2635,541,null,null,3464,1344,2389,635,2560,470,978,756,null,null,1055,840,null,null,3001,785,3147,763,3342,951,2039,302,1144,657,3049,441,1639,506,1223,1052,2157,516,437,1050,2312,577,2080,366,3271,398,2105,860,1671,617,2221,669,null,null,2173,625,2132,759,1665,675,null,null,null,null,1538,1422,1659,917,3407,955,1695,745,920,697,null,null,2271,757,2312,733,null,null,2009,380,1876,821,1258,797,2022,344,1958,376,1967,275,2112,1106,null,null,2365,909,2215,478,1084,619,2027,691,1816,744,2793,761,2507,431,2401,414,3072,924,49,1048,1193,729,1913,490,2076,417,null,null,2997,602,2201,915,2151,811,2118,374,null,null,1244,1148,246,648,null,null,2428,401,null,null,null,null,1195,750,1159,650,null,null,2867,738,3496,1032,null,null,null,null,84,975,2345,710,2114,1060,2132,933,2120,1000,1278,788,null,null,1188,675,null,null,null,null,null,null,null,null,null,null,103,1668]
["Azerbejdżan",null,"Azerbejdżan","Kraj/terytorium","Azja",19,46,7,"2;32;33;37;38;40;218","30;1;4;1;2;178;5","Azerbaijan",null,null,2517,469,1972,910,null,null,2006,421,2003,236,null,null,2328,593,1156,1384,2256,431,null,null,103,1669,null,null,2494,1328,null,null,3274,1270,1972,352,2256,445,2106,873,1863,330,1838,736,1812,701,2708,618,2063,397,null,null,1071,625,1989,386,null,null,null,null,2105,279,922,657,null,null,1168,963,1317,1100,null,null,2950,790,2721,563,2063,1032,2036,747,1134,389,1907,368,1128,1393,2910,642,1746,733,null,null,1954,732,2132,486,2071,787,1986,810,212,1029,1029,794,2237,956,1567,688,963,730,null,null,1011,628,null,null,null,null,2129,486,2139,488,1964,330,1941,298,2224,716,null,null,1913,288,1103,643,1885,486,906,851,2058,521,2203,676,null,null,1645,555,2032,253,2198,692,2019,235,3586,1026,1217,1357,1893,423,1735,219,3384,768,1934,821,1811,323,2238,409,null,null,1804,742,null,null,1690,717,1656,703,1644,725,1897,824,2059,483,null,null,1357,238,915,683,null,null,1211,757,2945,612,null,null,960,679,1979,408,1077,638,2031,357,3022,941,null,null,2738,758,null,null,2522,889,1717,287,2335,569,2247,466,1654,174,2151,521,1955,458,1028,658,null,null,2173,523,3044,592,2441,376,null,null,2306,386,2161,791,2602,413,2876,695,3600,866,null,null,3068,496,2018,414,2282,539,2831,622,2163,499,1713,764,2001,517,null,null,null,null,2601,740,2087,1139,2065,280,1860,340,2080,264,null,null,null,null,1764,484,null,null,2090,356,2295,959,2536,817,693,650,3521,766,2029,425,1768,596,null,null,2787,728,2002,409,2828,333,3259,674,2208,943,1742,634,null,null,2436,1035,2143,933,2979,794,1998,1016,3481,1053,1958,627,null,null,1867,702,969,689,null,null,1843,321,1855,244,2635,542,null,null,3464,1345,2367,590,2561,471,978,756,null,null,1055,840,null,null,3002,785,3149,761,3343,951,2039,303,1141,657,3051,442,1638,507,1222,1052,2157,517,437,1051,2313,576,2081,366,3271,399,2105,861,1672,621,2221,669,null,null,2173,627,2135,759,1665,676,null,null,null,null,1537,1421,1658,917,3407,955,1694,746,921,697,null,null,2271,756,2314,732,null,null,2010,379,null,null,1259,797,2022,345,1959,376,1966,275,2111,1106,null,null,2329,907,2216,479,1085,619,2026,691,1817,745,2793,761,2507,432,2402,415,3071,924,59,1035,1197,724,1915,489,2077,418,null,null,2997,602,2194,896,2151,815,2117,374,null,null,1244,1147,245,648,null,null,2449,401,null,null,null,null,1196,750,1158,650,null,null,2867,738,3497,1032,null,null,null,null,85,976,2345,711,2114,1061,2133,933,2121,1000,1279,787,null,null,1187,675,null,null,null,null,null,null,null,null,null,null,98,1668]
["Burundi",null,"Burundi","Kraj/terytorium","Afryka",20,48,1,2,53,"Burundi",null,null,2518,469,1973,910,null,null,2007,422,2004,236,null,null,2329,593,1157,1384,2257,431,null,null,98,1668,null,null,2494,1327,null,null,3275,1270,1971,352,2254,445,2106,875,1864,331,1838,738,1812,702,2705,618,2064,397,null,null,1071,624,1989,387,null,null,null,null,2107,279,922,657,null,null,1168,964,1316,1101,null,null,2950,790,2721,562,2064,1032,2038,747,1134,390,1907,369,1129,1393,2910,641,1747,733,null,null,1954,733,2132,485,2071,786,1985,811,213,1030,1029,795,2235,956,1565,688,964,729,null,null,1010,627,null,null,null,null,2129,485,2138,488,1965,330,1941,297,2225,714,null,null,1914,287,1104,644,1885,490,904,851,2062,521,2203,677,null,null,1647,555,2031,254,2200,692,2016,235,3586,1027,1205,1357,1893,422,1733,219,3383,768,1934,821,1755,304,2240,409,null,null,1804,742,null,null,1690,716,1655,704,1643,725,1897,822,2059,484,null,null,1356,237,914,684,null,null,1212,758,2944,612,null,null,960,680,1980,408,1077,639,2031,357,3022,943,null,null,2737,757,null,null,null,null,1717,287,2365,569,2248,465,1652,174,2151,524,1955,459,1027,658,null,null,2174,524,3044,592,2442,376,null,null,2305,386,2161,792,2603,414,2875,696,3599,866,null,null,3067,496,2017,415,2283,540,2831,624,2162,499,1713,763,2002,517,null,null,null,null,2607,741,2086,1138,2068,280,1860,339,2081,264,null,null,null,null,1766,484,null,null,2090,357,2295,959,2538,816,692,650,3513,766,2028,425,1769,597,null,null,2788,729,2002,410,2830,333,3258,674,2208,944,1742,642,null,null,2368,941,2144,933,2980,794,1999,1015,3481,1052,1958,628,null,null,1869,704,969,691,null,null,1841,321,1854,239,2636,542,null,null,3465,1345,2368,592,2562,472,980,755,null,null,1056,840,null,null,3003,784,3148,762,3343,950,2040,304,1140,658,3051,442,1638,506,1223,1053,2158,518,436,1050,2314,576,2082,367,3270,399,2104,860,1672,624,2221,668,null,null,2174,628,2135,760,1666,676,null,null,null,null,1539,1421,1658,916,3406,955,1696,746,921,698,null,null,2268,756,2314,732,null,null,2010,382,null,null,1259,798,2024,345,1959,379,1966,271,2111,1105,null,null,2329,907,2216,481,1085,619,2026,693,1818,746,2792,760,2506,432,2402,417,3071,925,51,1035,1196,724,1915,490,2078,418,null,null,2998,602,2194,896,2152,816,2117,374,null,null,1245,1147,245,647,null,null,2450,400,null,null,null,null,1196,751,1159,649,null,null,2867,739,3497,1034,null,null,null,null,86,976,2346,711,2115,1061,2133,933,2121,1001,1279,789,null,null,1187,674,null,null,null,null,null,null,null,null,null,null,94,1667]
["Belgia",null,"Belgia","Kraj/terytorium","Europa",21,50,1,2,109,"Belgium",null,null,2518,470,1973,911,null,null,2007,422,2004,237,null,null,2329,594,1157,1385,2257,433,null,null,93,1667,null,null,2495,1326,null,null,3276,1271,1971,353,2253,444,2105,875,1864,331,1837,738,1813,703,2705,618,2065,396,null,null,1072,624,1990,387,null,null,null,null,2108,280,923,656,null,null,1170,964,1319,1092,null,null,2950,793,2722,562,2064,1033,2038,748,1135,390,1906,369,1129,1394,2910,641,1747,734,null,null,1955,733,2136,485,2072,785,1985,812,204,1025,1027,795,2235,955,1565,687,965,729,null,null,1011,627,null,null,null,null,2131,485,2138,489,1965,331,1942,297,2225,713,null,null,1915,287,1109,644,1884,490,905,850,2066,522,2190,660,null,null,1647,556,2029,254,2201,693,2022,236,3586,1027,1205,1357,1891,422,1733,218,3383,767,1934,823,1756,304,2240,410,null,null,1804,743,null,null,1691,716,1655,703,1645,724,1898,822,2059,484,null,null,1370,237,913,685,null,null,1213,759,2944,613,null,null,961,681,1981,409,1078,639,2031,358,3019,943,null,null,2738,757,null,null,null,null,1731,284,2365,568,2250,465,1652,175,2152,523,1954,459,1027,659,null,null,2176,526,3045,592,2442,378,null,null,2305,386,2162,792,2603,415,2876,696,3599,865,null,null,3067,495,2017,415,2284,541,2831,624,2162,500,1714,763,2003,515,null,null,null,null,2609,743,2086,1139,2068,282,1859,339,2080,265,null,null,null,null,1766,485,null,null,2091,357,2295,959,2532,815,692,649,3512,765,2028,426,1770,597,null,null,2781,728,2003,410,2831,334,3258,673,2208,944,1743,643,null,null,2367,941,2145,934,2980,795,1999,1016,3480,1051,1957,628,null,null,1870,705,970,692,null,null,1841,320,1855,239,2636,544,null,null,3464,1346,2369,593,2562,475,980,755,null,null,1056,841,null,null,3004,784,3148,763,3344,950,2040,305,1140,658,3051,442,1639,506,1223,1055,2157,518,435,1050,2315,575,2083,367,3269,400,2104,861,1632,624,2221,668,null,null,2174,637,2136,760,1667,675,null,null,null,null,1540,1422,null,null,3406,954,1696,749,924,698,null,null,2267,755,2316,732,null,null,2011,383,null,null,1260,798,2024,346,1955,379,1967,271,2110,1105,null,null,2356,896,2215,481,1083,619,2027,693,1818,767,2793,760,2506,434,2402,417,3068,925,51,1035,1196,725,1914,490,2078,417,null,null,2998,601,2196,896,2152,820,2118,374,null,null,1245,1146,243,647,null,null,2452,400,null,null,null,null,1194,751,1159,650,null,null,2869,735,3494,1024,null,null,null,null,79,972,2347,712,2115,1062,2134,933,2124,1001,1280,788,null,null,1187,674,null,null,null,null,null,null,null,null,null,null,89,1666]
["Benin",null,"Benin","Kraj/terytorium","Afryka",22,52,1,2,110,"Benin",null,null,2520,470,1974,911,null,null,2007,425,2002,237,null,null,2328,594,1158,1385,2258,433,null,null,89,1666,null,null,2494,1326,null,null,3276,1269,1971,353,2253,443,2105,876,1864,332,1836,739,1815,703,2706,617,2070,396,null,null,1072,623,1990,388,null,null,null,null,2109,280,923,655,null,null,1171,963,1319,1092,null,null,2950,793,2723,564,2065,1033,2037,748,1135,390,1906,371,1129,1394,2910,643,1751,734,null,null,1955,734,null,null,2074,785,1984,812,204,1025,1027,794,2234,955,1564,687,965,728,null,null,1011,627,null,null,null,null,2131,483,2136,489,1966,331,1942,297,2226,712,null,null,1906,288,1109,643,1884,491,897,849,2070,522,2191,662,null,null,1648,556,2030,255,2202,692,2022,235,3586,1027,1190,1355,1890,421,1734,218,3384,767,1935,824,1756,304,2239,410,null,null,1805,743,null,null,1691,715,1654,703,1645,725,1898,821,2059,486,null,null,1370,238,912,686,null,null,1214,760,2945,613,null,null,962,682,1982,409,1079,640,2030,358,3020,942,null,null,2737,756,null,null,null,null,1732,284,2366,568,2250,466,1651,175,2154,523,1954,461,1026,658,null,null,2177,527,3045,592,2441,378,null,null,2306,386,2162,793,2604,415,2875,697,3600,866,null,null,3068,495,2016,414,2284,542,2831,626,2161,500,1714,762,2005,514,null,null,null,null,2610,743,2085,1139,2067,282,1859,338,2080,266,null,null,null,null,1770,485,null,null,2091,358,2295,960,2533,815,692,649,3513,765,2025,426,1771,598,null,null,2781,728,2003,411,2834,334,3259,673,2207,945,1743,651,null,null,2367,941,2145,935,2981,795,2007,1016,3481,1051,1957,629,null,null,1870,706,970,694,null,null,1839,320,1855,240,2637,544,null,null,3464,1345,2370,594,2561,476,979,754,null,null,1057,842,null,null,3004,784,3147,763,3335,949,2041,305,1139,658,3044,439,1723,467,1222,1055,2158,519,411,1045,2315,576,2083,369,3268,400,2102,861,1632,626,2221,667,null,null,2175,639,2136,759,1667,676,null,null,null,null,1539,1422,null,null,3405,954,1697,750,925,699,null,null,2265,755,2316,733,null,null,2012,384,null,null,1260,799,2027,346,1955,380,1968,268,2110,1101,null,null,2335,891,2215,482,1083,618,2027,694,1817,767,2793,761,2507,434,2403,418,3067,926,59,1035,1194,725,1914,489,2080,417,null,null,2997,601,2196,899,2151,821,2121,375,null,null,1246,1146,243,642,null,null,2453,401,null,null,null,null,1194,750,null,null,null,null,2869,734,3495,1024,null,null,null,null,80,973,2347,712,2116,1064,2134,934,2125,1002,1280,789,null,null,1187,672,null,null,null,null,null,null,null,null,null,null,84,1666]
["Burkina Faso",null,"Burkina Faso","Kraj/terytorium","Afryka",23,54,1,2,190,"Burkina Faso",null,null,2523,468,1974,913,null,null,2008,425,2002,236,null,null,2345,593,1158,1384,2260,434,null,null,84,1666,null,null,2494,1327,null,null,3275,1269,1971,354,2252,443,2104,876,1865,332,1835,739,1814,704,2706,618,2071,395,null,null,1071,623,1996,388,null,null,null,null,2109,281,918,652,null,null,1171,964,1327,1084,null,null,2950,796,2722,565,2065,1034,2037,750,1134,390,1907,371,1129,1395,2909,643,1751,735,null,null,1956,735,null,null,2074,786,1984,814,144,946,1028,794,2234,953,1564,684,966,728,null,null,1010,627,null,null,null,null,2135,483,2136,490,1966,332,1943,298,2227,712,null,null,1907,288,1110,643,1883,491,898,849,2071,523,2191,663,null,null,1648,556,2029,255,2203,692,2022,235,3585,1028,1190,1356,1891,420,1726,216,3321,764,1934,824,1761,304,2239,411,null,null,1805,742,null,null,1693,715,1653,702,1644,725,1898,821,2060,486,null,null,1369,237,910,686,null,null,1214,761,2945,613,null,null,963,682,1982,410,1079,639,2030,359,3021,941,null,null,2737,756,null,null,null,null,1733,285,2366,569,2251,467,1651,176,2155,522,1953,462,1024,658,null,null,2178,528,3215,590,2441,379,null,null,2329,383,2164,793,2604,416,2876,697,3599,865,null,null,3069,496,2016,415,2283,541,2832,626,2161,501,1715,762,2005,513,null,null,null,null,2610,744,2085,1140,2067,284,1860,338,2080,266,null,null,null,null,1770,484,null,null,2092,358,2296,960,2532,814,692,649,3513,766,2025,425,1772,599,null,null,2785,728,2002,411,2834,335,3259,674,2208,945,1744,652,null,null,2368,941,2146,935,2989,793,2007,1017,3482,1050,1958,629,null,null,1871,707,969,696,null,null,1840,319,1854,240,2637,545,null,null,3461,1345,2370,595,2561,477,979,755,null,null,1058,842,null,null,3056,783,3147,761,3335,950,2041,310,1139,657,3102,407,1552,467,1222,1056,2158,519,417,1045,2316,576,2084,369,3268,399,2102,860,1631,627,2221,667,null,null,2175,640,2137,759,1668,676,null,null,null,null,1538,1415,null,null,3405,953,1697,751,925,700,null,null,2264,754,2312,733,null,null,2014,384,null,null,1261,799,2027,347,1956,380,1970,268,2111,1100,null,null,2356,884,2214,483,1084,618,2026,694,1818,768,2787,756,2507,434,2404,418,3066,927,59,1035,1194,725,1915,489,2080,417,null,null,2997,601,2197,899,2151,822,2124,375,null,null,1246,1146,242,642,null,null,2454,402,null,null,null,null,1195,750,null,null,null,null,2870,734,3495,1025,null,null,null,null,80,975,2346,712,2116,1065,2135,935,2126,1002,1281,789,null,null,1188,672,null,null,null,null,null,null,null,null,null,null,83,1665]
["Bangladesz",null,"Bangladesz","Kraj/terytorium","Azja",24,56,21,"2;7;11;16;20;25;27;31;37;41;46;55;60;62;64;71;90;96;101;102;107","5;4;5;4;5;2;4;6;4;5;9;5;2;2;7;19;6;5;1;5;289","Bangladesh",null,null,2524,468,1975,913,null,null,2008,426,2005,236,null,null,2345,593,1159,1384,2262,434,null,null,83,1665,null,null,2493,1327,null,null,3276,1268,1972,354,2252,442,2104,878,1865,333,1835,741,1814,704,2705,618,2072,395,null,null,1071,622,1995,390,null,null,null,null,2111,281,919,652,null,null,1171,964,1326,1084,null,null,2949,797,2722,566,2067,1034,2044,750,1133,391,1906,372,1128,1395,2909,644,1752,736,null,null,1957,736,null,null,2076,786,1983,814,192,941,1047,733,2235,952,1571,684,966,729,null,null,1009,626,null,null,null,null,2135,484,2132,490,1964,332,1942,297,2229,713,null,null,1906,289,1110,644,1883,492,898,851,2072,522,2192,664,null,null,1630,557,2028,254,2204,693,2022,236,3585,1027,1189,1356,1889,420,1730,216,3321,764,1934,825,1761,305,2244,411,null,null,1807,742,null,null,1693,716,1651,702,1644,724,1898,820,2061,485,null,null,1369,238,910,690,null,null,1215,761,2946,613,null,null,964,683,1983,410,1080,639,2026,359,3037,939,null,null,2533,754,null,null,null,null,1730,285,2364,568,2251,468,1652,176,2157,522,1953,464,1024,657,null,null,2179,529,3215,589,2440,380,null,null,2328,383,2164,792,2605,416,2877,698,3571,864,null,null,3068,496,2015,415,2281,541,2832,627,2162,501,1715,760,2006,513,null,null,null,null,2610,744,2084,1140,2070,284,1860,336,2080,267,null,null,null,null,1771,484,null,null,2093,357,2296,960,2535,814,693,649,3489,764,2024,425,1773,600,null,null,2785,730,2002,412,2837,335,3260,670,2208,946,1744,660,null,null,null,null,2147,937,2989,792,2012,1017,3482,1051,1958,630,null,null,1873,707,968,696,null,null,1840,320,1854,241,2640,545,null,null,3461,1345,2371,596,2563,477,978,755,null,null,1058,844,null,null,3056,783,3148,761,3334,950,2039,311,1133,657,3103,407,1552,468,1223,1056,2157,520,417,1045,2316,577,2084,371,3269,399,2101,860,1631,627,2222,668,null,null,2174,640,2137,760,1668,677,null,null,null,null,1537,1415,null,null,3404,953,1696,751,924,700,null,null,2262,754,2311,734,null,null,2014,385,null,null,1261,801,2026,348,1956,381,1970,267,2112,1099,null,null,2357,883,2214,489,1084,619,2027,695,1818,771,2788,756,2508,434,2404,419,3063,927,60,1034,1194,725,1901,464,2082,417,null,null,2998,601,2197,900,2150,823,2134,313,null,null,1247,1146,242,640,null,null,2455,403,null,null,null,null,1195,749,null,null,null,null,2870,735,3495,1025,null,null,null,null,76,975,2345,713,2117,1067,2136,936,2128,1003,1281,790,null,null,1188,674,null,null,null,null,null,null,null,null,null,null,84,1665]
["Bułgaria",null,"Bułgaria","Kraj/terytorium","Europa",25,58,1,2,146,"Bulgaria",null,null,2524,467,1975,915,null,null,2009,426,2005,236,null,null,2336,594,1119,1367,2262,436,null,null,84,1665,null,null,2494,1326,null,null,3276,1268,1972,356,2251,442,2103,878,1865,333,1834,741,1813,704,2706,617,2073,396,null,null,1072,622,1994,391,null,null,null,null,2111,283,919,653,null,null,1171,965,1324,1086,null,null,2948,797,2723,567,2067,1035,2044,751,1133,389,1906,371,1128,1395,2908,644,1752,736,null,null,1958,737,null,null,2076,787,1983,821,192,941,1046,734,2235,951,1571,686,967,731,null,null,1009,626,null,null,null,null,2136,484,2132,490,1964,333,1942,297,2230,713,null,null,1904,288,1110,644,1882,492,897,850,2072,523,2192,666,null,null,1629,557,2028,254,2205,693,2061,235,3584,1027,1189,1355,1889,419,1730,217,3294,763,1935,825,1759,305,2244,410,null,null,1807,746,null,null,1694,716,1651,701,1640,724,1899,820,2064,485,null,null,1368,238,910,690,null,null,1216,762,2946,613,null,null,963,683,1984,411,1080,640,2026,360,3036,939,null,null,2533,754,null,null,null,null,1730,286,2363,569,2250,469,1653,177,2157,523,1955,464,1022,657,null,null,2180,530,3215,589,2439,381,null,null,2328,382,2165,792,2604,417,2876,698,3570,864,null,null,3068,495,2015,416,2281,542,2833,628,2162,502,1716,760,2006,512,null,null,null,null,2610,745,2084,1141,2069,285,1862,336,2079,267,null,null,null,null,1772,483,null,null,2094,357,2297,960,2535,814,693,650,3489,764,2023,426,1774,600,null,null,2784,730,1999,412,2838,336,3261,664,2207,946,1745,661,null,null,null,null,2147,938,2989,792,2013,1016,3467,1044,1959,630,null,null,1873,706,968,697,null,null,1842,320,1853,241,2640,544,null,null,3463,1344,2373,597,2563,479,978,754,null,null,1059,845,null,null,3011,782,3148,760,3334,949,2037,311,1133,658,3103,408,1551,468,1222,1057,2157,522,417,1045,2317,577,2084,371,3270,398,2101,864,1632,624,2172,582,null,null,2175,641,2139,760,1669,678,null,null,null,null,1537,1414,null,null,3404,954,1696,752,924,702,null,null,2261,753,2311,739,null,null,2017,385,null,null,1262,801,2026,349,1955,381,1971,266,2112,1098,null,null,2357,884,2212,492,1081,618,2028,695,1819,771,2788,756,2508,435,2403,419,3063,928,59,1034,1195,724,1900,464,2082,418,null,null,2998,601,2198,900,2150,825,2136,313,null,null,1248,1147,241,640,null,null,2456,403,null,null,null,null,1194,749,null,null,null,null,2869,735,3495,1027,null,null,null,null,76,974,2345,713,2117,1072,2135,937,2129,1003,1282,790,null,null,null,null,null,null,null,null,null,null,null,null,null,null,88,1666]
["Bahrajn",null,"Bahrajn","Kraj/terytorium","Azja",26,60,1,2,7,"Bahrain",null,null,2529,467,1976,915,null,null,2009,428,2004,236,null,null,2336,594,1120,1368,2261,436,null,null,88,1666,null,null,2496,1326,null,null,3276,1269,1973,356,2251,441,2103,879,1866,334,1834,742,1812,703,2706,617,2076,396,null,null,1072,622,1994,392,null,null,null,null,2110,284,919,653,null,null,1172,965,1324,1087,null,null,2948,796,2723,568,2068,1035,2044,751,1134,389,1903,371,1127,1395,2908,645,1752,738,null,null,1959,737,null,null,2077,787,1982,823,191,937,1046,733,2236,951,1570,686,967,732,null,null,981,621,null,null,null,null,2139,483,2127,490,1966,333,1942,296,2230,711,null,null,1904,287,1110,645,1881,493,897,849,2075,523,2193,667,null,null,1629,555,2027,254,2206,694,2025,235,3584,1028,1190,1355,1890,419,1730,217,3319,763,1935,824,1759,306,2247,410,null,null,1806,746,null,null,1694,717,1650,701,1640,725,1899,819,2064,484,null,null,1369,237,910,691,null,null,1217,763,2945,613,null,null,963,682,1986,411,1081,639,2024,360,3036,940,null,null,2734,755,null,null,null,null,1729,286,2362,569,2252,469,1654,176,2156,523,1955,465,1022,655,null,null,2181,531,3215,590,2436,381,null,null,2329,382,2165,793,2600,417,2877,699,3570,863,null,null,3069,495,2014,416,2280,542,2834,628,2161,502,1716,761,2008,511,null,null,null,null,2610,745,2083,1142,2068,285,1862,335,2079,268,null,null,null,null,1772,484,null,null,2094,361,2297,961,2536,813,694,644,3488,763,2023,425,1775,601,null,null,2785,729,1999,411,2839,336,3261,664,2207,947,1745,669,null,null,null,null,2148,939,2989,793,2013,1016,3475,1044,1959,631,null,null,1876,706,967,698,null,null,1851,306,1853,240,2643,544,null,null,3463,1342,2374,597,2566,479,1011,754,null,null,1059,847,null,null,3010,782,3149,760,3335,949,2036,312,1132,658,3105,408,1551,467,1222,1058,2155,522,398,1034,2317,578,2084,372,3271,398,2100,865,1632,623,2172,583,null,null,2175,641,2139,761,1669,680,null,null,null,null,1538,1414,null,null,3403,953,1695,752,925,702,null,null,2259,753,2310,739,null,null,2017,386,null,null,1262,803,2025,349,1955,382,1971,265,2113,1097,null,null,2356,884,2212,493,1079,618,2028,696,1819,773,2787,756,2510,435,2403,420,3060,928,59,1033,1197,724,1900,465,2082,418,null,null,2987,592,2198,901,2148,825,2136,314,null,null,1248,1148,241,639,null,null,2457,404,null,null,null,null,1194,750,null,null,null,null,2842,732,3494,1026,null,null,null,null,75,974,2342,713,2118,1072,2135,938,2129,1004,1282,793,null,null,null,null,null,null,null,null,null,null,null,null,null,null,93,1666]
["Bahamy",null,"Bahamy","Kraj/terytorium","Ameryka Północna",27,62,41,"2;22;29;30;34;35;44;45;50;72;79;81;86;87;89;99;123;124;126;130;135;140;144;146;175;180;185;187;208;213;241;243;244;245;269;273;276;278;283;285;304","20;7;1;4;1;9;1;5;22;7;2;5;1;2;10;24;1;2;4;5;5;4;2;29;5;5;2;21;5;28;2;1;1;24;4;3;2;5;2;19;29","The Bahamas",null,null,2529,466,1976,916,null,null,2012,428,2004,236,null,null,2336,593,1119,1368,2261,437,null,null,93,1666,null,null,2496,1325,null,null,3284,1264,1973,357,2250,441,2102,879,1864,334,1833,742,1812,707,2706,617,2076,397,null,null,1072,622,1993,392,null,null,null,null,2111,284,919,654,null,null,1172,966,1323,1087,null,null,2947,796,2721,568,2068,1036,2044,752,1063,384,1902,372,1127,1394,2907,645,1754,738,null,null,1956,738,null,null,2077,788,1982,825,223,927,1047,733,2236,954,1570,685,968,733,null,null,982,621,null,null,null,null,2141,483,2126,489,1966,334,1941,296,2231,711,null,null,1905,288,1106,645,1880,493,909,844,2076,524,2193,669,null,null,1631,555,2027,255,2207,695,2025,235,3583,1028,1193,1356,1890,418,1730,217,3318,764,1938,824,1758,306,2247,409,null,null,1806,747,null,null,1695,718,1650,703,1639,725,1900,819,2065,484,null,null,1361,237,909,691,null,null,1217,767,2945,614,null,null,961,682,1986,412,1081,640,2024,361,3035,940,null,null,2733,755,null,null,null,null,1728,287,2362,570,2252,470,1655,176,2156,528,1954,464,1018,655,null,null,2182,532,3054,589,null,null,null,null,2329,383,2172,793,2600,418,2877,699,3571,864,null,null,3069,496,2014,415,2280,543,2834,629,2161,503,1717,761,2010,511,null,null,null,null,2610,746,2083,1144,2068,286,null,null,2078,269,null,null,null,null,1773,484,null,null,2093,361,2298,961,2535,812,694,644,3488,763,2022,425,1776,601,null,null,2784,729,1999,411,2840,335,3261,661,2208,947,1746,670,null,null,null,null,2148,943,2987,790,2014,1016,3475,1046,1960,631,null,null,1880,704,967,702,null,null,1850,307,1854,240,2643,545,null,null,3464,1342,2374,598,2566,478,1011,753,null,null,1061,847,null,null,3010,781,3149,756,3328,943,2035,313,1132,657,3104,409,1552,467,1226,1058,2154,523,398,1034,2318,578,2085,372,2281,397,2095,865,1635,622,2171,582,null,null,2175,645,2141,761,1669,680,null,null,null,null,1538,1415,null,null,3402,953,1695,754,925,703,null,null,2258,752,2310,744,null,null,2016,386,null,null,1261,803,2025,350,1955,382,1972,265,2113,1096,null,null,2356,883,2211,493,1079,619,2026,696,1820,773,2785,755,2509,436,2404,421,3060,929,60,1034,1197,724,1900,465,2082,420,null,null,2987,593,2197,902,2148,826,2137,313,null,null,1249,1148,242,639,null,null,2458,405,null,null,null,null,1193,751,null,null,null,null,2842,732,3492,1026,null,null,null,null,75,973,2342,714,2118,1073,2136,938,2132,1004,1281,794,null,null,null,null,null,null,null,null,null,null,null,null,null,null,98,1667]
["Bośnia i Hercegowina",null,"Bośnia i Hercegowina","Kraj/terytorium","Europa",28,64,1,2,109,"Bosnia and Herzegovina",null,null,2530,465,1977,916,null,null,2012,429,2008,236,null,null,2337,593,1119,1367,2259,437,null,null,98,1667,null,null,2497,1326,null,null,3282,1264,1973,357,2250,440,2102,880,1864,335,1833,743,1814,707,2707,617,2081,397,null,null,1072,623,1993,394,null,null,null,null,2111,285,919,654,null,null,1174,966,1324,1086,null,null,2947,795,2721,569,2070,1036,2043,753,1063,384,1902,373,1128,1394,2907,646,1754,739,null,null,1954,737,null,null,2079,788,1981,826,223,927,1085,712,2237,955,1570,685,970,736,null,null,982,621,null,null,null,null,2142,482,2126,488,1967,334,1941,296,2233,710,null,null,1906,288,1106,646,1880,495,909,845,2076,525,2194,670,null,null,1631,556,2025,255,2210,695,2018,234,3583,1028,1192,1357,1888,418,1729,216,3318,763,1938,823,1758,305,2248,409,null,null,1807,748,null,null,1696,718,1645,703,1639,724,1900,814,2065,486,null,null,1361,238,909,692,null,null,1216,767,2943,614,null,null,961,681,1987,412,1084,640,2023,361,3036,939,null,null,2733,755,null,null,null,null,1728,288,2358,570,2252,470,1655,177,2155,528,1954,465,1018,654,null,null,2181,532,3054,589,null,null,null,null,2300,375,2172,794,2598,418,2877,700,3562,862,null,null,3071,495,2012,415,2280,543,2837,629,2160,503,1718,762,2011,510,null,null,null,null,2611,746,2081,1143,2067,285,null,null,2079,269,null,null,null,null,1773,486,null,null,2093,362,2298,964,2533,811,934,631,3492,761,2022,426,1777,602,null,null,2784,728,1999,411,2842,335,3261,661,2208,948,1746,672,null,null,null,null,2149,944,2988,790,2015,1017,3476,1046,1960,632,null,null,1880,703,966,703,null,null,1849,307,1854,239,2643,545,null,null,3590,1334,2375,598,2568,478,1013,752,null,null,1062,848,null,null,3011,781,null,null,3329,944,2034,313,1130,657,3104,410,1545,459,1226,1059,2152,523,410,1031,2318,579,2085,373,2280,398,2095,863,1649,622,2170,582,null,null,2176,646,2141,762,1670,681,null,null,null,null,1535,1408,null,null,3402,952,1697,754,924,703,null,null,2256,752,2309,744,null,null,2016,387,null,null,1261,804,2024,350,1954,383,1972,263,2114,1095,null,null,2357,883,2209,494,1079,619,2024,697,1820,774,2785,756,2508,436,2403,421,3057,929,56,1025,null,null,1900,464,2083,420,null,null,2985,593,2197,901,2147,826,2137,314,null,null,1249,1149,242,638,null,null,2459,406,null,null,null,null,1190,751,null,null,null,null,2843,733,3492,1023,null,null,null,null,74,973,2338,714,2119,1073,2136,939,2131,1005,1282,793,null,null,null,null,null,null,null,null,null,null,null,null,null,null,102,1667]
["Bajo Nuevo Bank (Petrel Is.)",null,"Bajo Nuevo Bank (Petrel Is.)","Kraj/terytorium","Ameryka Północna",29,66,1,2,1,"Bajo Nuevo Bank (Petrel Is.)",null,null,2531,464,1977,918,null,null,2012,429,2008,235,null,null,2336,594,1118,1367,2259,438,null,null,102,1667,null,null,2492,1325,null,null,3282,1264,1973,358,2252,440,2101,880,1863,335,1834,743,1814,708,2707,618,2082,398,null,null,1045,615,1995,394,null,null,null,null,2112,285,919,653,null,null,1174,967,1325,1085,null,null,2946,794,2720,568,2070,1037,2043,754,1063,383,1903,373,1128,1393,2908,646,1755,739,null,null,1953,737,null,null,2079,789,1981,832,null,null,1087,712,2237,956,1570,684,971,737,null,null,983,621,null,null,null,null,2143,482,2125,488,1967,335,1940,297,2234,710,null,null,1927,287,1109,646,1878,495,908,845,2081,525,2194,670,null,null,1630,556,2025,256,2210,696,2018,234,3582,1028,1192,1356,1888,417,1728,216,3321,762,1944,823,1757,305,2248,410,null,null,1807,749,null,null,1696,717,1644,704,1640,724,1901,815,2064,487,null,null,1360,238,908,692,null,null,1216,772,2943,613,null,null,960,681,1987,412,1084,641,2022,362,3036,938,null,null,2734,755,null,null,null,null,1727,288,2358,571,2252,472,1656,177,2155,530,1954,465,1019,654,null,null,2180,533,3054,589,null,null,null,null,2300,374,2174,794,2598,419,2878,702,3558,856,null,null,3068,495,2012,416,2280,544,2838,630,2160,504,1718,765,2013,509,null,null,null,null,2611,747,2079,1143,2067,286,null,null,2079,268,null,null,null,null,1774,486,null,null,2094,362,2299,964,2533,811,934,633,3492,761,2021,426,1778,603,null,null,2783,728,1998,411,2842,336,3260,656,2207,948,1747,673,null,null,null,null,2149,946,2988,791,2019,1017,3476,1047,1961,632,null,null,1883,704,966,705,null,null,1849,306,1853,239,2643,546,null,null,3589,1334,2377,599,2568,480,1013,753,null,null,1063,848,null,null,3011,782,null,null,3330,943,2034,315,1130,654,3105,410,1547,459,1232,1059,2151,524,410,1031,2317,580,2084,373,2279,398,2092,863,1650,623,2171,583,null,null,2176,648,2142,763,1671,681,null,null,null,null,1520,1404,null,null,3403,952,1697,753,924,704,null,null,2255,751,2309,745,null,null,2017,387,null,null,1260,805,2024,351,1953,383,1973,263,2115,1095,null,null,2355,882,2207,494,1079,618,2024,698,1818,774,2786,756,2508,437,2403,423,3056,930,56,1025,null,null,1903,464,2083,421,null,null,2985,592,2196,901,2147,827,2138,314,null,null,1250,1149,243,638,null,null,2459,407,null,null,null,null,1190,750,null,null,null,null,2843,735,3494,1023,null,null,null,null,74,972,2338,713,2119,1075,2137,939,2131,1006,1283,793,null,null,null,null,null,null,null,null,null,null,null,null,null,null,107,1668]
["Saint-Barthélemy",null,"Saint-Barthélemy","Kraj/terytorium","Ameryka Północna",30,68,1,2,2,"Saint Barthelemy",null,null,2533,464,1981,918,null,null,2012,432,2009,235,null,null,2347,593,1118,1368,2260,438,null,null,107,1668,null,null,2491,1326,null,null,3282,1264,1972,358,2252,439,2101,881,1863,335,1834,744,1815,709,2706,618,2082,399,null,null,1044,615,1996,395,null,null,null,null,2112,287,920,653,null,null,1176,967,1326,1085,null,null,2945,794,2719,569,2073,1037,2047,754,1063,383,1903,374,1125,1393,2908,647,1755,740,null,null,1952,738,null,null,2080,789,1982,832,null,null,1087,713,null,null,1570,684,972,737,null,null,983,620,null,null,null,null,2144,481,2125,486,1968,335,1940,296,2234,711,null,null,1925,287,1109,647,1877,496,908,846,2081,526,2194,671,null,null,1630,557,2024,256,2211,697,2058,235,3582,1028,1191,1356,1889,417,1728,216,3321,762,1944,824,1756,304,2249,410,null,null,1806,749,null,null,1697,717,1644,705,1645,722,1902,815,2053,487,null,null,1360,238,908,693,null,null,1215,773,2941,613,null,null,960,682,1986,412,1085,641,2022,363,3037,938,null,null,2738,753,null,null,null,null,1727,289,2355,571,2253,472,1656,178,2154,531,1954,466,1019,653,null,null,2179,533,3056,589,null,null,null,null,2299,374,2175,795,2595,419,2878,704,3558,856,null,null,3062,494,2010,416,2281,544,2840,630,2158,504,1719,765,2017,509,null,null,null,null,2611,747,2079,1142,2064,286,null,null,2081,268,null,null,null,null,1774,485,null,null,2094,362,2299,965,2532,810,933,633,3476,754,2021,427,1779,604,null,null,2783,727,1998,412,2843,335,3260,656,2207,949,1748,673,null,null,null,null,2148,947,2987,791,2022,1016,3477,1048,1961,633,null,null,1884,704,967,707,null,null,1850,306,1853,238,2644,546,null,null,3590,1333,2380,599,2570,480,1013,753,null,null,1063,849,null,null,3010,780,null,null,3331,944,2037,315,1129,654,3106,411,1547,459,1232,1060,2151,521,414,1030,2318,580,2084,374,2279,398,2092,864,1652,623,2170,583,null,null,2177,649,2142,764,1671,682,null,null,null,null,1531,1404,null,null,3401,950,1698,752,923,705,null,null,2253,751,2308,745,null,null,2017,388,null,null,1260,809,2023,351,1953,382,1973,264,2115,1094,null,null,2354,882,2206,495,1081,618,2023,699,1818,775,2786,759,2507,437,2404,423,3055,930,63,1023,null,null,1903,465,2084,421,null,null,2987,592,2196,900,2146,828,2139,313,null,null,1250,1150,243,637,null,null,2460,408,null,null,null,null,1191,749,null,null,null,null,2842,736,3494,1024,null,null,null,null,79,972,2337,713,2120,1076,2137,940,2130,1006,1283,790,null,null,null,null,null,null,null,null,null,null,null,null,null,null,112,1669]
["Białoruś",null,"Białoruś","Kraj/terytorium","Europa",31,70,1,2,233,"Belarus",null,null,2533,463,1981,918,null,null,2010,432,2009,235,null,null,2346,593,1117,1368,2260,439,null,null,112,1669,null,null,2492,1326,null,null,3282,1263,1972,359,2253,439,2100,881,1862,335,1833,745,1816,709,2708,615,2084,399,null,null,1044,614,1996,396,null,null,null,null,2111,287,920,654,null,null,1176,968,1326,1084,null,null,2945,792,2717,569,2073,1038,2047,755,1063,382,1904,374,1125,1392,2907,647,1757,740,null,null,1952,737,null,null,2080,791,1982,833,null,null,1089,713,null,null,1573,675,972,738,null,null,983,620,null,null,null,null,2146,481,2126,486,1968,336,1942,296,2235,712,null,null,1925,288,1110,647,1877,500,907,846,2087,526,2194,671,null,null,1641,551,2024,257,2212,698,2058,234,3583,1028,1190,1355,1889,416,1729,216,3306,751,1945,824,1756,303,2250,411,null,null,1806,751,null,null,1697,716,1635,705,1645,722,1890,799,2053,488,null,null,1358,238,906,693,null,null,1216,773,2942,612,null,null,961,682,1984,411,1085,643,2021,363,3037,939,null,null,2738,753,null,null,null,null,1726,289,2355,570,2253,473,1655,178,2154,532,1955,466,1020,653,null,null,2179,534,3057,590,null,null,null,null,2299,373,2176,796,2594,420,2877,707,3553,852,null,null,3062,494,2010,417,2281,543,2840,628,2158,504,1719,769,2018,508,null,null,null,null,2611,748,2078,1142,2064,287,null,null,2081,270,null,null,null,null,1773,485,null,null,2095,363,2300,965,2532,810,933,634,3479,750,2020,427,1780,604,null,null,2784,727,1997,412,2845,335,3260,656,2206,950,1748,678,null,null,null,null,2148,948,2986,790,2024,1016,3476,1048,1962,633,null,null,1884,705,967,713,null,null,1850,305,1854,238,2644,548,null,null,3590,1334,2380,600,2571,483,1014,754,null,null,1065,849,null,null,3011,780,null,null,3328,944,2037,316,1129,653,3107,411,1548,459,1233,1060,2152,521,390,1029,2318,581,2083,374,2278,398,2091,864,1654,622,2170,582,null,null,2177,650,2143,765,1673,682,null,null,null,null,1526,1400,null,null,3467,950,1699,752,918,705,null,null,2252,750,2309,746,null,null,2016,388,null,null,1259,810,2024,352,1949,382,1990,259,2116,1094,null,null,2354,882,2205,495,1083,617,2023,701,1816,775,2785,759,2507,436,2405,424,3055,931,62,1023,null,null,1903,465,2084,422,null,null,3018,585,2195,900,2146,829,2140,313,null,null,1252,1150,244,637,null,null,2462,408,null,null,null,null,1193,749,null,null,null,null,2842,736,3485,1013,null,null,null,null,null,null,2336,712,2121,1076,2138,941,2131,1007,1284,791,null,null,null,null,null,null,null,null,null,null,null,null,null,null,114,1669]
["Belize",null,"Belize","Kraj/terytorium","Ameryka Północna",32,72,10,"2;4;5;11;13;15;16;17;22;23","2;1;6;2;2;1;1;5;1;55","Belize",null,null,2534,463,1983,918,null,null,2010,434,1998,235,null,null,2345,592,1116,1369,2262,439,null,null,114,1669,null,null,2492,1326,null,null,3284,1263,1973,359,2308,434,2099,882,1862,336,1833,746,1817,710,2708,617,2086,400,null,null,1045,615,1997,396,null,null,null,null,2110,288,921,653,null,null,1178,968,1327,1084,null,null,2944,792,2717,568,2074,1038,2050,755,1063,382,1904,375,1126,1392,2907,649,1757,740,null,null,1951,737,null,null,2082,791,1981,833,null,null,1089,714,null,null,1575,675,973,738,null,null,983,621,null,null,null,null,2147,480,2126,487,1970,336,1881,295,2235,713,null,null,1923,288,1110,646,1878,500,907,847,2088,527,2194,676,null,null,1641,552,2023,258,2213,700,2059,234,3583,1027,1192,1355,1888,416,1729,215,3299,751,1945,826,1760,303,2250,410,null,null,1807,751,null,null,1698,716,1635,706,1640,722,1891,799,2049,488,null,null,1359,237,906,694,null,null,1216,771,2944,612,null,null,961,683,1983,411,1084,644,2021,364,3002,931,null,null,2730,745,null,null,null,null,1727,290,2358,570,2255,473,1654,179,2153,533,1955,467,1020,652,null,null,2178,534,3055,590,null,null,null,null,2300,373,2177,796,2593,420,2877,710,3552,853,null,null,3070,493,2009,417,2282,543,2842,628,2157,504,1718,769,2019,508,null,null,null,null,2612,748,2078,1141,2063,287,null,null,2082,270,null,null,null,null,1773,485,null,null,2096,363,2300,966,2536,809,932,634,3511,748,2020,428,1781,605,null,null,2784,728,1997,413,2845,334,3259,650,2206,951,1747,679,null,null,null,null,2149,949,2987,790,2027,1015,3476,1049,1962,634,null,null,1885,705,966,713,null,null,1851,305,1854,239,2646,548,null,null,3468,1317,2384,600,2573,486,1013,754,null,null,1065,850,null,null,3011,780,null,null,3327,943,2039,316,1130,653,3107,412,1549,458,1233,1060,2153,520,390,1029,2317,581,2083,379,2278,397,2091,861,1655,621,2170,582,null,null,2180,650,2144,765,1673,684,null,null,null,null,1526,1400,null,null,3467,949,1699,755,917,704,null,null,2250,750,2308,746,null,null,2015,389,null,null,1259,811,2023,352,1949,381,1990,258,2117,1095,null,null,2355,882,2204,496,1083,618,2024,701,1815,776,2785,755,2504,436,2406,424,3053,931,62,1024,null,null,1903,466,2086,422,null,null,3019,585,2195,900,2145,829,2140,314,null,null,1253,1151,243,636,null,null,2463,407,null,null,null,null,1193,748,null,null,null,null,2842,737,3486,1013,null,null,null,null,null,null,2335,712,2121,1080,2138,942,2131,1008,1284,792,null,null,null,null,null,null,null,null,null,null,null,null,null,null,222,1658]
["Bermudy",null,"Bermudy","Kraj/terytorium","Ameryka Północna",33,74,2,"2;3","1;4","Bermuda",null,null,2535,462,1983,917,null,null,2009,434,1998,236,null,null,2347,592,1117,1370,2263,440,null,null,222,1658,null,null,2493,1325,null,null,3284,1264,1973,360,2305,432,2096,882,1860,336,1830,746,1818,711,2707,617,2088,400,null,null,1044,615,1997,396,null,null,null,null,2110,289,921,654,null,null,1179,969,1338,1076,null,null,2943,791,2716,568,2075,1039,2051,756,1193,381,1902,375,1126,1393,2907,649,1758,740,null,null,1950,738,null,null,2082,792,1981,835,null,null,1090,714,null,null,1575,676,973,739,null,null,988,620,null,null,null,null,2148,480,2127,486,1970,335,1891,292,2236,713,null,null,1923,287,1111,646,1878,501,906,847,2090,527,2195,676,null,null,1639,552,2022,258,2214,701,2059,235,3585,1027,1192,1356,1888,414,1730,215,3303,747,1946,826,1760,304,2251,409,null,null,1807,752,null,null,1698,715,1634,706,1640,723,1892,800,2050,487,null,null,1368,237,907,694,null,null,1217,769,2944,611,null,null,962,684,1983,410,1085,644,2020,364,3003,931,null,null,2730,746,null,null,null,null,1723,290,2358,569,2255,476,1654,179,2154,533,1954,467,1021,652,null,null,2178,535,3055,589,null,null,null,null,2300,375,2178,797,2592,421,2878,711,3552,852,null,null,3071,493,2010,418,2283,544,2843,627,2157,506,1718,770,2019,508,null,null,null,null,2612,748,2077,1141,2062,288,null,null,2082,271,null,null,null,null,1774,485,null,null,2096,364,2301,966,2538,808,932,632,3511,748,2009,428,1782,605,null,null,2786,727,1996,413,2848,334,3258,649,2207,951,1747,682,null,null,null,null,2149,950,2955,784,2029,1015,3475,1049,1961,634,null,null,1886,706,966,709,null,null,1851,304,1855,239,2646,549,null,null,3468,1317,2385,601,2572,486,1013,754,null,null,1066,850,null,null,3014,779,null,null,3313,943,2039,317,1130,652,3108,412,1550,458,1234,1060,2154,520,395,1028,2317,584,2084,379,2281,397,2092,861,1656,620,2170,581,null,null,2180,651,2144,767,1673,684,null,null,null,null,1432,1382,null,null,3468,949,1698,755,917,705,null,null,2249,749,2308,747,null,null,2018,389,null,null,1258,812,2023,353,1948,381,1993,258,2118,1096,null,null,2359,881,2203,497,1082,618,2024,703,1814,776,2788,756,2502,435,2406,425,3053,931,61,1024,null,null,1904,466,2088,423,null,null,3021,586,2194,899,2145,830,2141,314,null,null,1254,1151,243,634,null,null,2463,413,null,null,null,null,1195,748,null,null,null,null,2842,737,3486,1012,null,null,null,null,null,null,2335,712,2122,1081,2139,942,2132,1009,1285,792,null,null,null,null,null,null,null,null,null,null,null,null,null,null,222,1658]
["Boliwia",null,"Boliwia","Kraj/terytorium","Ameryka Południowa",34,76,1,2,354,"Bolivia",null,null,2538,462,1987,917,null,null,2009,436,1997,236,null,null,2347,593,1121,1370,2264,441,null,null,221,1658,null,null,2494,1325,null,null,3285,1261,1969,360,2306,432,2096,879,1860,338,1830,749,1821,711,2707,616,2088,403,null,null,1044,613,1998,396,null,null,null,null,2112,290,921,654,null,null,1179,968,1339,1076,null,null,2945,791,2716,569,2075,1042,2051,757,1192,382,1902,373,1125,1393,2907,649,1758,741,null,null,1949,738,null,null,2083,793,1980,837,null,null,1090,715,null,null,1574,677,974,740,null,null,987,621,null,null,null,null,2148,481,2127,485,1972,335,1915,292,2236,717,null,null,1925,287,1111,647,1879,502,906,846,2090,528,2195,678,null,null,1639,553,2022,257,2216,702,2030,235,3585,1026,1193,1355,1888,414,1730,216,3184,742,1946,828,1738,285,2252,410,null,null,1808,752,null,null,1701,715,1634,703,1639,722,1892,801,2050,486,null,null,1368,237,907,695,null,null,1218,768,null,null,null,null,962,684,1982,410,1085,645,2020,366,3003,932,null,null,2729,746,null,null,null,null,1723,291,2360,569,2255,476,1654,180,2154,534,1954,468,1021,653,null,null,2177,536,3056,589,null,null,null,null,2494,283,2179,798,2590,421,2878,712,3553,852,null,null,3071,494,2009,418,2283,545,2843,628,2154,506,1717,771,2023,508,null,null,null,null,2613,748,2077,1140,2061,287,null,null,2083,271,null,null,null,null,1774,486,null,null,2098,364,2301,969,2536,808,933,631,3505,742,2009,426,1783,606,null,null,2787,727,1996,414,2849,333,3259,649,2207,952,1708,682,null,null,null,null,2150,950,2954,784,2031,1014,3475,1048,1961,635,null,null,1887,706,966,709,null,null,1852,304,1855,237,2647,550,null,null,3477,1309,2387,601,2572,487,1012,754,null,null,1066,851,null,null,3014,779,null,null,3313,944,2038,317,1132,652,3108,413,1551,459,1234,1060,2154,519,395,1028,2318,584,2084,381,3265,393,2092,860,1656,618,2171,581,null,null,2182,651,2145,767,1673,685,null,null,null,null,1432,1382,null,null,3468,950,1698,756,916,704,null,null,2247,749,2307,747,null,null,2018,390,null,null,1258,813,2020,353,1948,380,1993,259,2120,1096,null,null,2360,881,2202,497,1082,617,2025,703,1814,775,2788,756,2498,436,2409,425,3052,931,61,1023,null,null,1904,467,2091,424,null,null,3021,587,2194,896,2144,831,2141,315,null,null,1255,1152,244,634,null,null,2462,413,null,null,null,null,1191,749,null,null,null,null,2842,735,3487,1013,null,null,null,null,null,null,2336,712,2122,1094,2139,943,2132,1012,1285,797,null,null,null,null,null,null,null,null,null,null,null,null,null,null,221,1657]
["Brazylia",null,"Brazylia","Kraj/terytorium","Ameryka Południowa",35,78,43,"2;13;21;23;33;38;50;56;58;59;66;75;80;83;89;93;99;103;104;108;116;118;123;128;133;138;146;152;175;187;273;285;294;303;304;321;331;339;341;348;356;363;369","11;8;2;10;5;12;6;2;1;7;9;5;3;6;4;6;4;1;4;8;2;5;5;5;5;8;6;23;12;86;12;9;9;1;17;10;8;2;7;8;7;6;1733","Brazil",null,null,2539,463,1987,916,null,null,2006,436,1997,235,null,null,2325,592,1121,1372,2267,441,null,null,221,1657,null,null,2494,1326,null,null,3285,1260,1968,359,2306,433,2095,878,1859,338,1829,749,1821,710,2708,616,2083,403,null,null,1071,613,1998,397,null,null,null,null,2113,290,921,656,null,null,1180,968,1339,1077,null,null,2946,790,2707,569,2079,1042,2052,757,1191,382,1901,373,1105,1391,2906,650,1759,741,null,null,1946,737,null,null,2084,793,1979,839,null,null,1091,716,null,null,1572,677,974,740,null,null,987,621,null,null,null,null,2146,481,2129,485,1972,334,1915,293,2234,717,null,null,1925,287,1115,647,1879,505,907,845,2091,528,2196,678,null,null,1638,553,2023,256,2217,703,2030,236,3604,1026,1193,1356,1888,413,1739,214,3184,742,1946,828,1738,285,2254,410,null,null,1809,753,null,null,1701,716,1635,702,1640,722,1891,801,2047,486,null,null,1367,237,905,695,null,null,1220,768,null,null,null,null,963,684,1981,409,1086,645,2019,366,3004,932,null,null,2729,745,null,null,null,null,1724,291,2360,568,2255,477,1655,179,2153,534,1953,469,1022,652,null,null,2177,537,3215,583,null,null,null,null,2494,284,2180,798,2589,422,2877,713,3552,851,null,null,3070,494,2009,418,2284,547,2845,628,2154,503,1716,771,2023,507,null,null,null,null,2613,749,2076,1140,2061,288,null,null,2083,272,null,null,null,null,1777,486,null,null,2098,365,2302,969,2532,807,934,631,3505,742,2008,426,1784,606,null,null,2787,727,1995,415,2853,333,3259,650,2206,952,1709,681,null,null,null,null,2150,951,2954,783,2035,1014,3473,1048,1960,636,null,null,1888,707,966,711,null,null,1851,305,1856,237,2649,550,null,null,3477,1309,2387,600,2571,488,1012,752,null,null,1067,851,null,null,3014,779,null,null,3312,944,2038,320,null,null,3109,413,1550,459,1235,1060,2152,519,414,1025,2318,588,2083,381,3267,393,2093,860,1657,617,2171,582,null,null,2182,652,2146,768,1674,685,null,null,null,null,1421,1377,null,null,3463,944,1696,756,916,704,null,null,2246,748,2307,748,null,null,2022,390,null,null,1257,813,2020,354,1947,381,1991,259,2120,1097,null,null,2360,880,2201,498,1083,617,2025,704,1812,775,2785,748,2497,436,2411,424,3052,929,63,1023,null,null,1905,468,2092,424,null,null,3021,587,2195,896,2143,831,2143,315,null,null,1256,1152,245,635,null,null,2462,417,null,null,null,null,1192,748,null,null,null,null,2841,734,3487,1014,null,null,null,null,null,null,2336,710,2121,1095,2138,943,2132,1012,1284,797,null,null,null,null,null,null,null,null,null,null,null,null,null,null,218,1657]
["Barbados",null,"Barbados","Kraj/terytorium","Ameryka Północna",36,80,1,2,8,"Barbados",null,null,2540,463,1990,916,null,null,2006,437,1998,234,null,null,2365,584,1122,1373,2267,442,null,null,218,1657,null,null,2493,1326,null,null,3285,1260,1967,360,2305,432,2095,877,1859,339,1829,761,1823,710,2708,615,2082,404,null,null,1071,613,1994,397,null,null,null,null,2113,291,920,657,null,null,1181,969,1338,1077,null,null,2948,790,2706,568,2079,1049,2052,758,1191,381,1900,374,1104,1391,2905,650,1759,739,null,null,1944,737,null,null,2084,794,1979,841,null,null,1091,717,null,null,1572,676,975,741,null,null,987,620,null,null,null,null,2146,482,null,null,1971,334,1913,293,2234,718,null,null,1927,287,1116,648,1881,505,908,844,2092,529,2196,680,null,null,1638,556,2024,256,2218,704,2029,236,3604,1027,1190,1354,1889,413,1739,215,3183,742,1947,829,1742,285,2255,411,null,null,1809,754,null,null,1704,716,1636,702,1640,721,1891,802,2047,485,null,null,1367,237,904,696,null,null,1220,769,null,null,null,null,963,684,1978,409,1085,646,2018,367,3004,933,null,null,2730,745,null,null,null,null,1723,292,2359,568,2258,477,1659,179,2153,535,1953,470,1022,652,null,null,2174,537,3215,583,null,null,null,null,2495,283,2181,799,2587,422,2877,714,3553,851,null,null,3070,493,2008,418,2284,548,2845,629,2155,503,1716,772,2024,507,null,null,null,null,2614,749,2076,1139,2060,288,null,null,2084,272,null,null,null,null,1778,485,null,null,2098,365,2302,972,2531,807,935,625,3511,734,2008,425,1785,607,null,null,2787,727,1996,416,2854,332,3256,640,2206,953,1709,680,null,null,null,null,2151,951,2955,783,2036,1013,3473,1047,1960,637,null,null,1888,708,964,711,null,null,1856,303,1856,238,2649,551,null,null,3479,1305,2388,600,2570,488,1013,752,null,null,1067,854,null,null,3021,777,null,null,3312,943,2037,320,null,null,3109,414,1550,460,1235,1060,2152,513,437,1022,2317,588,2084,382,3268,392,2093,859,1658,616,2169,581,null,null,2183,653,2147,768,1674,686,null,null,null,null,1428,1377,null,null,3463,944,1696,759,916,705,null,null,2244,748,2306,748,null,null,2022,391,null,null,1257,814,2019,354,1947,382,1991,260,2121,1097,null,null,2361,881,2200,498,null,null,2024,704,1812,774,2785,747,2497,438,2411,425,3054,929,46,993,null,null,1905,468,2092,424,null,null,3020,588,2195,895,2143,834,2143,317,null,null,1257,1153,246,635,null,null,2467,417,null,null,null,null,1192,747,null,null,null,null,2841,733,3488,1014,null,null,null,null,null,null,2338,710,2122,1097,2138,944,2132,1015,1284,798,null,null,null,null,null,null,null,null,null,null,null,null,null,null,215,1656]
["Brunei",null,"Brunei","Kraj/terytorium","Azja",37,82,2,"2;17","15;28","Brunei",null,null,2539,464,1990,917,null,null,2005,437,1998,235,null,null,2364,577,1124,1374,2266,442,null,null,215,1656,null,null,2493,1327,null,null,3285,1261,1966,360,2254,427,2094,877,1860,339,1830,762,1824,711,2712,615,2082,405,null,null,1074,613,1995,398,null,null,null,null,2113,291,920,660,null,null,1181,970,1338,1076,null,null,2948,789,2704,568,2080,1049,2054,758,1193,381,1899,373,1104,1390,2904,651,1762,739,null,null,1943,738,null,null,2085,793,1980,842,null,null,1090,717,null,null,1573,676,976,741,null,null,988,620,null,null,null,null,2143,483,null,null,1971,333,1913,292,2233,719,null,null,1900,286,1116,649,1882,506,909,844,2094,529,2197,680,null,null,1637,556,2024,255,2219,704,2029,237,3603,1027,1189,1354,1889,411,1738,214,3183,741,1946,829,1742,286,2255,412,null,null,1808,755,null,null,1704,717,1636,704,1639,722,1890,802,2041,485,null,null,1368,237,904,696,null,null,1222,769,null,null,null,null,963,684,1977,408,1085,647,2019,367,3005,933,null,null,2730,745,null,null,null,null,1720,292,2360,567,2259,478,1658,180,2154,535,1949,470,1030,652,null,null,2173,538,3038,580,null,null,null,null,2497,283,2182,799,2586,423,2873,714,3553,852,null,null,3073,493,2008,416,2285,548,2847,629,2155,502,1717,773,2024,508,null,null,null,null,2614,751,2076,1139,2060,289,null,null,2084,276,null,null,null,null,1779,486,null,null,2097,366,2303,972,2531,806,934,624,3471,725,2007,425,1785,608,null,null,2785,724,1996,418,2855,332,3255,637,2206,953,1708,680,null,null,null,null,2151,952,2955,784,2041,1013,3472,1046,1959,638,null,null,1891,708,964,712,null,null,1856,303,1857,238,2650,551,null,null,3488,1305,2388,601,2570,489,1006,749,null,null,1068,854,null,null,3021,777,null,null,3311,943,2037,321,null,null,3106,414,1545,460,1236,1060,2153,512,439,1022,2317,590,2085,383,3268,393,2094,859,1659,615,2170,582,null,null,2183,654,2147,770,1676,686,null,null,null,null,1428,1377,null,null,3463,945,1695,759,917,705,null,null,2243,747,2306,750,null,null,2023,391,null,null,1256,814,2019,353,1941,382,1990,260,null,null,null,null,2360,881,2199,499,null,null,2023,705,1811,774,2784,746,2496,438,2416,425,3054,927,46,993,null,null,1905,468,2093,424,null,null,3020,591,2196,895,2142,834,2144,317,null,null,1257,1154,246,636,null,null,2467,420,null,null,null,null,1193,747,null,null,null,null,2842,733,3488,1015,null,null,null,null,null,null,2229,700,2120,1097,2137,944,2131,1016,1283,799,null,null,null,null,null,null,null,null,null,null,null,null,null,null,212,1655]
["Bhutan",null,"Bhutan","Kraj/terytorium","Azja",38,84,1,2,72,"Bhutan",null,null,2538,464,1996,917,null,null,2005,438,1999,235,null,null,2364,578,1125,1375,2266,443,null,null,212,1655,null,null,2492,1327,null,null,3250,1244,1967,361,2252,426,2094,867,1860,340,1830,763,1824,712,2712,616,2081,405,null,null,1074,614,1996,399,null,null,null,null,2113,292,919,660,null,null,1182,970,1350,1075,null,null,2949,788,2704,569,2081,1050,2054,759,1066,380,1899,374,1105,1390,2903,651,1762,738,null,null,1943,739,null,null,2085,794,1979,842,null,null,1089,718,null,null,1573,675,976,742,null,null,973,618,null,null,null,null,null,null,null,null,1974,333,1888,292,2230,719,null,null,1901,287,1117,649,1883,506,900,842,2096,528,2196,681,null,null,1637,557,2022,255,2220,705,2028,237,3603,1026,1189,1354,1891,411,1731,214,3184,741,1946,830,1742,286,2259,412,null,null,1808,761,null,null,1705,717,1638,704,1638,722,1890,804,2040,484,null,null,1360,236,903,697,null,null,1223,770,null,null,null,null,962,683,1976,408,1084,647,2019,368,3005,934,null,null,2538,736,null,null,null,null,1720,293,2361,568,2259,479,1658,180,2154,536,1949,469,1030,653,null,null,2169,538,3038,580,null,null,null,null,2499,284,2182,800,2585,423,2873,715,3567,851,null,null,3073,494,2007,415,2285,549,2847,630,2156,502,1717,772,2026,508,null,null,null,null,2615,751,2076,1138,2059,289,null,null,2083,275,null,null,null,null,1780,486,null,null,2098,366,2303,975,2532,806,935,624,3471,725,2007,422,1786,608,null,null,2785,725,1994,418,2858,333,3254,637,2206,954,1708,681,null,null,null,null,2152,952,2805,782,2041,1012,3474,1046,1959,648,null,null,1892,709,965,712,null,null,1858,302,1857,239,2650,552,null,null,3488,1305,2389,601,2569,489,1006,749,null,null,1068,855,null,null,3020,777,null,null,3311,943,2038,321,null,null,3106,415,1544,459,1235,1059,2155,512,439,1022,2316,590,2085,384,3266,393,2094,858,1660,614,2171,582,null,null,2184,654,2149,770,1677,687,null,null,null,null,1429,1377,null,null,3461,945,1695,760,914,704,null,null,2242,747,2305,751,null,null,2023,392,null,null,1256,814,2018,353,1941,383,1990,263,null,null,null,null,2361,880,2198,499,null,null,2022,706,1810,773,2785,746,2496,437,2416,424,3053,927,null,null,null,null,1904,469,2093,425,null,null,3021,591,2196,896,2142,835,2144,318,null,null,1258,1154,237,632,null,null,2468,421,null,null,null,null,1193,748,null,null,null,null,2842,732,3485,1015,null,null,null,null,null,null,2230,699,2120,1096,2137,945,2132,1016,1283,800,null,null,null,null,null,null,null,null,null,null,null,null,null,null,216,1655]
["Botswana",null,"Botswana","Kraj/terytorium","Afryka",39,86,1,2,208,"Botswana",null,null,2538,465,1995,916,null,null,2006,438,2006,234,null,null,2363,579,1126,1375,2267,444,null,null,216,1655,null,null,2492,1328,null,null,3251,1244,1969,361,2252,426,2093,867,1861,340,1829,763,1824,712,2711,616,2081,410,null,null,1073,613,1997,399,null,null,null,null,2114,292,919,661,null,null,1182,971,1349,1075,null,null,2950,788,2703,569,2081,1051,2055,759,1066,381,1897,374,1105,1391,2903,652,1765,738,null,null,1942,740,null,null,2086,794,1979,844,null,null,1088,718,null,null,1559,671,975,742,null,null,975,618,null,null,null,null,null,null,null,null,1974,334,1889,291,2230,720,null,null,1902,287,1117,650,1884,507,900,844,2097,527,2197,681,null,null,1635,557,2021,254,2220,706,2028,237,3613,1026,1190,1354,1892,410,1732,215,3184,742,1945,830,1742,287,2258,415,null,null,1807,761,null,null,1705,715,1638,704,1638,721,1889,804,2040,485,null,null,1360,237,902,697,null,null,1224,770,null,null,null,null,963,683,1975,407,1084,648,2018,368,3006,934,null,null,2538,736,null,null,null,null,1722,293,2362,567,2262,479,1658,181,2153,536,1947,469,1034,653,null,null,2169,539,3037,579,null,null,null,null,2500,284,2183,801,2585,424,2872,716,3566,851,null,null,3072,494,2007,414,2286,549,2848,630,2156,500,1718,772,2027,509,null,null,null,null,2614,752,2075,1138,2059,291,null,null,2083,276,null,null,null,null,1780,487,null,null,2098,368,2304,977,2533,805,935,625,3471,725,2007,422,1787,609,null,null,2784,725,1994,417,2862,333,3254,636,2207,954,1707,681,null,null,null,null,2152,953,2805,784,2051,1012,3474,1045,1958,648,null,null,1899,709,965,713,null,null,1858,303,1859,236,2651,552,null,null,3482,1304,2389,602,2568,490,986,746,null,null,1069,855,null,null,3020,776,null,null,3312,943,2038,322,null,null,3104,415,1543,458,1236,1059,null,null,437,1022,2316,591,2088,384,3266,394,2093,856,1660,609,2171,582,null,null,2184,655,2149,771,1677,688,null,null,null,null,1430,1378,null,null,3461,945,1693,762,911,703,null,null,2241,746,2305,752,null,null,2024,392,null,null,1255,814,2018,352,1940,383,1991,263,null,null,null,null,2361,880,2196,500,null,null,2021,706,1809,772,2785,747,2495,437,2419,424,3052,928,null,null,null,null,1905,469,2093,425,null,null,3021,592,2199,892,2141,836,2145,318,null,null,1259,1155,235,632,null,null,2468,422,null,null,null,null,1191,749,null,null,null,null,2874,733,3485,1014,null,null,null,null,null,null,2230,700,2118,1096,2135,945,2132,1017,1282,800,null,null,null,null,null,null,null,null,null,null,null,null,null,null,218,1656]
["Republika Środkowoafrykańska",null,"Republika Środkowoafrykańska","Kraj/terytorium","Afryka",40,88,1,2,332,"Central African Republic",null,null,2540,465,1996,915,null,null,2006,439,2006,234,null,null,2364,579,1126,1376,2268,445,null,null,218,1656,null,null,2493,1328,null,null,3251,1245,1969,362,2266,418,2093,865,1861,341,1830,765,1824,713,2711,615,2079,410,null,null,1071,613,1997,401,null,null,null,null,2114,293,920,661,null,null,1183,971,1349,1076,null,null,2951,787,2703,570,2082,1051,2055,761,1064,381,1897,373,1102,1390,2903,652,1765,738,null,null,1942,741,null,null,2087,793,1978,844,null,null,1088,719,null,null,1560,670,974,741,null,null,975,619,null,null,null,null,null,null,null,null,1976,334,1889,292,2229,721,null,null,1903,288,1118,650,1885,509,899,844,2098,527,2197,682,null,null,1635,556,2021,254,2221,707,2027,237,3617,1024,1208,1351,1895,410,1733,215,3207,739,1945,831,1743,287,2259,415,null,null,1807,763,null,null,1707,715,1640,704,1643,721,1889,805,2038,485,null,null,1358,237,902,698,null,null,1224,771,null,null,null,null,963,684,1972,407,1085,648,2018,369,3006,933,null,null,2539,735,null,null,null,null,1722,294,2365,567,2262,478,1657,181,2153,539,1946,467,1034,654,null,null,2168,540,3114,579,null,null,null,null,2501,285,2187,801,2585,424,2870,716,3566,851,null,null,3072,493,2004,414,2286,552,2848,631,2157,499,1718,773,2028,509,null,null,null,null,2614,752,2075,1137,2059,291,null,null,2081,276,null,null,null,null,1781,487,null,null,2100,368,2304,985,2533,805,740,624,3458,721,2006,421,1788,609,null,null,2784,724,1993,417,2863,334,3255,637,2207,961,1708,682,null,null,null,null,2148,953,2804,784,2051,1013,3472,1045,1958,659,null,null,1900,707,966,713,null,null,1871,303,1859,237,2652,551,null,null,3483,1305,2390,602,2567,490,982,746,null,null,1069,854,null,null,3021,777,null,null,3310,942,2039,322,null,null,3104,416,1545,458,1236,1058,null,null,395,1021,2316,591,2089,385,3263,394,2093,855,1661,608,2169,582,null,null,2185,655,2150,771,1678,688,null,null,null,null,1430,1377,null,null,3460,945,1692,762,910,703,null,null,2240,745,2304,753,null,null,2025,390,null,null,1255,812,2017,352,1940,382,1991,263,null,null,null,null,2360,880,2195,500,null,null,2021,708,1809,771,2781,743,2495,438,2421,426,3051,928,null,null,null,null,1906,470,2093,426,null,null,3020,592,2198,892,2141,837,2146,319,null,null,1260,1156,235,631,null,null,2469,423,null,null,null,null,1193,746,null,null,null,null,2873,733,3484,1014,null,null,null,null,null,null,2229,700,2117,1095,2135,946,2131,1017,1282,801,null,null,null,null,null,null,null,null,null,null,null,null,null,null,219,1656]
["Kanada",null,"Kanada","Kraj/terytorium","Ameryka Północna",41,90,392,"2;6;13;18;27;29;31;33;38;43;57;59;61;67;164;223;225;227;228;229;249;253;262;266;268;273;278;283;285;286;291;292;302;309;314;316;320;799;804;808;813;817;820;822;825;826;834;843;848;860;873;908;909;910;911;919;921;929;937;942;953;957;962;963;967;974;980;984;985;992;993;997;1148;1152;1153;1157;1158;1163;1167;1172;1681;1693;1698;1703;1711;1720;1725;1730;1735;1742;1747;1755;1772;1777;1783;1785;1797;1801;1806;1810;1821;1832;1837;1842;1846;1848;1849;1851;1852;1857;1861;1865;1873;1893;1969;2007;2013;2018;2024;2025;2033;2037;2052;2057;2066;2073;2074;2075;2105;2106;2129;2193;2198;2202;2207;2209;2211;2213;2215;2216;2220;2224;2225;2230;2235;2240;2244;2249;2257;2266;2271;2277;2286;2290;2292;2297;2308;2317;2328;2329;2387;2392;2396;2401;2406;2413;2427;2429;2431;2432;2437;2443;2448;2455;2462;2467;2471;2476;2483;2484;2486;2488;2490;2499;2504;2505;2509;2516;2524;2533;2546;2550;2556;2559;2561;2575;2581;2582;2587;2592;2604;2605;2609;2610;2635;2636;2652;2653;2657;2661;2665;2666;2673;2691;2693;2728;2735;2738;2742;2747;2751;2765;2772;2777;2779;2790;2802;2803;2806;2807;2820;2825;2826;2829;2834;2839;2850;2859;2864;2866;2868;2870;2883;2888;2893;3034;3035;3049;3050;3051;3076;3084;3089;3095;3101;3110;3115;3120;3128;3134;3141;3152;3158;3160;3161;3164;3168;3172;3177;3181;3187;3192;3197;3211;3217;3223;3242;3248;3290;3298;3302;3308;3318;3323;3329;3338;3339;3349;3353;3356;3373;3378;3387;3388;3398;3408;3411;3415;3420;3430;3451;3455;3461;3470;3487;3489;3499;3508;3512;3527;3535;3540;3549;3565;3591;3594;3598;3602;3610;3707;3713;3721;3726;3727;3732;3733;3738;3742;3745;3750;3754;3762;3775;3791;3797;3805;3807;7610;7611;7615;7620;7628;7640;8130;8132;8170;8219;10199;10405;10419;10525;10680;10684;10689;10705;10758;10774;10782;10792;10801;10809;10832;10850;10852;10865;10871;10876;10892;11036;11043;11055;11305;11314;11605;11748;11753;11772;11799;11825;11830;11839;11857;11889;11896;11907;11936;11941;11985;12081;12099;12105;12392","4;7;5;9;2;2;2;5;5;14;2;2;6;97;59;2;2;1;1;20;4;9;4;2;5;5;5;2;1;5;1;10;7;5;2;4;479;5;4;5;4;3;2;3;1;8;9;5;12;13;35;1;1;1;8;2;8;8;5;11;4;5;1;4;7;6;4;1;7;1;4;151;4;1;4;1;5;4;5;509;12;5;5;8;9;5;5;5;7;5;8;17;5;6;2;12;4;5;4;11;11;5;5;4;2;1;2;1;5;4;4;8;20;76;38;6;5;6;1;8;4;15;5;9;7;1;1;30;1;23;64;5;4;5;2;2;2;2;1;4;4;1;5;5;5;4;5;8;9;5;6;9;4;2;5;11;9;11;1;58;5;4;5;5;7;14;2;2;1;5;6;5;7;7;5;4;5;7;1;2;2;2;9;5;1;4;7;8;9;13;4;6;3;2;14;6;1;5;5;12;1;4;1;25;1;16;1;4;4;4;1;7;18;2;35;7;3;4;5;4;14;7;5;2;11;12;1;3;1;13;5;1;3;5;5;11;9;5;2;2;2;13;5;5;141;1;14;1;1;25;8;5;6;6;9;5;5;8;6;7;11;6;2;1;3;4;4;5;4;6;5;5;14;6;6;19;6;42;8;4;6;10;5;6;9;1;10;4;3;17;5;9;1;10;10;3;4;5;10;21;4;6;9;17;2;10;9;4;15;8;5;9;16;26;3;4;4;8;97;6;8;5;1;5;1;5;4;3;5;4;8;13;16;6;8;2;3803;1;4;5;8;12;490;2;38;49;1980;206;14;106;155;4;5;16;53;16;8;10;9;8;23;18;2;13;6;5;16;144;7;12;250;9;291;143;5;19;27;26;5;9;18;32;7;11;29;5;44;96;18;6;287;986","Canada",null,null,2540,464,1996,913,null,null,2005,439,2010,234,null,null,2364,580,1129,1378,2266,445,null,null,219,1656,null,null,2493,1327,null,null,3252,1244,1968,362,2268,418,2092,865,1860,341,1830,766,1823,713,2712,615,2079,411,null,null,1071,613,1996,401,null,null,null,null,2115,293,920,662,null,null,1183,972,1350,1076,null,null,2953,786,2698,570,2082,1052,2054,761,1064,380,1896,373,1102,1390,2903,653,1769,738,null,null,1945,745,null,null,2088,793,1978,845,null,null,1086,719,null,null,1560,671,973,741,null,null,976,619,null,null,null,null,null,null,null,null,1976,335,1934,291,2227,721,null,null,1900,288,1119,651,1885,512,899,845,2100,526,2198,682,null,null,1634,556,2021,254,2222,708,2027,236,3617,1024,1209,1351,1895,408,1733,216,null,null,1944,832,1743,288,2260,416,null,null,1808,763,null,null,1708,714,1640,703,1643,723,1888,805,2038,484,null,null,1358,237,901,698,null,null,1225,772,null,null,null,null,964,684,1972,406,1085,650,2017,369,3007,933,null,null,2539,735,null,null,null,null,1723,294,2365,568,2263,478,1656,182,2152,540,1945,467,1035,654,null,null,2167,541,3114,578,null,null,null,null,2503,285,2187,801,2585,425,2869,717,3567,851,null,null,3073,493,2004,412,2279,552,2847,632,2157,498,1719,773,2030,510,null,null,null,null,2616,752,2074,1137,2059,292,null,null,2080,277,null,null,null,null,1781,488,null,null,2101,369,2305,985,2532,804,740,624,3458,721,2007,421,1789,610,null,null,2785,724,1993,416,2870,334,3251,632,2207,961,1708,683,null,null,null,null,2148,955,2804,782,2053,1013,3473,1044,1957,660,null,null,1901,706,965,714,null,null,1871,304,1858,237,2654,551,null,null,3483,1306,2390,603,2567,489,981,745,null,null,1070,855,null,null,3012,776,null,null,3310,943,2039,323,null,null,3103,416,1545,459,1238,1058,null,null,394,1021,2315,590,2090,385,3263,395,2094,855,1661,606,2169,581,null,null,2185,655,2150,774,1679,689,null,null,null,null,1431,1377,null,null,3460,944,1691,763,909,702,null,null,2239,744,2304,754,null,null,2028,390,null,null,1254,812,2016,351,1939,382,1989,263,null,null,null,null,2360,881,2194,501,null,null,2020,709,1808,771,2781,743,2494,439,2422,427,3051,927,null,null,null,null,1907,469,2092,426,null,null,3020,594,2198,892,2142,838,2146,320,null,null,1263,1156,237,631,null,null,2469,425,null,null,null,null,1193,747,null,null,null,null,2873,733,3484,1013,null,null,null,null,null,null,2230,698,2116,1094,2135,946,2131,1018,1281,801,null,null,null,null,null,null,null,null,null,null,null,null,null,null,220,1657]
["Szwajcaria",null,"Szwajcaria","Kraj/terytorium","Europa",42,92,1,2,126,"Switzerland",null,null,2544,464,1997,913,null,null,2005,440,2010,234,null,null,2364,580,1131,1378,2266,446,null,null,219,1657,null,null,2494,1327,null,null,3252,1245,1968,363,2267,419,2092,863,1860,341,1830,766,1823,714,2711,615,2077,411,null,null,1071,613,1996,401,null,null,null,null,2115,295,919,663,null,null,1186,972,1350,1077,null,null,2953,787,2698,569,2082,1052,2054,762,1066,380,1896,372,1131,1390,2902,653,1769,738,null,null,1946,745,null,null,2089,792,1976,846,null,null,1085,720,null,null,1559,671,973,742,null,null,976,621,null,null,null,null,null,null,null,null,1977,334,1933,291,2227,722,null,null,1900,287,1118,653,1886,512,897,845,2100,525,2199,684,null,null,1634,554,2022,254,2222,709,2028,236,3601,1023,1209,1351,1896,408,1735,216,null,null,1943,831,1744,288,2261,416,null,null,1809,764,null,null,1709,714,1644,703,1642,723,1887,804,2037,484,null,null,1357,237,901,700,null,null,1226,772,null,null,null,null,964,685,1973,407,1084,650,2017,370,3007,934,null,null,2528,731,null,null,null,null,1723,295,2364,568,2263,479,1657,182,2152,541,1944,466,1035,655,null,null,2167,542,3115,578,null,null,null,null,2504,286,2189,801,2584,425,2866,717,3562,850,null,null,3070,494,2003,412,2279,551,2846,632,2158,498,1719,774,2033,510,null,null,null,null,2616,755,2074,1136,2058,292,null,null,2079,277,null,null,null,null,1782,488,null,null,2102,369,2305,986,2530,804,738,622,3455,720,2007,419,1790,610,null,null,2785,722,1992,416,2871,335,3251,632,2207,962,1695,683,null,null,null,null,2147,956,2805,782,2053,1014,3475,1044,1957,668,null,null,1901,705,965,715,null,null,1874,304,1858,238,2654,552,null,null,3482,1306,2391,603,2566,489,982,745,null,null,1070,857,null,null,3014,776,null,null,3311,943,2038,324,null,null,3103,417,1521,453,1238,1059,null,null,394,1021,2314,590,2090,384,3262,395,2094,854,1662,604,2171,581,null,null,2186,655,2151,775,1680,690,null,null,null,null,1431,1378,null,null,3463,944,1690,764,904,702,null,null,2238,744,2303,754,null,null,2028,391,null,null,1254,813,2015,351,1940,381,1989,265,null,null,null,null,2359,881,2193,502,null,null,2021,710,1808,769,2799,742,2494,440,2422,430,3052,926,null,null,null,null,1908,469,2092,427,null,null,3019,594,2199,892,2142,839,2143,320,null,null,1263,1157,236,632,null,null,2470,425,null,null,null,null,1192,747,null,null,null,null,2874,733,3485,1013,null,null,null,null,null,null,2230,697,2115,1094,2135,948,2132,1019,1281,802,null,null,null,null,null,null,null,null,null,null,null,null,null,null,224,1657]
["Chile",null,"Chile","Kraj/terytorium","Ameryka Południowa",43,94,160,"2;8;13;18;19;30;35;40;42;47;53;58;153;170;191;201;205;219;228;230;235;241;254;259;263;301;333;361;367;381;459;464;469;479;529;530;535;738;755;757;768;778;792;796;798;806;818;830;840;846;857;862;876;887;891;898;915;920;936;940;947;954;973;985;990;995;1007;1024;1029;1037;1073;1088;1095;1100;1112;1127;1139;1147;1245;1250;1255;1264;1281;1285;1289;1300;1320;1328;1336;1360;1370;1385;1390;1397;1402;1407;1415;1420;1429;1434;1446;1454;1463;1468;1473;1481;1490;1503;1515;1520;1521;1526;1535;1539;1556;1560;1565;1570;1576;1581;1590;1595;1603;1606;1614;1619;1628;1638;1642;1672;1673;1679;1683;1685;1690;1693;1697;1699;1707;1712;1721;1730;1732;1733;1739;1744;1749;1756;1761;1764;1817;1822;1827;1830;1835;1842;1848;1849;1850;1851","6;5;5;1;11;5;5;2;5;6;5;95;17;21;10;4;14;9;2;5;6;13;5;4;38;32;28;6;14;78;5;5;10;50;1;5;203;17;2;11;10;14;4;2;8;12;12;10;6;11;5;14;11;4;7;17;5;16;4;7;7;19;12;5;5;12;17;5;8;36;15;7;5;12;15;12;8;98;5;5;9;17;4;4;11;20;8;8;24;10;15;5;7;5;5;8;5;9;5;12;8;9;5;5;8;9;13;12;5;1;5;9;4;17;4;5;5;6;5;9;5;8;3;8;5;9;10;4;30;1;6;4;2;5;3;4;2;8;5;9;9;2;1;6;5;5;7;5;3;53;5;5;3;5;7;6;1;1;1;1381","Chile",null,null,2544,463,1997,907,null,null,2004,440,2009,234,null,null,2364,581,1132,1379,2267,446,null,null,224,1657,null,null,2494,1328,null,null,3255,1245,1966,363,2269,419,2095,863,1859,341,1830,767,1824,715,2711,614,2077,412,null,null,1071,613,1994,401,null,null,null,null,2117,295,919,666,null,null,1187,973,1349,1077,null,null,2952,787,2696,569,2082,1053,2055,762,1067,382,1895,372,1132,1389,2902,653,1770,738,null,null,1948,747,null,null,2090,791,1976,847,null,null,1082,720,null,null,1559,672,973,742,null,null,976,621,null,null,null,null,null,null,null,null,1979,334,1933,291,2229,722,null,null,1899,287,1116,653,1887,513,897,844,2101,525,2199,686,null,null,1633,554,2022,253,2223,709,2026,235,3601,1023,1210,1352,1896,407,1735,218,null,null,1943,833,1744,289,2261,417,null,null,1808,764,null,null,1709,713,1645,702,1642,723,1886,804,2037,483,null,null,1357,236,899,699,null,null,1226,774,null,null,null,null,965,685,1964,406,1084,651,2016,370,3008,934,null,null,2528,731,null,null,null,null,1726,295,2367,566,2265,479,1657,181,2151,542,1940,466,1038,655,null,null,2166,543,3115,579,null,null,null,null,2505,285,2190,802,2584,426,2866,720,3562,850,null,null,3068,494,2003,410,2278,551,2846,633,2158,496,1723,774,2033,512,null,null,null,null,2617,756,2073,1135,2058,293,null,null,2079,278,null,null,null,null,1783,489,null,null,2102,370,2306,987,2537,803,738,623,3492,691,2007,419,1791,611,null,null,2784,722,1992,415,2872,335,null,null,2208,962,1694,684,null,null,null,null,2146,958,2984,779,2054,1014,3468,1041,1956,669,null,null,1903,704,965,715,null,null,1874,308,1857,238,2653,552,null,null,3482,1306,2391,604,2565,490,982,746,null,null,1071,857,null,null,3014,777,null,null,3311,943,2039,324,null,null,3102,417,1517,453,1239,1059,null,null,395,1021,2314,591,2092,384,3261,396,2095,853,1662,602,2171,581,null,null,2186,656,2151,776,1680,693,null,null,null,null,1436,1378,null,null,3460,941,1689,765,904,701,null,null,2237,743,2303,756,null,null,2029,391,null,null,1253,812,2015,352,1941,381,1986,265,null,null,null,null,2359,880,2192,502,null,null,2021,711,1807,769,2803,741,2495,440,2423,430,3052,925,null,null,null,null,1908,468,2088,427,null,null,3019,595,2199,886,2141,840,2143,321,null,null,1264,1157,237,632,null,null,2470,426,null,null,null,null,1192,748,null,null,null,null,2874,733,3485,1013,null,null,null,null,null,null,2229,697,2115,1095,2136,948,2132,1022,1280,804,null,null,null,null,null,null,null,null,null,null,null,null,null,null,223,1658]
["Chiny",null,"Chiny","Kraj/terytorium","Azja",44,96,70,"2;3;5;6;7;8;9;10;101;106;108;110;119;125;130;136;144;147;148;151;155;156;161;163;167;172;175;180;184;193;198;201;207;220;226;227;232;234;239;241;248;251;255;260;264;268;272;276;284;288;292;297;299;304;310;326;333;337;338;339;341;342;343;351;354;355;356;358;365;367","1;2;1;1;1;1;1;91;5;2;2;9;6;5;6;8;3;1;3;4;1;5;2;4;5;3;5;4;9;5;3;6;13;6;1;5;2;5;2;7;3;4;5;4;4;4;4;8;4;4;5;2;5;6;16;7;4;1;1;2;1;1;8;3;1;1;2;7;2;2266","China",null,null,2549,463,2005,907,null,null,2004,441,2009,233,null,null,2366,581,1133,1379,2267,448,null,null,223,1658,null,null,2496,1328,null,null,3255,1245,1966,364,2269,418,2095,865,1859,342,1829,767,1825,716,2712,614,2078,412,null,null,1066,611,1994,402,null,null,null,null,2117,296,920,666,null,null,1187,972,1349,1076,null,null,2952,789,2695,568,2086,1053,2055,763,1066,382,1894,373,1133,1389,2900,653,1770,739,null,null,1950,749,null,null,2090,792,1974,847,null,null,1082,721,null,null,1558,672,973,747,null,null,976,622,null,null,null,null,null,null,null,null,1979,335,1934,291,2229,721,null,null,1899,287,1116,655,1888,514,896,844,2102,524,2200,686,null,null,1633,553,2021,252,2224,710,2030,235,3601,1023,1208,1352,1897,407,1734,217,null,null,1942,833,1744,289,2265,417,null,null,1808,767,null,null,1708,713,1648,702,1641,722,1886,803,2038,483,null,null,1358,236,898,698,null,null,1229,774,null,null,null,null,965,684,1964,406,1082,651,2016,371,3008,935,null,null,2528,729,null,null,null,null,1726,296,2367,567,2265,480,1658,181,2151,541,1940,465,1038,656,null,null,2165,543,3039,578,null,null,null,null,2506,285,2197,802,2583,427,2864,720,3550,850,null,null,3068,493,2002,410,2278,549,2849,633,2158,496,1723,775,2033,512,null,null,null,null,2616,756,2073,1134,2057,293,null,null,2078,278,null,null,null,null,1784,489,null,null,2101,370,2306,989,2540,802,737,622,null,null,2007,418,1791,612,null,null,2784,720,1991,415,2872,336,null,null,2208,965,1694,685,null,null,null,null,2146,962,2984,779,2054,1015,3469,1041,1955,670,null,null,1904,704,965,716,null,null,1873,308,1857,237,2653,554,null,null,3483,1306,2392,604,2562,490,980,743,null,null,1071,858,null,null,3016,777,null,null,3310,943,2039,325,null,null,3102,418,1517,452,1240,1060,null,null,432,1020,null,null,2093,383,3261,397,2095,852,1663,601,2167,581,null,null,2188,656,2152,776,1681,693,null,null,null,null,1436,1379,null,null,3460,941,1688,765,903,701,null,null,2236,743,2301,756,null,null,2029,391,null,null,1252,812,2011,352,1941,380,1986,266,null,null,null,null,2359,880,2191,503,null,null,2023,711,1807,768,2803,742,2495,442,2423,431,3053,925,null,null,null,null,1910,468,2088,426,null,null,3018,596,2200,886,2141,847,2144,321,null,null,1264,1158,233,630,null,null,2471,425,null,null,null,null,1191,748,null,null,null,null,2872,732,3484,1013,null,null,null,null,null,null,2229,696,2114,1095,2136,949,2131,1022,1279,805,null,null,null,null,null,null,null,null,null,null,null,null,null,null,222,1658]
["Wybrzeże Kości Słoniowej",null,"Wybrzeże Kości Słoniowej","Kraj/terytorium","Afryka",45,98,2,"2;7","5;234","Ivory Coast",null,null,2550,464,2005,906,null,null,2003,440,2010,233,null,null,2366,587,1134,1380,2263,448,null,null,222,1658,null,null,2496,1327,null,null,3256,1246,1967,364,2270,419,2100,865,1857,342,1829,769,1825,718,2712,614,2078,413,null,null,1058,611,1992,402,null,null,null,null,2120,296,920,667,null,null,1192,972,1348,1076,null,null,null,null,2695,569,2086,1054,2056,763,1066,383,1895,373,1133,1390,2899,654,1771,739,null,null,1951,749,null,null,2093,792,1974,848,null,null,1081,721,null,null,1558,670,974,747,null,null,974,622,null,null,null,null,null,null,null,null,1978,335,1936,290,2234,721,null,null,1898,286,1114,655,1891,515,897,843,2104,524,2201,685,null,null,1637,553,2023,252,2225,711,2031,234,3579,1022,1208,1353,1897,410,1733,217,null,null,1941,834,1744,288,2265,418,null,null,1807,767,null,null,1708,712,1648,703,1642,722,1887,802,2038,482,null,null,1358,235,890,698,null,null,1229,775,null,null,null,null,967,684,1964,407,1083,652,2015,371,3009,936,null,null,2524,729,null,null,null,null,1727,296,2366,566,2262,480,1659,180,2150,540,1939,465,1039,656,null,null,2164,544,3115,578,null,null,null,null,2506,284,2197,803,2582,427,2864,719,3550,849,null,null,3069,493,2002,409,2277,548,2849,635,2158,495,1723,775,2033,514,null,null,null,null,2616,756,2072,1134,2057,294,null,null,2078,279,null,null,null,null,1784,490,null,null,2101,371,2307,989,2531,802,738,622,null,null,2009,418,1792,612,null,null,2785,720,1991,414,2873,336,null,null,2208,965,1693,685,null,null,null,null,2147,964,2800,775,2050,1015,3469,1042,1954,671,null,null,1909,703,964,716,null,null,1873,309,1856,237,2659,554,null,null,3483,1307,2392,605,2562,491,980,744,null,null,1070,858,null,null,3016,778,null,null,3310,942,2041,325,null,null,3101,418,1516,452,1243,1060,null,null,432,1021,null,null,2099,383,3260,397,2097,852,1663,600,2167,580,null,null,2188,657,2152,779,1681,694,null,null,null,null,1435,1378,null,null,3464,939,1688,768,902,700,null,null,2236,741,2300,757,null,null,2028,391,null,null,1252,811,2011,351,1940,380,1985,266,null,null,null,null,2359,875,2190,503,null,null,2023,710,1807,768,2802,742,2496,442,2424,432,3053,923,null,null,null,null,1910,467,2088,426,null,null,3018,599,2200,887,2109,847,2144,323,null,null,1265,1159,232,630,null,null,2482,425,null,null,null,null,1191,747,null,null,null,null,2871,732,3484,1012,null,null,null,null,null,null,2230,696,2113,1096,2135,950,2131,1025,1278,805,null,null,null,null,null,null,null,null,null,null,null,null,null,null,197,1653]
["Wyspa Clippertona",null,"Wyspa Clippertona","Kraj/terytorium","Ocean",46,100,1,2,1,"Clipperton Island",null,null,2551,465,2008,906,null,null,2002,440,2010,234,null,null,2365,587,1135,1380,2263,447,null,null,197,1653,null,null,2497,1327,null,null,3259,1246,1966,365,2270,420,2101,864,1857,341,1830,769,1826,718,2713,616,2079,413,null,null,1058,611,1992,402,null,null,null,null,2121,297,919,668,null,null,1193,973,1348,1075,null,null,null,null,2693,569,2087,1054,2056,764,1065,382,1895,374,1133,1390,2899,655,1771,740,null,null,1951,750,null,null,2093,793,1972,848,null,null,1081,723,null,null,1559,670,975,748,null,null,974,623,null,null,null,null,null,null,null,null,1978,336,1936,291,2234,722,null,null,1900,286,1114,654,1892,516,897,842,2104,525,2200,685,null,null,1638,552,2023,252,2225,712,2031,234,3579,1023,1207,1353,1865,407,1732,216,null,null,1941,838,1745,289,2266,418,null,null,1807,768,null,null,1710,712,1649,703,1642,721,1888,802,2039,482,null,null,1359,236,889,697,null,null,1230,775,null,null,null,null,967,685,1963,407,1083,653,2015,373,3010,936,null,null,2524,729,null,null,null,null,1728,295,2367,566,2262,483,1660,181,2150,539,1938,464,1039,657,null,null,2163,545,3115,578,null,null,null,null,2510,284,2198,803,2582,426,2862,719,3549,848,null,null,3069,494,2004,409,2277,547,2851,635,2159,495,1723,776,2034,514,null,null,null,null,2617,756,2072,1133,2060,294,null,null,2071,279,null,null,null,null,1783,491,null,null,2101,371,2307,992,2531,802,736,620,null,null,2009,418,1793,613,null,null,2785,722,1989,414,2874,337,null,null,2208,966,1693,686,null,null,null,null,2147,968,2800,775,2050,1016,3468,1042,1953,671,null,null,1916,703,964,719,null,null,1872,310,1857,236,2659,555,null,null,3485,1307,2393,606,2561,491,980,744,null,null,1070,860,null,null,3011,778,null,null,3323,941,2041,327,null,null,3101,419,1517,451,1244,1061,null,null,431,1020,null,null,2099,385,3260,398,2097,851,1664,599,2167,580,null,null,2187,658,2153,780,1682,694,null,null,null,null,1435,1379,null,null,3464,940,1687,768,901,700,null,null,2235,741,2300,761,null,null,2028,392,null,null,1251,811,2010,351,1939,379,1985,267,null,null,null,null,null,null,2187,505,null,null,2025,710,1807,767,2802,743,2496,442,2425,432,3057,923,null,null,null,null,1911,467,2088,427,null,null,3017,600,2201,887,2109,848,2145,323,null,null,1265,1160,232,628,null,null,2482,426,null,null,null,null,1192,747,null,null,null,null,2871,733,3485,1012,null,null,null,null,null,null,2230,698,2113,1097,2135,951,2129,1025,1278,808,null,null,null,null,null,null,null,null,null,null,null,null,null,null,187,1653]
["Kamerun",null,"Kamerun","Kraj/terytorium","Afryka",47,102,1,2,306,"Cameroon",null,null,2550,465,2008,908,null,null,2002,438,2001,233,null,null,2365,588,1135,1381,2262,446,null,null,183,1653,null,null,2497,1328,null,null,3259,1247,1967,366,2271,420,2101,860,1855,341,1830,770,1826,719,2712,616,2079,414,null,null,1059,611,1992,402,null,null,null,null,2120,297,919,671,null,null,1194,973,1349,1075,null,null,null,null,2693,568,2087,1053,2057,764,1063,382,1894,374,1137,1389,2898,655,1772,740,null,null,1952,750,null,null,2094,793,1971,849,null,null,1080,724,null,null,1559,671,974,748,null,null,973,623,null,null,null,null,null,null,null,null,1980,336,1939,291,null,null,null,null,1910,288,1113,653,1893,516,900,842,2104,525,2200,682,null,null,1639,551,2024,252,2226,712,2031,235,3578,1023,1206,1354,1865,407,1731,216,null,null,1940,839,1745,290,2266,419,null,null,1807,768,null,null,1712,713,1649,702,1646,721,1888,800,2039,480,null,null,1362,236,886,696,null,null,1230,777,null,null,null,null,967,685,1963,406,1084,653,2014,373,3010,938,null,null,2728,729,null,null,null,null,1728,296,2305,545,2263,484,1660,180,2149,538,1936,464,null,null,null,null,2159,545,3076,575,null,null,null,null,2510,285,2198,802,2580,426,2862,720,3549,849,null,null,3070,494,2004,409,2273,547,2851,636,2159,493,1724,776,2034,515,null,null,null,null,2617,757,2074,1133,2060,295,null,null,2070,280,null,null,null,null,1784,492,null,null,2101,372,2306,993,2532,801,737,620,null,null,2010,418,1794,613,null,null,2777,719,1989,413,2880,337,null,null,2206,966,1692,685,null,null,null,null,2148,969,2801,773,2049,1016,3468,1044,1953,672,null,null,1919,704,965,719,null,null,1872,311,1855,236,2661,555,null,null,3484,1308,2393,607,2560,492,980,744,null,null,1071,860,null,null,3011,777,null,null,3321,940,2042,327,null,null,3100,419,1518,451,1244,1062,null,null,432,1020,null,null,2099,385,3258,398,2100,851,1665,599,2167,581,null,null,2186,658,2153,781,1682,699,null,null,null,null,1435,1379,null,null,3464,940,1686,767,901,698,null,null,2235,740,2299,761,null,null,2027,392,null,null,1251,811,2008,352,1938,379,1985,267,null,null,null,null,null,null,2185,506,null,null,2026,711,1808,767,2801,743,2497,442,2425,433,3058,922,null,null,null,null,1911,466,2086,427,null,null,3017,604,2201,887,2105,848,2145,324,null,null,1266,1161,234,628,null,null,2483,426,null,null,null,null,1192,746,null,null,null,null,2871,733,3485,1013,null,null,null,null,null,null,2228,683,2112,1098,2134,951,2129,1027,1277,808,null,null,null,null,null,null,null,null,null,null,null,null,null,null,183,1652]
["Cypr - Strefa buforowa",null,"Cypr - Strefa buforowa","Kraj/terytorium","Azja",48,104,3,"2;4;5","2;1;17","Cyprus No Mans Area",null,null,2549,464,2007,908,null,null,2001,438,2002,233,null,null,2364,589,1137,1381,2262,444,null,null,178,1652,null,null,2497,1328,null,null,3261,1247,1967,367,2272,421,2102,860,1855,340,1829,770,1825,719,2712,615,2080,414,null,null,1059,611,1992,403,null,null,null,null,2120,299,918,671,null,null,1195,974,1349,1074,null,null,null,null,2691,568,2088,1053,2058,765,1063,383,1894,375,1137,1389,2898,655,1772,741,null,null,1953,751,null,null,2094,793,1971,850,null,null,1080,725,null,null,1573,670,973,749,null,null,973,622,null,null,null,null,null,null,null,null,1980,337,1939,292,null,null,null,null,1909,289,1110,653,1893,519,887,840,2105,524,2201,682,null,null,1641,551,2024,252,2225,713,2030,235,3578,1022,1205,1355,1789,377,1731,215,null,null,1941,840,1743,290,2264,419,null,null,1807,769,null,null,1712,715,1644,702,1646,721,1889,800,2040,480,null,null,1362,237,884,695,null,null,1231,777,null,null,null,null,967,684,1964,406,1085,654,2014,374,3009,939,null,null,2728,731,null,null,null,null,1729,296,2305,545,2263,485,1659,180,2149,536,1936,463,null,null,null,null,2158,544,3076,575,null,null,null,null,2511,285,2199,801,2579,427,2861,721,3550,849,null,null,3071,493,2006,409,2272,546,2852,636,2160,493,1724,778,2040,515,null,null,null,null,2618,757,2075,1132,2059,295,null,null,2065,280,null,null,null,null,1785,492,null,null,2102,372,2305,995,2532,801,737,621,null,null,2009,417,1795,614,null,null,2788,719,1989,413,2880,337,null,null,2206,967,1691,684,null,null,null,null,2147,969,2801,774,2049,1017,3467,1044,1952,673,null,null,1921,704,965,721,null,null,1869,311,1855,237,2661,557,null,null,3484,1308,2394,607,2558,492,979,744,null,null,1071,860,null,null,3012,776,null,null,3313,936,2042,328,null,null,3100,420,1519,452,1245,1062,null,null,394,1019,null,null,2099,387,3258,400,2100,850,1666,598,2168,581,null,null,2186,660,2154,782,1681,700,null,null,null,null,1435,1380,null,null,3464,939,1685,767,902,698,null,null,2234,740,2298,763,null,null,2027,393,null,null,1250,811,2007,352,1938,377,1985,268,null,null,null,null,null,null,2184,506,null,null,2027,711,1808,764,2801,741,2497,441,2426,433,3058,922,null,null,null,null,1913,466,2086,426,null,null,3016,604,2200,887,2105,849,2144,324,null,null,1266,1162,234,629,null,null,2483,429,null,null,null,null,1193,746,null,null,null,null,2871,732,3484,1013,null,null,null,null,null,null,2228,683,2112,1099,2134,953,2130,1027,1277,810,null,null,null,null,null,null,null,null,null,null,null,null,null,null,165,1652]
["Demokratyczna Republika Konga",null,"Demokratyczna Republika Konga","Kraj/terytorium","Afryka",49,106,2,"2;6","4;552","Democratic Republic of the Congo",null,null,2548,464,2007,910,null,null,2001,436,2002,233,null,null,2363,589,1137,1382,2260,444,null,null,165,1652,null,null,2497,1327,null,null,3261,1248,1964,367,2273,421,2102,861,1853,340,1829,773,1825,720,2713,615,2080,415,null,null,1058,611,1993,404,null,null,null,null,2125,299,919,672,null,null,1196,974,1350,1075,null,null,null,null,2691,566,2088,1054,2060,765,1062,383,1893,376,1137,1390,2897,655,1773,742,null,null,1954,752,null,null,2095,793,1970,850,null,null,1078,725,null,null,1573,670,973,751,null,null,970,622,null,null,null,null,null,null,null,null,1982,337,1938,292,null,null,null,null,1909,289,1110,652,1894,520,888,840,2105,524,2202,683,null,null,1660,556,2025,252,2225,714,2025,234,3579,1022,1204,1356,1790,377,1730,215,null,null,1941,839,1743,291,2264,421,null,null,1808,769,null,null,1713,715,1641,703,1647,721,1889,799,2040,482,null,null,1361,237,883,694,null,null,1231,778,null,null,null,null,965,684,1968,405,1084,655,2013,374,3008,939,null,null,2728,731,null,null,null,null,1729,295,2252,443,2263,485,1662,181,2148,534,1935,463,null,null,null,null,2153,544,3070,574,null,null,null,null,2512,286,2200,800,2570,427,2861,720,3550,850,null,null,3071,493,2007,408,2268,546,2852,637,2160,492,1726,778,2042,516,null,null,null,null,2618,759,2076,1132,2059,296,null,null,2064,279,null,null,null,null,1784,493,null,null,2103,373,2305,996,2529,800,736,621,null,null,2010,417,1796,614,null,null,2788,721,1989,412,2881,337,null,null,2208,967,1689,682,null,null,null,null,2148,970,2799,774,2048,1017,3468,1043,1951,674,null,null,1922,705,964,721,null,null,1869,312,1854,237,2662,557,null,null,3482,1308,2394,608,2556,491,979,743,null,null,1072,860,null,null,3008,775,null,null,3313,937,2043,328,null,null,3099,420,1521,452,1245,1063,null,null,393,1019,null,null,2098,387,3256,400,2101,851,1668,598,2168,580,null,null,2185,660,2155,782,1681,701,null,null,null,null,1436,1380,null,null,3420,940,1685,766,902,697,null,null,2234,738,2298,764,null,null,2028,393,null,null,1249,812,2006,353,1937,377,1983,268,null,null,null,null,null,null,2183,507,null,null,2026,712,1809,764,2799,741,2500,441,2426,437,3065,922,null,null,null,null,1913,469,2082,426,null,null,3016,606,2200,888,2104,850,2145,325,null,null,1267,1162,233,630,null,null,2483,429,null,null,null,null,1193,746,null,null,null,null,2891,732,3486,1012,null,null,null,null,null,null,2331,666,2111,1100,2135,953,2130,1028,1276,810,null,null,null,null,null,null,null,null,null,null,null,null,null,null,163,1651]
["Kongo",null,"Kongo","Kraj/terytorium","Afryka",50,108,1,2,288,"Republic of Congo",null,null,2548,465,2020,910,null,null,1999,436,2003,233,null,null,2363,590,1139,1382,2260,441,null,null,162,1651,null,null,2498,1327,null,null,3263,1248,1964,368,2274,422,2104,861,1853,339,1825,774,1824,721,2713,613,2081,415,null,null,1064,610,1992,404,null,null,null,null,2126,300,918,672,null,null,1196,975,1360,1068,null,null,null,null,2689,566,2089,1054,2060,766,1062,382,1892,376,1135,1390,2897,654,1774,743,null,null,1954,753,null,null,2095,792,1970,851,null,null,1078,726,null,null,1572,670,974,751,null,null,970,621,null,null,null,null,null,null,null,null,1982,337,1938,293,null,null,null,null,1908,289,1109,652,1894,524,888,842,2105,524,2203,683,null,null,1659,556,2025,251,2224,716,2026,233,3583,1021,1203,1356,1790,378,1730,214,null,null,1942,839,1744,290,2265,421,null,null,1808,771,null,null,1713,717,1641,702,1642,718,1890,799,2041,482,null,null,1360,236,881,693,null,null,1230,778,null,null,null,null,965,683,1972,405,1084,656,2013,375,3007,940,null,null,2727,732,null,null,null,null,1730,295,2253,443,2263,486,1664,181,2148,533,1934,462,null,null,null,null,2152,543,3069,574,null,null,null,null,2512,289,2200,799,2570,429,2860,720,3498,846,null,null,3077,492,2007,407,2269,544,2851,637,2162,492,1726,778,2043,517,null,null,null,null,2619,759,2076,1130,2057,296,null,null,2064,278,null,null,null,null,1784,494,null,null,2101,373,2304,997,2532,800,735,620,null,null,2010,416,1797,615,null,null,2787,721,1987,412,2881,338,null,null,2208,970,1688,681,null,null,null,null,2148,972,2799,773,2048,1018,3468,1041,1950,675,null,null,1922,706,964,722,null,null,1870,312,1854,236,2662,558,null,null,3481,1309,2395,608,2554,491,979,743,null,null,1072,861,null,null,3007,775,null,null,3314,937,2043,329,null,null,3099,423,1521,453,1246,1063,null,null,393,1018,null,null,2098,389,3256,398,2101,852,1669,597,2167,580,null,null,2185,662,2155,783,1682,701,null,null,null,null,1436,1379,null,null,3419,940,1684,765,903,697,null,null,2233,738,2297,765,null,null,2028,394,null,null,1248,812,2006,354,1937,376,1984,267,null,null,null,null,null,null,2181,508,null,null,2026,713,1808,763,2786,740,2500,442,2427,437,3065,921,null,null,null,null,1912,469,2082,427,null,null,3015,606,2201,888,2104,851,2145,324,null,null,1268,1163,236,627,null,null,2484,430,null,null,null,null,1195,745,null,null,null,null,2891,731,3485,1012,null,null,null,null,null,null,2332,668,2110,1101,2135,960,2131,1028,1276,812,null,null,null,null,null,null,null,null,null,null,null,null,null,null,163,1651]
["Wyspy Cooka",null,"Wyspy Cooka","Kraj/terytorium","Oceania",51,110,11,"2;4;9;14;15;17;21;23;24;26;27","2;5;5;1;2;4;2;1;2;1;2","Cook Islands",null,null,2546,465,2020,911,null,null,1998,435,2003,234,null,null,2362,589,1143,1383,2258,441,null,null,163,1651,null,null,2498,1328,null,null,3264,1249,1963,368,2274,424,2104,860,1851,339,1821,774,1822,723,2714,613,2081,416,null,null,1063,610,1991,403,null,null,null,null,2127,300,919,671,null,null,1197,975,1361,1068,null,null,null,null,2689,565,2091,1055,2061,766,1065,382,1892,378,1136,1389,2893,654,1775,743,null,null,1956,756,null,null,2096,792,1969,852,null,null,1077,726,null,null,1572,669,974,752,null,null,972,621,null,null,null,null,null,null,null,null,1985,337,1939,293,null,null,null,null,1909,288,1109,653,1895,525,886,842,2105,523,2203,684,null,null,1659,555,2036,251,2223,716,2026,234,3583,1021,1203,1357,1789,378,1733,214,null,null,1942,840,1747,290,2265,422,null,null,1809,771,null,null,1714,717,1640,702,1642,719,null,null,2074,479,null,null,1359,236,879,691,null,null,1230,781,null,null,null,null,967,684,1972,406,1083,656,2012,375,3006,940,null,null,2726,731,null,null,null,null,1730,294,2253,444,2261,486,1664,182,2147,533,1932,462,null,null,null,null,2152,540,3069,573,null,null,null,null,2513,289,2201,798,2569,429,2860,721,3498,846,null,null,3077,492,2008,407,2270,543,2850,638,2162,491,1727,778,2052,517,null,null,null,null,2619,760,2077,1130,2057,295,null,null,2062,278,null,null,null,null,1785,496,null,null,2101,374,2304,996,2532,799,736,620,null,null,2012,416,1798,616,null,null,2787,721,1987,412,2881,338,null,null,2208,970,1686,681,null,null,null,null,2151,972,2800,773,2047,1018,3442,1038,1950,676,null,null,1927,706,963,723,null,null,1871,313,1855,236,2663,558,null,null,3480,1309,2395,609,2554,490,980,744,null,null,1075,861,null,null,3007,774,null,null,3314,936,2042,329,null,null,3100,423,1516,452,1246,1065,null,null,393,1018,null,null,2094,389,3258,398,2102,852,1670,596,2167,579,null,null,2184,662,2159,783,1682,702,null,null,null,null,1437,1379,null,null,3419,939,1681,765,904,696,null,null,2232,737,2296,767,null,null,2029,394,null,null,1248,813,2004,354,1938,376,1985,267,null,null,null,null,null,null,2180,509,null,null,2027,715,1807,763,2786,740,2501,441,2427,438,3067,921,null,null,null,null,1912,470,2077,427,null,null,3015,608,2201,890,2102,851,2146,324,null,null,1270,1163,237,627,null,null,2485,430,null,null,null,null,1194,745,null,null,null,null,2892,732,3485,1011,null,null,null,null,null,null,2332,669,2110,1105,2137,960,2130,1029,1275,813,null,null,null,null,null,null,null,null,null,null,null,null,null,null,163,1650]
["Kolumbia",null,"Kolumbia","Kraj/terytorium","Ameryka Południowa",52,112,11,"2;7;11;15;17;18;24;28;599;601;603","5;4;4;2;1;6;4;571;2;2;1","Colombia",null,null,2546,466,2021,911,null,null,1997,435,2004,234,null,null,2362,587,1144,1384,2258,442,null,null,163,1650,null,null,2496,1328,null,null,3267,1249,1962,369,2277,424,2105,861,1850,338,1818,775,1821,723,2714,615,2082,416,null,null,1063,611,1990,403,null,null,null,null,2126,301,919,670,null,null,1197,976,1361,1069,null,null,null,null,2690,565,2093,1055,2061,767,1065,381,1892,378,1137,1389,2893,653,1775,745,null,null,1956,759,null,null,2096,791,1969,853,null,null,1077,727,null,null,1573,668,973,752,null,null,971,619,null,null,null,null,null,null,null,null,1985,338,1940,294,null,null,null,null,1909,287,1106,653,1895,527,886,841,2106,523,2202,684,null,null,1660,555,2036,252,2223,717,2024,234,3614,1020,1201,1357,1788,377,1733,214,null,null,1943,840,1747,292,2266,422,null,null,1809,772,null,null,1714,718,1640,703,1640,719,null,null,2074,483,null,null,1360,235,880,691,null,null,1229,782,null,null,null,null,968,684,1968,406,1083,655,2012,374,3004,939,null,null,2726,728,null,null,null,null,1731,293,2254,445,2261,488,1665,181,2147,530,1932,461,null,null,null,null,2153,539,3070,573,null,null,null,null,2513,290,2202,797,2568,430,2861,721,3547,845,null,null,3074,493,2008,406,2271,543,2850,639,2165,491,1727,778,2052,519,null,null,null,null,2618,759,2077,1129,2058,295,null,null,2062,277,null,null,null,null,1785,500,null,null,2100,374,2302,996,2536,799,735,619,null,null,2012,415,1799,617,null,null,2786,721,1986,412,2881,339,null,null,2208,971,1686,682,null,null,null,null,2152,973,2800,772,2047,1017,3443,1038,1949,676,null,null,1927,705,963,724,null,null,1872,313,1853,234,2663,556,null,null,3480,1308,2396,609,2553,491,1007,741,null,null,1076,860,null,null,3008,774,null,null,3315,936,2042,330,null,null,3100,424,1514,452,1245,1065,null,null,393,1019,null,null,2093,390,3259,397,2102,851,1670,595,2168,579,null,null,2184,661,2160,784,1683,702,null,null,null,null,1437,1380,null,null,3420,939,1679,764,904,696,null,null,2232,736,2295,768,null,null,2029,395,null,null,1244,813,2004,354,1939,375,1985,266,null,null,null,null,null,null,2178,510,null,null,2027,717,1807,761,2802,739,2502,441,2428,438,3067,922,null,null,null,null,1911,471,2077,428,null,null,3014,608,2200,890,2102,852,2147,325,null,null,1270,1164,237,628,null,null,2485,431,null,null,null,null,1194,746,null,null,null,null,2871,731,3486,1011,null,null,null,null,null,null,2333,671,2111,1105,2137,962,2130,1034,1274,814,null,null,null,null,null,null,null,null,null,null,null,null,null,null,181,1650]
["Komory",null,"Komory","Kraj/terytorium","Afryka",53,114,3,"2;12;19","10;7;11","Comoros",null,null,2547,466,2021,913,null,null,1996,434,2004,235,null,null,2361,587,1145,1384,2255,442,null,null,177,1650,null,null,2495,1329,null,null,3268,1248,1962,370,2277,425,2105,860,1850,338,1818,774,1821,723,2713,615,2082,417,null,null,1064,611,1990,404,null,null,null,null,2127,301,918,671,null,null,1198,976,1359,1069,null,null,null,null,2690,564,2093,1056,2062,767,1066,381,1892,379,1134,1388,2891,653,1774,746,null,null,1958,759,null,null,2097,791,1968,853,null,null,1076,727,null,null,1573,670,973,753,null,null,972,618,null,null,null,null,null,null,null,null,1988,338,1939,294,null,null,null,null,1911,287,1106,653,1896,528,885,841,2106,522,2202,685,null,null,1660,553,2035,252,2222,718,2024,233,3614,1019,1201,1357,1788,376,1734,214,null,null,1944,841,1748,292,2267,423,null,null,1810,773,null,null,1713,720,1639,703,1640,718,null,null,2073,483,null,null,1360,236,880,687,null,null,1229,784,null,null,null,null,968,685,1967,405,1073,655,2010,374,3004,939,null,null,2728,728,null,null,null,null,1733,293,2256,445,2260,488,1665,182,2146,529,1928,461,null,null,null,null,2153,536,3070,574,null,null,null,null,2515,290,2204,797,2568,431,2861,723,3547,844,null,null,3073,493,2008,406,2271,542,2849,639,2165,490,1728,779,2053,519,null,null,null,null,2618,760,2078,1129,2057,294,null,null,2060,277,null,null,null,null,1785,500,null,null,2100,373,2302,993,2536,798,735,619,null,null,2014,415,1800,617,null,null,2786,719,1986,411,2882,339,null,null,2207,972,1684,682,null,null,null,null,2153,974,2801,772,2044,1017,3443,1039,1948,677,null,null,1928,705,964,726,null,null,1872,313,1853,235,2664,555,null,null,3479,1309,2396,610,2552,491,1010,741,null,null,1076,861,null,null,3008,775,null,null,3315,938,2043,330,null,null,3099,425,1514,451,1245,1066,null,null,394,1019,null,null,2092,390,3260,396,2104,851,1671,594,2168,580,null,null,2183,661,2160,789,1683,704,null,null,null,null,1438,1380,null,null,3420,940,1677,763,905,695,null,null,2231,735,2295,769,null,null,2028,395,null,null,1244,812,2003,354,1936,375,1984,266,null,null,null,null,null,null,2176,510,null,null,2028,716,1808,761,2803,739,2502,441,2429,439,3068,922,null,null,null,null,1910,472,2076,429,null,null,3014,609,2200,891,2101,852,2153,325,null,null,1271,1164,238,628,null,null,2488,431,null,null,null,null,1194,746,null,null,null,null,2871,732,3486,1012,null,null,null,null,null,null,2330,671,2111,1106,2134,962,2132,1034,1273,814,null,null,null,null,null,null,null,null,null,null,null,null,null,null,186,1651]
["Republika Zielonego Przylądka",null,"Republika Zielonego Przylądka","Kraj/terytorium","Afryka",54,116,9,"2;7;13;24;31;39;48;54;59","5;6;11;7;8;9;6;5;12","Cape Verde",null,null,2547,467,2020,913,null,null,1996,433,2004,235,null,null,2361,588,1147,1383,2255,441,null,null,181,1651,null,null,2496,1329,null,null,3268,1248,1957,370,2281,425,2106,860,1850,336,1820,774,1820,722,2713,616,2080,417,null,null,1064,612,1989,404,null,null,null,null,2127,302,918,673,null,null,1198,978,1359,1068,null,null,null,null,2692,564,2092,1056,2062,768,1066,380,1891,379,1132,1388,2890,652,1774,747,null,null,1958,761,null,null,2097,790,1968,855,null,null,1076,728,null,null,1553,668,972,753,null,null,972,617,null,null,null,null,null,null,null,null,1988,340,1939,293,null,null,null,null,1911,285,1105,653,1896,531,885,840,2106,522,2203,685,null,null,1661,553,2035,252,2221,719,2025,233,3614,1019,1199,1357,1789,377,1734,215,null,null,1944,842,1747,293,2268,423,null,null,1811,774,null,null,1714,720,1639,704,1642,718,null,null,2073,480,null,null,1370,236,881,687,null,null,1230,784,null,null,null,null,969,685,1968,405,1073,655,2009,375,3003,939,null,null,2728,729,null,null,null,null,1733,294,2256,447,2260,489,1665,182,2146,528,1928,460,null,null,null,null,2154,536,3074,571,null,null,null,null,2515,291,2205,796,2567,432,2860,724,3546,843,null,null,3073,492,2008,405,2272,541,2849,640,2166,491,1727,779,2053,520,null,null,null,null,2619,760,2078,1128,2054,294,null,null,2060,276,null,null,null,null,1785,501,null,null,2099,372,2301,993,2535,798,826,619,null,null,2014,416,1801,618,null,null,2783,719,1988,411,2882,340,null,null,2208,972,1684,685,null,null,null,null,2154,975,2801,773,2043,1018,3444,1040,1947,678,null,null,1928,704,964,727,null,null,1873,313,1852,235,2664,557,null,null,3479,1309,2397,611,2549,490,1010,741,null,null,1078,861,null,null,3018,771,null,null,3314,938,2043,332,null,null,3099,427,1515,451,1246,1066,null,null,371,1015,null,null,2092,389,3260,395,2104,850,1671,593,2298,563,null,null,2183,661,2161,791,1684,704,null,null,null,null,1438,1381,null,null,3415,939,1677,763,907,695,null,null,2230,735,2294,770,null,null,2028,396,null,null,1242,812,2003,355,1936,373,1984,265,null,null,null,null,null,null,2174,511,null,null,2028,717,1808,755,2803,740,2504,441,2431,439,3069,921,null,null,null,null,1909,473,2075,429,null,null,3013,610,2199,892,2101,851,2153,326,null,null,1271,1165,238,627,null,null,2488,428,null,null,null,null,1194,745,null,null,null,null,2871,732,3485,1008,null,null,null,null,null,null,2330,672,2112,1106,2134,963,2132,1037,1273,815,null,null,null,null,null,null,null,null,null,null,null,null,null,null,191,1651]
["Kostaryka",null,"Kostaryka","Kraj/terytorium","Ameryka Północna",55,118,4,"2;4;5;7","2;1;2;133","Costa Rica",null,null,2546,467,2020,918,null,null,1996,433,2004,235,null,null,2360,588,1148,1384,2254,441,null,null,191,1651,null,null,2496,1328,null,null,3270,1248,1957,371,2281,423,null,null,1851,336,1820,773,1820,723,2708,613,2080,417,null,null,1063,612,1989,405,null,null,null,null,2129,302,917,673,null,null,1197,978,1360,1068,null,null,null,null,2692,561,2092,1057,2063,768,1067,380,1891,377,1132,1387,2889,652,1775,747,null,null,1957,761,null,null,2098,790,1967,856,null,null,1075,728,null,null,1553,669,972,754,null,null,973,618,null,null,null,null,null,null,null,null,1990,340,1938,293,null,null,null,null,1912,285,1105,652,1897,532,887,840,2106,522,2203,686,null,null,1661,552,2034,252,2220,719,2024,234,3614,1020,1199,1358,1787,374,1736,215,null,null,1945,842,1747,293,2268,424,null,null,1812,774,null,null,1714,721,1638,704,1665,713,null,null,2074,480,null,null,1371,237,881,686,null,null,1230,785,null,null,null,null,969,687,1970,404,1068,655,2009,376,3003,938,null,null,2529,726,null,null,null,null,1734,294,2259,447,2259,489,1666,183,2145,527,1927,460,null,null,null,null,2154,535,3223,570,null,null,null,null,2513,291,2206,796,2567,433,2861,724,3547,843,null,null,3074,492,2009,405,2272,539,2848,641,null,null,1727,780,2054,520,null,null,null,null,2619,761,2079,1128,2054,295,null,null,2058,276,null,null,null,null,1786,501,null,null,2099,373,2301,991,2529,797,826,619,null,null,2015,416,1802,618,null,null,2783,720,1988,410,2882,340,null,null,2208,973,1683,685,null,null,null,null,2155,976,2804,770,2042,1019,3445,1040,1946,679,null,null,1929,704,965,727,null,null,1872,314,1852,234,2665,557,null,null,3479,1309,2399,611,2546,489,1012,741,null,null,1078,862,null,null,3018,771,null,null,3314,939,2042,332,null,null,3100,427,1515,450,1246,1069,null,null,371,1015,null,null,2093,389,3261,395,2105,849,1672,592,2298,564,null,null,2182,661,2160,791,1684,703,null,null,null,null,1439,1381,null,null,3416,939,1677,762,907,694,null,null,2230,732,2293,773,null,null,2027,396,null,null,1242,813,2002,355,1938,373,1983,264,null,null,null,null,null,null,2173,512,null,null,2027,720,1809,754,2802,740,2504,442,2432,440,3070,921,null,null,null,null,1908,473,2075,430,null,null,3012,610,2199,891,2100,850,2154,327,null,null,1270,1165,239,627,null,null,2489,427,null,null,null,null,1195,745,null,null,null,null,2871,733,3486,1008,null,null,null,null,null,null,2327,672,2112,1107,2132,963,2131,1037,1270,815,null,null,null,null,null,null,null,null,null,null,null,null,null,null,195,1652]
["Wyspy Morza Koralowego",null,"Wyspy Morza Koralowego","Kraj/terytorium","Oceania",56,120,1,2,1,"Coral Sea Islands",null,null,2545,468,2021,918,null,null,1996,434,2002,235,null,null,2360,595,1148,1383,2254,440,null,null,195,1652,null,null,2497,1329,null,null,3270,1249,1956,371,2282,423,null,null,1851,335,1819,773,1818,723,2708,613,2078,417,null,null,1063,613,1988,405,null,null,null,null,2129,304,917,674,null,null,1197,980,1509,1043,null,null,null,null,2693,561,2093,1058,2063,769,1067,382,1890,377,1133,1387,2889,649,1776,748,null,null,1957,762,null,null,2098,791,1966,857,null,null,1075,729,null,null,1551,669,973,754,null,null,975,618,null,null,null,null,null,null,null,null,1990,342,1938,293,null,null,null,null,1911,287,1103,652,1897,535,894,839,2109,522,2204,687,null,null,1662,551,2033,251,2220,727,2024,233,3612,1017,1198,1359,1787,375,1736,216,null,null,1945,841,1746,293,2269,424,null,null,1812,775,null,null,1715,720,1637,703,1665,714,null,null,2074,479,null,null,1369,237,880,685,null,null,1229,785,null,null,null,null,967,687,1970,404,1068,654,2008,376,3002,938,null,null,2529,726,null,null,null,null,1734,295,2260,448,2258,490,1664,183,2145,524,1927,459,null,null,null,null,2153,535,3224,570,null,null,null,null,2514,292,2207,795,2565,433,2861,725,3538,835,null,null,3074,493,2010,404,2273,537,2847,641,null,null,1728,780,2053,521,null,null,null,null,2620,761,2078,1127,2053,295,null,null,2057,275,null,null,null,null,1786,502,null,null,2097,373,2300,991,2537,796,825,619,null,null,2015,415,1803,619,null,null,2782,720,1987,410,2882,341,null,null,2207,973,1684,686,null,null,null,null,2156,977,2805,770,2041,1019,3445,1039,1945,680,null,null,1930,703,965,728,null,null,1872,315,1852,234,2665,558,null,null,3478,1310,2399,612,2544,489,1012,742,null,null,1079,861,null,null,3023,773,null,null,3313,938,2042,333,null,null,3100,428,1516,451,1247,1069,null,null,394,1016,null,null,2093,388,3261,394,2105,848,1673,592,2297,564,null,null,2182,662,2160,790,1686,703,null,null,null,null,1439,1380,null,null,3417,940,1679,762,906,694,null,null,2229,732,2293,775,null,null,2027,397,null,null,1241,813,2001,356,1938,372,1984,264,null,null,null,null,null,null,2172,513,null,null,2027,721,1809,753,2802,739,2505,441,2435,442,3071,920,null,null,null,null,1907,474,2074,430,null,null,3012,612,2199,891,2100,851,2155,326,null,null,1269,1166,239,628,null,null,2490,426,null,null,null,null,1179,738,null,null,null,null,2870,733,3486,1008,null,null,null,null,null,null,2326,673,2113,1108,2132,964,2131,1040,1270,814,null,null,null,null,null,null,null,null,null,null,null,null,null,null,196,1652]
["Kuba",null,"Kuba","Kraj/terytorium","Ameryka Północna",57,122,36,"2;8;9;11;13;17;24;26;29;33;38;56;59;60;62;70;74;82;88;91;102;103;104;107;117;119;124;129;131;132;133;137;141;142;384;386","6;1;2;2;4;7;2;3;4;5;18;3;1;2;8;4;8;6;3;11;1;1;3;10;2;5;5;2;1;1;4;4;1;242;2;2","Cuba",null,null,2543,468,2021,927,null,null,1997,434,2002,234,null,null,2362,595,1150,1383,2253,440,null,null,195,1652,null,null,2497,1329,null,null,3271,1249,1956,370,2283,422,null,null,1850,336,1819,771,1818,722,2709,614,2078,418,null,null,1062,613,1988,407,null,null,null,null,2127,304,916,674,null,null,1198,980,1509,1043,null,null,null,null,2694,560,2095,1058,2064,769,1177,379,1890,376,1134,1388,2888,649,1776,752,null,null,1956,763,null,null,2100,791,1965,857,null,null,1074,730,null,null,1551,668,973,756,null,null,975,617,null,null,null,null,null,null,null,null,1987,342,1937,294,null,null,null,null,1910,288,1102,653,1895,536,896,839,2112,521,2205,687,null,null,1662,550,2033,250,2221,727,2068,233,3596,1017,1198,1358,1787,375,1735,215,null,null,1946,842,1747,292,2269,425,null,null,1814,775,null,null,1715,722,1637,702,1663,714,null,null,2035,479,null,null,1369,236,880,684,null,null,1229,787,null,null,null,null,967,688,1966,404,1067,654,2008,375,3002,937,null,null,2530,725,null,null,null,null,1736,295,2268,448,2259,490,1665,184,2146,524,1927,459,null,null,null,null,2153,534,3224,571,null,null,null,null,2514,294,2209,795,2565,433,2862,725,3538,835,null,null,3080,492,2011,405,2274,537,2846,640,null,null,1728,783,2052,522,null,null,null,null,2620,763,2079,1127,2053,296,null,null,2052,275,null,null,null,null,1785,503,null,null,2097,372,2299,992,2536,796,825,619,null,null,2016,415,1804,620,null,null,2782,719,1987,409,2883,341,null,null,2207,974,1683,686,null,null,null,null,2157,978,2805,771,2041,1020,3447,1040,1945,681,null,null,1931,702,965,728,null,null,1871,315,1852,233,2666,558,null,null,3477,1310,2400,612,2544,490,1013,742,null,null,1081,861,null,null,3022,773,null,null,3312,938,2039,333,null,null,3099,428,1516,452,1247,1070,null,null,394,1014,null,null,2093,388,3262,394,2107,848,1674,591,2297,563,null,null,2181,662,2159,790,1686,705,null,null,null,null,1438,1380,null,null,3418,940,1679,761,906,693,null,null,2229,729,2292,776,null,null,2026,397,null,null,1241,814,2001,355,1943,372,1984,263,null,null,null,null,null,null,2170,514,null,null,2028,721,1808,752,2828,720,2508,441,2437,443,3072,920,null,null,null,null,1907,477,2074,431,null,null,3011,612,2199,890,2098,851,2155,327,null,null,1269,1167,241,628,null,null,2491,426,null,null,null,null,1179,738,null,null,null,null,2870,731,3485,1008,null,null,null,null,null,null,2325,674,2113,1109,2131,965,2130,1040,1269,814,null,null,null,null,null,null,null,null,null,null,null,null,null,null,198,1653]
["Kurazao",null,"Kurazao","Kraj/terytorium","Ameryka Północna",58,124,1,2,15,"Curaçao",null,null,2543,469,2020,928,null,null,1997,432,2002,234,null,null,2362,596,1151,1384,2253,439,null,null,198,1653,null,null,2497,1330,null,null,3271,1248,1955,371,2285,422,null,null,1850,335,1818,771,1816,722,2708,614,2077,418,null,null,1062,614,1986,407,null,null,null,null,2127,305,916,674,null,null,1198,981,1513,1042,null,null,null,null,2694,559,2096,1059,2064,770,1177,379,1888,376,1118,1387,2888,648,1777,755,null,null,1955,764,null,null,2100,793,1965,858,null,null,1074,731,null,null,1553,668,972,755,null,null,976,618,null,null,null,null,null,null,null,null,1987,343,1936,294,null,null,null,null,1951,285,1101,653,1896,537,896,841,2111,521,2205,688,null,null,1663,549,2035,250,2221,728,2068,233,3596,1018,1197,1359,1786,374,1735,216,null,null,1947,842,1746,292,2268,425,null,null,1814,776,null,null,1717,722,1636,702,1663,715,null,null,2035,479,null,null,1368,236,881,683,null,null,1224,787,null,null,null,null,965,688,1966,403,1067,654,2006,375,3001,937,null,null,2530,725,null,null,null,null,1736,296,2268,447,2259,491,1666,184,2146,523,1927,457,null,null,null,null,2154,534,3223,570,null,null,null,null,2513,294,2210,794,2562,433,2862,726,3540,832,null,null,3079,492,null,null,2276,536,2842,640,null,null,1728,783,2051,523,null,null,null,null,2621,763,2079,1126,2052,296,null,null,2052,274,null,null,null,null,1785,505,null,null,2096,372,2298,992,2538,795,826,619,null,null,2016,414,1805,620,null,null,2783,719,1986,409,2884,342,null,null,2208,974,1683,687,null,null,null,null,2157,980,2806,772,2040,1020,3448,1041,1944,681,null,null,1932,702,965,729,null,null,1870,316,1853,233,2666,558,null,null,3477,1309,2400,615,2542,490,1013,743,null,null,1081,860,null,null,3021,772,null,null,3312,937,2039,334,null,null,3099,429,1520,450,1246,1070,null,null,395,1014,null,null,2093,387,3262,393,null,null,1675,591,2298,563,null,null,2181,663,2159,791,1687,705,null,null,null,null,1438,1379,null,null,3419,941,1677,761,908,693,null,null,2230,729,2292,777,null,null,2026,400,null,null,1241,814,1997,355,1943,373,1983,263,null,null,null,null,null,null,2169,514,null,null,2028,722,1807,752,2828,721,2508,442,2439,445,3073,921,null,null,null,null,1908,478,2071,431,null,null,3011,617,2200,890,2098,843,2155,327,null,null,1267,1167,241,629,null,null,2491,425,null,null,null,null,1179,738,null,null,null,null,2870,731,3488,1006,null,null,null,null,null,null,2325,675,2115,1109,2132,965,2129,1041,1269,813,null,null,null,null,null,null,null,null,null,null,null,null,null,null,197,1653]
["Kajmany",null,"Kajmany","Kraj/terytorium","Ameryka Północna",59,126,3,"2;9;10","7;1;5","Cayman Islands",null,null,2542,469,2021,929,null,null,1997,432,2002,235,null,null,2361,596,1150,1384,2252,439,null,null,197,1653,null,null,2500,1330,null,null,3270,1248,1954,371,2286,421,null,null,1849,336,1818,768,1816,723,2708,613,2076,417,null,null,1060,614,1986,408,null,null,null,null,2125,305,915,674,null,null,1199,982,1413,971,null,null,null,null,2695,559,2092,1059,2066,770,1205,377,1887,375,1119,1387,2889,648,1776,755,null,null,1954,764,null,null,2101,793,1964,858,null,null,1073,732,null,null,1551,665,972,754,null,null,966,617,null,null,null,null,null,null,null,null,1986,343,1936,295,null,null,null,null,1953,285,1101,654,1898,539,894,841,2110,522,2206,688,null,null,1663,550,2035,251,2222,728,2022,233,3595,1018,1197,1359,1787,374,1735,216,null,null,1947,846,1746,291,2268,426,null,null,1813,776,null,null,1717,723,1636,701,1662,715,null,null,2078,475,null,null,1368,236,881,682,null,null,1224,788,null,null,null,null,965,688,1970,403,1066,654,2005,376,3001,936,null,null,2532,722,null,null,null,null,1735,296,2269,447,2257,491,1666,185,2147,522,1928,456,null,null,null,null,2154,533,3085,570,null,null,null,null,2513,295,2211,795,2562,434,2864,726,3541,833,null,null,3079,491,null,null,2279,536,2842,641,null,null,1728,784,2051,528,null,null,null,null,2621,767,2082,1126,2052,295,null,null,2051,273,null,null,null,null,1786,505,null,null,2096,373,2298,993,2538,795,905,611,null,null,2017,415,1805,621,null,null,2779,718,1987,408,2885,342,null,null,2208,977,1684,687,null,null,null,null,2158,981,2808,772,2039,1021,3449,1041,1944,682,null,null,1933,701,964,729,null,null,1869,316,1853,234,2667,558,null,null,3478,1309,2399,616,2541,491,1014,743,null,null,1083,860,null,null,3021,771,null,null,3311,937,2038,334,null,null,3096,429,1522,450,1247,1071,null,null,395,1015,null,null,2091,387,3263,392,null,null,1676,590,2202,517,null,null,2180,662,2158,791,1687,707,null,null,null,null,1439,1380,null,null,3420,941,1677,760,908,692,null,null,2230,728,2291,779,null,null,2027,400,null,null,1241,815,1997,356,1948,373,1983,261,null,null,null,null,null,null,2167,513,null,null,2029,722,1807,751,2827,721,2509,442,2440,446,3058,920,null,null,null,null,1908,479,2071,432,null,null,3010,617,2200,890,2099,843,2155,328,null,null,1267,1174,242,629,null,null,2492,425,null,null,null,null,1178,737,null,null,null,null,2871,732,3488,1006,null,null,null,null,null,null,2324,675,2116,1110,2132,969,2129,1043,1268,813,null,null,null,null,null,null,null,null,null,null,null,null,null,null,263,1637]
["Cypr Północny",null,"Cypr Północny","Kraj/terytorium","Azja",60,128,2,"2;3","1;35","Northern Cyprus",null,null,2541,468,2020,930,null,null,1997,431,2002,235,null,null,2360,597,1150,1385,2252,440,null,null,263,1637,null,null,2501,1329,null,null,3270,1247,1953,370,2287,420,null,null,1849,337,1817,767,1815,723,2709,613,2075,416,null,null,1060,615,1987,408,null,null,null,null,2125,306,915,675,null,null,1198,982,1413,974,null,null,null,null,2695,558,2092,1061,2066,771,1205,377,1886,375,1119,1388,2889,647,1776,757,null,null,1954,766,null,null,2101,795,1964,872,null,null,1073,735,null,null,1552,665,971,754,null,null,986,616,null,null,null,null,null,null,null,null,1986,344,1935,294,null,null,null,null,1954,286,1100,655,1899,541,894,840,2109,522,2206,687,null,null,1664,550,2036,251,2222,727,2022,234,3595,1017,1197,1358,1779,370,1735,215,null,null,1946,846,1745,291,2267,426,null,null,1813,777,null,null,1718,723,1647,701,1663,716,null,null,2033,475,null,null,1367,236,882,680,null,null,1223,788,null,null,null,null,964,688,1970,404,1066,654,2004,376,2999,936,null,null,2729,723,null,null,null,null,1736,297,2270,446,2257,492,1665,185,2147,521,1929,456,null,null,null,null,2153,533,3084,571,null,null,null,null,2513,295,2211,796,2559,434,2864,727,3540,833,null,null,3080,491,null,null,2282,537,2843,641,null,null,1727,784,2052,529,null,null,null,null,2620,769,2083,1125,2051,295,null,null,2048,273,null,null,null,null,1786,506,null,null,2095,373,2299,993,2538,794,905,612,null,null,2017,415,1806,621,null,null,2779,719,1986,408,2885,343,null,null,2209,977,1684,688,null,null,null,null,2159,982,2808,773,2039,1022,3449,1042,1943,683,null,null,1933,701,963,730,null,null,1869,317,1852,232,2667,556,null,null,3478,1308,2399,618,2541,492,1014,743,null,null,1084,859,null,null,3020,771,null,null,3311,935,2037,335,null,null,3095,430,1523,451,1247,1074,null,null,394,1015,null,null,2091,388,3265,392,null,null,1677,589,2206,518,null,null,2179,663,2158,790,1688,707,null,null,null,null,1440,1380,null,null,3420,942,1674,760,null,null,null,null,2231,728,2289,781,null,null,2027,402,null,null,1242,815,1991,356,1948,372,1984,261,null,null,null,null,null,null,2166,513,null,null,2030,723,1806,751,2827,720,2509,443,2442,446,3057,920,null,null,null,null,1910,479,2069,432,null,null,3010,617,2199,889,2099,842,2156,328,null,null,1268,1174,242,630,null,null,2493,424,null,null,null,null,1178,737,null,null,null,null,2871,732,3484,1003,null,null,null,null,null,null,2324,681,2122,1110,2131,970,2127,1043,1268,814,null,null,null,null,null,null,null,null,null,null,null,null,null,null,257,1637]
["Cypr",null,"Cypr","Kraj/terytorium","Azja",61,130,3,"2;3;9","1;6;27","Cyprus",null,null,2532,468,2020,933,null,null,1995,431,2002,236,null,null,2357,597,1149,1385,2250,440,null,null,257,1637,null,null,2502,1329,null,null,3274,1247,1952,371,2287,419,null,null,1848,337,1818,767,1815,724,2709,613,2072,416,null,null,1060,615,1986,409,null,null,null,null,2120,306,914,675,null,null,1198,983,1412,974,null,null,null,null,2696,558,2091,1061,2065,772,1092,368,1886,373,1118,1388,2888,647,1775,757,null,null,1953,766,null,null,2102,795,1963,872,null,null,1072,737,null,null,1552,667,970,753,null,null,986,616,null,null,null,null,null,null,null,null,1984,344,1933,294,null,null,null,null,1953,286,1096,655,1900,543,893,840,2108,523,2208,687,null,null,1664,552,2034,247,2226,727,2021,234,3594,1017,1197,1358,1779,370,1735,215,null,null,1946,849,1745,292,2267,426,null,null,1812,777,null,null,1718,724,1647,700,1664,716,null,null,2033,476,null,null,1367,237,883,679,null,null,1223,790,null,null,null,null,965,689,1965,403,1065,655,2004,376,2999,935,null,null,2728,723,null,null,null,null,1736,296,2271,445,2256,492,1664,186,2148,519,1929,455,null,null,null,null,2154,532,3083,571,null,null,null,null,2513,296,2212,796,2558,433,2863,727,3540,832,null,null,3080,492,null,null,2282,539,2843,643,null,null,1727,786,2052,531,null,null,null,null,2620,771,2083,1124,2051,296,null,null,2048,274,null,null,null,null,1787,506,null,null,2095,373,2299,998,2532,793,906,612,null,null,2018,414,1807,622,null,null,2778,718,1986,407,2887,343,null,null,2209,978,1683,688,null,null,null,null,2160,982,2809,772,2038,1022,3450,1042,1943,684,null,null,1934,701,962,729,null,null,1870,317,1854,232,2669,556,null,null,3479,1308,2398,618,2540,493,1015,742,null,null,1084,858,null,null,3020,770,null,null,3310,935,2036,335,null,null,3094,430,1524,451,1248,1076,null,null,394,1016,null,null,2092,389,3265,393,null,null,1678,589,2207,518,null,null,2178,663,2157,789,1688,710,null,null,null,null,1439,1381,null,null,3421,942,1674,759,null,null,null,null,2231,727,2289,782,null,null,2028,402,null,null,1242,816,1990,357,1950,372,1985,260,null,null,null,null,null,null,2165,512,null,null,2031,723,1806,749,2828,719,2512,443,2443,447,3057,919,null,null,null,null,1910,480,2069,433,null,null,3009,617,2199,889,2098,842,2156,329,null,null,1268,1175,241,630,null,null,2493,423,null,null,null,null,1179,737,null,null,null,null,2895,715,3484,1004,null,null,null,null,null,null,2322,681,2121,1109,2131,972,2127,1047,1265,814,null,null,null,null,null,null,null,null,null,null,null,null,null,null,252,1636]
["Czechy",null,"Czechy","Kraj/terytorium","Europa",62,132,1,2,146,"Czech Republic",null,null,2532,468,2021,933,null,null,1995,430,2000,236,null,null,2357,601,1149,1386,2249,439,null,null,252,1636,null,null,2502,1328,null,null,3275,1246,1950,371,2288,418,null,null,1847,338,1818,746,1813,724,2714,612,2072,417,null,null,1060,614,1987,409,null,null,null,null,2120,305,914,676,null,null,1199,983,1412,972,null,null,null,null,2696,557,2091,1062,2065,773,1091,368,1886,373,1118,1388,2888,646,1774,758,null,null,1953,769,null,null,2102,796,1963,873,null,null,1072,739,null,null,1550,667,971,753,null,null,1026,616,null,null,null,null,null,null,null,null,1983,345,1933,293,null,null,null,null,1953,287,1096,653,1900,546,894,839,2110,523,2208,688,null,null,1663,552,2034,247,2227,726,2021,233,3594,1017,1197,1359,1780,367,1735,216,null,null,1947,849,1746,292,2265,426,null,null,1812,779,null,null,1717,724,1648,700,1664,717,null,null,2032,476,null,null,1366,237,884,678,null,null,1224,790,null,null,null,null,961,689,1966,403,1065,655,2003,376,2995,935,null,null,2728,722,null,null,null,null,1740,296,2273,445,2256,493,1666,186,2149,518,1930,455,null,null,null,null,2154,531,3083,571,null,null,null,null,2515,296,2213,797,2559,433,2863,728,3532,827,null,null,3065,492,null,null,null,null,2841,643,null,null,1726,786,2051,531,null,null,null,null,2619,772,2085,1124,2050,296,null,null,2039,274,null,null,null,null,1787,507,null,null,2094,373,2300,999,2539,792,906,613,null,null,2018,415,1808,622,null,null,2785,718,1988,407,2887,344,null,null,2208,978,1683,689,null,null,null,null,2160,983,2810,772,2038,1020,3450,1043,1942,684,null,null,1934,701,960,729,null,null,1870,318,1854,233,2669,557,null,null,3479,1307,2397,619,2540,494,1015,743,null,null,1085,858,null,null,3025,770,null,null,3310,935,2034,337,null,null,3094,431,1524,452,1248,1077,null,null,296,1014,null,null,2091,389,3290,384,null,null,1678,587,2208,519,null,null,2177,664,2158,788,1688,710,null,null,null,null,1440,1381,null,null,3421,942,1673,759,null,null,null,null,2234,723,2288,783,null,null,2028,403,null,null,1243,816,1990,357,1950,371,1987,259,null,null,null,null,null,null,2163,512,null,null,2031,724,1807,749,2828,720,2512,442,2445,447,3058,919,null,null,null,null,1912,480,2068,433,null,null,3009,616,2199,886,2098,841,2157,330,null,null,1267,1175,241,631,null,null,2494,423,null,null,null,null,1179,736,null,null,null,null,2895,715,3486,1004,null,null,null,null,null,null,2321,682,2121,1108,2130,972,2126,1047,1265,813,null,null,null,null,null,null,null,null,null,null,null,null,null,null,247,1636]
[null,null,null,null,null,null,null,null,null,null,null,null,null,null,null,null,null,null,null,null,null,null,null,null,null,null,null,1114,1356,null,null,null,null,636,1578,null,null,null,null,null,null,3234,957,null,null,null,null,null,null,null,null,null,null,null,null,null,null,null,null,null,null,null,null,null,null,null,null,null,null,null,null,null,null,null,null,null,null,1327,843,null,null,null,null,null,null,null,null,null,null,1150,382,null,null,1099,1372,3021,437,null,null,null,null,null,null,null,null,null,null,null,null,null,null,null,null,null,null,null,null,null,null,null,null,null,null,null,null,null,null,null,null,null,null,null,null,null,null,null,null,null,null,null,null,null,null,null,null,null,null,null,null,null,null,null,null,null,null,null,null,null,null,null,null,null,null,null,null,null,null,null,null,null,null,null,null,1775,303,null,null,null,null,null,null,null,null,null,null,null,null,null,null,null,null,2028,469,null,null,1236,98,null,null,null,null,null,null,null,null,null,null,null,null,null,null,null,null,null,null,3149,902,null,null,2685,588,null,null,null,null,null,null,null,null,null,null,null,null,null,null,null,null,null,null,null,null,null,null,3210,479,null,null,null,null,2295,372,null,null,null,null,null,null,null,null,null,null,null,null,null,null,null,null,null,null,null,null,null,null,null,null,null,null,null,null,null,null,null,null,null,null,null,null,null,null,null,null,null,null,null,null,null,null,null,null,null,null,null,null,841,680,null,null,null,null,null,null,null,null,2725,628,null,null,null,null,null,null,null,null,null,null,null,null,null,null,null,null,null,null,null,null,null,null,null,null,null,null,null,null,null,null,null,null,null,null,2026,130,null,null,null,null,3547,1206,null,null,null,null,null,null,null,null,null,null,null,null,3022,720,null,null,3215,929,null,null,null,null,null,null,null,null,null,null,null,null,null,null,null,null,null,null,2162,186,null,null,null,null,null,null,null,null,null,null,null,null,null,null,null,null,null,null,null,null,null,null,null,null,null,null,null,null,null,null,null,null,null,null,null,null,null,null,null,null,null,null,null,null,null,null,1919,248,null,null,null,null,null,null,null,null,null,null,null,null,null,null,null,null,null,null,null,null,null,null,null,null,null,null,null,null,null,null,null,null,null,null,null,null,null,null,null,null,null,null,null,null,572,350,null,null,null,null,null,null,null,null,null,null,null,null,null,null,null,null,null,null,null,null,null,null,null,null,null,null,null,null,null,null,null,null,null,null,null,null,null,null,null,null,null,null,null,null,null,null,null,null,591,1579]
[null,null,null,null,null,null,null,null,null,null,null,null,null,null,null,null,null,null,null,null,null,null,null,null,null,null,null,null,null,null,null,null,null,1965,1537,null,null,null,null,null,null,3182,1168,null,null,null,null,null,null,null,null,null,null,null,null,null,null,null,null,null,null,null,null,null,null,null,null,null,null,null,null,null,null,null,null,null,null,1306,1128,null,null,null,null,null,null,null,null,null,null,1257,343,null,null,1055,1323,2969,605,null,null,null,null,null,null,null,null,null,null,null,null,null,null,null,null,null,null,null,null,null,null,null,null,null,null,null,null,null,null,null,null,null,null,null,null,null,null,null,null,null,null,null,null,null,null,null,null,null,null,null,null,null,null,null,null,null,null,null,null,null,null,null,null,null,null,null,null,null,null,null,null,null,null,null,null,null,null,null,null,null,null,null,null,null,null,null,null,null,null,null,null,null,null,null,null,null,null,1610,45,null,null,null,null,null,null,null,null,null,null,null,null,null,null,null,null,null,null,3093,870,null,null,2488,604,null,null,null,null,null,null,null,null,null,null,null,null,null,null,null,null,null,null,null,null,null,null,null,null,null,null,null,null,null,null,null,null,null,null,null,null,null,null,null,null,null,null,null,null,null,null,null,null,null,null,null,null,null,null,null,null,null,null,null,null,null,null,null,null,null,null,null,null,null,null,null,null,null,null,null,null,null,null,null,null,null,null,658,513,null,null,null,null,null,null,null,null,null,null,null,null,null,null,null,null,null,null,null,null,null,null,null,null,null,null,null,null,null,null,null,null,null,null,null,null,null,null,null,null,null,null,null,null,1855,229,null,null,null,null,null,null,null,null,null,null,null,null,null,null,null,null,null,null,3021,630,null,null,null,null,null,null,null,null,null,null,null,null,null,null,null,null,null,null,null,null,null,null,2555,103,null,null,null,null,null,null,null,null,null,null,null,null,null,null,null,null,null,null,null,null,null,null,null,null,null,null,null,null,null,null,null,null,null,null,null,null,null,null,null,null,null,null,null,null,null,null,null,null,null,null,null,null,null,null,null,null,null,null,null,null,null,null,null,null,null,null,null,null,null,null,null,null,null,null,null,null,null,null,null,null,null,null,null,null,null,null,null,null,null,null,null,null,1040,446,null,null,null,null,null,null,null,null,null,null,null,null,null,null,null,null,null,null,null,null,null,null,null,null,null,null,null,null,null,null,null,null,null,null,null,null,null,null,null,null,null,null,null,null,null,null,null,null,1177,1529]
[null,null,null,null,null,null,null,null,null,null,null,null,null,null,null,null,null,null,null,null,null,null,null,null,null,null,null,null,null,null,null,null,null,1167,1655,null,null,null,null,null,null,null,null,null,null,null,null,null,null,null,null,null,null,null,null,null,null,null,null,null,null,null,null,null,null,null,null,null,null,null,null,null,null,null,null,null,null,null,null,null,null,null,null,null,null,null,null,null,null,895,202,null,null,1061,1310,null,null,null,null,null,null,null,null,null,null,null,null,null,null,null,null,null,null,null,null,null,null,null,null,null,null,null,null,null,null,null,null,null,null,null,null,null,null,null,null,null,null,null,null,null,null,null,null,null,null,null,null,null,null,null,null,null,null,null,null,null,null,null,null,null,null,null,null,null,null,null,null,null,null,null,null,null,null,null,null,null,null,null,null,null,null,null,null,null,null,null,null,null,null,null,null,null,null,null,null,1300,209,null,null,null,null,null,null,null,null,null,null,null,null,null,null,null,null,null,null,2993,862,null,null,null,null,null,null,null,null,null,null,null,null,null,null,null,null,null,null,null,null,null,null,null,null,null,null,null,null,null,null,null,null,null,null,null,null,null,null,null,null,null,null,null,null,null,null,null,null,null,null,null,null,null,null,null,null,null,null,null,null,null,null,null,null,null,null,null,null,null,null,null,null,null,null,null,null,null,null,null,null,null,null,null,null,null,null,null,null,null,null,null,null,null,null,null,null,null,null,null,null,null,null,null,null,null,null,null,null,null,null,null,null,null,null,null,null,null,null,null,null,null,null,null,null,null,null,null,null,null,null,null,null,1962,38,null,null,null,null,null,null,null,null,null,null,null,null,null,null,null,null,null,null,null,null,null,null,null,null,null,null,null,null,null,null,null,null,null,null,null,null,null,null,null,null,null,null,2731,30,null,null,null,null,null,null,null,null,null,null,null,null,null,null,null,null,null,null,null,null,null,null,null,null,null,null,null,null,null,null,null,null,null,null,null,null,null,null,null,null,null,null,null,null,null,null,null,null,null,null,null,null,null,null,null,null,null,null,null,null,null,null,null,null,null,null,null,null,null,null,null,null,null,null,null,null,null,null,null,null,null,null,null,null,null,null,null,null,null,null,null,null,39,319,null,null,null,null,null,null,null,null,null,null,null,null,null,null,null,null,null,null,null,null,null,null,null,null,null,null,null,null,null,null,null,null,null,null,null,null,null,null,null,null,null,null,null,null,null,null,null,null,1280,1658]
[null,null,null,null,null,null,null,null,null,null,null,null,null,null,null,null,null,null,null,null,null,null,null,null,null,null,null,null,null,null,null,null,null,3416,1545,null,null,null,null,null,null,null,null,null,null,null,null,null,null,null,null,null,null,null,null,null,null,null,null,null,null,null,null,null,null,null,null,null,null,null,null,null,null,null,null,null,null,null,null,null,null,null,null,null,null,null,null,null,null,498,136,null,null,null,null,null,null,null,null,null,null,null,null,null,null,null,null,null,null,null,null,null,null,null,null,null,null,null,null,null,null,null,null,null,null,null,null,null,null,null,null,null,null,null,null,null,null,null,null,null,null,null,null,null,null,null,null,null,null,null,null,null,null,null,null,null,null,null,null,null,null,null,null,null,null,null,null,null,null,null,null,null,null,null,null,null,null,null,null,null,null,null,null,null,null,null,null,null,null,null,null,null,null,null,null,null,null,null,null,null,null,null,null,null,null,null,null,null,null,null,null,null,null,null,null,null,null,null,null,null,null,null,null,null,null,null,null,null,null,null,null,null,null,null,null,null,null,null,null,null,null,null,null,null,null,null,null,null,null,null,null,null,null,null,null,null,null,null,null,null,null,null,null,null,null,null,null,null,null,null,null,null,null,null,null,null,null,null,null,null,null,null,null,null,null,null,null,null,null,null,null,null,null,null,null,null,null,null,null,null,null,null,null,null,null,null,null,null,null,null,null,null,null,null,null,null,null,null,null,null,null,null,null,null,null,null,null,null,null,null,null,null,null,null,null,null,null,null,null,null,null,null,null,null,null,null,null,null,null,null,null,null,null,null,null,null,null,null,null,null,null,null,null,null,null,null,null,null,null,null,null,null,null,null,null,null,null,null,null,null,null,null,null,null,null,null,null,null,null,null,null,null,null,3412,239,null,null,null,null,null,null,null,null,null,null,null,null,null,null,null,null,null,null,null,null,null,null,null,null,null,null,null,null,null,null,null,null,null,null,null,null,null,null,null,null,null,null,null,null,null,null,null,null,null,null,null,null,null,null,null,null,null,null,null,null,null,null,null,null,null,null,null,null,null,null,null,null,null,null,null,null,null,null,null,null,null,null,null,null,null,null,null,null,null,null,null,null,455,245,null,null,null,null,null,null,null,null,null,null,null,null,null,null,null,null,null,null,null,null,null,null,null,null,null,null,null,null,null,null,null,null,null,null,null,null,null,null,null,null,null,null,null,null,null,null,null,null,3510,1557]
[null,null,null,null,null,null,null,null,null,null,null,null,null,null,null,null,null,null,null,null,null,null,null,null,null,null,null,null,null,null,null,null,null,3446,1582,null,null,null,null,null,null,null,null,null,null,null,null,null,null,null,null,null,null,null,null,null,null,null,null,null,null,null,null,null,null,null,null,null,null,null,null,null,null,null,null,null,null,null,null,null,null,null,null,null,null,null,null,null,null,596,142,null,null,null,null,null,null,null,null,null,null,null,null,null,null,null,null,null,null,null,null,null,null,null,null,null,null,null,null,null,null,null,null,null,null,null,null,null,null,null,null,null,null,null,null,null,null,null,null,null,null,null,null,null,null,null,null,null,null,null,null,null,null,null,null,null,null,null,null,null,null,null,null,null,null,null,null,null,null,null,null,null,null,null,null,null,null,null,null,null,null,null,null,null,null,null,null,null,null,null,null,null,null,null,null,null,null,null,null,null,null,null,null,null,null,null,null,null,null,null,null,null,null,null,null,null,null,null,null,null,null,null,null,null,null,null,null,null,null,null,null,null,null,null,null,null,null,null,null,null,null,null,null,null,null,null,null,null,null,null,null,null,null,null,null,null,null,null,null,null,null,null,null,null,null,null,null,null,null,null,null,null,null,null,null,null,null,null,null,null,null,null,null,null,null,null,null,null,null,null,null,null,null,null,null,null,null,null,null,null,null,null,null,null,null,null,null,null,null,null,null,null,null,null,null,null,null,null,null,null,null,null,null,null,null,null,null,null,null,null,null,null,null,null,null,null,null,null,null,null,null,null,null,null,null,null,null,null,null,null,null,null,null,null,null,null,null,null,null,null,null,null,null,null,null,null,null,null,null,null,null,null,null,null,null,null,null,null,null,null,null,null,null,null,null,null,null,null,null,null,null,null,null,3317,248,null,null,null,null,null,null,null,null,null,null,null,null,null,null,null,null,null,null,null,null,null,null,null,null,null,null,null,null,null,null,null,null,null,null,null,null,null,null,null,null,null,null,null,null,null,null,null,null,null,null,null,null,null,null,null,null,null,null,null,null,null,null,null,null,null,null,null,null,null,null,null,null,null,null,null,null,null,null,null,null,null,null,null,null,null,null,null,null,null,null,null,null,449,249,null,null,null,null,null,null,null,null,null,null,null,null,null,null,null,null,null,null,null,null,null,null,null,null,null,null,null,null,null,null,null,null,null,null,null,null,null,null,null,null,null,null,null,null,null,null,null,null,3441,1614]
[null,null,null,null,null,null,null,null,null,null,null,null,null,null,null,null,null,null,null,null,null,null,null,null,null,null,null,null,null,null,null,null,null,null,null,null,null,null,null,null,null,null,null,null,null,null,null,null,null,null,null,null,null,null,null,null,null,null,null,null,null,null,null,null,null,null,null,null,null,null,null,null,null,null,null,null,null,null,null,null,null,null,null,null,null,null,null,null,null,1011,296,null,null,null,null,null,null,null,null,null,null,null,null,null,null,null,null,null,null,null,null,null,null,null,null,null,null,null,null,null,null,null,null,null,null,null,null,null,null,null,null,null,null,null,null,null,null,null,null,null,null,null,null,null,null,null,null,null,null,null,null,null,null,null,null,null,null,null,null,null,null,null,null,null,null,null,null,null,null,null,null,null,null,null,null,null,null,null,null,null,null,null,null,null,null,null,null,null,null,null,null,null,null,null,null,null,null,null,null,null,null,null,null,null,null,null,null,null,null,null,null,null,null,null,null,null,null,null,null,null,null,null,null,null,null,null,null,null,null,null,null,null,null,null,null,null,null,null,null,null,null,null,null,null,null,null,null,null,null,null,null,null,null,null,null,null,null,null,null,null,null,null,null,null,null,null,null,null,null,null,null,null,null,null,null,null,null,null,null,null,null,null,null,null,null,null,null,null,null,null,null,null,null,null,null,null,null,null,null,null,null,null,null,null,null,null,null,null,null,null,null,null,null,null,null,null,null,null,null,null,null,null,null,null,null,null,null,null,null,null,null,null,null,null,null,null,null,null,null,null,null,null,null,null,null,null,null,null,null,null,null,null,null,null,null,null,null,null,null,null,null,null,null,null,null,null,null,null,null,null,null,null,null,null,null,null,null,null,null,null,null,null,null,null,null,null,null,null,null,null,null,null,null,2269,418,null,null,null,null,null,null,null,null,null,null,null,null,null,null,null,null,null,null,null,null,null,null,null,null,null,null,null,null,null,null,null,null,null,null,null,null,null,null,null,null,null,null,null,null,null,null,null,null,null,null,null,null,null,null,null,null,null,null,null,null,null,null,null,null,null,null,null,null,null,null,null,null,null,null,null,null,null,null,null,null,null,null,null,null,null,null,null,null,null,null,null,null,null,null,null,null,null,null,null,null,null,null,null,null,null,null,null,null,null,null,null,null,null,null,null,null,null,null,null,null,null,null,null,null,null,null,null,null,null,null,null,null,null,null,null,null,null,null,null,null,null,null,1102,1389]
[null,null,null,null,null,null,null,null,null,null,null,null,null,null,null,null,null,null,null,null,null,null,null,null,null,null,null,null,null,null,null,null,null,null,null,null,null,null,null,null,null,null,null,null,null,null,null,null,null,null,null,null,null,null,null,null,null,null,null,null,null,null,null,null,null,null,null,null,null,null,null,null,null,null,null,null,null,null,null,null,null,null,null,null,null,null,null,null,null,945,103,null,null,null,null,null,null,null,null,null,null,null,null,null,null,null,null,null,null,null,null,null,null,null,null,null,null,null,null,null,null,null,null,null,null,null,null,null,null,null,null,null,null,null,null,null,null,null,null,null,null,null,null,null,null,null,null,null,null,null,null,null,null,null,null,null,null,null,null,null,null,null,null,null,null,null,null,null,null,null,null,null,null,null,null,null,null,null,null,null,null,null,null,null,null,null,null,null,null,null,null,null,null,null,null,null,null,null,null,null,null,null,null,null,null,null,null,null,null,null,null,null,null,null,null,null,null,null,null,null,null,null,null,null,null,null,null,null,null,null,null,null,null,null,null,null,null,null,null,null,null,null,null,null,null,null,null,null,null,null,null,null,null,null,null,null,null,null,null,null,null,null,null,null,null,null,null,null,null,null,null,null,null,null,null,null,null,null,null,null,null,null,null,null,null,null,null,null,null,null,null,null,null,null,null,null,null,null,null,null,null,null,null,null,null,null,null,null,null,null,null,null,null,null,null,null,null,null,null,null,null,null,null,null,null,null,null,null,null,null,null,null,null,null,null,null,null,null,null,null,null,null,null,null,null,null,null,null,null,null,null,null,null,null,null,null,null,null,null,null,null,null,null,null,null,null,null,null,null,null,null,null,null,null,null,null,null,null,null,null,null,null,null,null,null,null,null,null,null,null,null,null,null,2624,127,null,null,null,null,null,null,null,null,null,null,null,null,null,null,null,null,null,null,null,null,null,null,null,null,null,null,null,null,null,null,null,null,null,null,null,null,null,null,null,null,null,null,null,null,null,null,null,null,null,null,null,null,null,null,null,null,null,null,null,null,null,null,null,null,null,null,null,null,null,null,null,null,null,null,null,null,null,null,null,null,null,null,null,null,null,null,null,null,null,null,null,null,null,null,null,null,null,null,null,null,null,null,null,null,null,null,null,null,null,null,null,null,null,null,null,null,null,null,null,null,null,null,null,null,null,null,null,null,null,null,null,null,null,null,null,null,null,null,null,null,null,null,1063,1294]
[null,null,null,null,null,null,null,null,null,null,null,null,null,null,null,null,null,null,null,null,null,null,null,null,null,null,null,null,null,null,null,null,null,null,null,null,null,null,null,null,null,null,null,null,null,null,null,null,null,null,null,null,null,null,null,null,null,null,null,null,null,null,null,null,null,null,null,null,null,null,null,null,null,null,null,null,null,null,null,null,null,null,null,null,null,null,null,null,null,1132,153,null,null,null,null,null,null,null,null,null,null,null,null,null,null,null,null,null,null,null,null,null,null,null,null,null,null,null,null,null,null,null,null,null,null,null,null,null,null,null,null,null,null,null,null,null,null,null,null,null,null,null,null,null,null,null,null,null,null,null,null,null,null,null,null,null,null,null,null,null,null,null,null,null,null,null,null,null,null,null,null,null,null,null,null,null,null,null,null,null,null,null,null,null,null,null,null,null,null,null,null,null,null,null,null,null,null,null,null,null,null,null,null,null,null,null,null,null,null,null,null,null,null,null,null,null,null,null,null,null,null,null,null,null,null,null,null,null,null,null,null,null,null,null,null,null,null,null,null,null,null,null,null,null,null,null,null,null,null,null,null,null,null,null,null,null,null,null,null,null,null,null,null,null,null,null,null,null,null,null,null,null,null,null,null,null,null,null,null,null,null,null,null,null,null,null,null,null,null,null,null,null,null,null,null,null,null,null,null,null,null,null,null,null,null,null,null,null,null,null,null,null,null,null,null,null,null,null,null,null,null,null,null,null,null,null,null,null,null,null,null,null,null,null,null,null,null,null,null,null,null,null,null,null,null,null,null,null,null,null,null,null,null,null,null,null,null,null,null,null,null,null,null,null,null,null,null,null,null,null,null,null,null,null,null,null,null,null,null,null,null,null,null,null,null,null,null,null,null,null,null,null,null,null,null,null,null,null,null,null,null,null,null,null,null,null,null,null,null,null,null,null,null,null,null,null,null,null,null,null,null,null,null,null,null,null,null,null,null,null,null,null,null,null,null,null,null,null,null,null,null,null,null,null,null,null,null,null,null,null,null,null,null,null,null,null,null,null,null,null,null,null,null,null,null,null,null,null,null,null,null,null,null,null,null,null,null,null,null,null,null,null,null,null,null,null,null,null,null,null,null,null,null,null,null,null,null,null,null,null,null,null,null,null,null,null,null,null,null,null,null,null,null,null,null,null,null,null,null,null,null,null,null,null,null,null,null,null,null,null,null,null,null,null,null,null,null,3493,1304]
[null,null,null,null,null,null,null,null,null,null,null,null,null,null,null,null,null,null,null,null,null,null,null,null,null,null,null,null,null,null,null,null,null,null,null,null,null,null,null,null,null,null,null,null,null,null,null,null,null,null,null,null,null,null,null,null,null,null,null,null,null,null,null,null,null,null,null,null,null,null,null,null,null,null,null,null,null,null,null,null,null,null,null,null,null,null,null,null,null,799,109,null,null,null,null,null,null,null,null,null,null,null,null,null,null,null,null,null,null,null,null,null,null,null,null,null,null,null,null,null,null,null,null,null,null,null,null,null,null,null,null,null,null,null,null,null,null,null,null,null,null,null,null,null,null,null,null,null,null,null,null,null,null,null,null,null,null,null,null,null,null,null,null,null,null,null,null,null,null,null,null,null,null,null,null,null,null,null,null,null,null,null,null,null,null,null,null,null,null,null,null,null,null,null,null,null,null,null,null,null,null,null,null,null,null,null,null,null,null,null,null,null,null,null,null,null,null,null,null,null,null,null,null,null,null,null,null,null,null,null,null,null,null,null,null,null,null,null,null,null,null,null,null,null,null,null,null,null,null,null,null,null,null,null,null,null,null,null,null,null,null,null,null,null,null,null,null,null,null,null,null,null,null,null,null,null,null,null,null,null,null,null,null,null,null,null,null,null,null,null,null,null,null,null,null,null,null,null,null,null,null,null,null,null,null,null,null,null,null,null,null,null,null,null,null,null,null,null,null,null,null,null,null,null,null,null,null,null,null,null,null,null,null,null,null,null,null,null,null,null,null,null,null,null,null,null,null,null,null,null,null,null,null,null,null,null,null,null,null,null,null,null,null,null,null,null,null,null,null,null,null,null,null,null,null,null,null,null,null,null,null,null,null,null,null,null,null,null,null,null,null,null,null,null,null,null,null,null,null,null,null,null,null,null,null,null,null,null,null,null,null,null,null,null,null,null,null,null,null,null,null,null,null,null,null,null,null,null,null,null,null,null,null,null,null,null,null,null,null,null,null,null,null,null,null,null,null,null,null,null,null,null,null,null,null,null,null,null,null,null,null,null,null,null,null,null,null,null,null,null,null,null,null,null,null,null,null,null,null,null,null,null,null,null,null,null,null,null,null,null,null,null,null,null,null,null,null,null,null,null,null,null,null,null,null,null,null,null,null,null,null,null,null,null,null,null,null,null,null,null,null,null,null,null,null,null,null,null,null,null,null,null,null,null,null,null,null,3479,992]
[null,null,null,null,null,null,null,null,null,null,null,null,null,null,null,null,null,null,null,null,null,null,null,null,null,null,null,null,null,null,null,null,null,null,null,null,null,null,null,null,null,null,null,null,null,null,null,null,null,null,null,null,null,null,null,null,null,null,null,null,null,null,null,null,null,null,null,null,null,null,null,null,null,null,null,null,null,null,null,null,null,null,null,null,null,null,null,null,null,788,74,null,null,null,null,null,null,null,null,null,null,null,null,null,null,null,null,null,null,null,null,null,null,null,null,null,null,null,null,null,null,null,null,null,null,null,null,null,null,null,null,null,null,null,null,null,null,null,null,null,null,null,null,null,null,null,null,null,null,null,null,null,null,null,null,null,null,null,null,null,null,null,null,null,null,null,null,null,null,null,null,null,null,null,null,null,null,null,null,null,null,null,null,null,null,null,null,null,null,null,null,null,null,null,null,null,null,null,null,null,null,null,null,null,null,null,null,null,null,null,null,null,null,null,null,null,null,null,null,null,null,null,null,null,null,null,null,null,null,null,null,null,null,null,null,null,null,null,null,null,null,null,null,null,null,null,null,null,null,null,null,null,null,null,null,null,null,null,null,null,null,null,null,null,null,null,null,null,null,null,null,null,null,null,null,null,null,null,null,null,null,null,null,null,null,null,null,null,null,null,null,null,null,null,null,null,null,null,null,null,null,null,null,null,null,null,null,null,null,null,null,null,null,null,null,null,null,null,null,null,null,null,null,null,null,null,null,null,null,null,null,null,null,null,null,null,null,null,null,null,null,null,null,null,null,null,null,null,null,null,null,null,null,null,null,null,null,null,null,null,null,null,null,null,null,null,null,null,null,null,null,null,null,null,null,null,null,null,null,null,null,null,null,null,null,null,null,null,null,null,null,null,null,null,null,null,null,null,null,null,null,null,null,null,null,null,null,null,null,null,null,null,null,null,null,null,null,null,null,null,null,null,null,null,null,null,null,null,null,null,null,null,null,null,null,null,null,null,null,null,null,null,null,null,null,null,null,null,null,null,null,null,null,null,null,null,null,null,null,null,null,null,null,null,null,null,null,null,null,null,null,null,null,null,null,null,null,null,null,null,null,null,null,null,null,null,null,null,null,null,null,null,null,null,null,null,null,null,null,null,null,null,null,null,null,null,null,null,null,null,null,null,null,null,null,null,null,null,null,null,null,null,null,null,null,null,null,null,null,null,null,null,null,null,null,null,null,3335,949]
[null,null,null,null,null,null,null,null,null,null,null,null,null,null,null,null,null,null,null,null,null,null,null,null,null,null,null,null,null,null,null,null,null,null,null,null,null,null,null,null,null,null,null,null,null,null,null,null,null,null,null,null,null,null,null,null,null,null,null,null,null,null,null,null,null,null,null,null,null,null,null,null,null,null,null,null,null,null,null,null,null,null,null,null,null,null,null,null,null,919,52,null,null,null,null,null,null,null,null,null,null,null,null,null,null,null,null,null,null,null,null,null,null,null,null,null,null,null,null,null,null,null,null,null,null,null,null,null,null,null,null,null,null,null,null,null,null,null,null,null,null,null,null,null,null,null,null,null,null,null,null,null,null,null,null,null,null,null,null,null,null,null,null,null,null,null,null,null,null,null,null,null,null,null,null,null,null,null,null,null,null,null,null,null,null,null,null,null,null,null,null,null,null,null,null,null,null,null,null,null,null,null,null,null,null,null,null,null,null,null,null,null,null,null,null,null,null,null,null,null,null,null,null,null,null,null,null,null,null,null,null,null,null,null,null,null,null,null,null,null,null,null,null,null,null,null,null,null,null,null,null,null,null,null,null,null,null,null,null,null,null,null,null,null,null,null,null,null,null,null,null,null,null,null,null,null,null,null,null,null,null,null,null,null,null,null,null,null,null,null,null,null,null,null,null,null,null,null,null,null,null,null,null,null,null,null,null,null,null,null,null,null,null,null,null,null,null,null,null,null,null,null,null,null,null,null,null,null,null,null,null,null,null,null,null,null,null,null,null,null,null,null,null,null,null,null,null,null,null,null,null,null,null,null,null,null,null,null,null,null,null,null,null,null,null,null,null,null,null,null,null,null,null,null,null,null,null,null,null,null,null,null,null,null,null,null,null,null,null,null,null,null,null,null,null,null,null,null,null,null,null,null,null,null,null,null,null,null,null,null,null,null,null,null,null,null,null,null,null,null,null,null,null,null,null,null,null,null,null,null,null,null,null,null,null,null,null,null,null,null,null,null,null,null,null,null,null,null,null,null,null,null,null,null,null,null,null,null,null,null,null,null,null,null,null,null,null,null,null,null,null,null,null,null,null,null,null,null,null,null,null,null,null,null,null,null,null,null,null,null,null,null,null,null,null,null,null,null,null,null,null,null,null,null,null,null,null,null,null,null,null,null,null,null,null,null,null,null,null,null,null,null,null,null,null,null,null,null,null,null,null,null,null,null,null,null,null,3050,990]
[null,null,null,null,null,null,null,null,null,null,null,null,null,null,null,null,null,null,null,null,null,null,null,null,null,null,null,null,null,null,null,null,null,null,null,null,null,null,null,null,null,null,null,null,null,null,null,null,null,null,null,null,null,null,null,null,null,null,null,null,null,null,null,null,null,null,null,null,null,null,null,null,null,null,null,null,null,null,null,null,null,null,null,null,null,null,null,null,null,null,null,null,null,null,null,null,null,null,null,null,null,null,null,null,null,null,null,null,null,null,null,null,null,null,null,null,null,null,null,null,null,null,null,null,null,null,null,null,null,null,null,null,null,null,null,null,null,null,null,null,null,null,null,null,null,null,null,null,null,null,null,null,null,null,null,null,null,null,null,null,null,null,null,null,null,null,null,null,null,null,null,null,null,null,null,null,null,null,null,null,null,null,null,null,null,null,null,null,null,null,null,null,null,null,null,null,null,null,null,null,null,null,null,null,null,null,null,null,null,null,null,null,null,null,null,null,null,null,null,null,null,null,null,null,null,null,null,null,null,null,null,null,null,null,null,null,null,null,null,null,null,null,null,null,null,null,null,null,null,null,null,null,null,null,null,null,null,null,null,null,null,null,null,null,null,null,null,null,null,null,null,null,null,null,null,null,null,null,null,null,null,null,null,null,null,null,null,null,null,null,null,null,null,null,null,null,null,null,null,null,null,null,null,null,null,null,null,null,null,null,null,null,null,null,null,null,null,null,null,null,null,null,null,null,null,null,null,null,null,null,null,null,null,null,null,null,null,null,null,null,null,null,null,null,null,null,null,null,null,null,null,null,null,null,null,null,null,null,null,null,null,null,null,null,null,null,null,null,null,null,null,null,null,null,null,null,null,null,null,null,null,null,null,null,null,null,null,null,null,null,null,null,null,null,null,null,null,null,null,null,null,null,null,null,null,null,null,null,null,null,null,null,null,null,null,null,null,null,null,null,null,null,null,null,null,null,null,null,null,null,null,null,null,null,null,null,null,null,null,null,null,null,null,null,null,null,null,null,null,null,null,null,null,null,null,null,null,null,null,null,null,null,null,null,null,null,null,null,null,null,null,null,null,null,null,null,null,null,null,null,null,null,null,null,null,null,null,null,null,null,null,null,null,null,null,null,null,null,null,null,null,null,null,null,null,null,null,null,null,null,null,null,null,null,null,null,null,null,null,null,null,null,null,null,null,null,null,null,null,null,null,null,null,null,null,null,null,2930,909]
[null,null,null,null,null,null,null,null,null,null,null,null,null,null,null,null,null,null,null,null,null,null,null,null,null,null,null,null,null,null,null,null,null,null,null,null,null,null,null,null,null,null,null,null,null,null,null,null,null,null,null,null,null,null,null,null,null,null,null,null,null,null,null,null,null,null,null,null,null,null,null,null,null,null,null,null,null,null,null,null,null,null,null,null,null,null,null,null,null,null,null,null,null,null,null,null,null,null,null,null,null,null,null,null,null,null,null,null,null,null,null,null,null,null,null,null,null,null,null,null,null,null,null,null,null,null,null,null,null,null,null,null,null,null,null,null,null,null,null,null,null,null,null,null,null,null,null,null,null,null,null,null,null,null,null,null,null,null,null,null,null,null,null,null,null,null,null,null,null,null,null,null,null,null,null,null,null,null,null,null,null,null,null,null,null,null,null,null,null,null,null,null,null,null,null,null,null,null,null,null,null,null,null,null,null,null,null,null,null,null,null,null,null,null,null,null,null,null,null,null,null,null,null,null,null,null,null,null,null,null,null,null,null,null,null,null,null,null,null,null,null,null,null,null,null,null,null,null,null,null,null,null,null,null,null,null,null,null,null,null,null,null,null,null,null,null,null,null,null,null,null,null,null,null,null,null,null,null,null,null,null,null,null,null,null,null,null,null,null,null,null,null,null,null,null,null,null,null,null,null,null,null,null,null,null,null,null,null,null,null,null,null,null,null,null,null,null,null,null,null,null,null,null,null,null,null,null,null,null,null,null,null,null,null,null,null,null,null,null,null,null,null,null,null,null,null,null,null,null,null,null,null,null,null,null,null,null,null,null,null,null,null,null,null,null,null,null,null,null,null,null,null,null,null,null,null,null,null,null,null,null,null,null,null,null,null,null,null,null,null,null,null,null,null,null,null,null,null,null,null,null,null,null,null,null,null,null,null,null,null,null,null,null,null,null,null,null,null,null,null,null,null,null,null,null,null,null,null,null,null,null,null,null,null,null,null,null,null,null,null,null,null,null,null,null,null,null,null,null,null,null,null,null,null,null,null,null,null,null,null,null,null,null,null,null,null,null,null,null,null,null,null,null,null,null,null,null,null,null,null,null,null,null,null,null,null,null,null,null,null,null,null,null,null,null,null,null,null,null,null,null,null,null,null,null,null,null,null,null,null,null,null,null,null,null,null,null,null,null,null,null,null,null,null,null,null,null,null,null,null,null,null,null,null,null,null,null,3553,852]
[null,null,null,null,null,null,null,null,null,null,null,null,null,null,null,null,null,null,null,null,null,null,null,null,null,null,null,null,null,null,null,null,null,null,null,null,null,null,null,null,null,null,null,null,null,null,null,null,null,null,null,null,null,null,null,null,null,null,null,null,null,null,null,null,null,null,null,null,null,null,null,null,null,null,null,null,null,null,null,null,null,null,null,null,null,null,null,null,null,null,null,null,null,null,null,null,null,null,null,null,null,null,null,null,null,null,null,null,null,null,null,null,null,null,null,null,null,null,null,null,null,null,null,null,null,null,null,null,null,null,null,null,null,null,null,null,null,null,null,null,null,null,null,null,null,null,null,null,null,null,null,null,null,null,null,null,null,null,null,null,null,null,null,null,null,null,null,null,null,null,null,null,null,null,null,null,null,null,null,null,null,null,null,null,null,null,null,null,null,null,null,null,null,null,null,null,null,null,null,null,null,null,null,null,null,null,null,null,null,null,null,null,null,null,null,null,null,null,null,null,null,null,null,null,null,null,null,null,null,null,null,null,null,null,null,null,null,null,null,null,null,null,null,null,null,null,null,null,null,null,null,null,null,null,null,null,null,null,null,null,null,null,null,null,null,null,null,null,null,null,null,null,null,null,null,null,null,null,null,null,null,null,null,null,null,null,null,null,null,null,null,null,null,null,null,null,null,null,null,null,null,null,null,null,null,null,null,null,null,null,null,null,null,null,null,null,null,null,null,null,null,null,null,null,null,null,null,null,null,null,null,null,null,null,null,null,null,null,null,null,null,null,null,null,null,null,null,null,null,null,null,null,null,null,null,null,null,null,null,null,null,null,null,null,null,null,null,null,null,null,null,null,null,null,null,null,null,null,null,null,null,null,null,null,null,null,null,null,null,null,null,null,null,null,null,null,null,null,null,null,null,null,null,null,null,null,null,null,null,null,null,null,null,null,null,null,null,null,null,null,null,null,null,null,null,null,null,null,null,null,null,null,null,null,null,null,null,null,null,null,null,null,null,null,null,null,null,null,null,null,null,null,null,null,null,null,null,null,null,null,null,null,null,null,null,null,null,null,null,null,null,null,null,null,null,null,null,null,null,null,null,null,null,null,null,null,null,null,null,null,null,null,null,null,null,null,null,null,null,null,null,null,null,null,null,null,null,null,null,null,null,null,null,null,null,null,null,null,null,null,null,null,null,null,null,null,null,null,null,null,null,null,null,null,null,null,null,3141,874]
[null,null,null,null,null,null,null,null,null,null,null,null,null,null,null,null,null,null,null,null,null,null,null,null,null,null,null,null,null,null,null,null,null,null,null,null,null,null,null,null,null,null,null,null,null,null,null,null,null,null,null,null,null,null,null,null,null,null,null,null,null,null,null,null,null,null,null,null,null,null,null,null,null,null,null,null,null,null,null,null,null,null,null,null,null,null,null,null,null,null,null,null,null,null,null,null,null,null,null,null,null,null,null,null,null,null,null,null,null,null,null,null,null,null,null,null,null,null,null,null,null,null,null,null,null,null,null,null,null,null,null,null,null,null,null,null,null,null,null,null,null,null,null,null,null,null,null,null,null,null,null,null,null,null,null,null,null,null,null,null,null,null,null,null,null,null,null,null,null,null,null,null,null,null,null,null,null,null,null,null,null,null,null,null,null,null,null,null,null,null,null,null,null,null,null,null,null,null,null,null,null,null,null,null,null,null,null,null,null,null,null,null,null,null,null,null,null,null,null,null,null,null,null,null,null,null,null,null,null,null,null,null,null,null,null,null,null,null,null,null,null,null,null,null,null,null,null,null,null,null,null,null,null,null,null,null,null,null,null,null,null,null,null,null,null,null,null,null,null,null,null,null,null,null,null,null,null,null,null,null,null,null,null,null,null,null,null,null,null,null,null,null,null,null,null,null,null,null,null,null,null,null,null,null,null,null,null,null,null,null,null,null,null,null,null,null,null,null,null,null,null,null,null,null,null,null,null,null,null,null,null,null,null,null,null,null,null,null,null,null,null,null,null,null,null,null,null,null,null,null,null,null,null,null,null,null,null,null,null,null,null,null,null,null,null,null,null,null,null,null,null,null,null,null,null,null,null,null,null,null,null,null,null,null,null,null,null,null,null,null,null,null,null,null,null,null,null,null,null,null,null,null,null,null,null,null,null,null,null,null,null,null,null,null,null,null,null,null,null,null,null,null,null,null,null,null,null,null,null,null,null,null,null,null,null,null,null,null,null,null,null,null,null,null,null,null,null,null,null,null,null,null,null,null,null,null,null,null,null,null,null,null,null,null,null,null,null,null,null,null,null,null,null,null,null,null,null,null,null,null,null,null,null,null,null,null,null,null,null,null,null,null,null,null,null,null,null,null,null,null,null,null,null,null,null,null,null,null,null,null,null,null,null,null,null,null,null,null,null,null,null,null,null,null,null,null,null,null,null,null,null,null,null,null,null,null,null,3069,799]
[null,null,null,null,null,null,null,null,null,null,null,null,null,null,null,null,null,null,null,null,null,null,null,null,null,null,null,null,null,null,null,null,null,null,null,null,null,null,null,null,null,null,null,null,null,null,null,null,null,null,null,null,null,null,null,null,null,null,null,null,null,null,null,null,null,null,null,null,null,null,null,null,null,null,null,null,null,null,null,null,null,null,null,null,null,null,null,null,null,null,null,null,null,null,null,null,null,null,null,null,null,null,null,null,null,null,null,null,null,null,null,null,null,null,null,null,null,null,null,null,null,null,null,null,null,null,null,null,null,null,null,null,null,null,null,null,null,null,null,null,null,null,null,null,null,null,null,null,null,null,null,null,null,null,null,null,null,null,null,null,null,null,null,null,null,null,null,null,null,null,null,null,null,null,null,null,null,null,null,null,null,null,null,null,null,null,null,null,null,null,null,null,null,null,null,null,null,null,null,null,null,null,null,null,null,null,null,null,null,null,null,null,null,null,null,null,null,null,null,null,null,null,null,null,null,null,null,null,null,null,null,null,null,null,null,null,null,null,null,null,null,null,null,null,null,null,null,null,null,null,null,null,null,null,null,null,null,null,null,null,null,null,null,null,null,null,null,null,null,null,null,null,null,null,null,null,null,null,null,null,null,null,null,null,null,null,null,null,null,null,null,null,null,null,null,null,null,null,null,null,null,null,null,null,null,null,null,null,null,null,null,null,null,null,null,null,null,null,null,null,null,null,null,null,null,null,null,null,null,null,null,null,null,null,null,null,null,null,null,null,null,null,null,null,null,null,null,null,null,null,null,null,null,null,null,null,null,null,null,null,null,null,null,null,null,null,null,null,null,null,null,null,null,null,null,null,null,null,null,null,null,null,null,null,null,null,null,null,null,null,null,null,null,null,null,null,null,null,null,null,null,null,null,null,null,null,null,null,null,null,null,null,null,null,null,null,null,null,null,null,null,null,null,null,null,null,null,null,null,null,null,null,null,null,null,null,null,null,null,null,null,null,null,null,null,null,null,null,null,null,null,null,null,null,null,null,null,null,null,null,null,null,null,null,null,null,null,null,null,null,null,null,null,null,null,null,null,null,null,null,null,null,null,null,null,null,null,null,null,null,null,null,null,null,null,null,null,null,null,null,null,null,null,null,null,null,null,null,null,null,null,null,null,null,null,null,null,null,null,null,null,null,null,null,null,null,null,null,null,null,null,null,null,null,null,null,null,2892,827]
[null,null,null,null,null,null,null,null,null,null,null,null,null,null,null,null,null,null,null,null,null,null,null,null,null,null,null,null,null,null,null,null,null,null,null,null,null,null,null,null,null,null,null,null,null,null,null,null,null,null,null,null,null,null,null,null,null,null,null,null,null,null,null,null,null,null,null,null,null,null,null,null,null,null,null,null,null,null,null,null,null,null,null,null,null,null,null,null,null,null,null,null,null,null,null,null,null,null,null,null,null,null,null,null,null,null,null,null,null,null,null,null,null,null,null,null,null,null,null,null,null,null,null,null,null,null,null,null,null,null,null,null,null,null,null,null,null,null,null,null,null,null,null,null,null,null,null,null,null,null,null,null,null,null,null,null,null,null,null,null,null,null,null,null,null,null,null,null,null,null,null,null,null,null,null,null,null,null,null,null,null,null,null,null,null,null,null,null,null,null,null,null,null,null,null,null,null,null,null,null,null,null,null,null,null,null,null,null,null,null,null,null,null,null,null,null,null,null,null,null,null,null,null,null,null,null,null,null,null,null,null,null,null,null,null,null,null,null,null,null,null,null,null,null,null,null,null,null,null,null,null,null,null,null,null,null,null,null,null,null,null,null,null,null,null,null,null,null,null,null,null,null,null,null,null,null,null,null,null,null,null,null,null,null,null,null,null,null,null,null,null,null,null,null,null,null,null,null,null,null,null,null,null,null,null,null,null,null,null,null,null,null,null,null,null,null,null,null,null,null,null,null,null,null,null,null,null,null,null,null,null,null,null,null,null,null,null,null,null,null,null,null,null,null,null,null,null,null,null,null,null,null,null,null,null,null,null,null,null,null,null,null,null,null,null,null,null,null,null,null,null,null,null,null,null,null,null,null,null,null,null,null,null,null,null,null,null,null,null,null,null,null,null,null,null,null,null,null,null,null,null,null,null,null,null,null,null,null,null,null,null,null,null,null,null,null,null,null,null,null,null,null,null,null,null,null,null,null,null,null,null,null,null,null,null,null,null,null,null,null,null,null,null,null,null,null,null,null,null,null,null,null,null,null,null,null,null,null,null,null,null,null,null,null,null,null,null,null,null,null,null,null,null,null,null,null,null,null,null,null,null,null,null,null,null,null,null,null,null,null,null,null,null,null,null,null,null,null,null,null,null,null,null,null,null,null,null,null,null,null,null,null,null,null,null,null,null,null,null,null,null,null,null,null,null,null,null,null,null,null,null,null,null,null,null,null,null,1573,675]
[null,null,null,null,null,null,null,null,null,null,null,null,null,null,null,null,null,null,null,null,null,null,null,null,null,null,null,null,null,null,null,null,null,null,null,null,null,null,null,null,null,null,null,null,null,null,null,null,null,null,null,null,null,null,null,null,null,null,null,null,null,null,null,null,null,null,null,null,null,null,null,null,null,null,null,null,null,null,null,null,null,null,null,null,null,null,null,null,null,null,null,null,null,null,null,null,null,null,null,null,null,null,null,null,null,null,null,null,null,null,null,null,null,null,null,null,null,null,null,null,null,null,null,null,null,null,null,null,null,null,null,null,null,null,null,null,null,null,null,null,null,null,null,null,null,null,null,null,null,null,null,null,null,null,null,null,null,null,null,null,null,null,null,null,null,null,null,null,null,null,null,null,null,null,null,null,null,null,null,null,null,null,null,null,null,null,null,null,null,null,null,null,null,null,null,null,null,null,null,null,null,null,null,null,null,null,null,null,null,null,null,null,null,null,null,null,null,null,null,null,null,null,null,null,null,null,null,null,null,null,null,null,null,null,null,null,null,null,null,null,null,null,null,null,null,null,null,null,null,null,null,null,null,null,null,null,null,null,null,null,null,null,null,null,null,null,null,null,null,null,null,null,null,null,null,null,null,null,null,null,null,null,null,null,null,null,null,null,null,null,null,null,null,null,null,null,null,null,null,null,null,null,null,null,null,null,null,null,null,null,null,null,null,null,null,null,null,null,null,null,null,null,null,null,null,null,null,null,null,null,null,null,null,null,null,null,null,null,null,null,null,null,null,null,null,null,null,null,null,null,null,null,null,null,null,null,null,null,null,null,null,null,null,null,null,null,null,null,null,null,null,null,null,null,null,null,null,null,null,null,null,null,null,null,null,null,null,null,null,null,null,null,null,null,null,null,null,null,null,null,null,null,null,null,null,null,null,null,null,null,null,null,null,null,null,null,null,null,null,null,null,null,null,null,null,null,null,null,null,null,null,null,null,null,null,null,null,null,null,null,null,null,null,null,null,null,null,null,null,null,null,null,null,null,null,null,null,null,null,null,null,null,null,null,null,null,null,null,null,null,null,null,null,null,null,null,null,null,null,null,null,null,null,null,null,null,null,null,null,null,null,null,null,null,null,null,null,null,null,null,null,null,null,null,null,null,null,null,null,null,null,null,null,null,null,null,null,null,null,null,null,null,null,null,null,null,null,null,null,null,null,null,null,null,null,null,null,3019,694]
[null,null,null,null,null,null,null,null,null,null,null,null,null,null,null,null,null,null,null,null,null,null,null,null,null,null,null,null,null,null,null,null,null,null,null,null,null,null,null,null,null,null,null,null,null,null,null,null,null,null,null,null,null,null,null,null,null,null,null,null,null,null,null,null,null,null,null,null,null,null,null,null,null,null,null,null,null,null,null,null,null,null,null,null,null,null,null,null,null,null,null,null,null,null,null,null,null,null,null,null,null,null,null,null,null,null,null,null,null,null,null,null,null,null,null,null,null,null,null,null,null,null,null,null,null,null,null,null,null,null,null,null,null,null,null,null,null,null,null,null,null,null,null,null,null,null,null,null,null,null,null,null,null,null,null,null,null,null,null,null,null,null,null,null,null,null,null,null,null,null,null,null,null,null,null,null,null,null,null,null,null,null,null,null,null,null,null,null,null,null,null,null,null,null,null,null,null,null,null,null,null,null,null,null,null,null,null,null,null,null,null,null,null,null,null,null,null,null,null,null,null,null,null,null,null,null,null,null,null,null,null,null,null,null,null,null,null,null,null,null,null,null,null,null,null,null,null,null,null,null,null,null,null,null,null,null,null,null,null,null,null,null,null,null,null,null,null,null,null,null,null,null,null,null,null,null,null,null,null,null,null,null,null,null,null,null,null,null,null,null,null,null,null,null,null,null,null,null,null,null,null,null,null,null,null,null,null,null,null,null,null,null,null,null,null,null,null,null,null,null,null,null,null,null,null,null,null,null,null,null,null,null,null,null,null,null,null,null,null,null,null,null,null,null,null,null,null,null,null,null,null,null,null,null,null,null,null,null,null,null,null,null,null,null,null,null,null,null,null,null,null,null,null,null,null,null,null,null,null,null,null,null,null,null,null,null,null,null,null,null,null,null,null,null,null,null,null,null,null,null,null,null,null,null,null,null,null,null,null,null,null,null,null,null,null,null,null,null,null,null,null,null,null,null,null,null,null,null,null,null,null,null,null,null,null,null,null,null,null,null,null,null,null,null,null,null,null,null,null,null,null,null,null,null,null,null,null,null,null,null,null,null,null,null,null,null,null,null,null,null,null,null,null,null,null,null,null,null,null,null,null,null,null,null,null,null,null,null,null,null,null,null,null,null,null,null,null,null,null,null,null,null,null,null,null,null,null,null,null,null,null,null,null,null,null,null,null,null,null,null,null,null,null,null,null,null,null,null,null,null,null,null,null,null,null,null,null,1041,587]
[null,null,null,null,null,null,null,null,null,null,null,null,null,null,null,null,null,null,null,null,null,null,null,null,null,null,null,null,null,null,null,null,null,null,null,null,null,null,null,null,null,null,null,null,null,null,null,null,null,null,null,null,null,null,null,null,null,null,null,null,null,null,null,null,null,null,null,null,null,null,null,null,null,null,null,null,null,null,null,null,null,null,null,null,null,null,null,null,null,null,null,null,null,null,null,null,null,null,null,null,null,null,null,null,null,null,null,null,null,null,null,null,null,null,null,null,null,null,null,null,null,null,null,null,null,null,null,null,null,null,null,null,null,null,null,null,null,null,null,null,null,null,null,null,null,null,null,null,null,null,null,null,null,null,null,null,null,null,null,null,null,null,null,null,null,null,null,null,null,null,null,null,null,null,null,null,null,null,null,null,null,null,null,null,null,null,null,null,null,null,null,null,null,null,null,null,null,null,null,null,null,null,null,null,null,null,null,null,null,null,null,null,null,null,null,null,null,null,null,null,null,null,null,null,null,null,null,null,null,null,null,null,null,null,null,null,null,null,null,null,null,null,null,null,null,null,null,null,null,null,null,null,null,null,null,null,null,null,null,null,null,null,null,null,null,null,null,null,null,null,null,null,null,null,null,null,null,null,null,null,null,null,null,null,null,null,null,null,null,null,null,null,null,null,null,null,null,null,null,null,null,null,null,null,null,null,null,null,null,null,null,null,null,null,null,null,null,null,null,null,null,null,null,null,null,null,null,null,null,null,null,null,null,null,null,null,null,null,null,null,null,null,null,null,null,null,null,null,null,null,null,null,null,null,null,null,null,null,null,null,null,null,null,null,null,null,null,null,null,null,null,null,null,null,null,null,null,null,null,null,null,null,null,null,null,null,null,null,null,null,null,null,null,null,null,null,null,null,null,null,null,null,null,null,null,null,null,null,null,null,null,null,null,null,null,null,null,null,null,null,null,null,null,null,null,null,null,null,null,null,null,null,null,null,null,null,null,null,null,null,null,null,null,null,null,null,null,null,null,null,null,null,null,null,null,null,null,null,null,null,null,null,null,null,null,null,null,null,null,null,null,null,null,null,null,null,null,null,null,null,null,null,null,null,null,null,null,null,null,null,null,null,null,null,null,null,null,null,null,null,null,null,null,null,null,null,null,null,null,null,null,null,null,null,null,null,null,null,null,null,null,null,null,null,null,null,null,null,null,null,null,null,null,null,null,null,null,3034,446]
[null,null,null,null,null,null,null,null,null,null,null,null,null,null,null,null,null,null,null,null,null,null,null,null,null,null,null,null,null,null,null,null,null,null,null,null,null,null,null,null,null,null,null,null,null,null,null,null,null,null,null,null,null,null,null,null,null,null,null,null,null,null,null,null,null,null,null,null,null,null,null,null,null,null,null,null,null,null,null,null,null,null,null,null,null,null,null,null,null,null,null,null,null,null,null,null,null,null,null,null,null,null,null,null,null,null,null,null,null,null,null,null,null,null,null,null,null,null,null,null,null,null,null,null,null,null,null,null,null,null,null,null,null,null,null,null,null,null,null,null,null,null,null,null,null,null,null,null,null,null,null,null,null,null,null,null,null,null,null,null,null,null,null,null,null,null,null,null,null,null,null,null,null,null,null,null,null,null,null,null,null,null,null,null,null,null,null,null,null,null,null,null,null,null,null,null,null,null,null,null,null,null,null,null,null,null,null,null,null,null,null,null,null,null,null,null,null,null,null,null,null,null,null,null,null,null,null,null,null,null,null,null,null,null,null,null,null,null,null,null,null,null,null,null,null,null,null,null,null,null,null,null,null,null,null,null,null,null,null,null,null,null,null,null,null,null,null,null,null,null,null,null,null,null,null,null,null,null,null,null,null,null,null,null,null,null,null,null,null,null,null,null,null,null,null,null,null,null,null,null,null,null,null,null,null,null,null,null,null,null,null,null,null,null,null,null,null,null,null,null,null,null,null,null,null,null,null,null,null,null,null,null,null,null,null,null,null,null,null,null,null,null,null,null,null,null,null,null,null,null,null,null,null,null,null,null,null,null,null,null,null,null,null,null,null,null,null,null,null,null,null,null,null,null,null,null,null,null,null,null,null,null,null,null,null,null,null,null,null,null,null,null,null,null,null,null,null,null,null,null,null,null,null,null,null,null,null,null,null,null,null,null,null,null,null,null,null,null,null,null,null,null,null,null,null,null,null,null,null,null,null,null,null,null,null,null,null,null,null,null,null,null,null,null,null,null,null,null,null,null,null,null,null,null,null,null,null,null,null,null,null,null,null,null,null,null,null,null,null,null,null,null,null,null,null,null,null,null,null,null,null,null,null,null,null,null,null,null,null,null,null,null,null,null,null,null,null,null,null,null,null,null,null,null,null,null,null,null,null,null,null,null,null,null,null,null,null,null,null,null,null,null,null,null,null,null,null,null,null,null,null,null,null,null,null,null,null,3170,487]
[null,null,null,null,null,null,null,null,null,null,null,null,null,null,null,null,null,null,null,null,null,null,null,null,null,null,null,null,null,null,null,null,null,null,null,null,null,null,null,null,null,null,null,null,null,null,null,null,null,null,null,null,null,null,null,null,null,null,null,null,null,null,null,null,null,null,null,null,null,null,null,null,null,null,null,null,null,null,null,null,null,null,null,null,null,null,null,null,null,null,null,null,null,null,null,null,null,null,null,null,null,null,null,null,null,null,null,null,null,null,null,null,null,null,null,null,null,null,null,null,null,null,null,null,null,null,null,null,null,null,null,null,null,null,null,null,null,null,null,null,null,null,null,null,null,null,null,null,null,null,null,null,null,null,null,null,null,null,null,null,null,null,null,null,null,null,null,null,null,null,null,null,null,null,null,null,null,null,null,null,null,null,null,null,null,null,null,null,null,null,null,null,null,null,null,null,null,null,null,null,null,null,null,null,null,null,null,null,null,null,null,null,null,null,null,null,null,null,null,null,null,null,null,null,null,null,null,null,null,null,null,null,null,null,null,null,null,null,null,null,null,null,null,null,null,null,null,null,null,null,null,null,null,null,null,null,null,null,null,null,null,null,null,null,null,null,null,null,null,null,null,null,null,null,null,null,null,null,null,null,null,null,null,null,null,null,null,null,null,null,null,null,null,null,null,null,null,null,null,null,null,null,null,null,null,null,null,null,null,null,null,null,null,null,null,null,null,null,null,null,null,null,null,null,null,null,null,null,null,null,null,null,null,null,null,null,null,null,null,null,null,null,null,null,null,null,null,null,null,null,null,null,null,null,null,null,null,null,null,null,null,null,null,null,null,null,null,null,null,null,null,null,null,null,null,null,null,null,null,null,null,null,null,null,null,null,null,null,null,null,null,null,null,null,null,null,null,null,null,null,null,null,null,null,null,null,null,null,null,null,null,null,null,null,null,null,null,null,null,null,null,null,null,null,null,null,null,null,null,null,null,null,null,null,null,null,null,null,null,null,null,null,null,null,null,null,null,null,null,null,null,null,null,null,null,null,null,null,null,null,null,null,null,null,null,null,null,null,null,null,null,null,null,null,null,null,null,null,null,null,null,null,null,null,null,null,null,null,null,null,null,null,null,null,null,null,null,null,null,null,null,null,null,null,null,null,null,null,null,null,null,null,null,null,null,null,null,null,null,null,null,null,null,null,null,null,null,null,null,null,null,null,null,null,null,null,null,1263,347]
[null,null,null,null,null,null,null,null,null,null,null,null,null,null,null,null,null,null,null,null,null,null,null,null,null,null,null,null,null,null,null,null,null,null,null,null,null,null,null,null,null,null,null,null,null,null,null,null,null,null,null,null,null,null,null,null,null,null,null,null,null,null,null,null,null,null,null,null,null,null,null,null,null,null,null,null,null,null,null,null,null,null,null,null,null,null,null,null,null,null,null,null,null,null,null,null,null,null,null,null,null,null,null,null,null,null,null,null,null,null,null,null,null,null,null,null,null,null,null,null,null,null,null,null,null,null,null,null,null,null,null,null,null,null,null,null,null,null,null,null,null,null,null,null,null,null,null,null,null,null,null,null,null,null,null,null,null,null,null,null,null,null,null,null,null,null,null,null,null,null,null,null,null,null,null,null,null,null,null,null,null,null,null,null,null,null,null,null,null,null,null,null,null,null,null,null,null,null,null,null,null,null,null,null,null,null,null,null,null,null,null,null,null,null,null,null,null,null,null,null,null,null,null,null,null,null,null,null,null,null,null,null,null,null,null,null,null,null,null,null,null,null,null,null,null,null,null,null,null,null,null,null,null,null,null,null,null,null,null,null,null,null,null,null,null,null,null,null,null,null,null,null,null,null,null,null,null,null,null,null,null,null,null,null,null,null,null,null,null,null,null,null,null,null,null,null,null,null,null,null,null,null,null,null,null,null,null,null,null,null,null,null,null,null,null,null,null,null,null,null,null,null,null,null,null,null,null,null,null,null,null,null,null,null,null,null,null,null,null,null,null,null,null,null,null,null,null,null,null,null,null,null,null,null,null,null,null,null,null,null,null,null,null,null,null,null,null,null,null,null,null,null,null,null,null,null,null,null,null,null,null,null,null,null,null,null,null,null,null,null,null,null,null,null,null,null,null,null,null,null,null,null,null,null,null,null,null,null,null,null,null,null,null,null,null,null,null,null,null,null,null,null,null,null,null,null,null,null,null,null,null,null,null,null,null,null,null,null,null,null,null,null,null,null,null,null,null,null,null,null,null,null,null,null,null,null,null,null,null,null,null,null,null,null,null,null,null,null,null,null,null,null,null,null,null,null,null,null,null,null,null,null,null,null,null,null,null,null,null,null,null,null,null,null,null,null,null,null,null,null,null,null,null,null,null,null,null,null,null,null,null,null,null,null,null,null,null,null,null,null,null,null,null,null,null,null,null,null,null,null,null,null,null,null,null,null,null,993,307]
[null,null,null,null,null,null,null,null,null,null,null,null,null,null,null,null,null,null,null,null,null,null,null,null,null,null,null,null,null,null,null,null,null,null,null,null,null,null,null,null,null,null,null,null,null,null,null,null,null,null,null,null,null,null,null,null,null,null,null,null,null,null,null,null,null,null,null,null,null,null,null,null,null,null,null,null,null,null,null,null,null,null,null,null,null,null,null,null,null,null,null,null,null,null,null,null,null,null,null,null,null,null,null,null,null,null,null,null,null,null,null,null,null,null,null,null,null,null,null,null,null,null,null,null,null,null,null,null,null,null,null,null,null,null,null,null,null,null,null,null,null,null,null,null,null,null,null,null,null,null,null,null,null,null,null,null,null,null,null,null,null,null,null,null,null,null,null,null,null,null,null,null,null,null,null,null,null,null,null,null,null,null,null,null,null,null,null,null,null,null,null,null,null,null,null,null,null,null,null,null,null,null,null,null,null,null,null,null,null,null,null,null,null,null,null,null,null,null,null,null,null,null,null,null,null,null,null,null,null,null,null,null,null,null,null,null,null,null,null,null,null,null,null,null,null,null,null,null,null,null,null,null,null,null,null,null,null,null,null,null,null,null,null,null,null,null,null,null,null,null,null,null,null,null,null,null,null,null,null,null,null,null,null,null,null,null,null,null,null,null,null,null,null,null,null,null,null,null,null,null,null,null,null,null,null,null,null,null,null,null,null,null,null,null,null,null,null,null,null,null,null,null,null,null,null,null,null,null,null,null,null,null,null,null,null,null,null,null,null,null,null,null,null,null,null,null,null,null,null,null,null,null,null,null,null,null,null,null,null,null,null,null,null,null,null,null,null,null,null,null,null,null,null,null,null,null,null,null,null,null,null,null,null,null,null,null,null,null,null,null,null,null,null,null,null,null,null,null,null,null,null,null,null,null,null,null,null,null,null,null,null,null,null,null,null,null,null,null,null,null,null,null,null,null,null,null,null,null,null,null,null,null,null,null,null,null,null,null,null,null,null,null,null,null,null,null,null,null,null,null,null,null,null,null,null,null,null,null,null,null,null,null,null,null,null,null,null,null,null,null,null,null,null,null,null,null,null,null,null,null,null,null,null,null,null,null,null,null,null,null,null,null,null,null,null,null,null,null,null,null,null,null,null,null,null,null,null,null,null,null,null,null,null,null,null,null,null,null,null,null,null,null,null,null,null,null,null,null,null,null,null,null,null,null,null,null,null,1700,319]
[null,null,null,null,null,null,null,null,null,null,null,null,null,null,null,null,null,null,null,null,null,null,null,null,null,null,null,null,null,null,null,null,null,null,null,null,null,null,null,null,null,null,null,null,null,null,null,null,null,null,null,null,null,null,null,null,null,null,null,null,null,null,null,null,null,null,null,null,null,null,null,null,null,null,null,null,null,null,null,null,null,null,null,null,null,null,null,null,null,null,null,null,null,null,null,null,null,null,null,null,null,null,null,null,null,null,null,null,null,null,null,null,null,null,null,null,null,null,null,null,null,null,null,null,null,null,null,null,null,null,null,null,null,null,null,null,null,null,null,null,null,null,null,null,null,null,null,null,null,null,null,null,null,null,null,null,null,null,null,null,null,null,null,null,null,null,null,null,null,null,null,null,null,null,null,null,null,null,null,null,null,null,null,null,null,null,null,null,null,null,null,null,null,null,null,null,null,null,null,null,null,null,null,null,null,null,null,null,null,null,null,null,null,null,null,null,null,null,null,null,null,null,null,null,null,null,null,null,null,null,null,null,null,null,null,null,null,null,null,null,null,null,null,null,null,null,null,null,null,null,null,null,null,null,null,null,null,null,null,null,null,null,null,null,null,null,null,null,null,null,null,null,null,null,null,null,null,null,null,null,null,null,null,null,null,null,null,null,null,null,null,null,null,null,null,null,null,null,null,null,null,null,null,null,null,null,null,null,null,null,null,null,null,null,null,null,null,null,null,null,null,null,null,null,null,null,null,null,null,null,null,null,null,null,null,null,null,null,null,null,null,null,null,null,null,null,null,null,null,null,null,null,null,null,null,null,null,null,null,null,null,null,null,null,null,null,null,null,null,null,null,null,null,null,null,null,null,null,null,null,null,null,null,null,null,null,null,null,null,null,null,null,null,null,null,null,null,null,null,null,null,null,null,null,null,null,null,null,null,null,null,null,null,null,null,null,null,null,null,null,null,null,null,null,null,null,null,null,null,null,null,null,null,null,null,null,null,null,null,null,null,null,null,null,null,null,null,null,null,null,null,null,null,null,null,null,null,null,null,null,null,null,null,null,null,null,null,null,null,null,null,null,null,null,null,null,null,null,null,null,null,null,null,null,null,null,null,null,null,null,null,null,null,null,null,null,null,null,null,null,null,null,null,null,null,null,null,null,null,null,null,null,null,null,null,null,null,null,null,null,null,null,null,null,null,null,null,null,null,null,null,null,null,null,null,null,null,459,271]
[null,null,null,null,null,null,null,null,null,null,null,null,null,null,null,null,null,null,null,null,null,null,null,null,null,null,null,null,null,null,null,null,null,null,null,null,null,null,null,null,null,null,null,null,null,null,null,null,null,null,null,null,null,null,null,null,null,null,null,null,null,null,null,null,null,null,null,null,null,null,null,null,null,null,null,null,null,null,null,null,null,null,null,null,null,null,null,null,null,null,null,null,null,null,null,null,null,null,null,null,null,null,null,null,null,null,null,null,null,null,null,null,null,null,null,null,null,null,null,null,null,null,null,null,null,null,null,null,null,null,null,null,null,null,null,null,null,null,null,null,null,null,null,null,null,null,null,null,null,null,null,null,null,null,null,null,null,null,null,null,null,null,null,null,null,null,null,null,null,null,null,null,null,null,null,null,null,null,null,null,null,null,null,null,null,null,null,null,null,null,null,null,null,null,null,null,null,null,null,null,null,null,null,null,null,null,null,null,null,null,null,null,null,null,null,null,null,null,null,null,null,null,null,null,null,null,null,null,null,null,null,null,null,null,null,null,null,null,null,null,null,null,null,null,null,null,null,null,null,null,null,null,null,null,null,null,null,null,null,null,null,null,null,null,null,null,null,null,null,null,null,null,null,null,null,null,null,null,null,null,null,null,null,null,null,null,null,null,null,null,null,null,null,null,null,null,null,null,null,null,null,null,null,null,null,null,null,null,null,null,null,null,null,null,null,null,null,null,null,null,null,null,null,null,null,null,null,null,null,null,null,null,null,null,null,null,null,null,null,null,null,null,null,null,null,null,null,null,null,null,null,null,null,null,null,null,null,null,null,null,null,null,null,null,null,null,null,null,null,null,null,null,null,null,null,null,null,null,null,null,null,null,null,null,null,null,null,null,null,null,null,null,null,null,null,null,null,null,null,null,null,null,null,null,null,null,null,null,null,null,null,null,null,null,null,null,null,null,null,null,null,null,null,null,null,null,null,null,null,null,null,null,null,null,null,null,null,null,null,null,null,null,null,null,null,null,null,null,null,null,null,null,null,null,null,null,null,null,null,null,null,null,null,null,null,null,null,null,null,null,null,null,null,null,null,null,null,null,null,null,null,null,null,null,null,null,null,null,null,null,null,null,null,null,null,null,null,null,null,null,null,null,null,null,null,null,null,null,null,null,null,null,null,null,null,null,null,null,null,null,null,null,null,null,null,null,null,null,null,null,null,null,null,null,null,null,null,1754,280]
[null,null,null,null,null,null,null,null,null,null,null,null,null,null,null,null,null,null,null,null,null,null,null,null,null,null,null,null,null,null,null,null,null,null,null,null,null,null,null,null,null,null,null,null,null,null,null,null,null,null,null,null,null,null,null,null,null,null,null,null,null,null,null,null,null,null,null,null,null,null,null,null,null,null,null,null,null,null,null,null,null,null,null,null,null,null,null,null,null,null,null,null,null,null,null,null,null,null,null,null,null,null,null,null,null,null,null,null,null,null,null,null,null,null,null,null,null,null,null,null,null,null,null,null,null,null,null,null,null,null,null,null,null,null,null,null,null,null,null,null,null,null,null,null,null,null,null,null,null,null,null,null,null,null,null,null,null,null,null,null,null,null,null,null,null,null,null,null,null,null,null,null,null,null,null,null,null,null,null,null,null,null,null,null,null,null,null,null,null,null,null,null,null,null,null,null,null,null,null,null,null,null,null,null,null,null,null,null,null,null,null,null,null,null,null,null,null,null,null,null,null,null,null,null,null,null,null,null,null,null,null,null,null,null,null,null,null,null,null,null,null,null,null,null,null,null,null,null,null,null,null,null,null,null,null,null,null,null,null,null,null,null,null,null,null,null,null,null,null,null,null,null,null,null,null,null,null,null,null,null,null,null,null,null,null,null,null,null,null,null,null,null,null,null,null,null,null,null,null,null,null,null,null,null,null,null,null,null,null,null,null,null,null,null,null,null,null,null,null,null,null,null,null,null,null,null,null,null,null,null,null,null,null,null,null,null,null,null,null,null,null,null,null,null,null,null,null,null,null,null,null,null,null,null,null,null,null,null,null,null,null,null,null,null,null,null,null,null,null,null,null,null,null,null,null,null,null,null,null,null,null,null,null,null,null,null,null,null,null,null,null,null,null,null,null,null,null,null,null,null,null,null,null,null,null,null,null,null,null,null,null,null,null,null,null,null,null,null,null,null,null,null,null,null,null,null,null,null,null,null,null,null,null,null,null,null,null,null,null,null,null,null,null,null,null,null,null,null,null,null,null,null,null,null,null,null,null,null,null,null,null,null,null,null,null,null,null,null,null,null,null,null,null,null,null,null,null,null,null,null,null,null,null,null,null,null,null,null,null,null,null,null,null,null,null,null,null,null,null,null,null,null,null,null,null,null,null,null,null,null,null,null,null,null,null,null,null,null,null,null,null,null,null,null,null,null,null,null,null,null,null,null,null,null,null,null,null,1405,183]
[null,null,null,null,null,null,null,null,null,null,null,null,null,null,null,null,null,null,null,null,null,null,null,null,null,null,null,null,null,null,null,null,null,null,null,null,null,null,null,null,null,null,null,null,null,null,null,null,null,null,null,null,null,null,null,null,null,null,null,null,null,null,null,null,null,null,null,null,null,null,null,null,null,null,null,null,null,null,null,null,null,null,null,null,null,null,null,null,null,null,null,null,null,null,null,null,null,null,null,null,null,null,null,null,null,null,null,null,null,null,null,null,null,null,null,null,null,null,null,null,null,null,null,null,null,null,null,null,null,null,null,null,null,null,null,null,null,null,null,null,null,null,null,null,null,null,null,null,null,null,null,null,null,null,null,null,null,null,null,null,null,null,null,null,null,null,null,null,null,null,null,null,null,null,null,null,null,null,null,null,null,null,null,null,null,null,null,null,null,null,null,null,null,null,null,null,null,null,null,null,null,null,null,null,null,null,null,null,null,null,null,null,null,null,null,null,null,null,null,null,null,null,null,null,null,null,null,null,null,null,null,null,null,null,null,null,null,null,null,null,null,null,null,null,null,null,null,null,null,null,null,null,null,null,null,null,null,null,null,null,null,null,null,null,null,null,null,null,null,null,null,null,null,null,null,null,null,null,null,null,null,null,null,null,null,null,null,null,null,null,null,null,null,null,null,null,null,null,null,null,null,null,null,null,null,null,null,null,null,null,null,null,null,null,null,null,null,null,null,null,null,null,null,null,null,null,null,null,null,null,null,null,null,null,null,null,null,null,null,null,null,null,null,null,null,null,null,null,null,null,null,null,null,null,null,null,null,null,null,null,null,null,null,null,null,null,null,null,null,null,null,null,null,null,null,null,null,null,null,null,null,null,null,null,null,null,null,null,null,null,null,null,null,null,null,null,null,null,null,null,null,null,null,null,null,null,null,null,null,null,null,null,null,null,null,null,null,null,null,null,null,null,null,null,null,null,null,null,null,null,null,null,null,null,null,null,null,null,null,null,null,null,null,null,null,null,null,null,null,null,null,null,null,null,null,null,null,null,null,null,null,null,null,null,null,null,null,null,null,null,null,null,null,null,null,null,null,null,null,null,null,null,null,null,null,null,null,null,null,null,null,null,null,null,null,null,null,null,null,null,null,null,null,null,null,null,null,null,null,null,null,null,null,null,null,null,null,null,null,null,null,null,null,null,null,null,null,null,null,null,null,null,null,null,null,null,null,1019,143]
[null,null,null,null,null,null,null,null,null,null,null,null,null,null,null,null,null,null,null,null,null,null,null,null,null,null,null,null,null,null,null,null,null,null,null,null,null,null,null,null,null,null,null,null,null,null,null,null,null,null,null,null,null,null,null,null,null,null,null,null,null,null,null,null,null,null,null,null,null,null,null,null,null,null,null,null,null,null,null,null,null,null,null,null,null,null,null,null,null,null,null,null,null,null,null,null,null,null,null,null,null,null,null,null,null,null,null,null,null,null,null,null,null,null,null,null,null,null,null,null,null,null,null,null,null,null,null,null,null,null,null,null,null,null,null,null,null,null,null,null,null,null,null,null,null,null,null,null,null,null,null,null,null,null,null,null,null,null,null,null,null,null,null,null,null,null,null,null,null,null,null,null,null,null,null,null,null,null,null,null,null,null,null,null,null,null,null,null,null,null,null,null,null,null,null,null,null,null,null,null,null,null,null,null,null,null,null,null,null,null,null,null,null,null,null,null,null,null,null,null,null,null,null,null,null,null,null,null,null,null,null,null,null,null,null,null,null,null,null,null,null,null,null,null,null,null,null,null,null,null,null,null,null,null,null,null,null,null,null,null,null,null,null,null,null,null,null,null,null,null,null,null,null,null,null,null,null,null,null,null,null,null,null,null,null,null,null,null,null,null,null,null,null,null,null,null,null,null,null,null,null,null,null,null,null,null,null,null,null,null,null,null,null,null,null,null,null,null,null,null,null,null,null,null,null,null,null,null,null,null,null,null,null,null,null,null,null,null,null,null,null,null,null,null,null,null,null,null,null,null,null,null,null,null,null,null,null,null,null,null,null,null,null,null,null,null,null,null,null,null,null,null,null,null,null,null,null,null,null,null,null,null,null,null,null,null,null,null,null,null,null,null,null,null,null,null,null,null,null,null,null,null,null,null,null,null,null,null,null,null,null,null,null,null,null,null,null,null,null,null,null,null,null,null,null,null,null,null,null,null,null,null,null,null,null,null,null,null,null,null,null,null,null,null,null,null,null,null,null,null,null,null,null,null,null,null,null,null,null,null,null,null,null,null,null,null,null,null,null,null,null,null,null,null,null,null,null,null,null,null,null,null,null,null,null,null,null,null,null,null,null,null,null,null,null,null,null,null,null,null,null,null,null,null,null,null,null,null,null,null,null,null,null,null,null,null,null,null,null,null,null,null,null,null,null,null,null,null,null,null,null,null,null,null,null,null,null,1544,131]
[null,null,null,null,null,null,null,null,null,null,null,null,null,null,null,null,null,null,null,null,null,null,null,null,null,null,null,null,null,null,null,null,null,null,null,null,null,null,null,null,null,null,null,null,null,null,null,null,null,null,null,null,null,null,null,null,null,null,null,null,null,null,null,null,null,null,null,null,null,null,null,null,null,null,null,null,null,null,null,null,null,null,null,null,null,null,null,null,null,null,null,null,null,null,null,null,null,null,null,null,null,null,null,null,null,null,null,null,null,null,null,null,null,null,null,null,null,null,null,null,null,null,null,null,null,null,null,null,null,null,null,null,null,null,null,null,null,null,null,null,null,null,null,null,null,null,null,null,null,null,null,null,null,null,null,null,null,null,null,null,null,null,null,null,null,null,null,null,null,null,null,null,null,null,null,null,null,null,null,null,null,null,null,null,null,null,null,null,null,null,null,null,null,null,null,null,null,null,null,null,null,null,null,null,null,null,null,null,null,null,null,null,null,null,null,null,null,null,null,null,null,null,null,null,null,null,null,null,null,null,null,null,null,null,null,null,null,null,null,null,null,null,null,null,null,null,null,null,null,null,null,null,null,null,null,null,null,null,null,null,null,null,null,null,null,null,null,null,null,null,null,null,null,null,null,null,null,null,null,null,null,null,null,null,null,null,null,null,null,null,null,null,null,null,null,null,null,null,null,null,null,null,null,null,null,null,null,null,null,null,null,null,null,null,null,null,null,null,null,null,null,null,null,null,null,null,null,null,null,null,null,null,null,null,null,null,null,null,null,null,null,null,null,null,null,null,null,null,null,null,null,null,null,null,null,null,null,null,null,null,null,null,null,null,null,null,null,null,null,null,null,null,null,null,null,null,null,null,null,null,null,null,null,null,null,null,null,null,null,null,null,null,null,null,null,null,null,null,null,null,null,null,null,null,null,null,null,null,null,null,null,null,null,null,null,null,null,null,null,null,null,null,null,null,null,null,null,null,null,null,null,null,null,null,null,null,null,null,null,null,null,null,null,null,null,null,null,null,null,null,null,null,null,null,null,null,null,null,null,null,null,null,null,null,null,null,null,null,null,null,null,null,null,null,null,null,null,null,null,null,null,null,null,null,null,null,null,null,null,null,null,null,null,null,null,null,null,null,null,null,null,null,null,null,null,null,null,null,null,null,null,null,null,null,null,null,null,null,null,null,null,null,null,null,null,null,null,null,null,null,null,null,null,null,null,null,null,1024,240]
[null,null,null,null,null,null,null,null,null,null,null,null,null,null,null,null,null,null,null,null,null,null,null,null,null,null,null,null,null,null,null,null,null,null,null,null,null,null,null,null,null,null,null,null,null,null,null,null,null,null,null,null,null,null,null,null,null,null,null,null,null,null,null,null,null,null,null,null,null,null,null,null,null,null,null,null,null,null,null,null,null,null,null,null,null,null,null,null,null,null,null,null,null,null,null,null,null,null,null,null,null,null,null,null,null,null,null,null,null,null,null,null,null,null,null,null,null,null,null,null,null,null,null,null,null,null,null,null,null,null,null,null,null,null,null,null,null,null,null,null,null,null,null,null,null,null,null,null,null,null,null,null,null,null,null,null,null,null,null,null,null,null,null,null,null,null,null,null,null,null,null,null,null,null,null,null,null,null,null,null,null,null,null,null,null,null,null,null,null,null,null,null,null,null,null,null,null,null,null,null,null,null,null,null,null,null,null,null,null,null,null,null,null,null,null,null,null,null,null,null,null,null,null,null,null,null,null,null,null,null,null,null,null,null,null,null,null,null,null,null,null,null,null,null,null,null,null,null,null,null,null,null,null,null,null,null,null,null,null,null,null,null,null,null,null,null,null,null,null,null,null,null,null,null,null,null,null,null,null,null,null,null,null,null,null,null,null,null,null,null,null,null,null,null,null,null,null,null,null,null,null,null,null,null,null,null,null,null,null,null,null,null,null,null,null,null,null,null,null,null,null,null,null,null,null,null,null,null,null,null,null,null,null,null,null,null,null,null,null,null,null,null,null,null,null,null,null,null,null,null,null,null,null,null,null,null,null,null,null,null,null,null,null,null,null,null,null,null,null,null,null,null,null,null,null,null,null,null,null,null,null,null,null,null,null,null,null,null,null,null,null,null,null,null,null,null,null,null,null,null,null,null,null,null,null,null,null,null,null,null,null,null,null,null,null,null,null,null,null,null,null,null,null,null,null,null,null,null,null,null,null,null,null,null,null,null,null,null,null,null,null,null,null,null,null,null,null,null,null,null,null,null,null,null,null,null,null,null,null,null,null,null,null,null,null,null,null,null,null,null,null,null,null,null,null,null,null,null,null,null,null,null,null,null,null,null,null,null,null,null,null,null,null,null,null,null,null,null,null,null,null,null,null,null,null,null,null,null,null,null,null,null,null,null,null,null,null,null,null,null,null,null,null,null,null,null,null,null,null,null,null,null,null,null,null,null,null,1215,325]
[null,null,null,null,null,null,null,null,null,null,null,null,null,null,null,null,null,null,null,null,null,null,null,null,null,null,null,null,null,null,null,null,null,null,null,null,null,null,null,null,null,null,null,null,null,null,null,null,null,null,null,null,null,null,null,null,null,null,null,null,null,null,null,null,null,null,null,null,null,null,null,null,null,null,null,null,null,null,null,null,null,null,null,null,null,null,null,null,null,null,null,null,null,null,null,null,null,null,null,null,null,null,null,null,null,null,null,null,null,null,null,null,null,null,null,null,null,null,null,null,null,null,null,null,null,null,null,null,null,null,null,null,null,null,null,null,null,null,null,null,null,null,null,null,null,null,null,null,null,null,null,null,null,null,null,null,null,null,null,null,null,null,null,null,null,null,null,null,null,null,null,null,null,null,null,null,null,null,null,null,null,null,null,null,null,null,null,null,null,null,null,null,null,null,null,null,null,null,null,null,null,null,null,null,null,null,null,null,null,null,null,null,null,null,null,null,null,null,null,null,null,null,null,null,null,null,null,null,null,null,null,null,null,null,null,null,null,null,null,null,null,null,null,null,null,null,null,null,null,null,null,null,null,null,null,null,null,null,null,null,null,null,null,null,null,null,null,null,null,null,null,null,null,null,null,null,null,null,null,null,null,null,null,null,null,null,null,null,null,null,null,null,null,null,null,null,null,null,null,null,null,null,null,null,null,null,null,null,null,null,null,null,null,null,null,null,null,null,null,null,null,null,null,null,null,null,null,null,null,null,null,null,null,null,null,null,null,null,null,null,null,null,null,null,null,null,null,null,null,null,null,null,null,null,null,null,null,null,null,null,null,null,null,null,null,null,null,null,null,null,null,null,null,null,null,null,null,null,null,null,null,null,null,null,null,null,null,null,null,null,null,null,null,null,null,null,null,null,null,null,null,null,null,null,null,null,null,null,null,null,null,null,null,null,null,null,null,null,null,null,null,null,null,null,null,null,null,null,null,null,null,null,null,null,null,null,null,null,null,null,null,null,null,null,null,null,null,null,null,null,null,null,null,null,null,null,null,null,null,null,null,null,null,null,null,null,null,null,null,null,null,null,null,null,null,null,null,null,null,null,null,null,null,null,null,null,null,null,null,null,null,null,null,null,null,null,null,null,null,null,null,null,null,null,null,null,null,null,null,null,null,null,null,null,null,null,null,null,null,null,null,null,null,null,null,null,null,null,null,null,null,null,null,null,null,null,null,969,543]
[null,null,null,null,null,null,null,null,null,null,null,null,null,null,null,null,null,null,null,null,null,null,null,null,null,null,null,null,null,null,null,null,null,null,null,null,null,null,null,null,null,null,null,null,null,null,null,null,null,null,null,null,null,null,null,null,null,null,null,null,null,null,null,null,null,null,null,null,null,null,null,null,null,null,null,null,null,null,null,null,null,null,null,null,null,null,null,null,null,null,null,null,null,null,null,null,null,null,null,null,null,null,null,null,null,null,null,null,null,null,null,null,null,null,null,null,null,null,null,null,null,null,null,null,null,null,null,null,null,null,null,null,null,null,null,null,null,null,null,null,null,null,null,null,null,null,null,null,null,null,null,null,null,null,null,null,null,null,null,null,null,null,null,null,null,null,null,null,null,null,null,null,null,null,null,null,null,null,null,null,null,null,null,null,null,null,null,null,null,null,null,null,null,null,null,null,null,null,null,null,null,null,null,null,null,null,null,null,null,null,null,null,null,null,null,null,null,null,null,null,null,null,null,null,null,null,null,null,null,null,null,null,null,null,null,null,null,null,null,null,null,null,null,null,null,null,null,null,null,null,null,null,null,null,null,null,null,null,null,null,null,null,null,null,null,null,null,null,null,null,null,null,null,null,null,null,null,null,null,null,null,null,null,null,null,null,null,null,null,null,null,null,null,null,null,null,null,null,null,null,null,null,null,null,null,null,null,null,null,null,null,null,null,null,null,null,null,null,null,null,null,null,null,null,null,null,null,null,null,null,null,null,null,null,null,null,null,null,null,null,null,null,null,null,null,null,null,null,null,null,null,null,null,null,null,null,null,null,null,null,null,null,null,null,null,null,null,null,null,null,null,null,null,null,null,null,null,null,null,null,null,null,null,null,null,null,null,null,null,null,null,null,null,null,null,null,null,null,null,null,null,null,null,null,null,null,null,null,null,null,null,null,null,null,null,null,null,null,null,null,null,null,null,null,null,null,null,null,null,null,null,null,null,null,null,null,null,null,null,null,null,null,null,null,null,null,null,null,null,null,null,null,null,null,null,null,null,null,null,null,null,null,null,null,null,null,null,null,null,null,null,null,null,null,null,null,null,null,null,null,null,null,null,null,null,null,null,null,null,null,null,null,null,null,null,null,null,null,null,null,null,null,null,null,null,null,null,null,null,null,null,null,null,null,null,null,null,null,null,null,null,null,null,null,null,null,null,null,null,null,null,null,null,null,null,null,null,1356,869]
[null,null,null,null,null,null,null,null,null,null,null,null,null,null,null,null,null,null,null,null,null,null,null,null,null,null,null,null,null,null,null,null,null,null,null,null,null,null,null,null,null,null,null,null,null,null,null,null,null,null,null,null,null,null,null,null,null,null,null,null,null,null,null,null,null,null,null,null,null,null,null,null,null,null,null,null,null,null,null,null,null,null,null,null,null,null,null,null,null,null,null,null,null,null,null,null,null,null,null,null,null,null,null,null,null,null,null,null,null,null,null,null,null,null,null,null,null,null,null,null,null,null,null,null,null,null,null,null,null,null,null,null,null,null,null,null,null,null,null,null,null,null,null,null,null,null,null,null,null,null,null,null,null,null,null,null,null,null,null,null,null,null,null,null,null,null,null,null,null,null,null,null,null,null,null,null,null,null,null,null,null,null,null,null,null,null,null,null,null,null,null,null,null,null,null,null,null,null,null,null,null,null,null,null,null,null,null,null,null,null,null,null,null,null,null,null,null,null,null,null,null,null,null,null,null,null,null,null,null,null,null,null,null,null,null,null,null,null,null,null,null,null,null,null,null,null,null,null,null,null,null,null,null,null,null,null,null,null,null,null,null,null,null,null,null,null,null,null,null,null,null,null,null,null,null,null,null,null,null,null,null,null,null,null,null,null,null,null,null,null,null,null,null,null,null,null,null,null,null,null,null,null,null,null,null,null,null,null,null,null,null,null,null,null,null,null,null,null,null,null,null,null,null,null,null,null,null,null,null,null,null,null,null,null,null,null,null,null,null,null,null,null,null,null,null,null,null,null,null,null,null,null,null,null,null,null,null,null,null,null,null,null,null,null,null,null,null,null,null,null,null,null,null,null,null,null,null,null,null,null,null,null,null,null,null,null,null,null,null,null,null,null,null,null,null,null,null,null,null,null,null,null,null,null,null,null,null,null,null,null,null,null,null,null,null,null,null,null,null,null,null,null,null,null,null,null,null,null,null,null,null,null,null,null,null,null,null,null,null,null,null,null,null,null,null,null,null,null,null,null,null,null,null,null,null,null,null,null,null,null,null,null,null,null,null,null,null,null,null,null,null,null,null,null,null,null,null,null,null,null,null,null,null,null,null,null,null,null,null,null,null,null,null,null,null,null,null,null,null,null,null,null,null,null,null,null,null,null,null,null,null,null,null,null,null,null,null,null,null,null,null,null,null,null,null,null,null,null,null,null,null,null,null,null,null,null,null,1315,1096]
[null,null,null,null,null,null,null,null,null,null,null,null,null,null,null,null,null,null,null,null,null,null,null,null,null,null,null,null,null,null,null,null,null,null,null,null,null,null,null,null,null,null,null,null,null,null,null,null,null,null,null,null,null,null,null,null,null,null,null,null,null,null,null,null,null,null,null,null,null,null,null,null,null,null,null,null,null,null,null,null,null,null,null,null,null,null,null,null,null,null,null,null,null,null,null,null,null,null,null,null,null,null,null,null,null,null,null,null,null,null,null,null,null,null,null,null,null,null,null,null,null,null,null,null,null,null,null,null,null,null,null,null,null,null,null,null,null,null,null,null,null,null,null,null,null,null,null,null,null,null,null,null,null,null,null,null,null,null,null,null,null,null,null,null,null,null,null,null,null,null,null,null,null,null,null,null,null,null,null,null,null,null,null,null,null,null,null,null,null,null,null,null,null,null,null,null,null,null,null,null,null,null,null,null,null,null,null,null,null,null,null,null,null,null,null,null,null,null,null,null,null,null,null,null,null,null,null,null,null,null,null,null,null,null,null,null,null,null,null,null,null,null,null,null,null,null,null,null,null,null,null,null,null,null,null,null,null,null,null,null,null,null,null,null,null,null,null,null,null,null,null,null,null,null,null,null,null,null,null,null,null,null,null,null,null,null,null,null,null,null,null,null,null,null,null,null,null,null,null,null,null,null,null,null,null,null,null,null,null,null,null,null,null,null,null,null,null,null,null,null,null,null,null,null,null,null,null,null,null,null,null,null,null,null,null,null,null,null,null,null,null,null,null,null,null,null,null,null,null,null,null,null,null,null,null,null,null,null,null,null,null,null,null,null,null,null,null,null,null,null,null,null,null,null,null,null,null,null,null,null,null,null,null,null,null,null,null,null,null,null,null,null,null,null,null,null,null,null,null,null,null,null,null,null,null,null,null,null,null,null,null,null,null,null,null,null,null,null,null,null,null,null,null,null,null,null,null,null,null,null,null,null,null,null,null,null,null,null,null,null,null,null,null,null,null,null,null,null,null,null,null,null,null,null,null,null,null,null,null,null,null,null,null,null,null,null,null,null,null,null,null,null,null,null,null,null,null,null,null,null,null,null,null,null,null,null,null,null,null,null,null,null,null,null,null,null,null,null,null,null,null,null,null,null,null,null,null,null,null,null,null,null,null,null,null,null,null,null,null,null,null,null,null,null,null,null,null,null,null,null,null,null,null,null,null,null,null,1074,1267]
[null,null,null,null,null,null,null,null,null,null,null,null,null,null,null,null,null,null,null,null,null,null,null,null,null,null,null,null,null,null,null,null,null,null,null,null,null,null,null,null,null,null,null,null,null,null,null,null,null,null,null,null,null,null,null,null,null,null,null,null,null,null,null,null,null,null,null,null,null,null,null,null,null,null,null,null,null,null,null,null,null,null,null,null,null,null,null,null,null,null,null,null,null,null,null,null,null,null,null,null,null,null,null,null,null,null,null,null,null,null,null,null,null,null,null,null,null,null,null,null,null,null,null,null,null,null,null,null,null,null,null,null,null,null,null,null,null,null,null,null,null,null,null,null,null,null,null,null,null,null,null,null,null,null,null,null,null,null,null,null,null,null,null,null,null,null,null,null,null,null,null,null,null,null,null,null,null,null,null,null,null,null,null,null,null,null,null,null,null,null,null,null,null,null,null,null,null,null,null,null,null,null,null,null,null,null,null,null,null,null,null,null,null,null,null,null,null,null,null,null,null,null,null,null,null,null,null,null,null,null,null,null,null,null,null,null,null,null,null,null,null,null,null,null,null,null,null,null,null,null,null,null,null,null,null,null,null,null,null,null,null,null,null,null,null,null,null,null,null,null,null,null,null,null,null,null,null,null,null,null,null,null,null,null,null,null,null,null,null,null,null,null,null,null,null,null,null,null,null,null,null,null,null,null,null,null,null,null,null,null,null,null,null,null,null,null,null,null,null,null,null,null,null,null,null,null,null,null,null,null,null,null,null,null,null,null,null,null,null,null,null,null,null,null,null,null,null,null,null,null,null,null,null,null,null,null,null,null,null,null,null,null,null,null,null,null,null,null,null,null,null,null,null,null,null,null,null,null,null,null,null,null,null,null,null,null,null,null,null,null,null,null,null,null,null,null,null,null,null,null,null,null,null,null,null,null,null,null,null,null,null,null,null,null,null,null,null,null,null,null,null,null,null,null,null,null,null,null,null,null,null,null,null,null,null,null,null,null,null,null,null,null,null,null,null,null,null,null,null,null,null,null,null,null,null,null,null,null,null,null,null,null,null,null,null,null,null,null,null,null,null,null,null,null,null,null,null,null,null,null,null,null,null,null,null,null,null,null,null,null,null,null,null,null,null,null,null,null,null,null,null,null,null,null,null,null,null,null,null,null,null,null,null,null,null,null,null,null,null,null,null,null,null,null,null,null,null,null,null,null,null,null,null,null,null,null,null,536,329]
[null,null,null,null,null,null,null,null,null,null,null,null,null,null,null,null,null,null,null,null,null,null,null,null,null,null,null,null,null,null,null,null,null,null,null,null,null,null,null,null,null,null,null,null,null,null,null,null,null,null,null,null,null,null,null,null,null,null,null,null,null,null,null,null,null,null,null,null,null,null,null,null,null,null,null,null,null,null,null,null,null,null,null,null,null,null,null,null,null,null,null,null,null,null,null,null,null,null,null,null,null,null,null,null,null,null,null,null,null,null,null,null,null,null,null,null,null,null,null,null,null,null,null,null,null,null,null,null,null,null,null,null,null,null,null,null,null,null,null,null,null,null,null,null,null,null,null,null,null,null,null,null,null,null,null,null,null,null,null,null,null,null,null,null,null,null,null,null,null,null,null,null,null,null,null,null,null,null,null,null,null,null,null,null,null,null,null,null,null,null,null,null,null,null,null,null,null,null,null,null,null,null,null,null,null,null,null,null,null,null,null,null,null,null,null,null,null,null,null,null,null,null,null,null,null,null,null,null,null,null,null,null,null,null,null,null,null,null,null,null,null,null,null,null,null,null,null,null,null,null,null,null,null,null,null,null,null,null,null,null,null,null,null,null,null,null,null,null,null,null,null,null,null,null,null,null,null,null,null,null,null,null,null,null,null,null,null,null,null,null,null,null,null,null,null,null,null,null,null,null,null,null,null,null,null,null,null,null,null,null,null,null,null,null,null,null,null,null,null,null,null,null,null,null,null,null,null,null,null,null,null,null,null,null,null,null,null,null,null,null,null,null,null,null,null,null,null,null,null,null,null,null,null,null,null,null,null,null,null,null,null,null,null,null,null,null,null,null,null,null,null,null,null,null,null,null,null,null,null,null,null,null,null,null,null,null,null,null,null,null,null,null,null,null,null,null,null,null,null,null,null,null,null,null,null,null,null,null,null,null,null,null,null,null,null,null,null,null,null,null,null,null,null,null,null,null,null,null,null,null,null,null,null,null,null,null,null,null,null,null,null,null,null,null,null,null,null,null,null,null,null,null,null,null,null,null,null,null,null,null,null,null,null,null,null,null,null,null,null,null,null,null,null,null,null,null,null,null,null,null,null,null,null,null,null,null,null,null,null,null,null,null,null,null,null,null,null,null,null,null,null,null,null,null,null,null,null,null,null,null,null,null,null,null,null,null,null,null,null,null,null,null,null,null,null,null,null,null,null,null,null,null,null,null,null,null,null,481,278]
[null,null,null,null,null,null,null,null,null,null,null,null,null,null,null,null,null,null,null,null,null,null,null,null,null,null,null,null,null,null,null,null,null,null,null,null,null,null,null,null,null,null,null,null,null,null,null,null,null,null,null,null,null,null,null,null,null,null,null,null,null,null,null,null,null,null,null,null,null,null,null,null,null,null,null,null,null,null,null,null,null,null,null,null,null,null,null,null,null,null,null,null,null,null,null,null,null,null,null,null,null,null,null,null,null,null,null,null,null,null,null,null,null,null,null,null,null,null,null,null,null,null,null,null,null,null,null,null,null,null,null,null,null,null,null,null,null,null,null,null,null,null,null,null,null,null,null,null,null,null,null,null,null,null,null,null,null,null,null,null,null,null,null,null,null,null,null,null,null,null,null,null,null,null,null,null,null,null,null,null,null,null,null,null,null,null,null,null,null,null,null,null,null,null,null,null,null,null,null,null,null,null,null,null,null,null,null,null,null,null,null,null,null,null,null,null,null,null,null,null,null,null,null,null,null,null,null,null,null,null,null,null,null,null,null,null,null,null,null,null,null,null,null,null,null,null,null,null,null,null,null,null,null,null,null,null,null,null,null,null,null,null,null,null,null,null,null,null,null,null,null,null,null,null,null,null,null,null,null,null,null,null,null,null,null,null,null,null,null,null,null,null,null,null,null,null,null,null,null,null,null,null,null,null,null,null,null,null,null,null,null,null,null,null,null,null,null,null,null,null,null,null,null,null,null,null,null,null,null,null,null,null,null,null,null,null,null,null,null,null,null,null,null,null,null,null,null,null,null,null,null,null,null,null,null,null,null,null,null,null,null,null,null,null,null,null,null,null,null,null,null,null,null,null,null,null,null,null,null,null,null,null,null,null,null,null,null,null,null,null,null,null,null,null,null,null,null,null,null,null,null,null,null,null,null,null,null,null,null,null,null,null,null,null,null,null,null,null,null,null,null,null,null,null,null,null,null,null,null,null,null,null,null,null,null,null,null,null,null,null,null,null,null,null,null,null,null,null,null,null,null,null,null,null,null,null,null,null,null,null,null,null,null,null,null,null,null,null,null,null,null,null,null,null,null,null,null,null,null,null,null,null,null,null,null,null,null,null,null,null,null,null,null,null,null,null,null,null,null,null,null,null,null,null,null,null,null,null,null,null,null,null,null,null,null,null,null,null,null,null,null,null,null,null,null,null,null,null,null,null,null,null,null,null,null,null,null,231,250]
[null,null,null,null,null,null,null,null,null,null,null,null,null,null,null,null,null,null,null,null,null,null,null,null,null,null,null,null,null,null,null,null,null,null,null,null,null,null,null,null,null,null,null,null,null,null,null,null,null,null,null,null,null,null,null,null,null,null,null,null,null,null,null,null,null,null,null,null,null,null,null,null,null,null,null,null,null,null,null,null,null,null,null,null,null,null,null,null,null,null,null,null,null,null,null,null,null,null,null,null,null,null,null,null,null,null,null,null,null,null,null,null,null,null,null,null,null,null,null,null,null,null,null,null,null,null,null,null,null,null,null,null,null,null,null,null,null,null,null,null,null,null,null,null,null,null,null,null,null,null,null,null,null,null,null,null,null,null,null,null,null,null,null,null,null,null,null,null,null,null,null,null,null,null,null,null,null,null,null,null,null,null,null,null,null,null,null,null,null,null,null,null,null,null,null,null,null,null,null,null,null,null,null,null,null,null,null,null,null,null,null,null,null,null,null,null,null,null,null,null,null,null,null,null,null,null,null,null,null,null,null,null,null,null,null,null,null,null,null,null,null,null,null,null,null,null,null,null,null,null,null,null,null,null,null,null,null,null,null,null,null,null,null,null,null,null,null,null,null,null,null,null,null,null,null,null,null,null,null,null,null,null,null,null,null,null,null,null,null,null,null,null,null,null,null,null,null,null,null,null,null,null,null,null,null,null,null,null,null,null,null,null,null,null,null,null,null,null,null,null,null,null,null,null,null,null,null,null,null,null,null,null,null,null,null,null,null,null,null,null,null,null,null,null,null,null,null,null,null,null,null,null,null,null,null,null,null,null,null,null,null,null,null,null,null,null,null,null,null,null,null,null,null,null,null,null,null,null,null,null,null,null,null,null,null,null,null,null,null,null,null,null,null,null,null,null,null,null,null,null,null,null,null,null,null,null,null,null,null,null,null,null,null,null,null,null,null,null,null,null,null,null,null,null,null,null,null,null,null,null,null,null,null,null,null,null,null,null,null,null,null,null,null,null,null,null,null,null,null,null,null,null,null,null,null,null,null,null,null,null,null,null,null,null,null,null,null,null,null,null,null,null,null,null,null,null,null,null,null,null,null,null,null,null,null,null,null,null,null,null,null,null,null,null,null,null,null,null,null,null,null,null,null,null,null,null,null,null,null,null,null,null,null,null,null,null,null,null,null,null,null,null,null,null,null,null,null,null,null,null,null,null,null,null,null,null,null,726,167]
[null,null,null,null,null,null,null,null,null,null,null,null,null,null,null,null,null,null,null,null,null,null,null,null,null,null,null,null,null,null,null,null,null,null,null,null,null,null,null,null,null,null,null,null,null,null,null,null,null,null,null,null,null,null,null,null,null,null,null,null,null,null,null,null,null,null,null,null,null,null,null,null,null,null,null,null,null,null,null,null,null,null,null,null,null,null,null,null,null,null,null,null,null,null,null,null,null,null,null,null,null,null,null,null,null,null,null,null,null,null,null,null,null,null,null,null,null,null,null,null,null,null,null,null,null,null,null,null,null,null,null,null,null,null,null,null,null,null,null,null,null,null,null,null,null,null,null,null,null,null,null,null,null,null,null,null,null,null,null,null,null,null,null,null,null,null,null,null,null,null,null,null,null,null,null,null,null,null,null,null,null,null,null,null,null,null,null,null,null,null,null,null,null,null,null,null,null,null,null,null,null,null,null,null,null,null,null,null,null,null,null,null,null,null,null,null,null,null,null,null,null,null,null,null,null,null,null,null,null,null,null,null,null,null,null,null,null,null,null,null,null,null,null,null,null,null,null,null,null,null,null,null,null,null,null,null,null,null,null,null,null,null,null,null,null,null,null,null,null,null,null,null,null,null,null,null,null,null,null,null,null,null,null,null,null,null,null,null,null,null,null,null,null,null,null,null,null,null,null,null,null,null,null,null,null,null,null,null,null,null,null,null,null,null,null,null,null,null,null,null,null,null,null,null,null,null,null,null,null,null,null,null,null,null,null,null,null,null,null,null,null,null,null,null,null,null,null,null,null,null,null,null,null,null,null,null,null,null,null,null,null,null,null,null,null,null,null,null,null,null,null,null,null,null,null,null,null,null,null,null,null,null,null,null,null,null,null,null,null,null,null,null,null,null,null,null,null,null,null,null,null,null,null,null,null,null,null,null,null,null,null,null,null,null,null,null,null,null,null,null,null,null,null,null,null,null,null,null,null,null,null,null,null,null,null,null,null,null,null,null,null,null,null,null,null,null,null,null,null,null,null,null,null,null,null,null,null,null,null,null,null,null,null,null,null,null,null,null,null,null,null,null,null,null,null,null,null,null,null,null,null,null,null,null,null,null,null,null,null,null,null,null,null,null,null,null,null,null,null,null,null,null,null,null,null,null,null,null,null,null,null,null,null,null,null,null,null,null,null,null,null,null,null,null,null,null,null,null,null,null,null,null,null,null,null,null,null,950,124]
[null,null,null,null,null,null,null,null,null,null,null,null,null,null,null,null,null,null,null,null,null,null,null,null,null,null,null,null,null,null,null,null,null,null,null,null,null,null,null,null,null,null,null,null,null,null,null,null,null,null,null,null,null,null,null,null,null,null,null,null,null,null,null,null,null,null,null,null,null,null,null,null,null,null,null,null,null,null,null,null,null,null,null,null,null,null,null,null,null,null,null,null,null,null,null,null,null,null,null,null,null,null,null,null,null,null,null,null,null,null,null,null,null,null,null,null,null,null,null,null,null,null,null,null,null,null,null,null,null,null,null,null,null,null,null,null,null,null,null,null,null,null,null,null,null,null,null,null,null,null,null,null,null,null,null,null,null,null,null,null,null,null,null,null,null,null,null,null,null,null,null,null,null,null,null,null,null,null,null,null,null,null,null,null,null,null,null,null,null,null,null,null,null,null,null,null,null,null,null,null,null,null,null,null,null,null,null,null,null,null,null,null,null,null,null,null,null,null,null,null,null,null,null,null,null,null,null,null,null,null,null,null,null,null,null,null,null,null,null,null,null,null,null,null,null,null,null,null,null,null,null,null,null,null,null,null,null,null,null,null,null,null,null,null,null,null,null,null,null,null,null,null,null,null,null,null,null,null,null,null,null,null,null,null,null,null,null,null,null,null,null,null,null,null,null,null,null,null,null,null,null,null,null,null,null,null,null,null,null,null,null,null,null,null,null,null,null,null,null,null,null,null,null,null,null,null,null,null,null,null,null,null,null,null,null,null,null,null,null,null,null,null,null,null,null,null,null,null,null,null,null,null,null,null,null,null,null,null,null,null,null,null,null,null,null,null,null,null,null,null,null,null,null,null,null,null,null,null,null,null,null,null,null,null,null,null,null,null,null,null,null,null,null,null,null,null,null,null,null,null,null,null,null,null,null,null,null,null,null,null,null,null,null,null,null,null,null,null,null,null,null,null,null,null,null,null,null,null,null,null,null,null,null,null,null,null,null,null,null,null,null,null,null,null,null,null,null,null,null,null,null,null,null,null,null,null,null,null,null,null,null,null,null,null,null,null,null,null,null,null,null,null,null,null,null,null,null,null,null,null,null,null,null,null,null,null,null,null,null,null,null,null,null,null,null,null,null,null,null,null,null,null,null,null,null,null,null,null,null,null,null,null,null,null,null,null,null,null,null,null,null,null,null,null,null,null,null,null,null,null,null,null,null,null,null,null,null,1045,148]
[null,null,null,null,null,null,null,null,null,null,null,null,null,null,null,null,null,null,null,null,null,null,null,null,null,null,null,null,null,null,null,null,null,null,null,null,null,null,null,null,null,null,null,null,null,null,null,null,null,null,null,null,null,null,null,null,null,null,null,null,null,null,null,null,null,null,null,null,null,null,null,null,null,null,null,null,null,null,null,null,null,null,null,null,null,null,null,null,null,null,null,null,null,null,null,null,null,null,null,null,null,null,null,null,null,null,null,null,null,null,null,null,null,null,null,null,null,null,null,null,null,null,null,null,null,null,null,null,null,null,null,null,null,null,null,null,null,null,null,null,null,null,null,null,null,null,null,null,null,null,null,null,null,null,null,null,null,null,null,null,null,null,null,null,null,null,null,null,null,null,null,null,null,null,null,null,null,null,null,null,null,null,null,null,null,null,null,null,null,null,null,null,null,null,null,null,null,null,null,null,null,null,null,null,null,null,null,null,null,null,null,null,null,null,null,null,null,null,null,null,null,null,null,null,null,null,null,null,null,null,null,null,null,null,null,null,null,null,null,null,null,null,null,null,null,null,null,null,null,null,null,null,null,null,null,null,null,null,null,null,null,null,null,null,null,null,null,null,null,null,null,null,null,null,null,null,null,null,null,null,null,null,null,null,null,null,null,null,null,null,null,null,null,null,null,null,null,null,null,null,null,null,null,null,null,null,null,null,null,null,null,null,null,null,null,null,null,null,null,null,null,null,null,null,null,null,null,null,null,null,null,null,null,null,null,null,null,null,null,null,null,null,null,null,null,null,null,null,null,null,null,null,null,null,null,null,null,null,null,null,null,null,null,null,null,null,null,null,null,null,null,null,null,null,null,null,null,null,null,null,null,null,null,null,null,null,null,null,null,null,null,null,null,null,null,null,null,null,null,null,null,null,null,null,null,null,null,null,null,null,null,null,null,null,null,null,null,null,null,null,null,null,null,null,null,null,null,null,null,null,null,null,null,null,null,null,null,null,null,null,null,null,null,null,null,null,null,null,null,null,null,null,null,null,null,null,null,null,null,null,null,null,null,null,null,null,null,null,null,null,null,null,null,null,null,null,null,null,null,null,null,null,null,null,null,null,null,null,null,null,null,null,null,null,null,null,null,null,null,null,null,null,null,null,null,null,null,null,null,null,null,null,null,null,null,null,null,null,null,null,null,null,null,null,null,null,null,null,null,null,null,null,null,null,null,null,null,838,111]
[null,null,null,null,null,null,null,null,null,null,null,null,null,null,null,null,null,null,null,null,null,null,null,null,null,null,null,null,null,null,null,null,null,null,null,null,null,null,null,null,null,null,null,null,null,null,null,null,null,null,null,null,null,null,null,null,null,null,null,null,null,null,null,null,null,null,null,null,null,null,null,null,null,null,null,null,null,null,null,null,null,null,null,null,null,null,null,null,null,null,null,null,null,null,null,null,null,null,null,null,null,null,null,null,null,null,null,null,null,null,null,null,null,null,null,null,null,null,null,null,null,null,null,null,null,null,null,null,null,null,null,null,null,null,null,null,null,null,null,null,null,null,null,null,null,null,null,null,null,null,null,null,null,null,null,null,null,null,null,null,null,null,null,null,null,null,null,null,null,null,null,null,null,null,null,null,null,null,null,null,null,null,null,null,null,null,null,null,null,null,null,null,null,null,null,null,null,null,null,null,null,null,null,null,null,null,null,null,null,null,null,null,null,null,null,null,null,null,null,null,null,null,null,null,null,null,null,null,null,null,null,null,null,null,null,null,null,null,null,null,null,null,null,null,null,null,null,null,null,null,null,null,null,null,null,null,null,null,null,null,null,null,null,null,null,null,null,null,null,null,null,null,null,null,null,null,null,null,null,null,null,null,null,null,null,null,null,null,null,null,null,null,null,null,null,null,null,null,null,null,null,null,null,null,null,null,null,null,null,null,null,null,null,null,null,null,null,null,null,null,null,null,null,null,null,null,null,null,null,null,null,null,null,null,null,null,null,null,null,null,null,null,null,null,null,null,null,null,null,null,null,null,null,null,null,null,null,null,null,null,null,null,null,null,null,null,null,null,null,null,null,null,null,null,null,null,null,null,null,null,null,null,null,null,null,null,null,null,null,null,null,null,null,null,null,null,null,null,null,null,null,null,null,null,null,null,null,null,null,null,null,null,null,null,null,null,null,null,null,null,null,null,null,null,null,null,null,null,null,null,null,null,null,null,null,null,null,null,null,null,null,null,null,null,null,null,null,null,null,null,null,null,null,null,null,null,null,null,null,null,null,null,null,null,null,null,null,null,null,null,null,null,null,null,null,null,null,null,null,null,null,null,null,null,null,null,null,null,null,null,null,null,null,null,null,null,null,null,null,null,null,null,null,null,null,null,null,null,null,null,null,null,null,null,null,null,null,null,null,null,null,null,null,null,null,null,null,null,null,null,null,null,null,null,null,null,null,2052,73]
[null,null,null,null,null,null,null,null,null,null,null,null,null,null,null,null,null,null,null,null,null,null,null,null,null,null,null,null,null,null,null,null,null,null,null,null,null,null,null,null,null,null,null,null,null,null,null,null,null,null,null,null,null,null,null,null,null,null,null,null,null,null,null,null,null,null,null,null,null,null,null,null,null,null,null,null,null,null,null,null,null,null,null,null,null,null,null,null,null,null,null,null,null,null,null,null,null,null,null,null,null,null,null,null,null,null,null,null,null,null,null,null,null,null,null,null,null,null,null,null,null,null,null,null,null,null,null,null,null,null,null,null,null,null,null,null,null,null,null,null,null,null,null,null,null,null,null,null,null,null,null,null,null,null,null,null,null,null,null,null,null,null,null,null,null,null,null,null,null,null,null,null,null,null,null,null,null,null,null,null,null,null,null,null,null,null,null,null,null,null,null,null,null,null,null,null,null,null,null,null,null,null,null,null,null,null,null,null,null,null,null,null,null,null,null,null,null,null,null,null,null,null,null,null,null,null,null,null,null,null,null,null,null,null,null,null,null,null,null,null,null,null,null,null,null,null,null,null,null,null,null,null,null,null,null,null,null,null,null,null,null,null,null,null,null,null,null,null,null,null,null,null,null,null,null,null,null,null,null,null,null,null,null,null,null,null,null,null,null,null,null,null,null,null,null,null,null,null,null,null,null,null,null,null,null,null,null,null,null,null,null,null,null,null,null,null,null,null,null,null,null,null,null,null,null,null,null,null,null,null,null,null,null,null,null,null,null,null,null,null,null,null,null,null,null,null,null,null,null,null,null,null,null,null,null,null,null,null,null,null,null,null,null,null,null,null,null,null,null,null,null,null,null,null,null,null,null,null,null,null,null,null,null,null,null,null,null,null,null,null,null,null,null,null,null,null,null,null,null,null,null,null,null,null,null,null,null,null,null,null,null,null,null,null,null,null,null,null,null,null,null,null,null,null,null,null,null,null,null,null,null,null,null,null,null,null,null,null,null,null,null,null,null,null,null,null,null,null,null,null,null,null,null,null,null,null,null,null,null,null,null,null,null,null,null,null,null,null,null,null,null,null,null,null,null,null,null,null,null,null,null,null,null,null,null,null,null,null,null,null,null,null,null,null,null,null,null,null,null,null,null,null,null,null,null,null,null,null,null,null,null,null,null,null,null,null,null,null,null,null,null,null,null,null,null,null,null,null,null,null,null,null,null,null,null,null,null,3615,150]
[null,null,null,null,null,null,null,null,null,null,null,null,null,null,null,null,null,null,null,null,null,null,null,null,null,null,null,null,null,null,null,null,null,null,null,null,null,null,null,null,null,null,null,null,null,null,null,null,null,null,null,null,null,null,null,null,null,null,null,null,null,null,null,null,null,null,null,null,null,null,null,null,null,null,null,null,null,null,null,null,null,null,null,null,null,null,null,null,null,null,null,null,null,null,null,null,null,null,null,null,null,null,null,null,null,null,null,null,null,null,null,null,null,null,null,null,null,null,null,null,null,null,null,null,null,null,null,null,null,null,null,null,null,null,null,null,null,null,null,null,null,null,null,null,null,null,null,null,null,null,null,null,null,null,null,null,null,null,null,null,null,null,null,null,null,null,null,null,null,null,null,null,null,null,null,null,null,null,null,null,null,null,null,null,null,null,null,null,null,null,null,null,null,null,null,null,null,null,null,null,null,null,null,null,null,null,null,null,null,null,null,null,null,null,null,null,null,null,null,null,null,null,null,null,null,null,null,null,null,null,null,null,null,null,null,null,null,null,null,null,null,null,null,null,null,null,null,null,null,null,null,null,null,null,null,null,null,null,null,null,null,null,null,null,null,null,null,null,null,null,null,null,null,null,null,null,null,null,null,null,null,null,null,null,null,null,null,null,null,null,null,null,null,null,null,null,null,null,null,null,null,null,null,null,null,null,null,null,null,null,null,null,null,null,null,null,null,null,null,null,null,null,null,null,null,null,null,null,null,null,null,null,null,null,null,null,null,null,null,null,null,null,null,null,null,null,null,null,null,null,null,null,null,null,null,null,null,null,null,null,null,null,null,null,null,null,null,null,null,null,null,null,null,null,null,null,null,null,null,null,null,null,null,null,null,null,null,null,null,null,null,null,null,null,null,null,null,null,null,null,null,null,null,null,null,null,null,null,null,null,null,null,null,null,null,null,null,null,null,null,null,null,null,null,null,null,null,null,null,null,null,null,null,null,null,null,null,null,null,null,null,null,null,null,null,null,null,null,null,null,null,null,null,null,null,null,null,null,null,null,null,null,null,null,null,null,null,null,null,null,null,null,null,null,null,null,null,null,null,null,null,null,null,null,null,null,null,null,null,null,null,null,null,null,null,null,null,null,null,null,null,null,null,null,null,null,null,null,null,null,null,null,null,null,null,null,null,null,null,null,null,null,null,null,null,null,null,null,null,null,null,null,null,null,null,null,null,3364,310]
[null,null,null,null,null,null,null,null,null,null,null,null,null,null,null,null,null,null,null,null,null,null,null,null,null,null,null,null,null,null,null,null,null,null,null,null,null,null,null,null,null,null,null,null,null,null,null,null,null,null,null,null,null,null,null,null,null,null,null,null,null,null,null,null,null,null,null,null,null,null,null,null,null,null,null,null,null,null,null,null,null,null,null,null,null,null,null,null,null,null,null,null,null,null,null,null,null,null,null,null,null,null,null,null,null,null,null,null,null,null,null,null,null,null,null,null,null,null,null,null,null,null,null,null,null,null,null,null,null,null,null,null,null,null,null,null,null,null,null,null,null,null,null,null,null,null,null,null,null,null,null,null,null,null,null,null,null,null,null,null,null,null,null,null,null,null,null,null,null,null,null,null,null,null,null,null,null,null,null,null,null,null,null,null,null,null,null,null,null,null,null,null,null,null,null,null,null,null,null,null,null,null,null,null,null,null,null,null,null,null,null,null,null,null,null,null,null,null,null,null,null,null,null,null,null,null,null,null,null,null,null,null,null,null,null,null,null,null,null,null,null,null,null,null,null,null,null,null,null,null,null,null,null,null,null,null,null,null,null,null,null,null,null,null,null,null,null,null,null,null,null,null,null,null,null,null,null,null,null,null,null,null,null,null,null,null,null,null,null,null,null,null,null,null,null,null,null,null,null,null,null,null,null,null,null,null,null,null,null,null,null,null,null,null,null,null,null,null,null,null,null,null,null,null,null,null,null,null,null,null,null,null,null,null,null,null,null,null,null,null,null,null,null,null,null,null,null,null,null,null,null,null,null,null,null,null,null,null,null,null,null,null,null,null,null,null,null,null,null,null,null,null,null,null,null,null,null,null,null,null,null,null,null,null,null,null,null,null,null,null,null,null,null,null,null,null,null,null,null,null,null,null,null,null,null,null,null,null,null,null,null,null,null,null,null,null,null,null,null,null,null,null,null,null,null,null,null,null,null,null,null,null,null,null,null,null,null,null,null,null,null,null,null,null,null,null,null,null,null,null,null,null,null,null,null,null,null,null,null,null,null,null,null,null,null,null,null,null,null,null,null,null,null,null,null,null,null,null,null,null,null,null,null,null,null,null,null,null,null,null,null,null,null,null,null,null,null,null,null,null,null,null,null,null,null,null,null,null,null,null,null,null,null,null,null,null,null,null,null,null,null,null,null,null,null,null,null,null,null,null,null,null,null,null,null,null,null,2988,446]
[null,null,null,null,null,null,null,null,null,null,null,null,null,null,null,null,null,null,null,null,null,null,null,null,null,null,null,null,null,null,null,null,null,null,null,null,null,null,null,null,null,null,null,null,null,null,null,null,null,null,null,null,null,null,null,null,null,null,null,null,null,null,null,null,null,null,null,null,null,null,null,null,null,null,null,null,null,null,null,null,null,null,null,null,null,null,null,null,null,null,null,null,null,null,null,null,null,null,null,null,null,null,null,null,null,null,null,null,null,null,null,null,null,null,null,null,null,null,null,null,null,null,null,null,null,null,null,null,null,null,null,null,null,null,null,null,null,null,null,null,null,null,null,null,null,null,null,null,null,null,null,null,null,null,null,null,null,null,null,null,null,null,null,null,null,null,null,null,null,null,null,null,null,null,null,null,null,null,null,null,null,null,null,null,null,null,null,null,null,null,null,null,null,null,null,null,null,null,null,null,null,null,null,null,null,null,null,null,null,null,null,null,null,null,null,null,null,null,null,null,null,null,null,null,null,null,null,null,null,null,null,null,null,null,null,null,null,null,null,null,null,null,null,null,null,null,null,null,null,null,null,null,null,null,null,null,null,null,null,null,null,null,null,null,null,null,null,null,null,null,null,null,null,null,null,null,null,null,null,null,null,null,null,null,null,null,null,null,null,null,null,null,null,null,null,null,null,null,null,null,null,null,null,null,null,null,null,null,null,null,null,null,null,null,null,null,null,null,null,null,null,null,null,null,null,null,null,null,null,null,null,null,null,null,null,null,null,null,null,null,null,null,null,null,null,null,null,null,null,null,null,null,null,null,null,null,null,null,null,null,null,null,null,null,null,null,null,null,null,null,null,null,null,null,null,null,null,null,null,null,null,null,null,null,null,null,null,null,null,null,null,null,null,null,null,null,null,null,null,null,null,null,null,null,null,null,null,null,null,null,null,null,null,null,null,null,null,null,null,null,null,null,null,null,null,null,null,null,null,null,null,null,null,null,null,null,null,null,null,null,null,null,null,null,null,null,null,null,null,null,null,null,null,null,null,null,null,null,null,null,null,null,null,null,null,null,null,null,null,null,null,null,null,null,null,null,null,null,null,null,null,null,null,null,null,null,null,null,null,null,null,null,null,null,null,null,null,null,null,null,null,null,null,null,null,null,null,null,null,null,null,null,null,null,null,null,null,null,null,null,null,null,null,null,null,null,null,null,null,null,null,null,null,null,null,null,null,3010,558]
[null,null,null,null,null,null,null,null,null,null,null,null,null,null,null,null,null,null,null,null,null,null,null,null,null,null,null,null,null,null,null,null,null,null,null,null,null,null,null,null,null,null,null,null,null,null,null,null,null,null,null,null,null,null,null,null,null,null,null,null,null,null,null,null,null,null,null,null,null,null,null,null,null,null,null,null,null,null,null,null,null,null,null,null,null,null,null,null,null,null,null,null,null,null,null,null,null,null,null,null,null,null,null,null,null,null,null,null,null,null,null,null,null,null,null,null,null,null,null,null,null,null,null,null,null,null,null,null,null,null,null,null,null,null,null,null,null,null,null,null,null,null,null,null,null,null,null,null,null,null,null,null,null,null,null,null,null,null,null,null,null,null,null,null,null,null,null,null,null,null,null,null,null,null,null,null,null,null,null,null,null,null,null,null,null,null,null,null,null,null,null,null,null,null,null,null,null,null,null,null,null,null,null,null,null,null,null,null,null,null,null,null,null,null,null,null,null,null,null,null,null,null,null,null,null,null,null,null,null,null,null,null,null,null,null,null,null,null,null,null,null,null,null,null,null,null,null,null,null,null,null,null,null,null,null,null,null,null,null,null,null,null,null,null,null,null,null,null,null,null,null,null,null,null,null,null,null,null,null,null,null,null,null,null,null,null,null,null,null,null,null,null,null,null,null,null,null,null,null,null,null,null,null,null,null,null,null,null,null,null,null,null,null,null,null,null,null,null,null,null,null,null,null,null,null,null,null,null,null,null,null,null,null,null,null,null,null,null,null,null,null,null,null,null,null,null,null,null,null,null,null,null,null,null,null,null,null,null,null,null,null,null,null,null,null,null,null,null,null,null,null,null,null,null,null,null,null,null,null,null,null,null,null,null,null,null,null,null,null,null,null,null,null,null,null,null,null,null,null,null,null,null,null,null,null,null,null,null,null,null,null,null,null,null,null,null,null,null,null,null,null,null,null,null,null,null,null,null,null,null,null,null,null,null,null,null,null,null,null,null,null,null,null,null,null,null,null,null,null,null,null,null,null,null,null,null,null,null,null,null,null,null,null,null,null,null,null,null,null,null,null,null,null,null,null,null,null,null,null,null,null,null,null,null,null,null,null,null,null,null,null,null,null,null,null,null,null,null,null,null,null,null,null,null,null,null,null,null,null,null,null,null,null,null,null,null,null,null,null,null,null,null,null,null,null,null,null,null,null,null,null,null,null,null,null,null,null,2745,654]
[null,null,null,null,null,null,null,null,null,null,null,null,null,null,null,null,null,null,null,null,null,null,null,null,null,null,null,null,null,null,null,null,null,null,null,null,null,null,null,null,null,null,null,null,null,null,null,null,null,null,null,null,null,null,null,null,null,null,null,null,null,null,null,null,null,null,null,null,null,null,null,null,null,null,null,null,null,null,null,null,null,null,null,null,null,null,null,null,null,null,null,null,null,null,null,null,null,null,null,null,null,null,null,null,null,null,null,null,null,null,null,null,null,null,null,null,null,null,null,null,null,null,null,null,null,null,null,null,null,null,null,null,null,null,null,null,null,null,null,null,null,null,null,null,null,null,null,null,null,null,null,null,null,null,null,null,null,null,null,null,null,null,null,null,null,null,null,null,null,null,null,null,null,null,null,null,null,null,null,null,null,null,null,null,null,null,null,null,null,null,null,null,null,null,null,null,null,null,null,null,null,null,null,null,null,null,null,null,null,null,null,null,null,null,null,null,null,null,null,null,null,null,null,null,null,null,null,null,null,null,null,null,null,null,null,null,null,null,null,null,null,null,null,null,null,null,null,null,null,null,null,null,null,null,null,null,null,null,null,null,null,null,null,null,null,null,null,null,null,null,null,null,null,null,null,null,null,null,null,null,null,null,null,null,null,null,null,null,null,null,null,null,null,null,null,null,null,null,null,null,null,null,null,null,null,null,null,null,null,null,null,null,null,null,null,null,null,null,null,null,null,null,null,null,null,null,null,null,null,null,null,null,null,null,null,null,null,null,null,null,null,null,null,null,null,null,null,null,null,null,null,null,null,null,null,null,null,null,null,null,null,null,null,null,null,null,null,null,null,null,null,null,null,null,null,null,null,null,null,null,null,null,null,null,null,null,null,null,null,null,null,null,null,null,null,null,null,null,null,null,null,null,null,null,null,null,null,null,null,null,null,null,null,null,null,null,null,null,null,null,null,null,null,null,null,null,null,null,null,null,null,null,null,null,null,null,null,null,null,null,null,null,null,null,null,null,null,null,null,null,null,null,null,null,null,null,null,null,null,null,null,null,null,null,null,null,null,null,null,null,null,null,null,null,null,null,null,null,null,null,null,null,null,null,null,null,null,null,null,null,null,null,null,null,null,null,null,null,null,null,null,null,null,null,null,null,null,null,null,null,null,null,null,null,null,null,null,null,null,null,null,null,null,null,null,null,null,null,null,null,null,null,null,null,null,null,null,2305,721]
[null,null,null,null,null,null,null,null,null,null,null,null,null,null,null,null,null,null,null,null,null,null,null,null,null,null,null,null,null,null,null,null,null,null,null,null,null,null,null,null,null,null,null,null,null,null,null,null,null,null,null,null,null,null,null,null,null,null,null,null,null,null,null,null,null,null,null,null,null,null,null,null,null,null,null,null,null,null,null,null,null,null,null,null,null,null,null,null,null,null,null,null,null,null,null,null,null,null,null,null,null,null,null,null,null,null,null,null,null,null,null,null,null,null,null,null,null,null,null,null,null,null,null,null,null,null,null,null,null,null,null,null,null,null,null,null,null,null,null,null,null,null,null,null,null,null,null,null,null,null,null,null,null,null,null,null,null,null,null,null,null,null,null,null,null,null,null,null,null,null,null,null,null,null,null,null,null,null,null,null,null,null,null,null,null,null,null,null,null,null,null,null,null,null,null,null,null,null,null,null,null,null,null,null,null,null,null,null,null,null,null,null,null,null,null,null,null,null,null,null,null,null,null,null,null,null,null,null,null,null,null,null,null,null,null,null,null,null,null,null,null,null,null,null,null,null,null,null,null,null,null,null,null,null,null,null,null,null,null,null,null,null,null,null,null,null,null,null,null,null,null,null,null,null,null,null,null,null,null,null,null,null,null,null,null,null,null,null,null,null,null,null,null,null,null,null,null,null,null,null,null,null,null,null,null,null,null,null,null,null,null,null,null,null,null,null,null,null,null,null,null,null,null,null,null,null,null,null,null,null,null,null,null,null,null,null,null,null,null,null,null,null,null,null,null,null,null,null,null,null,null,null,null,null,null,null,null,null,null,null,null,null,null,null,null,null,null,null,null,null,null,null,null,null,null,null,null,null,null,null,null,null,null,null,null,null,null,null,null,null,null,null,null,null,null,null,null,null,null,null,null,null,null,null,null,null,null,null,null,null,null,null,null,null,null,null,null,null,null,null,null,null,null,null,null,null,null,null,null,null,null,null,null,null,null,null,null,null,null,null,null,null,null,null,null,null,null,null,null,null,null,null,null,null,null,null,null,null,null,null,null,null,null,null,null,null,null,null,null,null,null,null,null,null,null,null,null,null,null,null,null,null,null,null,null,null,null,null,null,null,null,null,null,null,null,null,null,null,null,null,null,null,null,null,null,null,null,null,null,null,null,null,null,null,null,null,null,null,null,null,null,null,null,null,null,null,null,null,null,null,null,null,null,null,null,null,null,1858,791]
[null,null,null,null,null,null,null,null,null,null,null,null,null,null,null,null,null,null,null,null,null,null,null,null,null,null,null,null,null,null,null,null,null,null,null,null,null,null,null,null,null,null,null,null,null,null,null,null,null,null,null,null,null,null,null,null,null,null,null,null,null,null,null,null,null,null,null,null,null,null,null,null,null,null,null,null,null,null,null,null,null,null,null,null,null,null,null,null,null,null,null,null,null,null,null,null,null,null,null,null,null,null,null,null,null,null,null,null,null,null,null,null,null,null,null,null,null,null,null,null,null,null,null,null,null,null,null,null,null,null,null,null,null,null,null,null,null,null,null,null,null,null,null,null,null,null,null,null,null,null,null,null,null,null,null,null,null,null,null,null,null,null,null,null,null,null,null,null,null,null,null,null,null,null,null,null,null,null,null,null,null,null,null,null,null,null,null,null,null,null,null,null,null,null,null,null,null,null,null,null,null,null,null,null,null,null,null,null,null,null,null,null,null,null,null,null,null,null,null,null,null,null,null,null,null,null,null,null,null,null,null,null,null,null,null,null,null,null,null,null,null,null,null,null,null,null,null,null,null,null,null,null,null,null,null,null,null,null,null,null,null,null,null,null,null,null,null,null,null,null,null,null,null,null,null,null,null,null,null,null,null,null,null,null,null,null,null,null,null,null,null,null,null,null,null,null,null,null,null,null,null,null,null,null,null,null,null,null,null,null,null,null,null,null,null,null,null,null,null,null,null,null,null,null,null,null,null,null,null,null,null,null,null,null,null,null,null,null,null,null,null,null,null,null,null,null,null,null,null,null,null,null,null,null,null,null,null,null,null,null,null,null,null,null,null,null,null,null,null,null,null,null,null,null,null,null,null,null,null,null,null,null,null,null,null,null,null,null,null,null,null,null,null,null,null,null,null,null,null,null,null,null,null,null,null,null,null,null,null,null,null,null,null,null,null,null,null,null,null,null,null,null,null,null,null,null,null,null,null,null,null,null,null,null,null,null,null,null,null,null,null,null,null,null,null,null,null,null,null,null,null,null,null,null,null,null,null,null,null,null,null,null,null,null,null,null,null,null,null,null,null,null,null,null,null,null,null,null,null,null,null,null,null,null,null,null,null,null,null,null,null,null,null,null,null,null,null,null,null,null,null,null,null,null,null,null,null,null,null,null,null,null,null,null,null,null,null,null,null,null,null,null,null,null,null,null,null,null,null,null,null,null,null,null,null,null,null,1914,504]
[null,null,null,null,null,null,null,null,null,null,null,null,null,null,null,null,null,null,null,null,null,null,null,null,null,null,null,null,null,null,null,null,null,null,null,null,null,null,null,null,null,null,null,null,null,null,null,null,null,null,null,null,null,null,null,null,null,null,null,null,null,null,null,null,null,null,null,null,null,null,null,null,null,null,null,null,null,null,null,null,null,null,null,null,null,null,null,null,null,null,null,null,null,null,null,null,null,null,null,null,null,null,null,null,null,null,null,null,null,null,null,null,null,null,null,null,null,null,null,null,null,null,null,null,null,null,null,null,null,null,null,null,null,null,null,null,null,null,null,null,null,null,null,null,null,null,null,null,null,null,null,null,null,null,null,null,null,null,null,null,null,null,null,null,null,null,null,null,null,null,null,null,null,null,null,null,null,null,null,null,null,null,null,null,null,null,null,null,null,null,null,null,null,null,null,null,null,null,null,null,null,null,null,null,null,null,null,null,null,null,null,null,null,null,null,null,null,null,null,null,null,null,null,null,null,null,null,null,null,null,null,null,null,null,null,null,null,null,null,null,null,null,null,null,null,null,null,null,null,null,null,null,null,null,null,null,null,null,null,null,null,null,null,null,null,null,null,null,null,null,null,null,null,null,null,null,null,null,null,null,null,null,null,null,null,null,null,null,null,null,null,null,null,null,null,null,null,null,null,null,null,null,null,null,null,null,null,null,null,null,null,null,null,null,null,null,null,null,null,null,null,null,null,null,null,null,null,null,null,null,null,null,null,null,null,null,null,null,null,null,null,null,null,null,null,null,null,null,null,null,null,null,null,null,null,null,null,null,null,null,null,null,null,null,null,null,null,null,null,null,null,null,null,null,null,null,null,null,null,null,null,null,null,null,null,null,null,null,null,null,null,null,null,null,null,null,null,null,null,null,null,null,null,null,null,null,null,null,null,null,null,null,null,null,null,null,null,null,null,null,null,null,null,null,null,null,null,null,null,null,null,null,null,null,null,null,null,null,null,null,null,null,null,null,null,null,null,null,null,null,null,null,null,null,null,null,null,null,null,null,null,null,null,null,null,null,null,null,null,null,null,null,null,null,null,null,null,null,null,null,null,null,null,null,null,null,null,null,null,null,null,null,null,null,null,null,null,null,null,null,null,null,null,null,null,null,null,null,null,null,null,null,null,null,null,null,null,null,null,null,null,null,null,null,null,null,null,null,null,null,null,null,null,null,null,null,null,1926,382]
[null,null,null,null,null,null,null,null,null,null,null,null,null,null,null,null,null,null,null,null,null,null,null,null,null,null,null,null,null,null,null,null,null,null,null,null,null,null,null,null,null,null,null,null,null,null,null,null,null,null,null,null,null,null,null,null,null,null,null,null,null,null,null,null,null,null,null,null,null,null,null,null,null,null,null,null,null,null,null,null,null,null,null,null,null,null,null,null,null,null,null,null,null,null,null,null,null,null,null,null,null,null,null,null,null,null,null,null,null,null,null,null,null,null,null,null,null,null,null,null,null,null,null,null,null,null,null,null,null,null,null,null,null,null,null,null,null,null,null,null,null,null,null,null,null,null,null,null,null,null,null,null,null,null,null,null,null,null,null,null,null,null,null,null,null,null,null,null,null,null,null,null,null,null,null,null,null,null,null,null,null,null,null,null,null,null,null,null,null,null,null,null,null,null,null,null,null,null,null,null,null,null,null,null,null,null,null,null,null,null,null,null,null,null,null,null,null,null,null,null,null,null,null,null,null,null,null,null,null,null,null,null,null,null,null,null,null,null,null,null,null,null,null,null,null,null,null,null,null,null,null,null,null,null,null,null,null,null,null,null,null,null,null,null,null,null,null,null,null,null,null,null,null,null,null,null,null,null,null,null,null,null,null,null,null,null,null,null,null,null,null,null,null,null,null,null,null,null,null,null,null,null,null,null,null,null,null,null,null,null,null,null,null,null,null,null,null,null,null,null,null,null,null,null,null,null,null,null,null,null,null,null,null,null,null,null,null,null,null,null,null,null,null,null,null,null,null,null,null,null,null,null,null,null,null,null,null,null,null,null,null,null,null,null,null,null,null,null,null,null,null,null,null,null,null,null,null,null,null,null,null,null,null,null,null,null,null,null,null,null,null,null,null,null,null,null,null,null,null,null,null,null,null,null,null,null,null,null,null,null,null,null,null,null,null,null,null,null,null,null,null,null,null,null,null,null,null,null,null,null,null,null,null,null,null,null,null,null,null,null,null,null,null,null,null,null,null,null,null,null,null,null,null,null,null,null,null,null,null,null,null,null,null,null,null,null,null,null,null,null,null,null,null,null,null,null,null,null,null,null,null,null,null,null,null,null,null,null,null,null,null,null,null,null,null,null,null,null,null,null,null,null,null,null,null,null,null,null,null,null,null,null,null,null,null,null,null,null,null,null,null,null,null,null,null,null,null,null,null,null,null,null,null,null,null,null,null,1713,458]
[null,null,null,null,null,null,null,null,null,null,null,null,null,null,null,null,null,null,null,null,null,null,null,null,null,null,null,null,null,null,null,null,null,null,null,null,null,null,null,null,null,null,null,null,null,null,null,null,null,null,null,null,null,null,null,null,null,null,null,null,null,null,null,null,null,null,null,null,null,null,null,null,null,null,null,null,null,null,null,null,null,null,null,null,null,null,null,null,null,null,null,null,null,null,null,null,null,null,null,null,null,null,null,null,null,null,null,null,null,null,null,null,null,null,null,null,null,null,null,null,null,null,null,null,null,null,null,null,null,null,null,null,null,null,null,null,null,null,null,null,null,null,null,null,null,null,null,null,null,null,null,null,null,null,null,null,null,null,null,null,null,null,null,null,null,null,null,null,null,null,null,null,null,null,null,null,null,null,null,null,null,null,null,null,null,null,null,null,null,null,null,null,null,null,null,null,null,null,null,null,null,null,null,null,null,null,null,null,null,null,null,null,null,null,null,null,null,null,null,null,null,null,null,null,null,null,null,null,null,null,null,null,null,null,null,null,null,null,null,null,null,null,null,null,null,null,null,null,null,null,null,null,null,null,null,null,null,null,null,null,null,null,null,null,null,null,null,null,null,null,null,null,null,null,null,null,null,null,null,null,null,null,null,null,null,null,null,null,null,null,null,null,null,null,null,null,null,null,null,null,null,null,null,null,null,null,null,null,null,null,null,null,null,null,null,null,null,null,null,null,null,null,null,null,null,null,null,null,null,null,null,null,null,null,null,null,null,null,null,null,null,null,null,null,null,null,null,null,null,null,null,null,null,null,null,null,null,null,null,null,null,null,null,null,null,null,null,null,null,null,null,null,null,null,null,null,null,null,null,null,null,null,null,null,null,null,null,null,null,null,null,null,null,null,null,null,null,null,null,null,null,null,null,null,null,null,null,null,null,null,null,null,null,null,null,null,null,null,null,null,null,null,null,null,null,null,null,null,null,null,null,null,null,null,null,null,null,null,null,null,null,null,null,null,null,null,null,null,null,null,null,null,null,null,null,null,null,null,null,null,null,null,null,null,null,null,null,null,null,null,null,null,null,null,null,null,null,null,null,null,null,null,null,null,null,null,null,null,null,null,null,null,null,null,null,null,null,null,null,null,null,null,null,null,null,null,null,null,null,null,null,null,null,null,null,null,null,null,null,null,null,null,null,null,null,null,null,null,null,null,null,null,null,null,null,null,null,1923,263]
[null,null,null,null,null,null,null,null,null,null,null,null,null,null,null,null,null,null,null,null,null,null,null,null,null,null,null,null,null,null,null,null,null,null,null,null,null,null,null,null,null,null,null,null,null,null,null,null,null,null,null,null,null,null,null,null,null,null,null,null,null,null,null,null,null,null,null,null,null,null,null,null,null,null,null,null,null,null,null,null,null,null,null,null,null,null,null,null,null,null,null,null,null,null,null,null,null,null,null,null,null,null,null,null,null,null,null,null,null,null,null,null,null,null,null,null,null,null,null,null,null,null,null,null,null,null,null,null,null,null,null,null,null,null,null,null,null,null,null,null,null,null,null,null,null,null,null,null,null,null,null,null,null,null,null,null,null,null,null,null,null,null,null,null,null,null,null,null,null,null,null,null,null,null,null,null,null,null,null,null,null,null,null,null,null,null,null,null,null,null,null,null,null,null,null,null,null,null,null,null,null,null,null,null,null,null,null,null,null,null,null,null,null,null,null,null,null,null,null,null,null,null,null,null,null,null,null,null,null,null,null,null,null,null,null,null,null,null,null,null,null,null,null,null,null,null,null,null,null,null,null,null,null,null,null,null,null,null,null,null,null,null,null,null,null,null,null,null,null,null,null,null,null,null,null,null,null,null,null,null,null,null,null,null,null,null,null,null,null,null,null,null,null,null,null,null,null,null,null,null,null,null,null,null,null,null,null,null,null,null,null,null,null,null,null,null,null,null,null,null,null,null,null,null,null,null,null,null,null,null,null,null,null,null,null,null,null,null,null,null,null,null,null,null,null,null,null,null,null,null,null,null,null,null,null,null,null,null,null,null,null,null,null,null,null,null,null,null,null,null,null,null,null,null,null,null,null,null,null,null,null,null,null,null,null,null,null,null,null,null,null,null,null,null,null,null,null,null,null,null,null,null,null,null,null,null,null,null,null,null,null,null,null,null,null,null,null,null,null,null,null,null,null,null,null,null,null,null,null,null,null,null,null,null,null,null,null,null,null,null,null,null,null,null,null,null,null,null,null,null,null,null,null,null,null,null,null,null,null,null,null,null,null,null,null,null,null,null,null,null,null,null,null,null,null,null,null,null,null,null,null,null,null,null,null,null,null,null,null,null,null,null,null,null,null,null,null,null,null,null,null,null,null,null,null,null,null,null,null,null,null,null,null,null,null,null,null,null,null,null,null,null,null,null,null,null,null,null,null,null,null,null,null,null,null,null,null,1858,223]
[null,null,null,null,null,null,null,null,null,null,null,null,null,null,null,null,null,null,null,null,null,null,null,null,null,null,null,null,null,null,null,null,null,null,null,null,null,null,null,null,null,null,null,null,null,null,null,null,null,null,null,null,null,null,null,null,null,null,null,null,null,null,null,null,null,null,null,null,null,null,null,null,null,null,null,null,null,null,null,null,null,null,null,null,null,null,null,null,null,null,null,null,null,null,null,null,null,null,null,null,null,null,null,null,null,null,null,null,null,null,null,null,null,null,null,null,null,null,null,null,null,null,null,null,null,null,null,null,null,null,null,null,null,null,null,null,null,null,null,null,null,null,null,null,null,null,null,null,null,null,null,null,null,null,null,null,null,null,null,null,null,null,null,null,null,null,null,null,null,null,null,null,null,null,null,null,null,null,null,null,null,null,null,null,null,null,null,null,null,null,null,null,null,null,null,null,null,null,null,null,null,null,null,null,null,null,null,null,null,null,null,null,null,null,null,null,null,null,null,null,null,null,null,null,null,null,null,null,null,null,null,null,null,null,null,null,null,null,null,null,null,null,null,null,null,null,null,null,null,null,null,null,null,null,null,null,null,null,null,null,null,null,null,null,null,null,null,null,null,null,null,null,null,null,null,null,null,null,null,null,null,null,null,null,null,null,null,null,null,null,null,null,null,null,null,null,null,null,null,null,null,null,null,null,null,null,null,null,null,null,null,null,null,null,null,null,null,null,null,null,null,null,null,null,null,null,null,null,null,null,null,null,null,null,null,null,null,null,null,null,null,null,null,null,null,null,null,null,null,null,null,null,null,null,null,null,null,null,null,null,null,null,null,null,null,null,null,null,null,null,null,null,null,null,null,null,null,null,null,null,null,null,null,null,null,null,null,null,null,null,null,null,null,null,null,null,null,null,null,null,null,null,null,null,null,null,null,null,null,null,null,null,null,null,null,null,null,null,null,null,null,null,null,null,null,null,null,null,null,null,null,null,null,null,null,null,null,null,null,null,null,null,null,null,null,null,null,null,null,null,null,null,null,null,null,null,null,null,null,null,null,null,null,null,null,null,null,null,null,null,null,null,null,null,null,null,null,null,null,null,null,null,null,null,null,null,null,null,null,null,null,null,null,null,null,null,null,null,null,null,null,null,null,null,null,null,null,null,null,null,null,null,null,null,null,null,null,null,null,null,null,null,null,null,null,null,null,null,null,null,null,null,null,null,null,null,null,2474,132]
[null,null,null,null,null,null,null,null,null,null,null,null,null,null,null,null,null,null,null,null,null,null,null,null,null,null,null,null,null,null,null,null,null,null,null,null,null,null,null,null,null,null,null,null,null,null,null,null,null,null,null,null,null,null,null,null,null,null,null,null,null,null,null,null,null,null,null,null,null,null,null,null,null,null,null,null,null,null,null,null,null,null,null,null,null,null,null,null,null,null,null,null,null,null,null,null,null,null,null,null,null,null,null,null,null,null,null,null,null,null,null,null,null,null,null,null,null,null,null,null,null,null,null,null,null,null,null,null,null,null,null,null,null,null,null,null,null,null,null,null,null,null,null,null,null,null,null,null,null,null,null,null,null,null,null,null,null,null,null,null,null,null,null,null,null,null,null,null,null,null,null,null,null,null,null,null,null,null,null,null,null,null,null,null,null,null,null,null,null,null,null,null,null,null,null,null,null,null,null,null,null,null,null,null,null,null,null,null,null,null,null,null,null,null,null,null,null,null,null,null,null,null,null,null,null,null,null,null,null,null,null,null,null,null,null,null,null,null,null,null,null,null,null,null,null,null,null,null,null,null,null,null,null,null,null,null,null,null,null,null,null,null,null,null,null,null,null,null,null,null,null,null,null,null,null,null,null,null,null,null,null,null,null,null,null,null,null,null,null,null,null,null,null,null,null,null,null,null,null,null,null,null,null,null,null,null,null,null,null,null,null,null,null,null,null,null,null,null,null,null,null,null,null,null,null,null,null,null,null,null,null,null,null,null,null,null,null,null,null,null,null,null,null,null,null,null,null,null,null,null,null,null,null,null,null,null,null,null,null,null,null,null,null,null,null,null,null,null,null,null,null,null,null,null,null,null,null,null,null,null,null,null,null,null,null,null,null,null,null,null,null,null,null,null,null,null,null,null,null,null,null,null,null,null,null,null,null,null,null,null,null,null,null,null,null,null,null,null,null,null,null,null,null,null,null,null,null,null,null,null,null,null,null,null,null,null,null,null,null,null,null,null,null,null,null,null,null,null,null,null,null,null,null,null,null,null,null,null,null,null,null,null,null,null,null,null,null,null,null,null,null,null,null,null,null,null,null,null,null,null,null,null,null,null,null,null,null,null,null,null,null,null,null,null,null,null,null,null,null,null,null,null,null,null,null,null,null,null,null,null,null,null,null,null,null,null,null,null,null,null,null,null,null,null,null,null,null,null,null,null,null,null,null,null,null,null,null,2862,54]
[null,null,null,null,null,null,null,null,null,null,null,null,null,null,null,null,null,null,null,null,null,null,null,null,null,null,null,null,null,null,null,null,null,null,null,null,null,null,null,null,null,null,null,null,null,null,null,null,null,null,null,null,null,null,null,null,null,null,null,null,null,null,null,null,null,null,null,null,null,null,null,null,null,null,null,null,null,null,null,null,null,null,null,null,null,null,null,null,null,null,null,null,null,null,null,null,null,null,null,null,null,null,null,null,null,null,null,null,null,null,null,null,null,null,null,null,null,null,null,null,null,null,null,null,null,null,null,null,null,null,null,null,null,null,null,null,null,null,null,null,null,null,null,null,null,null,null,null,null,null,null,null,null,null,null,null,null,null,null,null,null,null,null,null,null,null,null,null,null,null,null,null,null,null,null,null,null,null,null,null,null,null,null,null,null,null,null,null,null,null,null,null,null,null,null,null,null,null,null,null,null,null,null,null,null,null,null,null,null,null,null,null,null,null,null,null,null,null,null,null,null,null,null,null,null,null,null,null,null,null,null,null,null,null,null,null,null,null,null,null,null,null,null,null,null,null,null,null,null,null,null,null,null,null,null,null,null,null,null,null,null,null,null,null,null,null,null,null,null,null,null,null,null,null,null,null,null,null,null,null,null,null,null,null,null,null,null,null,null,null,null,null,null,null,null,null,null,null,null,null,null,null,null,null,null,null,null,null,null,null,null,null,null,null,null,null,null,null,null,null,null,null,null,null,null,null,null,null,null,null,null,null,null,null,null,null,null,null,null,null,null,null,null,null,null,null,null,null,null,null,null,null,null,null,null,null,null,null,null,null,null,null,null,null,null,null,null,null,null,null,null,null,null,null,null,null,null,null,null,null,null,null,null,null,null,null,null,null,null,null,null,null,null,null,null,null,null,null,null,null,null,null,null,null,null,null,null,null,null,null,null,null,null,null,null,null,null,null,null,null,null,null,null,null,null,null,null,null,null,null,null,null,null,null,null,null,null,null,null,null,null,null,null,null,null,null,null,null,null,null,null,null,null,null,null,null,null,null,null,null,null,null,null,null,null,null,null,null,null,null,null,null,null,null,null,null,null,null,null,null,null,null,null,null,null,null,null,null,null,null,null,null,null,null,null,null,null,null,null,null,null,null,null,null,null,null,null,null,null,null,null,null,null,null,null,null,null,null,null,null,null,null,null,null,null,null,null,null,null,null,null,null,null,null,null,null,null,2800,40]
[null,null,null,null,null,null,null,null,null,null,null,null,null,null,null,null,null,null,null,null,null,null,null,null,null,null,null,null,null,null,null,null,null,null,null,null,null,null,null,null,null,null,null,null,null,null,null,null,null,null,null,null,null,null,null,null,null,null,null,null,null,null,null,null,null,null,null,null,null,null,null,null,null,null,null,null,null,null,null,null,null,null,null,null,null,null,null,null,null,null,null,null,null,null,null,null,null,null,null,null,null,null,null,null,null,null,null,null,null,null,null,null,null,null,null,null,null,null,null,null,null,null,null,null,null,null,null,null,null,null,null,null,null,null,null,null,null,null,null,null,null,null,null,null,null,null,null,null,null,null,null,null,null,null,null,null,null,null,null,null,null,null,null,null,null,null,null,null,null,null,null,null,null,null,null,null,null,null,null,null,null,null,null,null,null,null,null,null,null,null,null,null,null,null,null,null,null,null,null,null,null,null,null,null,null,null,null,null,null,null,null,null,null,null,null,null,null,null,null,null,null,null,null,null,null,null,null,null,null,null,null,null,null,null,null,null,null,null,null,null,null,null,null,null,null,null,null,null,null,null,null,null,null,null,null,null,null,null,null,null,null,null,null,null,null,null,null,null,null,null,null,null,null,null,null,null,null,null,null,null,null,null,null,null,null,null,null,null,null,null,null,null,null,null,null,null,null,null,null,null,null,null,null,null,null,null,null,null,null,null,null,null,null,null,null,null,null,null,null,null,null,null,null,null,null,null,null,null,null,null,null,null,null,null,null,null,null,null,null,null,null,null,null,null,null,null,null,null,null,null,null,null,null,null,null,null,null,null,null,null,null,null,null,null,null,null,null,null,null,null,null,null,null,null,null,null,null,null,null,null,null,null,null,null,null,null,null,null,null,null,null,null,null,null,null,null,null,null,null,null,null,null,null,null,null,null,null,null,null,null,null,null,null,null,null,null,null,null,null,null,null,null,null,null,null,null,null,null,null,null,null,null,null,null,null,null,null,null,null,null,null,null,null,null,null,null,null,null,null,null,null,null,null,null,null,null,null,null,null,null,null,null,null,null,null,null,null,null,null,null,null,null,null,null,null,null,null,null,null,null,null,null,null,null,null,null,null,null,null,null,null,null,null,null,null,null,null,null,null,null,null,null,null,null,null,null,null,null,null,null,null,null,null,null,null,null,null,null,null,null,null,null,null,null,null,null,null,null,null,null,null,null,null,null,null,null,null,1012,65]
[null,null,null,null,null,null,null,null,null,null,null,null,null,null,null,null,null,null,null,null,null,null,null,null,null,null,null,null,null,null,null,null,null,null,null,null,null,null,null,null,null,null,null,null,null,null,null,null,null,null,null,null,null,null,null,null,null,null,null,null,null,null,null,null,null,null,null,null,null,null,null,null,null,null,null,null,null,null,null,null,null,null,null,null,null,null,null,null,null,null,null,null,null,null,null,null,null,null,null,null,null,null,null,null,null,null,null,null,null,null,null,null,null,null,null,null,null,null,null,null,null,null,null,null,null,null,null,null,null,null,null,null,null,null,null,null,null,null,null,null,null,null,null,null,null,null,null,null,null,null,null,null,null,null,null,null,null,null,null,null,null,null,null,null,null,null,null,null,null,null,null,null,null,null,null,null,null,null,null,null,null,null,null,null,null,null,null,null,null,null,null,null,null,null,null,null,null,null,null,null,null,null,null,null,null,null,null,null,null,null,null,null,null,null,null,null,null,null,null,null,null,null,null,null,null,null,null,null,null,null,null,null,null,null,null,null,null,null,null,null,null,null,null,null,null,null,null,null,null,null,null,null,null,null,null,null,null,null,null,null,null,null,null,null,null,null,null,null,null,null,null,null,null,null,null,null,null,null,null,null,null,null,null,null,null,null,null,null,null,null,null,null,null,null,null,null,null,null,null,null,null,null,null,null,null,null,null,null,null,null,null,null,null,null,null,null,null,null,null,null,null,null,null,null,null,null,null,null,null,null,null,null,null,null,null,null,null,null,null,null,null,null,null,null,null,null,null,null,null,null,null,null,null,null,null,null,null,null,null,null,null,null,null,null,null,null,null,null,null,null,null,null,null,null,null,null,null,null,null,null,null,null,null,null,null,null,null,null,null,null,null,null,null,null,null,null,null,null,null,null,null,null,null,null,null,null,null,null,null,null,null,null,null,null,null,null,null,null,null,null,null,null,null,null,null,null,null,null,null,null,null,null,null,null,null,null,null,null,null,null,null,null,null,null,null,null,null,null,null,null,null,null,null,null,null,null,null,null,null,null,null,null,null,null,null,null,null,null,null,null,null,null,null,null,null,null,null,null,null,null,null,null,null,null,null,null,null,null,null,null,null,null,null,null,null,null,null,null,null,null,null,null,null,null,null,null,null,null,null,null,null,null,null,null,null,null,null,null,null,null,null,null,null,null,null,null,null,null,null,null,null,null,null,null,null,null,null,1485,19]
[null,null,null,null,null,null,null,null,null,null,null,null,null,null,null,null,null,null,null,null,null,null,null,null,null,null,null,null,null,null,null,null,null,null,null,null,null,null,null,null,null,null,null,null,null,null,null,null,null,null,null,null,null,null,null,null,null,null,null,null,null,null,null,null,null,null,null,null,null,null,null,null,null,null,null,null,null,null,null,null,null,null,null,null,null,null,null,null,null,null,null,null,null,null,null,null,null,null,null,null,null,null,null,null,null,null,null,null,null,null,null,null,null,null,null,null,null,null,null,null,null,null,null,null,null,null,null,null,null,null,null,null,null,null,null,null,null,null,null,null,null,null,null,null,null,null,null,null,null,null,null,null,null,null,null,null,null,null,null,null,null,null,null,null,null,null,null,null,null,null,null,null,null,null,null,null,null,null,null,null,null,null,null,null,null,null,null,null,null,null,null,null,null,null,null,null,null,null,null,null,null,null,null,null,null,null,null,null,null,null,null,null,null,null,null,null,null,null,null,null,null,null,null,null,null,null,null,null,null,null,null,null,null,null,null,null,null,null,null,null,null,null,null,null,null,null,null,null,null,null,null,null,null,null,null,null,null,null,null,null,null,null,null,null,null,null,null,null,null,null,null,null,null,null,null,null,null,null,null,null,null,null,null,null,null,null,null,null,null,null,null,null,null,null,null,null,null,null,null,null,null,null,null,null,null,null,null,null,null,null,null,null,null,null,null,null,null,null,null,null,null,null,null,null,null,null,null,null,null,null,null,null,null,null,null,null,null,null,null,null,null,null,null,null,null,null,null,null,null,null,null,null,null,null,null,null,null,null,null,null,null,null,null,null,null,null,null,null,null,null,null,null,null,null,null,null,null,null,null,null,null,null,null,null,null,null,null,null,null,null,null,null,null,null,null,null,null,null,null,null,null,null,null,null,null,null,null,null,null,null,null,null,null,null,null,null,null,null,null,null,null,null,null,null,null,null,null,null,null,null,null,null,null,null,null,null,null,null,null,null,null,null,null,null,null,null,null,null,null,null,null,null,null,null,null,null,null,null,null,null,null,null,null,null,null,null,null,null,null,null,null,null,null,null,null,null,null,null,null,null,null,null,null,null,null,null,null,null,null,null,null,null,null,null,null,null,null,null,null,null,null,null,null,null,null,null,null,null,null,null,null,null,null,null,null,null,null,null,null,null,null,null,null,null,null,null,null,null,null,null,null,null,null,null,null,null,null,1423,175]
[null,null,null,null,null,null,null,null,null,null,null,null,null,null,null,null,null,null,null,null,null,null,null,null,null,null,null,null,null,null,null,null,null,null,null,null,null,null,null,null,null,null,null,null,null,null,null,null,null,null,null,null,null,null,null,null,null,null,null,null,null,null,null,null,null,null,null,null,null,null,null,null,null,null,null,null,null,null,null,null,null,null,null,null,null,null,null,null,null,null,null,null,null,null,null,null,null,null,null,null,null,null,null,null,null,null,null,null,null,null,null,null,null,null,null,null,null,null,null,null,null,null,null,null,null,null,null,null,null,null,null,null,null,null,null,null,null,null,null,null,null,null,null,null,null,null,null,null,null,null,null,null,null,null,null,null,null,null,null,null,null,null,null,null,null,null,null,null,null,null,null,null,null,null,null,null,null,null,null,null,null,null,null,null,null,null,null,null,null,null,null,null,null,null,null,null,null,null,null,null,null,null,null,null,null,null,null,null,null,null,null,null,null,null,null,null,null,null,null,null,null,null,null,null,null,null,null,null,null,null,null,null,null,null,null,null,null,null,null,null,null,null,null,null,null,null,null,null,null,null,null,null,null,null,null,null,null,null,null,null,null,null,null,null,null,null,null,null,null,null,null,null,null,null,null,null,null,null,null,null,null,null,null,null,null,null,null,null,null,null,null,null,null,null,null,null,null,null,null,null,null,null,null,null,null,null,null,null,null,null,null,null,null,null,null,null,null,null,null,null,null,null,null,null,null,null,null,null,null,null,null,null,null,null,null,null,null,null,null,null,null,null,null,null,null,null,null,null,null,null,null,null,null,null,null,null,null,null,null,null,null,null,null,null,null,null,null,null,null,null,null,null,null,null,null,null,null,null,null,null,null,null,null,null,null,null,null,null,null,null,null,null,null,null,null,null,null,null,null,null,null,null,null,null,null,null,null,null,null,null,null,null,null,null,null,null,null,null,null,null,null,null,null,null,null,null,null,null,null,null,null,null,null,null,null,null,null,null,null,null,null,null,null,null,null,null,null,null,null,null,null,null,null,null,null,null,null,null,null,null,null,null,null,null,null,null,null,null,null,null,null,null,null,null,null,null,null,null,null,null,null,null,null,null,null,null,null,null,null,null,null,null,null,null,null,null,null,null,null,null,null,null,null,null,null,null,null,null,null,null,null,null,null,null,null,null,null,null,null,null,null,null,null,null,null,null,null,null,null,null,null,null,null,null,null,null,null,1295,160]
[null,null,null,null,null,null,null,null,null,null,null,null,null,null,null,null,null,null,null,null,null,null,null,null,null,null,null,null,null,null,null,null,null,null,null,null,null,null,null,null,null,null,null,null,null,null,null,null,null,null,null,null,null,null,null,null,null,null,null,null,null,null,null,null,null,null,null,null,null,null,null,null,null,null,null,null,null,null,null,null,null,null,null,null,null,null,null,null,null,null,null,null,null,null,null,null,null,null,null,null,null,null,null,null,null,null,null,null,null,null,null,null,null,null,null,null,null,null,null,null,null,null,null,null,null,null,null,null,null,null,null,null,null,null,null,null,null,null,null,null,null,null,null,null,null,null,null,null,null,null,null,null,null,null,null,null,null,null,null,null,null,null,null,null,null,null,null,null,null,null,null,null,null,null,null,null,null,null,null,null,null,null,null,null,null,null,null,null,null,null,null,null,null,null,null,null,null,null,null,null,null,null,null,null,null,null,null,null,null,null,null,null,null,null,null,null,null,null,null,null,null,null,null,null,null,null,null,null,null,null,null,null,null,null,null,null,null,null,null,null,null,null,null,null,null,null,null,null,null,null,null,null,null,null,null,null,null,null,null,null,null,null,null,null,null,null,null,null,null,null,null,null,null,null,null,null,null,null,null,null,null,null,null,null,null,null,null,null,null,null,null,null,null,null,null,null,null,null,null,null,null,null,null,null,null,null,null,null,null,null,null,null,null,null,null,null,null,null,null,null,null,null,null,null,null,null,null,null,null,null,null,null,null,null,null,null,null,null,null,null,null,null,null,null,null,null,null,null,null,null,null,null,null,null,null,null,null,null,null,null,null,null,null,null,null,null,null,null,null,null,null,null,null,null,null,null,null,null,null,null,null,null,null,null,null,null,null,null,null,null,null,null,null,null,null,null,null,null,null,null,null,null,null,null,null,null,null,null,null,null,null,null,null,null,null,null,null,null,null,null,null,null,null,null,null,null,null,null,null,null,null,null,null,null,null,null,null,null,null,null,null,null,null,null,null,null,null,null,null,null,null,null,null,null,null,null,null,null,null,null,null,null,null,null,null,null,null,null,null,null,null,null,null,null,null,null,null,null,null,null,null,null,null,null,null,null,null,null,null,null,null,null,null,null,null,null,null,null,null,null,null,null,null,null,null,null,null,null,null,null,null,null,null,null,null,null,null,null,null,null,null,null,null,null,null,null,null,null,null,null,null,null,null,null,null,null,null,1423,2]
[null,null,null,null,null,null,null,null,null,null,null,null,null,null,null,null,null,null,null,null,null,null,null,null,null,null,null,null,null,null,null,null,null,null,null,null,null,null,null,null,null,null,null,null,null,null,null,null,null,null,null,null,null,null,null,null,null,null,null,null,null,null,null,null,null,null,null,null,null,null,null,null,null,null,null,null,null,null,null,null,null,null,null,null,null,null,null,null,null,null,null,null,null,null,null,null,null,null,null,null,null,null,null,null,null,null,null,null,null,null,null,null,null,null,null,null,null,null,null,null,null,null,null,null,null,null,null,null,null,null,null,null,null,null,null,null,null,null,null,null,null,null,null,null,null,null,null,null,null,null,null,null,null,null,null,null,null,null,null,null,null,null,null,null,null,null,null,null,null,null,null,null,null,null,null,null,null,null,null,null,null,null,null,null,null,null,null,null,null,null,null,null,null,null,null,null,null,null,null,null,null,null,null,null,null,null,null,null,null,null,null,null,null,null,null,null,null,null,null,null,null,null,null,null,null,null,null,null,null,null,null,null,null,null,null,null,null,null,null,null,null,null,null,null,null,null,null,null,null,null,null,null,null,null,null,null,null,null,null,null,null,null,null,null,null,null,null,null,null,null,null,null,null,null,null,null,null,null,null,null,null,null,null,null,null,null,null,null,null,null,null,null,null,null,null,null,null,null,null,null,null,null,null,null,null,null,null,null,null,null,null,null,null,null,null,null,null,null,null,null,null,null,null,null,null,null,null,null,null,null,null,null,null,null,null,null,null,null,null,null,null,null,null,null,null,null,null,null,null,null,null,null,null,null,null,null,null,null,null,null,null,null,null,null,null,null,null,null,null,null,null,null,null,null,null,null,null,null,null,null,null,null,null,null,null,null,null,null,null,null,null,null,null,null,null,null,null,null,null,null,null,null,null,null,null,null,null,null,null,null,null,null,null,null,null,null,null,null,null,null,null,null,null,null,null,null,null,null,null,null,null,null,null,null,null,null,null,null,null,null,null,null,null,null,null,null,null,null,null,null,null,null,null,null,null,null,null,null,null,null,null,null,null,null,null,null,null,null,null,null,null,null,null,null,null,null,null,null,null,null,null,null,null,null,null,null,null,null,null,null,null,null,null,null,null,null,null,null,null,null,null,null,null,null,null,null,null,null,null,null,null,null,null,null,null,null,null,null,null,null,null,null,null,null,null,null,null,null,null,null,null,null,null,null,null,null,null,1430,2]
[null,null,null,null,null,null,null,null,null,null,null,null,null,null,null,null,null,null,null,null,null,null,null,null,null,null,null,null,null,null,null,null,null,null,null,null,null,null,null,null,null,null,null,null,null,null,null,null,null,null,null,null,null,null,null,null,null,null,null,null,null,null,null,null,null,null,null,null,null,null,null,null,null,null,null,null,null,null,null,null,null,null,null,null,null,null,null,null,null,null,null,null,null,null,null,null,null,null,null,null,null,null,null,null,null,null,null,null,null,null,null,null,null,null,null,null,null,null,null,null,null,null,null,null,null,null,null,null,null,null,null,null,null,null,null,null,null,null,null,null,null,null,null,null,null,null,null,null,null,null,null,null,null,null,null,null,null,null,null,null,null,null,null,null,null,null,null,null,null,null,null,null,null,null,null,null,null,null,null,null,null,null,null,null,null,null,null,null,null,null,null,null,null,null,null,null,null,null,null,null,null,null,null,null,null,null,null,null,null,null,null,null,null,null,null,null,null,null,null,null,null,null,null,null,null,null,null,null,null,null,null,null,null,null,null,null,null,null,null,null,null,null,null,null,null,null,null,null,null,null,null,null,null,null,null,null,null,null,null,null,null,null,null,null,null,null,null,null,null,null,null,null,null,null,null,null,null,null,null,null,null,null,null,null,null,null,null,null,null,null,null,null,null,null,null,null,null,null,null,null,null,null,null,null,null,null,null,null,null,null,null,null,null,null,null,null,null,null,null,null,null,null,null,null,null,null,null,null,null,null,null,null,null,null,null,null,null,null,null,null,null,null,null,null,null,null,null,null,null,null,null,null,null,null,null,null,null,null,null,null,null,null,null,null,null,null,null,null,null,null,null,null,null,null,null,null,null,null,null,null,null,null,null,null,null,null,null,null,null,null,null,null,null,null,null,null,null,null,null,null,null,null,null,null,null,null,null,null,null,null,null,null,null,null,null,null,null,null,null,null,null,null,null,null,null,null,null,null,null,null,null,null,null,null,null,null,null,null,null,null,null,null,null,null,null,null,null,null,null,null,null,null,null,null,null,null,null,null,null,null,null,null,null,null,null,null,null,null,null,null,null,null,null,null,null,null,null,null,null,null,null,null,null,null,null,null,null,null,null,null,null,null,null,null,null,null,null,null,null,null,null,null,null,null,null,null,null,null,null,null,null,null,null,null,null,null,null,null,null,null,null,null,null,null,null,null,null,null,null,null,null,null,null,null,null,null,null,1434,3]
[null,null,null,null,null,null,null,null,null,null,null,null,null,null,null,null,null,null,null,null,null,null,null,null,null,null,null,null,null,null,null,null,null,null,null,null,null,null,null,null,null,null,null,null,null,null,null,null,null,null,null,null,null,null,null,null,null,null,null,null,null,null,null,null,null,null,null,null,null,null,null,null,null,null,null,null,null,null,null,null,null,null,null,null,null,null,null,null,null,null,null,null,null,null,null,null,null,null,null,null,null,null,null,null,null,null,null,null,null,null,null,null,null,null,null,null,null,null,null,null,null,null,null,null,null,null,null,null,null,null,null,null,null,null,null,null,null,null,null,null,null,null,null,null,null,null,null,null,null,null,null,null,null,null,null,null,null,null,null,null,null,null,null,null,null,null,null,null,null,null,null,null,null,null,null,null,null,null,null,null,null,null,null,null,null,null,null,null,null,null,null,null,null,null,null,null,null,null,null,null,null,null,null,null,null,null,null,null,null,null,null,null,null,null,null,null,null,null,null,null,null,null,null,null,null,null,null,null,null,null,null,null,null,null,null,null,null,null,null,null,null,null,null,null,null,null,null,null,null,null,null,null,null,null,null,null,null,null,null,null,null,null,null,null,null,null,null,null,null,null,null,null,null,null,null,null,null,null,null,null,null,null,null,null,null,null,null,null,null,null,null,null,null,null,null,null,null,null,null,null,null,null,null,null,null,null,null,null,null,null,null,null,null,null,null,null,null,null,null,null,null,null,null,null,null,null,null,null,null,null,null,null,null,null,null,null,null,null,null,null,null,null,null,null,null,null,null,null,null,null,null,null,null,null,null,null,null,null,null,null,null,null,null,null,null,null,null,null,null,null,null,null,null,null,null,null,null,null,null,null,null,null,null,null,null,null,null,null,null,null,null,null,null,null,null,null,null,null,null,null,null,null,null,null,null,null,null,null,null,null,null,null,null,null,null,null,null,null,null,null,null,null,null,null,null,null,null,null,null,null,null,null,null,null,null,null,null,null,null,null,null,null,null,null,null,null,null,null,null,null,null,null,null,null,null,null,null,null,null,null,null,null,null,null,null,null,null,null,null,null,null,null,null,null,null,null,null,null,null,null,null,null,null,null,null,null,null,null,null,null,null,null,null,null,null,null,null,null,null,null,null,null,null,null,null,null,null,null,null,null,null,null,null,null,null,null,null,null,null,null,null,null,null,null,null,null,null,null,null,null,null,null,null,null,null,null,null,1437,3]
[null,null,null,null,null,null,null,null,null,null,null,null,null,null,null,null,null,null,null,null,null,null,null,null,null,null,null,null,null,null,null,null,null,null,null,null,null,null,null,null,null,null,null,null,null,null,null,null,null,null,null,null,null,null,null,null,null,null,null,null,null,null,null,null,null,null,null,null,null,null,null,null,null,null,null,null,null,null,null,null,null,null,null,null,null,null,null,null,null,null,null,null,null,null,null,null,null,null,null,null,null,null,null,null,null,null,null,null,null,null,null,null,null,null,null,null,null,null,null,null,null,null,null,null,null,null,null,null,null,null,null,null,null,null,null,null,null,null,null,null,null,null,null,null,null,null,null,null,null,null,null,null,null,null,null,null,null,null,null,null,null,null,null,null,null,null,null,null,null,null,null,null,null,null,null,null,null,null,null,null,null,null,null,null,null,null,null,null,null,null,null,null,null,null,null,null,null,null,null,null,null,null,null,null,null,null,null,null,null,null,null,null,null,null,null,null,null,null,null,null,null,null,null,null,null,null,null,null,null,null,null,null,null,null,null,null,null,null,null,null,null,null,null,null,null,null,null,null,null,null,null,null,null,null,null,null,null,null,null,null,null,null,null,null,null,null,null,null,null,null,null,null,null,null,null,null,null,null,null,null,null,null,null,null,null,null,null,null,null,null,null,null,null,null,null,null,null,null,null,null,null,null,null,null,null,null,null,null,null,null,null,null,null,null,null,null,null,null,null,null,null,null,null,null,null,null,null,null,null,null,null,null,null,null,null,null,null,null,null,null,null,null,null,null,null,null,null,null,null,null,null,null,null,null,null,null,null,null,null,null,null,null,null,null,null,null,null,null,null,null,null,null,null,null,null,null,null,null,null,null,null,null,null,null,null,null,null,null,null,null,null,null,null,null,null,null,null,null,null,null,null,null,null,null,null,null,null,null,null,null,null,null,null,null,null,null,null,null,null,null,null,null,null,null,null,null,null,null,null,null,null,null,null,null,null,null,null,null,null,null,null,null,null,null,null,null,null,null,null,null,null,null,null,null,null,null,null,null,null,null,null,null,null,null,null,null,null,null,null,null,null,null,null,null,null,null,null,null,null,null,null,null,null,null,null,null,null,null,null,null,null,null,null,null,null,null,null,null,null,null,null,null,null,null,null,null,null,null,null,null,null,null,null,null,null,null,null,null,null,null,null,null,null,null,null,null,null,null,null,null,null,null,null,null,null,null,null,1437,2]
[null,null,null,null,null,null,null,null,null,null,null,null,null,null,null,null,null,null,null,null,null,null,null,null,null,null,null,null,null,null,null,null,null,null,null,null,null,null,null,null,null,null,null,null,null,null,null,null,null,null,null,null,null,null,null,null,null,null,null,null,null,null,null,null,null,null,null,null,null,null,null,null,null,null,null,null,null,null,null,null,null,null,null,null,null,null,null,null,null,null,null,null,null,null,null,null,null,null,null,null,null,null,null,null,null,null,null,null,null,null,null,null,null,null,null,null,null,null,null,null,null,null,null,null,null,null,null,null,null,null,null,null,null,null,null,null,null,null,null,null,null,null,null,null,null,null,null,null,null,null,null,null,null,null,null,null,null,null,null,null,null,null,null,null,null,null,null,null,null,null,null,null,null,null,null,null,null,null,null,null,null,null,null,null,null,null,null,null,null,null,null,null,null,null,null,null,null,null,null,null,null,null,null,null,null,null,null,null,null,null,null,null,null,null,null,null,null,null,null,null,null,null,null,null,null,null,null,null,null,null,null,null,null,null,null,null,null,null,null,null,null,null,null,null,null,null,null,null,null,null,null,null,null,null,null,null,null,null,null,null,null,null,null,null,null,null,null,null,null,null,null,null,null,null,null,null,null,null,null,null,null,null,null,null,null,null,null,null,null,null,null,null,null,null,null,null,null,null,null,null,null,null,null,null,null,null,null,null,null,null,null,null,null,null,null,null,null,null,null,null,null,null,null,null,null,null,null,null,null,null,null,null,null,null,null,null,null,null,null,null,null,null,null,null,null,null,null,null,null,null,null,null,null,null,null,null,null,null,null,null,null,null,null,null,null,null,null,null,null,null,null,null,null,null,null,null,null,null,null,null,null,null,null,null,null,null,null,null,null,null,null,null,null,null,null,null,null,null,null,null,null,null,null,null,null,null,null,null,null,null,null,null,null,null,null,null,null,null,null,null,null,null,null,null,null,null,null,null,null,null,null,null,null,null,null,null,null,null,null,null,null,null,null,null,null,null,null,null,null,null,null,null,null,null,null,null,null,null,null,null,null,null,null,null,null,null,null,null,null,null,null,null,null,null,null,null,null,null,null,null,null,null,null,null,null,null,null,null,null,null,null,null,null,null,null,null,null,null,null,null,null,null,null,null,null,null,null,null,null,null,null,null,null,null,null,null,null,null,null,null,null,null,null,null,null,null,null,null,null,null,null,null,null,null,null,null,null,1450,2]
[null,null,null,null,null,null,null,null,null,null,null,null,null,null,null,null,null,null,null,null,null,null,null,null,null,null,null,null,null,null,null,null,null,null,null,null,null,null,null,null,null,null,null,null,null,null,null,null,null,null,null,null,null,null,null,null,null,null,null,null,null,null,null,null,null,null,null,null,null,null,null,null,null,null,null,null,null,null,null,null,null,null,null,null,null,null,null,null,null,null,null,null,null,null,null,null,null,null,null,null,null,null,null,null,null,null,null,null,null,null,null,null,null,null,null,null,null,null,null,null,null,null,null,null,null,null,null,null,null,null,null,null,null,null,null,null,null,null,null,null,null,null,null,null,null,null,null,null,null,null,null,null,null,null,null,null,null,null,null,null,null,null,null,null,null,null,null,null,null,null,null,null,null,null,null,null,null,null,null,null,null,null,null,null,null,null,null,null,null,null,null,null,null,null,null,null,null,null,null,null,null,null,null,null,null,null,null,null,null,null,null,null,null,null,null,null,null,null,null,null,null,null,null,null,null,null,null,null,null,null,null,null,null,null,null,null,null,null,null,null,null,null,null,null,null,null,null,null,null,null,null,null,null,null,null,null,null,null,null,null,null,null,null,null,null,null,null,null,null,null,null,null,null,null,null,null,null,null,null,null,null,null,null,null,null,null,null,null,null,null,null,null,null,null,null,null,null,null,null,null,null,null,null,null,null,null,null,null,null,null,null,null,null,null,null,null,null,null,null,null,null,null,null,null,null,null,null,null,null,null,null,null,null,null,null,null,null,null,null,null,null,null,null,null,null,null,null,null,null,null,null,null,null,null,null,null,null,null,null,null,null,null,null,null,null,null,null,null,null,null,null,null,null,null,null,null,null,null,null,null,null,null,null,null,null,null,null,null,null,null,null,null,null,null,null,null,null,null,null,null,null,null,null,null,null,null,null,null,null,null,null,null,null,null,null,null,null,null,null,null,null,null,null,null,null,null,null,null,null,null,null,null,null,null,null,null,null,null,null,null,null,null,null,null,null,null,null,null,null,null,null,null,null,null,null,null,null,null,null,null,null,null,null,null,null,null,null,null,null,null,null,null,null,null,null,null,null,null,null,null,null,null,null,null,null,null,null,null,null,null,null,null,null,null,null,null,null,null,null,null,null,null,null,null,null,null,null,null,null,null,null,null,null,null,null,null,null,null,null,null,null,null,null,null,null,null,null,null,null,null,null,null,null,null,null,null,null,1452,1]
[null,null,null,null,null,null,null,null,null,null,null,null,null,null,null,null,null,null,null,null,null,null,null,null,null,null,null,null,null,null,null,null,null,null,null,null,null,null,null,null,null,null,null,null,null,null,null,null,null,null,null,null,null,null,null,null,null,null,null,null,null,null,null,null,null,null,null,null,null,null,null,null,null,null,null,null,null,null,null,null,null,null,null,null,null,null,null,null,null,null,null,null,null,null,null,null,null,null,null,null,null,null,null,null,null,null,null,null,null,null,null,null,null,null,null,null,null,null,null,null,null,null,null,null,null,null,null,null,null,null,null,null,null,null,null,null,null,null,null,null,null,null,null,null,null,null,null,null,null,null,null,null,null,null,null,null,null,null,null,null,null,null,null,null,null,null,null,null,null,null,null,null,null,null,null,null,null,null,null,null,null,null,null,null,null,null,null,null,null,null,null,null,null,null,null,null,null,null,null,null,null,null,null,null,null,null,null,null,null,null,null,null,null,null,null,null,null,null,null,null,null,null,null,null,null,null,null,null,null,null,null,null,null,null,null,null,null,null,null,null,null,null,null,null,null,null,null,null,null,null,null,null,null,null,null,null,null,null,null,null,null,null,null,null,null,null,null,null,null,null,null,null,null,null,null,null,null,null,null,null,null,null,null,null,null,null,null,null,null,null,null,null,null,null,null,null,null,null,null,null,null,null,null,null,null,null,null,null,null,null,null,null,null,null,null,null,null,null,null,null,null,null,null,null,null,null,null,null,null,null,null,null,null,null,null,null,null,null,null,null,null,null,null,null,null,null,null,null,null,null,null,null,null,null,null,null,null,null,null,null,null,null,null,null,null,null,null,null,null,null,null,null,null,null,null,null,null,null,null,null,null,null,null,null,null,null,null,null,null,null,null,null,null,null,null,null,null,null,null,null,null,null,null,null,null,null,null,null,null,null,null,null,null,null,null,null,null,null,null,null,null,null,null,null,null,null,null,null,null,null,null,null,null,null,null,null,null,null,null,null,null,null,null,null,null,null,null,null,null,null,null,null,null,null,null,null,null,null,null,null,null,null,null,null,null,null,null,null,null,null,null,null,null,null,null,null,null,null,null,null,null,null,null,null,null,null,null,null,null,null,null,null,null,null,null,null,null,null,null,null,null,null,null,null,null,null,null,null,null,null,null,null,null,null,null,null,null,null,null,null,null,null,null,null,null,null,null,null,null,null,null,null,null,null,null,null,null,1456,1]
[null,null,null,null,null,null,null,null,null,null,null,null,null,null,null,null,null,null,null,null,null,null,null,null,null,null,null,null,null,null,null,null,null,null,null,null,null,null,null,null,null,null,null,null,null,null,null,null,null,null,null,null,null,null,null,null,null,null,null,null,null,null,null,null,null,null,null,null,null,null,null,null,null,null,null,null,null,null,null,null,null,null,null,null,null,null,null,null,null,null,null,null,null,null,null,null,null,null,null,null,null,null,null,null,null,null,null,null,null,null,null,null,null,null,null,null,null,null,null,null,null,null,null,null,null,null,null,null,null,null,null,null,null,null,null,null,null,null,null,null,null,null,null,null,null,null,null,null,null,null,null,null,null,null,null,null,null,null,null,null,null,null,null,null,null,null,null,null,null,null,null,null,null,null,null,null,null,null,null,null,null,null,null,null,null,null,null,null,null,null,null,null,null,null,null,null,null,null,null,null,null,null,null,null,null,null,null,null,null,null,null,null,null,null,null,null,null,null,null,null,null,null,null,null,null,null,null,null,null,null,null,null,null,null,null,null,null,null,null,null,null,null,null,null,null,null,null,null,null,null,null,null,null,null,null,null,null,null,null,null,null,null,null,null,null,null,null,null,null,null,null,null,null,null,null,null,null,null,null,null,null,null,null,null,null,null,null,null,null,null,null,null,null,null,null,null,null,null,null,null,null,null,null,null,null,null,null,null,null,null,null,null,null,null,null,null,null,null,null,null,null,null,null,null,null,null,null,null,null,null,null,null,null,null,null,null,null,null,null,null,null,null,null,null,null,null,null,null,null,null,null,null,null,null,null,null,null,null,null,null,null,null,null,null,null,null,null,null,null,null,null,null,null,null,null,null,null,null,null,null,null,null,null,null,null,null,null,null,null,null,null,null,null,null,null,null,null,null,null,null,null,null,null,null,null,null,null,null,null,null,null,null,null,null,null,null,null,null,null,null,null,null,null,null,null,null,null,null,null,null,null,null,null,null,null,null,null,null,null,null,null,null,null,null,null,null,null,null,null,null,null,null,null,null,null,null,null,null,null,null,null,null,null,null,null,null,null,null,null,null,null,null,null,null,null,null,null,null,null,null,null,null,null,null,null,null,null,null,null,null,null,null,null,null,null,null,null,null,null,null,null,null,null,null,null,null,null,null,null,null,null,null,null,null,null,null,null,null,null,null,null,null,null,null,null,null,null,null,null,null,null,null,null,null,null,null,null,1457,2]
[null,null,null,null,null,null,null,null,null,null,null,null,null,null,null,null,null,null,null,null,null,null,null,null,null,null,null,null,null,null,null,null,null,null,null,null,null,null,null,null,null,null,null,null,null,null,null,null,null,null,null,null,null,null,null,null,null,null,null,null,null,null,null,null,null,null,null,null,null,null,null,null,null,null,null,null,null,null,null,null,null,null,null,null,null,null,null,null,null,null,null,null,null,null,null,null,null,null,null,null,null,null,null,null,null,null,null,null,null,null,null,null,null,null,null,null,null,null,null,null,null,null,null,null,null,null,null,null,null,null,null,null,null,null,null,null,null,null,null,null,null,null,null,null,null,null,null,null,null,null,null,null,null,null,null,null,null,null,null,null,null,null,null,null,null,null,null,null,null,null,null,null,null,null,null,null,null,null,null,null,null,null,null,null,null,null,null,null,null,null,null,null,null,null,null,null,null,null,null,null,null,null,null,null,null,null,null,null,null,null,null,null,null,null,null,null,null,null,null,null,null,null,null,null,null,null,null,null,null,null,null,null,null,null,null,null,null,null,null,null,null,null,null,null,null,null,null,null,null,null,null,null,null,null,null,null,null,null,null,null,null,null,null,null,null,null,null,null,null,null,null,null,null,null,null,null,null,null,null,null,null,null,null,null,null,null,null,null,null,null,null,null,null,null,null,null,null,null,null,null,null,null,null,null,null,null,null,null,null,null,null,null,null,null,null,null,null,null,null,null,null,null,null,null,null,null,null,null,null,null,null,null,null,null,null,null,null,null,null,null,null,null,null,null,null,null,null,null,null,null,null,null,null,null,null,null,null,null,null,null,null,null,null,null,null,null,null,null,null,null,null,null,null,null,null,null,null,null,null,null,null,null,null,null,null,null,null,null,null,null,null,null,null,null,null,null,null,null,null,null,null,null,null,null,null,null,null,null,null,null,null,null,null,null,null,null,null,null,null,null,null,null,null,null,null,null,null,null,null,null,null,null,null,null,null,null,null,null,null,null,null,null,null,null,null,null,null,null,null,null,null,null,null,null,null,null,null,null,null,null,null,null,null,null,null,null,null,null,null,null,null,null,null,null,null,null,null,null,null,null,null,null,null,null,null,null,null,null,null,null,null,null,null,null,null,null,null,null,null,null,null,null,null,null,null,null,null,null,null,null,null,null,null,null,null,null,null,null,null,null,null,null,null,null,null,null,null,null,null,null,null,null,null,null,null,null,null,1457,1]
[null,null,null,null,null,null,null,null,null,null,null,null,null,null,null,null,null,null,null,null,null,null,null,null,null,null,null,null,null,null,null,null,null,null,null,null,null,null,null,null,null,null,null,null,null,null,null,null,null,null,null,null,null,null,null,null,null,null,null,null,null,null,null,null,null,null,null,null,null,null,null,null,null,null,null,null,null,null,null,null,null,null,null,null,null,null,null,null,null,null,null,null,null,null,null,null,null,null,null,null,null,null,null,null,null,null,null,null,null,null,null,null,null,null,null,null,null,null,null,null,null,null,null,null,null,null,null,null,null,null,null,null,null,null,null,null,null,null,null,null,null,null,null,null,null,null,null,null,null,null,null,null,null,null,null,null,null,null,null,null,null,null,null,null,null,null,null,null,null,null,null,null,null,null,null,null,null,null,null,null,null,null,null,null,null,null,null,null,null,null,null,null,null,null,null,null,null,null,null,null,null,null,null,null,null,null,null,null,null,null,null,null,null,null,null,null,null,null,null,null,null,null,null,null,null,null,null,null,null,null,null,null,null,null,null,null,null,null,null,null,null,null,null,null,null,null,null,null,null,null,null,null,null,null,null,null,null,null,null,null,null,null,null,null,null,null,null,null,null,null,null,null,null,null,null,null,null,null,null,null,null,null,null,null,null,null,null,null,null,null,null,null,null,null,null,null,null,null,null,null,null,null,null,null,null,null,null,null,null,null,null,null,null,null,null,null,null,null,null,null,null,null,null,null,null,null,null,null,null,null,null,null,null,null,null,null,null,null,null,null,null,null,null,null,null,null,null,null,null,null,null,null,null,null,null,null,null,null,null,null,null,null,null,null,null,null,null,null,null,null,null,null,null,null,null,null,null,null,null,null,null,null,null,null,null,null,null,null,null,null,null,null,null,null,null,null,null,null,null,null,null,null,null,null,null,null,null,null,null,null,null,null,null,null,null,null,null,null,null,null,null,null,null,null,null,null,null,null,null,null,null,null,null,null,null,null,null,null,null,null,null,null,null,null,null,null,null,null,null,null,null,null,null,null,null,null,null,null,null,null,null,null,null,null,null,null,null,null,null,null,null,null,null,null,null,null,null,null,null,null,null,null,null,null,null,null,null,null,null,null,null,null,null,null,null,null,null,null,null,null,null,null,null,null,null,null,null,null,null,null,null,null,null,null,null,null,null,null,null,null,null,null,null,null,null,null,null,null,null,null,null,null,null,null,null,null,null,1459,1]
[null,null,null,null,null,null,null,null,null,null,null,null,null,null,null,null,null,null,null,null,null,null,null,null,null,null,null,null,null,null,null,null,null,null,null,null,null,null,null,null,null,null,null,null,null,null,null,null,null,null,null,null,null,null,null,null,null,null,null,null,null,null,null,null,null,null,null,null,null,null,null,null,null,null,null,null,null,null,null,null,null,null,null,null,null,null,null,null,null,null,null,null,null,null,null,null,null,null,null,null,null,null,null,null,null,null,null,null,null,null,null,null,null,null,null,null,null,null,null,null,null,null,null,null,null,null,null,null,null,null,null,null,null,null,null,null,null,null,null,null,null,null,null,null,null,null,null,null,null,null,null,null,null,null,null,null,null,null,null,null,null,null,null,null,null,null,null,null,null,null,null,null,null,null,null,null,null,null,null,null,null,null,null,null,null,null,null,null,null,null,null,null,null,null,null,null,null,null,null,null,null,null,null,null,null,null,null,null,null,null,null,null,null,null,null,null,null,null,null,null,null,null,null,null,null,null,null,null,null,null,null,null,null,null,null,null,null,null,null,null,null,null,null,null,null,null,null,null,null,null,null,null,null,null,null,null,null,null,null,null,null,null,null,null,null,null,null,null,null,null,null,null,null,null,null,null,null,null,null,null,null,null,null,null,null,null,null,null,null,null,null,null,null,null,null,null,null,null,null,null,null,null,null,null,null,null,null,null,null,null,null,null,null,null,null,null,null,null,null,null,null,null,null,null,null,null,null,null,null,null,null,null,null,null,null,null,null,null,null,null,null,null,null,null,null,null,null,null,null,null,null,null,null,null,null,null,null,null,null,null,null,null,null,null,null,null,null,null,null,null,null,null,null,null,null,null,null,null,null,null,null,null,null,null,null,null,null,null,null,null,null,null,null,null,null,null,null,null,null,null,null,null,null,null,null,null,null,null,null,null,null,null,null,null,null,null,null,null,null,null,null,null,null,null,null,null,null,null,null,null,null,null,null,null,null,null,null,null,null,null,null,null,null,null,null,null,null,null,null,null,null,null,null,null,null,null,null,null,null,null,null,null,null,null,null,null,null,null,null,null,null,null,null,null,null,null,null,null,null,null,null,null,null,null,null,null,null,null,null,null,null,null,null,null,null,null,null,null,null,null,null,null,null,null,null,null,null,null,null,null,null,null,null,null,null,null,null,null,null,null,null,null,null,null,null,null,null,null,null,null,null,null,null,null,null,null,null,1459,2]
[null,null,null,null,null,null,null,null,null,null,null,null,null,null,null,null,null,null,null,null,null,null,null,null,null,null,null,null,null,null,null,null,null,null,null,null,null,null,null,null,null,null,null,null,null,null,null,null,null,null,null,null,null,null,null,null,null,null,null,null,null,null,null,null,null,null,null,null,null,null,null,null,null,null,null,null,null,null,null,null,null,null,null,null,null,null,null,null,null,null,null,null,null,null,null,null,null,null,null,null,null,null,null,null,null,null,null,null,null,null,null,null,null,null,null,null,null,null,null,null,null,null,null,null,null,null,null,null,null,null,null,null,null,null,null,null,null,null,null,null,null,null,null,null,null,null,null,null,null,null,null,null,null,null,null,null,null,null,null,null,null,null,null,null,null,null,null,null,null,null,null,null,null,null,null,null,null,null,null,null,null,null,null,null,null,null,null,null,null,null,null,null,null,null,null,null,null,null,null,null,null,null,null,null,null,null,null,null,null,null,null,null,null,null,null,null,null,null,null,null,null,null,null,null,null,null,null,null,null,null,null,null,null,null,null,null,null,null,null,null,null,null,null,null,null,null,null,null,null,null,null,null,null,null,null,null,null,null,null,null,null,null,null,null,null,null,null,null,null,null,null,null,null,null,null,null,null,null,null,null,null,null,null,null,null,null,null,null,null,null,null,null,null,null,null,null,null,null,null,null,null,null,null,null,null,null,null,null,null,null,null,null,null,null,null,null,null,null,null,null,null,null,null,null,null,null,null,null,null,null,null,null,null,null,null,null,null,null,null,null,null,null,null,null,null,null,null,null,null,null,null,null,null,null,null,null,null,null,null,null,null,null,null,null,null,null,null,null,null,null,null,null,null,null,null,null,null,null,null,null,null,null,null,null,null,null,null,null,null,null,null,null,null,null,null,null,null,null,null,null,null,null,null,null,null,null,null,null,null,null,null,null,null,null,null,null,null,null,null,null,null,null,null,null,null,null,null,null,null,null,null,null,null,null,null,null,null,null,null,null,null,null,null,null,null,null,null,null,null,null,null,null,null,null,null,null,null,null,null,null,null,null,null,null,null,null,null,null,null,null,null,null,null,null,null,null,null,null,null,null,null,null,null,null,null,null,null,null,null,null,null,null,null,null,null,null,null,null,null,null,null,null,null,null,null,null,null,null,null,null,null,null,null,null,null,null,null,null,null,null,null,null,null,null,null,null,null,null,null,null,null,null,null,null,null,null,null,1462,2]
[null,null,null,null,null,null,null,null,null,null,null,null,null,null,null,null,null,null,null,null,null,null,null,null,null,null,null,null,null,null,null,null,null,null,null,null,null,null,null,null,null,null,null,null,null,null,null,null,null,null,null,null,null,null,null,null,null,null,null,null,null,null,null,null,null,null,null,null,null,null,null,null,null,null,null,null,null,null,null,null,null,null,null,null,null,null,null,null,null,null,null,null,null,null,null,null,null,null,null,null,null,null,null,null,null,null,null,null,null,null,null,null,null,null,null,null,null,null,null,null,null,null,null,null,null,null,null,null,null,null,null,null,null,null,null,null,null,null,null,null,null,null,null,null,null,null,null,null,null,null,null,null,null,null,null,null,null,null,null,null,null,null,null,null,null,null,null,null,null,null,null,null,null,null,null,null,null,null,null,null,null,null,null,null,null,null,null,null,null,null,null,null,null,null,null,null,null,null,null,null,null,null,null,null,null,null,null,null,null,null,null,null,null,null,null,null,null,null,null,null,null,null,null,null,null,null,null,null,null,null,null,null,null,null,null,null,null,null,null,null,null,null,null,null,null,null,null,null,null,null,null,null,null,null,null,null,null,null,null,null,null,null,null,null,null,null,null,null,null,null,null,null,null,null,null,null,null,null,null,null,null,null,null,null,null,null,null,null,null,null,null,null,null,null,null,null,null,null,null,null,null,null,null,null,null,null,null,null,null,null,null,null,null,null,null,null,null,null,null,null,null,null,null,null,null,null,null,null,null,null,null,null,null,null,null,null,null,null,null,null,null,null,null,null,null,null,null,null,null,null,null,null,null,null,null,null,null,null,null,null,null,null,null,null,null,null,null,null,null,null,null,null,null,null,null,null,null,null,null,null,null,null,null,null,null,null,null,null,null,null,null,null,null,null,null,null,null,null,null,null,null,null,null,null,null,null,null,null,null,null,null,null,null,null,null,null,null,null,null,null,null,null,null,null,null,null,null,null,null,null,null,null,null,null,null,null,null,null,null,null,null,null,null,null,null,null,null,null,null,null,null,null,null,null,null,null,null,null,null,null,null,null,null,null,null,null,null,null,null,null,null,null,null,null,null,null,null,null,null,null,null,null,null,null,null,null,null,null,null,null,null,null,null,null,null,null,null,null,null,null,null,null,null,null,null,null,null,null,null,null,null,null,null,null,null,null,null,null,null,null,null,null,null,null,null,null,null,null,null,null,null,null,null,null,null,null,null,1461,1]
[null,null,null,null,null,null,null,null,null,null,null,null,null,null,null,null,null,null,null,null,null,null,null,null,null,null,null,null,null,null,null,null,null,null,null,null,null,null,null,null,null,null,null,null,null,null,null,null,null,null,null,null,null,null,null,null,null,null,null,null,null,null,null,null,null,null,null,null,null,null,null,null,null,null,null,null,null,null,null,null,null,null,null,null,null,null,null,null,null,null,null,null,null,null,null,null,null,null,null,null,null,null,null,null,null,null,null,null,null,null,null,null,null,null,null,null,null,null,null,null,null,null,null,null,null,null,null,null,null,null,null,null,null,null,null,null,null,null,null,null,null,null,null,null,null,null,null,null,null,null,null,null,null,null,null,null,null,null,null,null,null,null,null,null,null,null,null,null,null,null,null,null,null,null,null,null,null,null,null,null,null,null,null,null,null,null,null,null,null,null,null,null,null,null,null,null,null,null,null,null,null,null,null,null,null,null,null,null,null,null,null,null,null,null,null,null,null,null,null,null,null,null,null,null,null,null,null,null,null,null,null,null,null,null,null,null,null,null,null,null,null,null,null,null,null,null,null,null,null,null,null,null,null,null,null,null,null,null,null,null,null,null,null,null,null,null,null,null,null,null,null,null,null,null,null,null,null,null,null,null,null,null,null,null,null,null,null,null,null,null,null,null,null,null,null,null,null,null,null,null,null,null,null,null,null,null,null,null,null,null,null,null,null,null,null,null,null,null,null,null,null,null,null,null,null,null,null,null,null,null,null,null,null,null,null,null,null,null,null,null,null,null,null,null,null,null,null,null,null,null,null,null,null,null,null,null,null,null,null,null,null,null,null,null,null,null,null,null,null,null,null,null,null,null,null,null,null,null,null,null,null,null,null,null,null,null,null,null,null,null,null,null,null,null,null,null,null,null,null,null,null,null,null,null,null,null,null,null,null,null,null,null,null,null,null,null,null,null,null,null,null,null,null,null,null,null,null,null,null,null,null,null,null,null,null,null,null,null,null,null,null,null,null,null,null,null,null,null,null,null,null,null,null,null,null,null,null,null,null,null,null,null,null,null,null,null,null,null,null,null,null,null,null,null,null,null,null,null,null,null,null,null,null,null,null,null,null,null,null,null,null,null,null,null,null,null,null,null,null,null,null,null,null,null,null,null,null,null,null,null,null,null,null,null,null,null,null,null,null,null,null,null,null,null,null,null,null,null,null,null,null,null,null,null,null,null,null,1480,1]